{"text_format":"1","workbook":"xlsx","n_sheets":9,"sheets":["RESUMO","IMPLANTAÇÃO","BLOCO A","BLOCO B","BLOCO C","QUADRA","ANEXOS","COMPOSIÇÃO DO BDI","COMPOSIÇÃO DO BDI EQUIPAMENTO"],"not_rendered":{"charts":0,"images":1,"macros":1,"external_links":1,"defined_names":101,"comments":1,"pivot_tables":0},"unopened":[],"bounds":{"document_bytes":16777216,"sheet_cells":100000,"rows_first":2000,"rows_last":500,"rows_between":2000,"halvings":0,"cell_chars":16384,"cell_head_chars":4096},"cells_cut":0,"cells_raw":0,"read":"whole","date_system":"1900"}

{"sheet":"RESUMO","index":0,"n_rows":26,"n_cols":9,"rows_kept":26,"cut":false,"hidden":false,"merged":[[11,1,11,3],[24,0,24,5],[25,1,25,3],[21,1,21,3],[13,1,13,3],[15,1,15,3],[17,1,17,3],[18,0,18,5],[19,1,19,3],[20,0,20,5],[23,1,23,3],[10,0,10,5],[0,0,3,2],[0,3,1,5],[2,3,3,3],[2,4,3,4],[2,5,3,5],[4,0,4,5],[5,0,5,5],[6,0,6,5],[7,0,7,5],[8,0,8,5],[9,0,9,5]]}
["                                 PLANILHA ORÇAMENTARIA",null,null,"UNAEN-FF-002"]
[]
[null,null,null,"Folha:                 1 de 1","Revisão:         \n00","Data: 10/09/2010"]
[]
["SESI - SERVIÇO SOCIAL DA INDUSTRIA - DR/MT"]
["OBRA: CONTRATAÇÃO DE EMPRESA ESPECIALIZADA EM ENGENHARIA PARA OBRA DE REFORMA E AMPLIAÇÃO DA UNIDADE SESI ESCOLA CUIABÁ"]
["UNIDADE OPERACIONAL: SESI ESCOLA CUIABA"]
["ENDEREÇO:  AV. OÁTOMO CANAVARROS, 1079, BAIRRO BELA VISTA CIDADE: CUIABÁ-MT            "]
["CONSTRUTORA:"]
["RESPONSÁVEL TÉCNICO:"]
[]
["ITEM","DESCRIÇÃO",null,null,"%","Valor Total (R$)",null,null,""]
[]
[1,{"$f":"'[1]1-IMPLANTAÇÃO'!B14","v":"IMPLANTAÇÃO GERAL"},null,null,{"$f":"F14/$F$26","v":0.30310646970434602},{"$f":"IMPLANTAÇÃO!F830","v":4760891.1099999975}]
[]
[2,"BLOCO A ",null,null,{"$f":"F16/$F$26","v":0.16048365378021492},{"$f":"'BLOCO A'!F283","v":2520715.5799999991}]
[]
[3,"BLOCO B ",null,null,{"$f":"F18/$F$26","v":0.34145568913299645},{"$f":"'BLOCO B'!F315","v":5363242.0200000005}]
[]
[4,"BLOCO C ",null,null,{"$f":"F20/$F$26","v":0.15392468339663473},{"$f":"'BLOCO C'!F268","v":2417693.8799999994}]
[]
[5,"QUADRA",null,null,{"$f":"F22/$F$26","v":1.1475859404024645E-2},{"$f":"QUADRA!F61","v":180251.24000000002}]
[]
[6,{"$f":"ANEXOS!A14","v":"ANEXOS (SUBESTAÇÃO, CASA DE BOMBA, BASE CX DAGUA)"},null,null,{"$f":"F24/$F$26","v":2.9553644581783223E-2},{"$f":"ANEXOS!F213","v":464198.88}]
[]
[null,"VALOR TOTAL DO SESI CUIABÁ",null,null,{"$f":"SUBTOTAL(9,E14:E24)","v":1},{"$f":"SUBTOTAL(9,F14:F24)","v":15706992.709999997}]

{"sheet":"IMPLANTAÇÃO","index":1,"n_rows":830,"n_cols":6,"rows_kept":830,"cut":false,"hidden":false,"merged":[[13,0,13,5],[0,3,1,5],[2,3,3,3],[2,4,3,4],[2,5,3,5],[0,0,3,2],[9,0,9,5],[10,0,10,5],[4,0,4,5],[5,0,5,5],[7,0,7,5],[6,0,6,5],[8,0,8,5]]}
["                                 PLANILHA ORÇAMENTARIA   ",null,null,"SPN-FF-003"]
[]
[null,null,null,"Folha:              1 de 1","Revisão:      02","Data: \n07/10/19"]
[]
[{"$f":"RESUMO!A5","v":"SESI - SERVIÇO SOCIAL DA INDUSTRIA - DR/MT"}]
[{"$f":"RESUMO!$A$6","v":"OBRA: CONTRATAÇÃO DE EMPRESA ESPECIALIZADA EM ENGENHARIA PARA OBRA DE REFORMA E AMPLIAÇÃO DA UNIDADE SESI ESCOLA CUIABÁ"}]
[{"$f":"RESUMO!A7","v":"UNIDADE OPERACIONAL: SESI ESCOLA CUIABA"}]
[{"$f":"RESUMO!A8","v":"ENDEREÇO:  AV. OÁTOMO CANAVARROS, 1079, BAIRRO BELA VISTA CIDADE: CUIABÁ-MT            "}]
["CONSTRUTORA:"]
["RESPONSÁVEL TÉCNICO:"]
[]
["ITEM","DESCRIÇÃO","UNID.","QUANT.","Valor UNIT. (R$)","Valor Total (R$)"]
[]
["IMPLANTAÇÃO"]
["1.1","DEMOLIÇÕES E RETIRADAS ",null,null,null,{"$f":"SUBTOTAL(9,F16:F36)","v":178445.87000000005}]
["1.1.1","DEMOLIÇÃO DE ALVENARIA DE BLOCO FURADO, DE FORMA MANUAL, SEM REAPROVEITAMENTO. AF_12/2017 (BASE DO GRADIL DA FACHADA, CASA DE BONECA, DEP. MAT. ESPORTIVO E DEMAIS SERVIÇOS CONFORME PROJETO ARQUITETONICO)","M3",263.78699999999998,50.69,{"$f":"ROUND(D16*E16,2)","v":13371.36}]
["1.1.2","RETIRADA GRADE METALICA COM REAPROVEITAMENTO (GRADIL DA FACHADA, CERCADO DAS TENDAS DA FACHADA E DO PLAGROUND, E DEMIAS SEVIÇOS CONFORME PROJETO ARQUITETONICO)","M2",398.34100000000007,10.91,4345.8999999999996]
["1.1.3","CORTE RASO E RECORTE DE ÁRVORE COM DIÂMETRO DE TRONCO MAIOR OU IGUAL A 0,20 M E MENOR QUE 0,40 M.AF_05/2018","UN",110,66.260000000000005,7288.6]
["1.1.4","REMOÇÃO DE RAÍZES REMANESCENTES DE TRONCO DE ÁRVORE COM DIÂMETRO MAIOR OU IGUAL A 0,40 M E MENOR QUE 0,60 M.AF_05/2018","UN",110,140.08000000000001,15408.8]
["1.1.5","DEMOLIÇÃO DA PAVIMENTAÇÃO (ESTACIONAMENTO PAIS/ALUNOS)","M2",3416.29,6.06,20702.72]
["1.1.6","REMOÇÃO DE GRAMA E TERRA - CANTEIROS","M2",127.92800000000003,3.07,392.74]
["1.1.7","REMOÇÃO E REINSTALAÇÃO DE PÓRTICO COM REAPROVEITAMENTO (DET. 02- IMPLANTAÇÃO)","UD",1,1401.94,1401.94]
["1.1.8","RETIRADA DE TOTEM COMUNICAÇÃO VISUAL . (DET. 06 IMPLANTAÇÃO)","UN",1,420.88,420.88]
["1.1.9","DEMOLIÇÃO DE PAVIMENTO INTERTRAVADO, DE FORMA MANUAL. (ESTACIONAMENTOS E FACHADA)","M2",248,14.05,3484.4]
["1.1.10","DEMOLIÇÃO MANUAL DE PISO EM CONCRETO SIMPLES INCLUSIVE LASTRO DE CONCRETO (CALÇADAS E PISOS EXTERNOS) ","M2",2039.7089999999998,34.04,69431.69]
["1.1.11","REMOÇÃO DE MEIO FIO, INCLUSIVE CARGA","M",1135.8599999999999,10.95,12437.67]
["1.1.12","RETIRADA DE BANCADA (DEPÓSITO MATERIAL ESPORTIVO) ","M2",1.1299999999999999,43.7,{"$f":"ROUND(D27*E27,2)","v":49.38}]
["1.1.13","RETIRADA DE ESTRUTURA PARA TELHAS ONDULADAS DE FIBROCIMENTO, ALUMINIO OU PLASTICO (CASA DE BONECAS, ABRIGO VIATURA, DEP. MATERIAL ESPORTIVO)","M2",56.74,17.72,1005.43]
["1.1.14","REMOÇÃO DE TELHAS, DE FIBROCIMENTO, METÁLICA E CERÂMICA, DE FORMA MANUAL, SEM REAPROVEITAMENTO. (CASA DE BONECAS, ABRIGO VIATURA, DEP. MATERIAL ESPORTIVO)","M2",56.74,3.14,178.16]
["1.1.15","REMOÇÃO DE LOUÇAS, DE FORMA MANUAL  (DEPÓSITO MATERIAL ESPORTIVO) ","UN",2,10.97,21.94]
["1.1.16","REMOÇÃO DE PORTAS E PORTÕES (FACHADA, DEPÓSITO MATERIAL ESPORTIVO E ESTACIONAMENTO)","M2",72.26400000000001,8.1999999999999993,592.55999999999995]
["1.1.17","REMOÇÃO DE JANELAS, DE FORMA MANUAL (DEPÓSITO MATERIAL ESPORTIVO) ","M2",7.5664999999999996,28.07,212.39]
["1.1.18","REMOÇÃO DE METAIS SANITÁRIOS, DE FORMA MANUAL. (DEPÓSITO MATERIAL ESPORTIVO) ","UN",2,7.99,15.98]
["1.1.19","REMOÇÃO DE FORROS SEM REAPROVEITAMENTO. (DEPÓSITO MATERIAL ESPORTIVO) ","M2",9.67,1.42,13.73]
["1.1.20","RETIRADA GUARDA-CORPO E CORRIMÃO (ESTACIONAMENTOS E ESCADA/RAMPA ENTRE BLOCOS B E C)","M2",46.552000000000007,8.7200000000000006,405.93]
["1.1.21","BOTA FORA DE MATERIAL DESCARTADO, D.M.T. = 10 km - (CARGA, TRANSPORTE E DESCARGA MECÂNICA)","M3",1080.6051500000001,25.23,27263.67]
["1.2","CANTEIRO DE OBRAS",null,null,null,{"$f":"SUBTOTAL(9,F38:F97)","v":295848.84999999998}]
["1.2.1","LOCACAO DE CONTAINER 2,30  X  6,00 M, ALT. 2,50 M, COM 1 SANITARIO, PARA ESCRITORIO, COMPLETO, SEM DIVISORIAS INTERNAS","MES   ",12,830.27,{"$f":"ROUND(D38*E38,2)","v":9963.24}]
["1.2.2","LOCACAO DE CONTAINER 2,30 X 6,00 M, ALT. 2,50 M, PARA ALMOXARIFADO, SEM DIVISORIAS INTERNAS E SEM SANITARIO (LOCAÇÃO)","MES   ",12,648.64,7783.68]
["1.2.3","LOCACAO DE CONTAINER 2,30 X 6,00 M, ALT. 2,50 M,  PARA SANITARIO,  COM 4 BACIAS, 8 CHUVEIROS,1 LAVATORIO E 1 MICTORIO","MES   ",12,1037.83,12453.96]
["1.2.4","EXECUÇÃO DE REFEITÓRIO EM CANTEIRO DE OBRA EM CHAPA DE MADEIRA COMPENSADA, NÃO INCLUSO MOBILIÁRIO E EQUIPAMENTOS. AF_02/2016","M2",30,467.93,14037.9]
["1.2.5","TAPUME DE TELHA TRAPEZOIDAL GALVANIZADA ALTURA 2,20m FIXADA EM VIGOTA 6x12, A CADA 2,5m COM 3 LINHAS DE LONGARINAS DE RIPÃO 12,5x15,0 EM TODA EXTENSÃO PARA FIXAÇÃO DAS TELHAS, INCLUSO PORTÃO DE ACESSO PARA CARGA E DESCARGA.","M2",1144.374,93.85,107399.5]
["1.2.6","LOCACAO MENSAL DE ANDAIME METALICO TIPO FACHADEIRO, INCLUSIVE MONTAGEM E DESMONTAGEM","M2/MES",648,6.41,4153.68]
["1.2.7","MONTAGEM E DESMONTAGEM DE ANDAIME MODULAR FACHADEIRO, COM PISO METÁLICO, PARA EDIFICAÇÕES COM MÚLTIPLOS PAVIMENTOS (EXCLUSIVE ANDAIME E LIMPEZA). AF_11/2017","M2",388.79999999999995,8.25,3207.6]
["1.2.8","LOCACAO MENSAL DE ANDAIME METALICO TIPO TORRE, INCLUSIVE MONTAGEM E DESMONTAGEM","M/MES",192,19.27,3699.84]
["1.2.9","MONTAGEM E DESMONTAGEM DE ANDAIME TUBULAR TIPO \u0093TORRE\u0094 (EXCLUSIVE ANDAIME E LIMPEZA). AF_11/2017","M",384,15.43,5925.12]
["1.2.10","PLACA DE OBRA (PARA CONSTRUCAO CIVIL) EM CHAPA GALVANIZADA *N. 22*, ADESIVADA, DE *2,0 X 1,125* M","M2    ",3,477.17,1431.51]
["1.2.11","TAXAS DO CREA- REGISTRO DE ARTS DE EXECUÇÃO ","CONJ",2,259.58999999999997,519.17999999999995]
["1.2.12","PLOTAGENS DE PLANTAS E IMPRESSÕES ","M2",211,21.11,4454.21]
["1.2.13","EXTINTOR INCENDIO TP PO QUIMICO 4KG FORNECIMENTO E COLOCACAO","UN",1,178.04,178.04]
["1.2.14","EXTINTOR DE CO2 6KG - FORNECIMENTO E INSTALACAO","UN",1,567.5,567.5]
["1.2.15","EXTINTOR INCENDIO AGUA-PRESSURIZADA 10L INCL SUPORTE PAREDE CARGA     COMPLETA FORNECIMENTO E COLOCACAO","UN",1,183.37,183.37]
["1.2.16","CONSUMO MENSAL DE ENERGIA","MES   ",12,1694.05,20328.599999999999]
["1.2.17","CONSUMO MENSAL DE ÁGUA POTÁVEL DA OBRA","MES   ",12,570.04999999999995,6840.6]
["1.2.18","DESPESAS MENSAL COM TELEFONIA, INTERNET","MES   ",12,80.319999999999993,963.84]
["1.2.19","CONSUMO MENSAL DE MATERIAL DE ESCRITÓRIO","MÊS",12,375.93,4511.16]
["1.2.20","LOCAÇÃO DE BEBEDOURO PARA ÁGUA POTÁVEL 100 LITROS","MÊS",12,101.89,{"$f":"ROUND(D57*E57,2)","v":1222.68}]
["1.2.21","ENSAIO DE RESISTENCIA A COMPRESSAO SIMPLES - CONCRETO","UN",89,18.350000000000001,{"$f":"ROUND(D58*E58,2)","v":1633.15}]
["1.2.22","FORNECIMENTO DE LIVRO DIÁRIOS DE OBRAS, COM CARBONO PARA PREENCHIMENTO MANUAL EM 3 VIAS","CONJ",12,42.02,504.24]
["1.2.23","GUINDASTE HIDRÁULICO AUTOPROPELIDO, COM LANÇA TELESCÓPICA 28,80 M, CAPACIDADE MÁXIMA 30 T, POTÊNCIA 97 KW, TRAÇÃO 4 X 4 - CHP DIURNO. AF_11/2014","H",103.34,131.54,13593.34]
["1.2.24","CARGA E DESCARGA DE TESOURA, OPERAÇÃO MANUAL DE APOIO À ELEVAÇÃO COM AJUDANTES","T",124.51,87.85,10938.2]
["1.2.25","ALUGUEL BETONEIRA CAPACIDADE NOMINAL DE 400 L, CAPACIDADE DE MISTURA 310 L TRIFÁSICA (03 BETONEIRA / MÊS)","MES   ",12,1356.62,{"$f":"ROUND(D62*E62,2)","v":16279.44}]
["1.2.26","LONA PLASTICA PRETA, E= 150 MICRA (PROTEÇÃO DE PISO E MOBILIÁRIO)","M2    ",132.74,1.46,193.8]
["1.2.27","INSTALAÇÃO PROVISÓRIA DE ESGOTO",null,null,null,{"$f":"SUBTOTAL(9,F65:F68)","v":13696.15}]
["1.2.27.1","TANQUE SÉPTICO CIRCULAR, EM CONCRETO PRÉ-MOLDADO, DIÂMETRO INTERNO = 1,40 M, ALTURA INTERNA = 2,50 M, VOLUME ÚTIL: 3463,6 L (PARA 13 CONTRIBUINTES). AF_05/2018","UN",1,2293.87,{"$f":"ROUND(D65*E65,2)","v":2293.87}]
["1.2.27.2","FILTRO ANAERÓBIO RETANGULAR, EM ALVENARIA COM BLOCOS DE CONCRETO, DIMENSÕES INTERNAS: 1,2 X 1,8 X 1,67 M, VOLUME ÚTIL: 2592 L (PARA 13 CONTRIBUINTES). AF_05/2018","UN",1,4930.93,4930.93]
["1.2.27.3","SUMIDOURO RETANGULAR, EM ALVENARIA COM BLOCOS DE CONCRETO, DIMENSÕES INTERNAS: 1,6 X 3,4 X 3,0 M, ÁREA DE INFILTRAÇÃO: 32,9 M² (PARA 13 CONTRIBUINTES). AF_05/2018","UN",1,5813.03,5813.03]
["1.2.27.4","TUBO PVC, SERIE NORMAL, ESGOTO PREDIAL, DN 100 MM, FORNECIDO E INSTALADO EM RAMAL DE DESCARGA OU RAMAL DE ESGOTO SANITÁRIO. AF_12/2014","M",12,54.86,658.32]
["1.2.28","INSTALAÇÃO PROVISÓRIA DE ENERGIA",null,null,null,{"$f":"SUBTOTAL(9,F70:F86)","v":22264.080000000005}]
["1.2.28.1","POSTE DE MADEIRA 6m INCLUSIVE REFORÇO","UND",7,76.37,{"$f":"ROUND(D70*E70,2)","v":534.59}]
["1.2.28.2","RELE FOTOELETRICO P/ COMANDO DE ILUMINACAO EXTERNA 220V/1000W - FORNECIMENTO E INSTALACAO","UN",2,25.66,51.32]
["1.2.28.3","REFLETOR EM ALUMÍNIO, DE SUPORTE E ALÇA, COM 1 LÂMPADA VAPOR DE MERCÚRIO DE 125 W, COM REATOR ALTO FATOR DE POTÊNCIA - FORNECIMENTO E INSTALAÇÃO. AF_02/2020","UN",7,250.55,1753.85]
["1.2.28.4","TERMINAL OU CONECTOR DE PRESSAO - PARA CABO 50MM2 - FORNECIMENTO E INSTALACAO","UND",20,25.91,518.20000000000005]
["1.2.28.5","CABO DE COBRE FLEXÍVEL ISOLADO, 10 MM², ANTI-CHAMA 0,6/1,0 KV, PARA CIRCUITOS TERMINAIS - FORNECIMENTO E INSTALAÇÃO. AF_12/2015","M",33,13.64,450.12]
["1.2.28.6","ENTRADA PROVISORIA DE ENERGIA ELETRICA AEREA TRIFASICA 40A EM POSTE METALICO","M",1,2121.89,2121.89]
["1.2.28.7","CABO PP DE COBRE 3X10,0 MM2 - FLEXIVEL (ALIMENTAÇÃO DOS QUADROS)","M     ",60,10.28,616.79999999999995]
["1.2.28.8","CABO DE ALUMÍNIO QUADRIPLEX SECAO 3#35(35) MM2 - 0,6/1KV - 70°C - FLEXIVEL","M",60,18.47,1108.2]
["1.2.28.9","TOMADA INDUSTRIAL FEMEA 3P+T 16A/250V - FORNECIMENTO E INSTALACAO","UN    ",7,33.07,231.49]
["1.2.28.10","TOMADA INDUSTRIAL MACHO 3P+T 16A/250V - FORNECIMENTO E INSTALACAO","UND",7,33.07,231.49]
["1.2.28.11","TOMADA BAIXA DE EMBUTIR (1 MÓDULO), 2P+T 20 A, INCLUINDO SUPORTE E PLACA - FORNECIMENTO E INSTALAÇÃO. AF_12/2015","UN",188,24.09,4528.92]
["1.2.28.12","CABO DE COBRE FLEXÍVEL ISOLADO, 4 MM², ANTI-CHAMA 450/750 V, PARA CIRCUITOS TERMINAIS - FORNECIMENTO E INSTALAÇÃO. AF_12/2015","M",900,5.7,5130]
["1.2.28.13","QUADRO DE DISTRIBUICAO DE ENERGIA EM CHAPA DE ACO GALVANIZADO, PARA 12 DISJUNTORES TERMOMAGNETICOS MONOPOLARES, COM BARRAMENTO TRIFASICO E NEUTRO - FORNECIMENTO E INSTALACAO","UN",2,451.53,903.06]
["1.2.28.14","DISJUNTOR TRIPOLAR TIPO DIN, CORRENTE NOMINAL DE 16A - FORNECIMENTO E INSTALAÇÃO. AF_04/2016","UN",7,73.7,515.9]
["1.2.28.15","DISJUNTOR TRIPOLAR TIPO DIN, CORRENTE NOMINAL DE 32A - FORNECIMENTO E INSTALAÇÃO. AF_04/2016","UN",8,80.92,647.36]
["1.2.28.16","FORNECIMENTO E INSTALAÇÃO DE DISJUNTOR TRIPOLAR TERMOMAGNÉTICO - PADRÃO DIN - 80 A","UN",3,130.83000000000001,392.49]
["1.2.28.17","DISJUNTOR BIPOLAR TIPO DIN, CORRENTE NOMINAL DE 16A - FORNECIMENTO E INSTALAÇÃO. AF_04/2016","UN",43,58.8,2528.4]
["1.2.29","INSTALAÇÃO PROVISÓRIA DE ÁGUA",null,null,null,{"$f":"SUBTOTAL(9,F88:F95)","v":3008.37}]
["1.2.29.1","MANGUEIRA CRISTAL PARA NIVEL, LISA, PVC TRANSPARENTE, 3/8\" X1,5 MM","M     ",20,3.45,{"$f":"ROUND(D88*E88,2)","v":69}]
["1.2.29.2","TUBO, PVC, SOLDÁVEL, DN 25MM, INSTALADO EM RAMAL DE DISTRIBUIÇÃO DE ÁGUA - FORNECIMENTO E INSTALAÇÃO. AF_12/2014","M",59,8.61,{"$f":"ROUND(D89*E89,2)","v":507.99}]
["1.2.29.3","JOELHO 90 GRAUS, PVC, SOLDÁVEL, DN 25MM, INSTALADO EM RAMAL OU SUB-RAMAL DE ÁGUA - FORNECIMENTO E INSTALAÇÃO. AF_12/2014","UN",7,8.66,60.62]
["1.2.29.4","TE, PVC, SOLDÁVEL, DN 25MM, INSTALADO EM PRUMADA DE ÁGUA - FORNECIMENTO E INSTALAÇÃO. AF_12/2014","UN",3,6.79,20.37]
["1.2.29.5","TORNEIRA CROMADA 1/2\u0094 OU 3/4\u0094 PARA TANQUE, PADRÃO POPULAR - FORNECIMENTO E INSTALAÇÃO. AF_01/2020","UN",2,23.31,46.62]
["1.2.29.6","CAIXA D´AGUA EM POLIETILENO, 500 LITROS, COM ACESSÓRIOS","UN",3,678.76,2036.28]
["1.2.29.7","KIT CAVALETE PARA MEDIÇÃO DE ÁGUA - ENTRADA PRINCIPAL, EM PVC SOLDÁVEL DN 20 (½\")   FORNECIMENTO E INSTALAÇÃO (EXCLUSIVE HIDRÔMETRO). AF_11/2016","UN",1,149.69999999999999,149.69999999999999]
["1.2.29.8","HIDRÔMETRO DN 20 (½\u0094), 1,5 M³/H \u0096 FORNECIMENTO E INSTALAÇÃO. AF_11/2016","UN",1,117.79,117.79]
["1.2.30","ABRIGOS PROVISÓRIOS",null,null,null,{"$f":"SUBTOTAL(9,F97:F97)","v":3912.87}]
["1.2.30.1","EXECUÇÃO DE ABRIGO PROVISORIO PARA CARPINTARIA/ARMAÇÃO/BETONEIRA","M2",39,100.33,{"$f":"ROUND(D97*E97,2)","v":3912.87}]
["1.3","ADMINISTRAÇÃO",null,null,null,{"$f":"SUBTOTAL(9,F99:F109)","v":770009.35}]
["1.3.1","ENGENHEIRO CIVIL DE OBRA JUNIOR COM ENCARGOS COMPLEMENTARES (44 HORAS SEMANAIS)","MES",12,18454.919999999998,221459.04]
["1.3.2","ELETRICISTA COM ENCARGOS COMPLEMENTARES (20 HORAS SEMANAIS)","H",1200,25.11,{"$f":"ROUND(D100*E100,2)","v":30132}]
["1.3.3","MESTRE DE OBRAS COM ENCARGOS COMPLEMENTARES","MES",12,6940.35,83284.2]
["1.3.4","ENCARREGADO DE ELÉTRICA COM  ENCARGOS COMPLEMENTARES ","MES",12,4686.62,56239.44]
["1.3.5","ENCARREGADO DE HIDRÁULICA COM  ENCARGOS COMPLEMENTARES ","MES",12,4686.62,56239.44]
["1.3.6","TÉCNICO EM SEGURANÇA DO TRABALHO COM ENCARGOS COMPLEMENTARES","MES",12,5164,61968]
["1.3.7","VIGIA DIURNO COM ENCARGOS COMPLEMENTARES (02 VIGIAS NO TURNO DE 12X36 HORAS)","MES",12,6804.01,81648.12]
["1.3.8","VIGIA NOTURNO COM ENCARGOS COMPLEMENTARES (02 VIGIAS NO TURNO DE 12X36 HORAS)","MES",12,7800.89,93610.68]
["1.3.9","APONTADOR OU APROPRIADOR COM ENCARGOS COMPLEMENTARES","MES",12,3371.89,40462.68]
["1.3.10","ALMOXARIFE COM ENCARGOS COMPLEMENTARES","MES",12,3467.52,41610.239999999998]
["1.3.11","TOPOGRAFO COM ENCARGOS COMPLEMENTARES","MES",1,3355.51,3355.51]
["1.4","TERRAPLENAGEM",null,null,null,{"$f":"SUBTOTAL(9,F111:F113)","v":30190.809999999998}]
["1.4.1","ATERRO COMPACTADO MECANICAMENTE AO NIVEL DO BALDRAME - C/ AQUISIÇÃO DE MATERIAL + 25% DE EMPOLAMENTO, EM CAMADAS DE 20cm - AQUI INCLUSO CARGA, DESCARGA, TRANSPORTE DMT ATÉ 10KM, ESPALHAMENTO COM PATROL, NIVELAMENTO E COMPACTAÇÃO MECÂNICA (95%) CONTROLADO LABORATORIALMENTE.","M3",301.15420099999994,62.03,{"$f":"ROUND(D111*E111,2)","v":18680.599999999999}]
["1.4.2","ESCAVACAO MECANICA CAMPO ABERTO EM SOLO EXCETO ROCHA ATE 2,00M PROFUNDIDADE","M3",337.07320500000003,2.61,{"$f":"ROUND(D112*E112,2)","v":879.76}]
["1.4.3","BOTA FORA DE MATERIAL DESCARTADO, D.M.T. = 10 km - (CARGA, TRANSPORTE E DESCARGA MECÂNICA)","M3",421.34150625000007,25.23,{"$f":"ROUND(D113*E113,2)","v":10630.45}]
["1.5","FUNDAÇÃO",null,null,null,{"$f":"SUBTOTAL(9,F115:F215)","v":178308.16999999993}]
["1.5.1","PASSARELA METÁLICA- ITENS GERAIS",null,null,null,{"$f":"SUBTOTAL(9,F116:F123)","v":1158.3899999999999}]
["1.5.1.1","ESCAVAÇÃO MECANIZADA PARA BLOCO DE COROAMENTO OU SAPATA, COM PREVISÃO DE FÔRMA, COM RETROESCAVADEIRA. AF_06/2017","M3",3.67,33.82,{"$f":"ROUND(D116*E116,2)","v":124.12}]
["1.5.1.2","ESCAVAÇÃO MANUAL DE VALA PARA VIGA BALDRAME, COM PREVISÃO DE FÔRMA. AF_06/2017","M3",2.09,115.9,242.23]
["1.5.1.3","REATERRO MANUAL DE VALAS COM COMPACTAÇÃO MECANIZADA. AF_04/2016","M3",3.65,26,94.9]
["1.5.1.4","CARGA E DESCARGA MECANIZADAS DE ENTULHO EM CAMINHAO BASCULANTE 6 M3","M3",2.94,6.14,18.05]
["1.5.1.5","TRANSPORTE COM CAMINHÃO BASCULANTE DE 6 M3, EM VIA URBANA PAVIMENTADA, DMT ATÉ 30 KM (UNIDADE: M3XKM). AF_01/2018","M3XKM",29.4,1.91,56.15]
["1.5.1.6","PREPARO DE FUNDO DE VALA COM LARGURA MENOR QUE 1,5 M, EM LOCAL COM NÍVEL BAIXO DE INTERFERÊNCIA. AF_06/2016","M2",11.28,5.59,63.06]
["1.5.1.7","LASTRO DE CONCRETO MAGRO, APLICADO EM BLOCOS DE COROAMENTO OU SAPATAS. AF_08/2017","M3",0.55000000000000004,550.88,302.98]
["1.5.1.8","IMPERMEABILIZAÇÃO DE SUPERFÍCIE COM EMULSÃO ASFÁLTICA, 2 DEMÃOS AF_06/2018","M2",7.2,35.68,256.89999999999998]
["1.5.2","PASSARELA METÁLICA- SAPATAS",null,null,null,{"$f":"SUBTOTAL(9,F125:F128)","v":4735.8899999999994}]
["1.5.2.1","FABRICAÇÃO, MONTAGEM E DESMONTAGEM DE FÔRMA PARA SAPATA, EM MADEIRA SERRADA, E=25 MM, 1 UTILIZAÇÃO. AF_06/2017","M2",8.64,240.28,{"$f":"ROUND(D125*E125,2)","v":2076.02}]
["1.5.2.2","CONCRETAGEM DE SAPATAS, FCK 25 MPA, COM USO DE BOMBA - LANÇAMENTO, ADENSAMENTO E ACABAMENTO","M3",1.3,594.23,{"$f":"ROUND(D126*E126,2)","v":772.5}]
["1.5.2.3","ARMAÇÃO DE BLOCO, VIGA BALDRAME E SAPATA UTILIZANDO AÇO CA-60 DE 5 MM - MONTAGEM. AF_06/2017","KG",5.28,16.7,{"$f":"ROUND(D127*E127,2)","v":88.18}]
["1.5.2.4","ARMAÇÃO DE BLOCO, VIGA BALDRAME OU SAPATA UTILIZANDO AÇO CA-50 DE 10 MM - MONTAGEM. AF_06/2017","KG",145.91999999999999,12.33,{"$f":"ROUND(D128*E128,2)","v":1799.19}]
["1.5.3","PASSARELA METÁLICA- VIGAS BALDRAMES",null,null,null,{"$f":"SUBTOTAL(9,F130:F133)","v":1635.77}]
["1.5.3.1","FABRICAÇÃO, MONTAGEM E DESMONTAGEM DE FÔRMA PARA VIGA BALDRAME, EM MADEIRA SERRADA, E=25 MM, 1 UTILIZAÇÃO. AF_06/2017","M2",7.2,114.4,{"$f":"ROUND(D130*E130,2)","v":823.68}]
["1.5.3.2","CONCRETAGEM DE BLOCOS DE COROAMENTO E VIGAS BALDRAME, FCK 25 MPA, COM USO DE BOMBA \u0096 LANÇAMENTO, ADENSAMENTO E ACABAMENTO","M3",0.56999999999999995,587.19000000000005,{"$f":"ROUND(D131*E131,2)","v":334.7}]
["1.5.3.3","ARMAÇÃO DE BLOCO, VIGA BALDRAME E SAPATA UTILIZANDO AÇO CA-60 DE 5 MM - MONTAGEM. AF_06/2017","KG",6,16.7,{"$f":"ROUND(D132*E132,2)","v":100.2}]
["1.5.3.4","ARMAÇÃO DE BLOCO, VIGA BALDRAME OU SAPATA UTILIZANDO AÇO CA-50 DE 8 MM - MONTAGEM. AF_06/2017","KG",27,13.97,{"$f":"ROUND(D133*E133,2)","v":377.19}]
["1.5.4","ARRIMOS DE BLOCO DE CONCRETO ESTRUTURAL- ITENS GERAIS",null,null,null,{"$f":"SUBTOTAL(9,F135:F137)","v":537.82999999999993}]
["1.5.4.1","ESCAVAÇÃO MANUAL DE VALA PARA VIGA BALDRAME, COM PREVISÃO DE FÔRMA. AF_06/2017","M3",2.92,115.9,{"$f":"ROUND(D135*E135,2)","v":338.43}]
["1.5.4.2","CARGA E DESCARGA MECANIZADAS DE ENTULHO EM CAMINHAO BASCULANTE 6 M3","M3",7.9,6.14,{"$f":"ROUND(D136*E136,2)","v":48.51}]
["1.5.4.3","TRANSPORTE COM CAMINHÃO BASCULANTE DE 6 M3, EM VIA URBANA PAVIMENTADA, DMT ATÉ 30 KM (UNIDADE: M3XKM). AF_01/2018","M3XKM",79,1.91,{"$f":"ROUND(D137*E137,2)","v":150.88999999999999}]
["1.5.5","ARRIMOS DE BLOCO DE CONCRETO ESTRUTURAL- MURO 1(ENTRADA DE VEÍCULOS)",null,null,null,{"$f":"SUBTOTAL(9,F139:F152)","v":8324.41}]
["1.5.5.1","FABRICAÇÃO, MONTAGEM E DESMONTAGEM DE FÔRMA PARA VIGA BALDRAME, EM MADEIRA SERRADA, E=25 MM, 1 UTILIZAÇÃO. AF_06/2017","M2",12.46,114.4,{"$f":"ROUND(D139*E139,2)","v":1425.42}]
["1.5.5.2","CONCRETAGEM DE PILARES, FCK = 25 MPA,  COM USO DE BALDES EM EDIFICAÇÃO COM SEÇÃO MÉDIA DE PILARES MENOR OU IGUAL A 0,25 M² - LANÇAMENTO, ADENSAMENTO E ACABAMENTO. AF_12/2015","M3",0.38,701.15,266.44]
["1.5.5.3","CONCRETAGEM DE BLOCOS DE COROAMENTO E VIGAS BALDRAME, FCK 25 MPA, COM USO DE BOMBA \u0096 LANÇAMENTO, ADENSAMENTO E ACABAMENTO","M3",0.93,587.19000000000005,546.09]
["1.5.5.4","ARMAÇÃO DE BLOCO, VIGA BALDRAME E SAPATA UTILIZANDO AÇO CA-60 DE 5 MM - MONTAGEM. AF_06/2017","KG",15.37,16.7,256.68]
["1.5.5.5","ARMAÇÃO DE BLOCO, VIGA BALDRAME OU SAPATA UTILIZANDO AÇO CA-50 DE 10 MM - MONTAGEM. AF_06/2017","KG",41.7,12.33,514.16]
["1.5.5.6","ARMAÇÃO DE CINTA DE ALVENARIA ESTRUTURAL; DIÂMETRO DE 8,0 MM","KG",13.35,10.33,137.91]
["1.5.5.7","ARMAÇÃO VERTICAL DE ALVENARIA ESTRUTURAL; DIÂMETRO DE 10,0 MM. AF_01/2015","KG",44.37,10.35,459.23]
["1.5.5.8","(COMPOSIÇÃO REPRESENTATIVA) DE ALVENARIA DE BLOCOS DE CONCRETO ESTRUTURAL 14X19X39 CM, (ESPESSURA 14 CM), FBK = 4,5 MPA, UTILIZANDO PALHETA, PARA EDIFICAÇÃO HABITACIONAL. AF_10/2015","M2",17.510000000000002,73.39,1285.06]
["1.5.5.9","ESCAVAÇÃO MANUAL ESTACA BROCA DE CONCRETO, DIÃMETRO DE 25 CM, PROFUNDIDADE DE ATÉ 3 M, COM TRADO CONCHA, NÃO ARMADA","KG",18,44.8,806.4]
["1.5.5.10","CONCRETO FCK = 25MPA, TRAÇO 1:2,3:2,7 (CIMENTO/ AREIA MÉDIA/ BRITA 1)  - PREPARO MECÂNICO COM BETONEIRA 400 L. AF_07/2016","M3",0.88,416.14,366.2]
["1.5.5.11","CORTE E DOBRA DE AÇO CA-60, DIÂMETRO DE 5,0 MM, UTILIZADO EM ESTRUTURAS DIVERSAS, EXCETO LAJES. AF_12/2015","KG",20.79,10.119999999999999,210.39]
["1.5.5.12","CORTE E DOBRA DE AÇO CA-50, DIÂMETRO DE 10,0 MM, UTILIZADO EM ESTRUTURAS DIVERSAS, EXCETO LAJES. AF_12/2015","KG",58.93,9.16,539.79999999999995]
["1.5.5.13","CONCRETAGEM DE BLOCOS DE COROAMENTO E VIGAS BALDRAME, FCK 25 MPA, COM USO DE BOMBA \u0096 LANÇAMENTO, ADENSAMENTO E ACABAMENTO","M3",0.43,587.19000000000005,252.49]
["1.5.5.14","ARMAÇÃO DE BLOCO, VIGA BALDRAME OU SAPATA UTILIZANDO AÇO CA-50 DE 8 MM - MONTAGEM. AF_06/2017","KG",90.06,13.97,1258.1400000000001]
["1.5.6","ARRIMOS DE BLOCO DE CONCRETO ESTRUTURAL- MURO 2(ENTRADA DE VEÍCULOS)",null,null,null,{"$f":"SUBTOTAL(9,F154:F167)","v":8324.41}]
["1.5.6.1","FABRICAÇÃO, MONTAGEM E DESMONTAGEM DE FÔRMA PARA VIGA BALDRAME, EM MADEIRA SERRADA, E=25 MM, 1 UTILIZAÇÃO. AF_06/2017","M2",12.46,114.4,{"$f":"ROUND(D154*E154,2)","v":1425.42}]
["1.5.6.2","CONCRETAGEM DE PILARES, FCK = 25 MPA,  COM USO DE BALDES EM EDIFICAÇÃO COM SEÇÃO MÉDIA DE PILARES MENOR OU IGUAL A 0,25 M² - LANÇAMENTO, ADENSAMENTO E ACABAMENTO. AF_12/2015","M3",0.38,701.15,266.44]
["1.5.6.3","CONCRETAGEM DE BLOCOS DE COROAMENTO E VIGAS BALDRAME, FCK 25 MPA, COM USO DE BOMBA \u0096 LANÇAMENTO, ADENSAMENTO E ACABAMENTO","M3",0.93,587.19000000000005,546.09]
["1.5.6.4","ARMAÇÃO DE BLOCO, VIGA BALDRAME E SAPATA UTILIZANDO AÇO CA-60 DE 5 MM - MONTAGEM. AF_06/2017","KG",15.37,16.7,256.68]
["1.5.6.5","ARMAÇÃO DE BLOCO, VIGA BALDRAME OU SAPATA UTILIZANDO AÇO CA-50 DE 10 MM - MONTAGEM. AF_06/2017","KG",41.7,12.33,514.16]
["1.5.6.6","ARMAÇÃO DE CINTA DE ALVENARIA ESTRUTURAL; DIÂMETRO DE 8,0 MM","KG",13.35,10.33,137.91]
["1.5.6.7","ARMAÇÃO VERTICAL DE ALVENARIA ESTRUTURAL; DIÂMETRO DE 10,0 MM. AF_01/2015","KG",44.37,10.35,459.23]
["1.5.6.8","(COMPOSIÇÃO REPRESENTATIVA) DE ALVENARIA DE BLOCOS DE CONCRETO ESTRUTURAL 14X19X39 CM, (ESPESSURA 14 CM), FBK = 4,5 MPA, UTILIZANDO PALHETA, PARA EDIFICAÇÃO HABITACIONAL. AF_10/2015","M2",17.510000000000002,73.39,1285.06]
["1.5.6.9","ESCAVAÇÃO MANUAL ESTACA BROCA DE CONCRETO, DIÃMETRO DE 25 CM, PROFUNDIDADE DE ATÉ 3 M, COM TRADO CONCHA, NÃO ARMADA","KG",18,44.8,806.4]
["1.5.6.10","CONCRETO FCK = 25MPA, TRAÇO 1:2,3:2,7 (CIMENTO/ AREIA MÉDIA/ BRITA 1)  - PREPARO MECÂNICO COM BETONEIRA 400 L. AF_07/2016","M3",0.88,416.14,366.2]
["1.5.6.11","CORTE E DOBRA DE AÇO CA-60, DIÂMETRO DE 5,0 MM, UTILIZADO EM ESTRUTURAS DIVERSAS, EXCETO LAJES. AF_12/2015","KG",20.79,10.119999999999999,210.39]
["1.5.6.12","CORTE E DOBRA DE AÇO CA-50, DIÂMETRO DE 10,0 MM, UTILIZADO EM ESTRUTURAS DIVERSAS, EXCETO LAJES. AF_12/2015","KG",58.93,9.16,539.79999999999995]
["1.5.6.13","CONCRETAGEM DE BLOCOS DE COROAMENTO E VIGAS BALDRAME, FCK 25 MPA, COM USO DE BOMBA \u0096 LANÇAMENTO, ADENSAMENTO E ACABAMENTO","M3",0.43,587.19000000000005,252.49]
["1.5.6.14","ARMAÇÃO DE BLOCO, VIGA BALDRAME OU SAPATA UTILIZANDO AÇO CA-50 DE 8 MM - MONTAGEM. AF_06/2017","KG",90.06,13.97,1258.1400000000001]
["1.5.7","ARRIMOS DE BLOCO DE CONCRETO ESTRUTURAL- MURO 3 (ENTRADA DE ALUNOS)",null,null,null,{"$f":"SUBTOTAL(9,F169:F182)","v":8055.25}]
["1.5.7.1","FABRICAÇÃO, MONTAGEM E DESMONTAGEM DE FÔRMA PARA VIGA BALDRAME, EM MADEIRA SERRADA, E=25 MM, 1 UTILIZAÇÃO. AF_06/2017","M2",10.55,114.4,{"$f":"ROUND(D169*E169,2)","v":1206.92}]
["1.5.7.2","CONCRETAGEM DE PILARES, FCK = 25 MPA,  COM USO DE BALDES EM EDIFICAÇÃO COM SEÇÃO MÉDIA DE PILARES MENOR OU IGUAL A 0,25 M² - LANÇAMENTO, ADENSAMENTO E ACABAMENTO. AF_12/2015","M3",0.42,701.15,294.48]
["1.5.7.3","CONCRETAGEM DE BLOCOS DE COROAMENTO E VIGAS BALDRAME, FCK 25 MPA, COM USO DE BOMBA \u0096 LANÇAMENTO, ADENSAMENTO E ACABAMENTO","M3",0.79,587.19000000000005,463.88]
["1.5.7.4","ARMAÇÃO DE BLOCO, VIGA BALDRAME E SAPATA UTILIZANDO AÇO CA-60 DE 5 MM - MONTAGEM. AF_06/2017","KG",13,16.7,217.1]
["1.5.7.5","ARMAÇÃO DE BLOCO, VIGA BALDRAME OU SAPATA UTILIZANDO AÇO CA-50 DE 10 MM - MONTAGEM. AF_06/2017","KG",35.81,12.33,441.54]
["1.5.7.6","ARMAÇÃO DE CINTA DE ALVENARIA ESTRUTURAL; DIÂMETRO DE 8,0 MM","KG",11.46,10.33,118.38]
["1.5.7.7","ARMAÇÃO VERTICAL DE ALVENARIA ESTRUTURAL; DIÂMETRO DE 10,0 MM. AF_01/2015","KG",55.97,10.35,579.29]
["1.5.7.8","(COMPOSIÇÃO REPRESENTATIVA) DE ALVENARIA DE BLOCOS DE CONCRETO ESTRUTURAL 14X19X39 CM, (ESPESSURA 14 CM), FBK = 4,5 MPA, UTILIZANDO PALHETA, PARA EDIFICAÇÃO HABITACIONAL. AF_10/2015","M2",25.52,73.39,1872.91]
["1.5.7.9","ESCAVAÇÃO MANUAL ESTACA BROCA DE CONCRETO, DIÃMETRO DE 25 CM, PROFUNDIDADE DE ATÉ 3 M, COM TRADO CONCHA, NÃO ARMADA","KG",15,44.8,672]
["1.5.7.10","CONCRETO FCK = 25MPA, TRAÇO 1:2,3:2,7 (CIMENTO/ AREIA MÉDIA/ BRITA 1)  - PREPARO MECÂNICO COM BETONEIRA 400 L. AF_07/2016","M3",0.73,416.14,303.77999999999997]
["1.5.7.11","CORTE E DOBRA DE AÇO CA-60, DIÂMETRO DE 5,0 MM, UTILIZADO EM ESTRUTURAS DIVERSAS, EXCETO LAJES. AF_12/2015","KG",17.32,10.119999999999999,175.28]
["1.5.7.12","CORTE E DOBRA DE AÇO CA-50, DIÂMETRO DE 10,0 MM, UTILIZADO EM ESTRUTURAS DIVERSAS, EXCETO LAJES. AF_12/2015","KG",49.11,9.16,449.85]
["1.5.7.13","CONCRETAGEM DE BLOCOS DE COROAMENTO E VIGAS BALDRAME, FCK 25 MPA, COM USO DE BOMBA \u0096 LANÇAMENTO, ADENSAMENTO E ACABAMENTO","M3",0.36,587.19000000000005,211.39]
["1.5.7.14","ARMAÇÃO DE BLOCO, VIGA BALDRAME OU SAPATA UTILIZANDO AÇO CA-50 DE 8 MM - MONTAGEM. AF_06/2017","KG",75.05,13.97,1048.45]
["1.5.8","ARRIMOS DE BLOCO DE CONCRETO ESTRUTURAL- MURO 4 (ENTRADA DE ALUNOS)",null,null,null,{"$f":"SUBTOTAL(9,F184:F197)","v":2413.08}]
["1.5.8.1","FABRICAÇÃO, MONTAGEM E DESMONTAGEM DE FÔRMA PARA VIGA BALDRAME, EM MADEIRA SERRADA, E=25 MM, 1 UTILIZAÇÃO. AF_06/2017","M2",3.52,114.4,{"$f":"ROUND(D184*E184,2)","v":402.69}]
["1.5.8.2","CONCRETAGEM DE PILARES, FCK = 25 MPA,  COM USO DE BALDES EM EDIFICAÇÃO COM SEÇÃO MÉDIA DE PILARES MENOR OU IGUAL A 0,25 M² - LANÇAMENTO, ADENSAMENTO E ACABAMENTO. AF_12/2015","M3",0.11,701.15,77.13]
["1.5.8.3","CONCRETAGEM DE BLOCOS DE COROAMENTO E VIGAS BALDRAME, FCK 25 MPA, COM USO DE BOMBA \u0096 LANÇAMENTO, ADENSAMENTO E ACABAMENTO","M3",0.26,587.19000000000005,152.66999999999999]
["1.5.8.4","ARMAÇÃO DE BLOCO, VIGA BALDRAME E SAPATA UTILIZANDO AÇO CA-60 DE 5 MM - MONTAGEM. AF_06/2017","KG",4.43,16.7,73.98]
["1.5.8.5","ARMAÇÃO DE BLOCO, VIGA BALDRAME OU SAPATA UTILIZANDO AÇO CA-50 DE 10 MM - MONTAGEM. AF_06/2017","KG",11.79,12.33,145.37]
["1.5.8.6","ARMAÇÃO DE CINTA DE ALVENARIA ESTRUTURAL; DIÂMETRO DE 8,0 MM","KG",3.79,10.33,39.15]
["1.5.8.7","ARMAÇÃO VERTICAL DE ALVENARIA ESTRUTURAL; DIÂMETRO DE 10,0 MM. AF_01/2015","KG",13.99,10.35,144.80000000000001]
["1.5.8.8","(COMPOSIÇÃO REPRESENTATIVA) DE ALVENARIA DE BLOCOS DE CONCRETO ESTRUTURAL 14X19X39 CM, (ESPESSURA 14 CM), FBK = 4,5 MPA, UTILIZANDO PALHETA, PARA EDIFICAÇÃO HABITACIONAL. AF_10/2015","M2",7.05,73.39,517.4]
["1.5.8.9","ESCAVAÇÃO MANUAL ESTACA BROCA DE CONCRETO, DIÃMETRO DE 25 CM, PROFUNDIDADE DE ATÉ 3 M, COM TRADO CONCHA, NÃO ARMADA","KG",4.5,44.8,201.6]
["1.5.8.10","CONCRETO FCK = 25MPA, TRAÇO 1:2,3:2,7 (CIMENTO/ AREIA MÉDIA/ BRITA 1)  - PREPARO MECÂNICO COM BETONEIRA 400 L. AF_07/2016","M3",0.22,416.14,91.55]
["1.5.8.11","CORTE E DOBRA DE AÇO CA-60, DIÂMETRO DE 5,0 MM, UTILIZADO EM ESTRUTURAS DIVERSAS, EXCETO LAJES. AF_12/2015","KG",5.2,10.119999999999999,52.62]
["1.5.8.12","CORTE E DOBRA DE AÇO CA-50, DIÂMETRO DE 10,0 MM, UTILIZADO EM ESTRUTURAS DIVERSAS, EXCETO LAJES. AF_12/2015","KG",14.73,9.16,134.93]
["1.5.8.13","CONCRETAGEM DE BLOCOS DE COROAMENTO E VIGAS BALDRAME, FCK 25 MPA, COM USO DE BOMBA \u0096 LANÇAMENTO, ADENSAMENTO E ACABAMENTO","M3",0.11,587.19000000000005,64.59]
["1.5.8.14","ARMAÇÃO DE BLOCO, VIGA BALDRAME OU SAPATA UTILIZANDO AÇO CA-50 DE 8 MM - MONTAGEM. AF_06/2017","KG",22.52,13.97,314.60000000000002]
["1.5.9","ARRIMOS DE CONCRETO ARMADO- ITENS GERAIS",null,null,null,{"$f":"SUBTOTAL(9,F199:F201)","v":77756.98}]
["1.5.9.1","ESCAVAÇÃO MECANIZADA PARA BLOCO DE COROAMENTO OU SAPATA, COM PREVISÃO DE FÔRMA, COM RETROESCAVADEIRA. AF_06/2017","M3",1124.3699999999999,33.82,{"$f":"ROUND(D199*E199,2)","v":38026.19}]
["1.5.9.2","CARGA E DESCARGA MECANIZADAS DE ENTULHO EM CAMINHAO BASCULANTE 6 M3","M3",1574.12,6.14,{"$f":"ROUND(D200*E200,2)","v":9665.1}]
["1.5.9.3","TRANSPORTE COM CAMINHÃO BASCULANTE DE 6 M3, EM VIA URBANA PAVIMENTADA, DMT ATÉ 30 KM (UNIDADE: M3XKM). AF_01/2018","M3XKM",15741.199999999999,1.91,{"$f":"ROUND(D201*E201,2)","v":30065.69}]
["1.5.10","ARRIMOS DE CONCRETO ARMADO- MURO 1 (SAIDA DE VEÍCULOS)",null,null,null,{"$f":"SUBTOTAL(9,F203:F208)","v":33873.78}]
["1.5.10.1","FABRICAÇÃO, MONTAGEM E DESMONTAGEM DE FÔRMA PARA CORTINA DE CONTENÇÃO, EM CHAPA DE MADEIRA COMPENSADA PLASTIFICADA, E = 18 MM, 10 UTILIZAÇÕES. AF_07/2019","M2",194.3,30.53,{"$f":"ROUND(D203*E203,2)","v":5931.98}]
["1.5.10.2","CONCRETO FCK = 25MPA, TRAÇO 1:2,3:2,7 (CIMENTO/ AREIA MÉDIA/ BRITA 1)  - PREPARO MECÂNICO COM BETONEIRA 400 L. AF_07/2016","M3",20.94,416.14,8713.9699999999993]
["1.5.10.3","LANÇAMENTO COM USO DE BALDES, ADENSAMENTO E ACABAMENTO DE CONCRETO EM ESTRUTURAS. AF_12/2015","M3",20.94,198.62,4159.1000000000004]
["1.5.10.4","CONCRETO MAGRO PARA LASTRO, TRAÇO 1:4,5:4,5 (CIMENTO/ AREIA MÉDIA/ BRITA 1)  - PREPARO MECÂNICO COM BETONEIRA 400 L. AF_07/2016","M3",2.4700000000000002,327.73,809.49]
["1.5.10.5","LANÇAMENTO COM USO DE BALDES, ADENSAMENTO E ACABAMENTO DE CONCRETO EM ESTRUTURAS. AF_12/2015","M3",2.4700000000000002,198.62,490.59]
["1.5.10.6","ARMAÇÃO DE CORTINA DE CONTENÇÃO EM CONCRETO ARMADO, COM AÇO CA-50 DE 8 MM - MONTAGEM. AF_07/2019","KG",1085,12.69,13768.65]
["1.5.11","ARRIMOS DE CONCRETO ARMADO- MURO 2 (SAIDA DE VEÍCULOS)",null,null,null,{"$f":"SUBTOTAL(9,F210:F215)","v":31492.38}]
["1.5.11.1.","FABRICAÇÃO, MONTAGEM E DESMONTAGEM DE FÔRMA PARA CORTINA DE CONTENÇÃO, EM CHAPA DE MADEIRA COMPENSADA PLASTIFICADA, E = 18 MM, 10 UTILIZAÇÕES. AF_07/2019","M2",180.62,30.53,{"$f":"ROUND(D210*E210,2)","v":5514.33}]
["1.5.11.1.","CONCRETO FCK = 25MPA, TRAÇO 1:2,3:2,7 (CIMENTO/ AREIA MÉDIA/ BRITA 1)  - PREPARO MECÂNICO COM BETONEIRA 400 L. AF_07/2016","M3",19.46,416.14,8098.08]
["1.5.11.1.","LANÇAMENTO COM USO DE BALDES, ADENSAMENTO E ACABAMENTO DE CONCRETO EM ESTRUTURAS. AF_12/2015","M3",19.46,198.62,3865.15]
["1.5.11.1.","CONCRETO MAGRO PARA LASTRO, TRAÇO 1:4,5:4,5 (CIMENTO/ AREIA MÉDIA/ BRITA 1)  - PREPARO MECÂNICO COM BETONEIRA 400 L. AF_07/2016","M3",2.2999999999999998,327.73,753.78]
["1.5.11.1.","LANÇAMENTO COM USO DE BALDES, ADENSAMENTO E ACABAMENTO DE CONCRETO EM ESTRUTURAS. AF_12/2015","M3",2.2999999999999998,198.62,456.83]
["1.5.11.1.","ARMAÇÃO DE CORTINA DE CONTENÇÃO EM CONCRETO ARMADO, COM AÇO CA-50 DE 8 MM - MONTAGEM. AF_07/2019","KG",1009,12.69,12804.21]
["1.6","IMPERMEABILIZAÇÃO",null,null,null,0]
["1.7","ESTRUTURA DE CONCRETO ARMADO ",null,null,null,{"$f":"SUBTOTAL(9,F218:F226)","v":20433.839999999997}]
["1.7.1","BANCOS DA AREA EXTERNA",null,null,null,{"$f":"SUBTOTAL(9,F219:F221)","v":18583.349999999999}]
["1.7.1.1","MONTAGEM E DESMONTAGEM DE FÔRMA COM MADEIRA SERRADA, E = 25 MM.","M2",88.23,88.68,{"$f":"ROUND(D219*E219,2)","v":7824.24}]
["1.7.1.2"," ARMAÇÃO DE LAJE EM ESTRUTURA CONVENCIONAL DE CONCRETO ARMADO UTILIZANDO AÇO CA-50 DE 10.0 MM ","KG",630.25,10.46,{"$f":"ROUND(D220*E220,2)","v":6592.42}]
["1.7.1.3","CONCRETO USINADO BOMBEADO FCK=30Mpa, INCLUSIVE COLOCAÇÃO, ESPALHAMENTO E ACABAMENTO.","M3    ",6.3,661.38,{"$f":"ROUND(D221*E221,2)","v":4166.6899999999996}]
["1.7.2","PASSARELA METÁLICA- PILARES",null,null,null,{"$f":"SUBTOTAL(9,F223:F226)","v":1850.49}]
["1.7.2.1","MONTAGEM E DESMONTAGEM DE FÔRMA DE PILARES RETANGULARES E ESTRUTURAS SIMILARES COM ÁREA MÉDIA DAS SEÇÕES MENOR OU IGUAL A 0,25 M², PÉ-DIREITO SIMPLES, EM MADEIRA SERRADA, 1 UTILIZAÇÃO. AF_12/2015","M2",3.6,191.83,{"$f":"ROUND(D223*E223,2)","v":690.59}]
["1.7.2.2","CONCRETAGEM DE PILARES, FCK = 25 MPA,  COM USO DE BALDES EM EDIFICAÇÃO COM SEÇÃO MÉDIA DE PILARES MENOR OU IGUAL A 0,25 M² - LANÇAMENTO, ADENSAMENTO E ACABAMENTO. AF_12/2015","M3",0.24,701.15,{"$f":"ROUND(D224*E224,2)","v":168.28}]
["1.7.2.3","ARMAÇÃO DE PILAR OU VIGA DE UMA ESTRUTURA CONVENCIONAL DE CONCRETO ARMADO EM UMA EDIFICAÇÃO TÉRREA OU SOBRADO UTILIZANDO AÇO CA-60 DE 5,0 MM - MONTAGEM. AF_12/2015","KG",14.4,16.8,{"$f":"ROUND(D225*E225,2)","v":241.92}]
["1.7.2.4","ARMAÇÃO DE PILAR OU VIGA DE UMA ESTRUTURA CONVENCIONAL DE CONCRETO ARMADO EM UMA EDIFICAÇÃO TÉRREA OU SOBRADO UTILIZANDO AÇO CA-50 DE 10,0 MM - MONTAGEM. AF_12/2015","KG",61.2,12.25,{"$f":"ROUND(D226*E226,2)","v":749.7}]
["1.8","ALVENARIA E PAINÉIS",null,null,null,{"$f":"SUBTOTAL(9,F228:F228)","v":40076.51}]
["1.8.2","ALVENARIA DE VEDAÇÃO DE BLOCOS VAZADOS DE CONCRETO DE 14X19X39CM (ESPESSURA 14CM) DE PAREDES COM ÁREA LÍQUIDA MENOR QUE 6M² SEM VÃOS E ARGAMASSA DE ASSENTAMENTO COM PREPARO EM BETONEIRA. AF_06/2014 (GUARDA-CORPO RAMPAS DE VEICULOS, BASE DE GRADIS E BANCOS)","M2",482.67499999999995,83.03,{"$f":"ROUND(D228*E228,2)","v":40076.51}]
["1.9","ESTRUTURA METÁLICA",null,null,null,{"$f":"SUBTOTAL(9,F230:F234)","v":22741.86}]
["1.9.1","PASSARELA METÁLICA- COBERTURA",null,null,null,{"$f":"SUBTOTAL(9,F231:F234)","v":22741.86}]
["1.9.1.1","ESTRUTURA TRELIÇADA DE COBERTURA, TIPO ARCO, COM LIGAÇÕES SOLDADAS, INCLUSOS PERFIS METÁLICOS, CHAPAS METÁLICAS, MÃO DE OBRA E TRANSPORTE COM GUINDASTE - FORNECIMENTO E INSTALAÇÃO. AF_01/2020_P","KG",1170.48,15.92,{"$f":"ROUND(D231*E231,2)","v":18634.04}]
["1.9.1.2","FUNDO PREPARADOR PRIMER A BASE DE EPOXI,  UMA DEMAO, ESPESSURA DE 25 MICRA.","M2",70.03,14.82,{"$f":"ROUND(D232*E232,2)","v":1037.8399999999999}]
["1.9.1.3","PINTURA COM TINTA ALQUÍDICA DE ACABAMENTO (ESMALTE SINTÉTICO ACETINADO-CINZA PLATINA) PULVERIZADA SOBRE SUPERFÍCIES METÁLICAS , EXECUTADO EM OBRA (02 DEMÃOS). AF_01/2020","M2",70.03,41.6,{"$f":"ROUND(D233*E233,2)","v":2913.25}]
["1.9.1.4","AÇO CA50 - 10mm (CHUMBADORES DA PLACA BASE)","KG",13.43,11.67,{"$f":"ROUND(D234*E234,2)","v":156.72999999999999}]
["1.10","COBERTURA",null,null,null,{"$f":"SUBTOTAL(9,F236:F237)","v":29613.21}]
["1.10.1","COBERTURA EM TELA TOLDO DE SOMBREAMENTO TIPO SHADE, INCLUSO COMPONENTES DE FIXAÇÃO COM MOSQUETÕES, ESTICADORES E POSTES PARA FIXAÇÃO. (33X10M- COBERTURA DO PLAYGROUND)","UN",1,13457.66,{"$f":"ROUND(D236*E236,2)","v":13457.66}]
["1.10.2","COBERTURA/FECHAMENTO EM POLICARBONATO ALVEOLAR 10MM, INCLUSIVE ACESSÓRIOS DE  FIXAÇÃO EM ALUMÍNIO NATURAL. (PASSARELA METÁLICA)","M2",63.37,254.94,{"$f":"ROUND(D237*E237,2)","v":16155.55}]
["1.11","ESQUADRIAS",null,null,null,{"$f":"SUBTOTAL(9,F239:F247)","v":121975.21999999999}]
["1.11.1","FORNECIMENTO E INSTALAÇÃO DE TELA EXPANDIDA EM AÇO GALVANIZADO, MALHA 20x50MM, PINTADO NA COR PRETO. CONFORME INDICAÇÃO EM PROJETO E ESPECIFICAÇÃO DO FABRICANTE.; INCLUSIVE ESTRUTURA DE SUSTENTAÇÃO E FIXAÇÃO EM ALUMINIO, INCLUSIVE CHUMBAMENTOS EM ALVENARIA (DETALHE 09- IMPLANTAÇÃO- TRECHO DO MURO DA FACHADA EM FRENTE A QUADRA)","M2",35.75,676.52,{"$f":"ROUND(D239*E239,2)","v":24185.59}]
["1.11.2","FORNECIMENTO E INSTALAÇÃO DE GRADIL MODULAR BARRA SECA, TIPO ALAMBRADO EM PAINEL REFERÊNCIA - NYLOFOR OU SIMILAR, COM MALHA 5X20MM, DIMENSÃO DO MÓDULO (2,50M DE LARGURA X 2.43M DE ALTURA), COM POSTE DE FIXAÇÃO H=3,00, SENDO 0,47M CHUMBADO EM BASE DE CONCRETO . (DETALHE 07- IMPLANTAÇÃO: GRADIL DA FACHADA)","M",122.71000000000001,426.78,52370.17]
["1.11.3","FORNECIMENTO E INSTALACAO DE GRADIL MODULAR / CERCA, TIPO ALAMBRADO EM PAINEL REF. NYLOFOR OU SIMILAR, ALTURA 1,53M, COM MALHA 5X20MM,JA INCLUSO FERRAGENS E PINTURA dupla camada eletrostática - cor a definir (DETALHE 08- IMPLANTAÇÃO: GRADIL DO PLAYGROUND)","M",33.18,311.01,10319.31]
["1.11.4","INSTALAÇÃO DE GRADIL REAPROVEITADO DA FACHADA, CHUMBADO EM BASE DE ALVENARIA DE CONCRETO. (ESTACIONAMENTO DE PAIS, ALUNOS E FUNCIONÁRIOS) ","M2",102.40100000000001,43.84,4489.26]
["1.11.5","FORNECIMENTO E INSTALAÇÃO DE PORTÃO EM GRADIL MODULAR BARRA SECA, TIPO ALAMBRADO EM PAINEL REFERÊNCIA - NYLOFOR OU SIMILAR, COM MALHA 5X20MM,. JÁ INCLUSO ROLDANA, GUIA, BATENTE E ACESSORIOS. PINTURA (COR A SER DEFINIDA)  PORTÃO METÁLICO NYLOFOR ABRIR P 13 - 6,50x2,50 (1 UNIDADE)","Unid",1,7651.66,7651.66]
["1.11.6","FORNECIMENTO E INSTALAÇÃO DE PORTÃO EM GRADIL MODULAR BARRA SECA, TIPO ALAMBRADO EM PAINEL REFERÊNCIA - NYLOFOR OU SIMILAR, COM MALHA 5X20MM,. JÁ INCLUSO ROLDANA, GUIA, BATENTE E ACESSORIOS. PINTURA (COR A SER DEFINIDA)  PORTÃO METÁLICO NYLOFOR CORRER P 14 - 6,50x2,50 (1 UNIDADE)","Unid",1,8298.25,8298.25]
["1.11.7","FORNECIMENTO E INSTALAÇÃO DE PORTÃO EM GRADIL MODULAR BARRA SECA, TIPO ALAMBRADO EM PAINEL REFERÊNCIA - NYLOFOR OU SIMILAR, COM MALHA 5X20MM,. JÁ INCLUSO ROLDANA, GUIA, BATENTE E ACESSORIOS. PINTURA (COR A SER DEFINIDA)  PORTÃO METÁLICO NYLOFOR CORRER P 15 - 3,70x2,50 (1 UNIDADE)","Unid",1,4898.5,4898.5]
["1.11.8","FORNECIMENTO E INSTALAÇÃO DE PORTÃO EM GRADIL MODULAR BARRA SECA, TIPO ALAMBRADO EM PAINEL REFERÊNCIA - NYLOFOR OU SIMILAR, COM MALHA 5X20MM,. JÁ INCLUSO ROLDANA, GUIA, BATENTE E ACESSORIOS. PINTURA (COR A SER DEFINIDA)  PORTÃO METÁLICO NYLOFOR CORRER P16 - 5,40x2,50 (1 UNIDADE)","Unid",1,6923.08,6923.08]
["1.11.9","FORNECIMENTO E INSTALAÇÃO DE PORTÃO EM GRADIL MODULAR BARRA SECA, TIPO ALAMBRADO EM PAINEL REFERÊNCIA - NYLOFOR OU SIMILAR, COM MALHA 5X20MM,. JÁ INCLUSO ROLDANA, GUIA, BATENTE E ACESSORIOS. PINTURA (COR A SER DEFINIDA)  PORTÃO METÁLICO NYLOFOR ABRIR P17 - 1,00x1,58 (2 UNIDADE)","Unid",2,1419.7,2839.4]
["1.12","PISOS",null,null,null,{"$f":"SUBTOTAL(9,F249:F259)","v":406949.71000000008}]
["1.12.1","EXECUÇÃO DE PAVIMENTO COM APLICAÇÃO DE CONCRETO ASFÁLTICO, CAMADA DE ROLAMENTO - EXCLUSIVE CARGA E TRANSPORTE. AF_11/2019 ESTACIONAMENTO ALUNOS","M3",150,1110.3599999999999,{"$f":"ROUND(D249*E249,2)","v":166554}]
["1.12.2","CARGA, MANOBRAS E DESCARGA DE MISTURA BETUMINOSA A QUENTE, COM CAMINHAO BASCULANTE 6 M3 ESTACIONAMENTO ALUNOS","T",360,3.43,1234.8]
["1.12.3","LASTRO COM MATERIAL GRANULAR, APLICAÇÃO EM PISOS OU RADIERS, ESPESSURA DE *5 CM*. AF_08/2017 ESTACIONAMENTO FUNCIONÁRIOS","M3",58.455999999999996,148.03,8653.24]
["1.12.4","CONTRAPISO DE CONCRETO 20 MPA PREPARO MECANICO, ESPESSURA 7CM.  (NOS LOCAIS ONDE TEM PREVISÃO DE PISO PORCELANATO, GRANITO E PISO EMBORRACHADO)","M2",574.58000000000004,70.069999999999993,40260.82]
["1.12.5","REGULARIZAÇÃO EM ARGAMASSA TRAÇO 1:4 (CIMENTO E AREIA), PREPARO MECÂNICOCOM BETONEIRA 400 L, APLICADO EM ÁREAS SECAS SOBRE LAJE, ADERIDO, ESPESSURA 3CM  (NOS LOCAIS ONDE TEM PREVISÃO DE PISO PORCELANATO, GRANITO E PISO EMBORRACHADO)","M2",574.58000000000004,37.79,21713.38]
["1.12.6","PISO PORCELLANATO ESMALTADO ANTIDERRAPANTE - MARMORE BIANCO NAT RET 60X60CM COR BEGE COD. 23427E PORTOBELLO OU SIMILAR (ACESSO BLOCO A, NA FRENTE SANITÁRIOS DA QUADRA, PASSARELA EM FRENTE PLAYGROUND, CALACADA ENTRE BLOCOS B E C.) ","M2",231.94,107.52,24938.19]
["1.12.7","RODAPÉ PISO PORCELANATO ESMALTADO ANTIDERRAPANTE - MARMORE BIANCO NAT RET 60X60CM COR BEGE COD. 23427E PORTOBELLO OU SIMILAR","M",192.82,11.48,2213.5700000000002]
["1.12.8","PISO EM GRANITO CINZA ANDORINHA COM FRISO ANTIDERRAPANTE  (ESPELHOS E PISOS DE ESCADAS E RAMPAS DE PEDESTRE)","M2",126.77000000000001,447.96,56787.89]
["1.12.9","RODAPÉ EM GRANITO, ALTURA 10 CM. (RAMPAS DE PEDESTRES)","M",115.91,81.069999999999993,9396.82]
["1.12.10","PISO EM PLACA 80X100X2 CM DE GRANITO OCRE ITABIRA, FLAMEADO, FORNECIMENTO E INSTALAÇÃO (HALL DE ENTRADA ABAIXO DA MARQUISE)","M2",46.87,411.35,{"$f":"ROUND(D258*E258,2)","v":19279.97}]
["1.12.11","PISO EMBORRACHADO COM ABSORÇÃO DE IMPACTO MÍNIMO 1,60M, ESPESSURAS MINIMA 50MM,EM PLACAS QUADRADAS 1M, PARA USO EXTERNO (RESISTENTE A INTERPÉRIES) , NAS CORES VERDE, AZUL, VERMELHO E AMARELO,. REFERÊNCIA: ECO FLEX 50 - ECOPEX OU SIMILAR. (PLAYGROUND)","M²",169,330.87,{"$f":"ROUND(D259*E259,2)","v":55917.03}]
["1.13","REVESTIMENTO ",null,null,null,{"$f":"SUBTOTAL(9,F261:F261)","v":0}]
["1.14","GRANITO",null,null,null,0]
["1.15","FORROS",null,null,null,0]
["1.16","PINTURA",null,null,null,{"$f":"SUBTOTAL(9,F264:F270)","v":90305.95}]
["1.16.1","APLICAÇÃO DE FUNDO SELADOR ACRÍLICO EM PAREDES, UMA DEMÃO. (PAREDES NOVAS DE ALVENARIA)","M2",965.34999999999991,2.02,{"$f":"ROUND(D264*E264,2)","v":1950.01}]
["1.16.2","TEXTURA ACRÍLICA, APLICAÇÃO MANUAL EM PAREDE, UMA DEMÃO. (PAREDES NOVAS DE ALVENARIA)","M2",965.34999999999991,14.96,14441.64]
["1.16.3","APLICAÇÃO MANUAL DE PINTURA COM TINTA LÁTEX ACRÍLICA EM PAREDES, DUAS DEMÃOS. (PAREDES NOVAS DE ALVENARIA)","M2",965.34999999999991,14.41,13910.69]
["1.16.4","TEXTURA ACRÍLICA, APLICAÇÃO MANUAL EM PAREDE, UMA DEMÃO. (PAREDES EXISTENTES E NOS ARRIMOS DAS RAMPAS DE VIECULOS E PEDESTRE)","M2",1735,14.96,25955.599999999999]
["1.16.5","APLICAÇÃO MANUAL DE PINTURA COM TINTA LÁTEX ACRÍLICA EM PAREDES, DUAS DEMÃOS. (PAREDES EXISTENTES  E NOS ARRIMOS DAS RAMPAS DE VIECULOS E PEDESTRE)","M2",1735,14.41,25001.35]
["1.16.6","PINTURA COM TINTA ALQUÍDICA DE ACABAMENTO (ESMALTE SINTÉTICO ACETINADO CINZ PLATINA) APLICADA A ROLO OU PINCEL SOBRE PERFIL METÁLICO. (GRADIS REAPROVEITADOS E GUARDA-CORPO)","M2",286.75200000000001,9.32,2672.53]
["1.16.7","PINTURA COM TINTA ALQUÍDICA DE ACABAMENTO (ESMALTE SINTÉTICO ACETINADO CINZ PLATINA) APLICADA A ROLO OU PINCEL SOBRE PERFIL METÁLICO. (GRADIS E GUARDA-CORPO EXISTENTES)","M2",683.92,9.32,6374.13]
["1.17","CALÇAMENTO, PÁTIO E PASSARELAS ",null,null,null,{"$f":"SUBTOTAL(9,F272:F276)","v":422670.81000000006}]
["1.17.1","PISO DE CONCRETO POLIDO INDUSTRIAL PARA TRÂNSITO DE VEÍCULOS, FCK 25MPA, ESP. 15CM, ARMADO COM TELA SOLDADA GERDAU Q-92 - MALHA 15X15CM D= 4,2MM OU SIMILAR, INCLUSIVE BARRAS DE  TRANSFERÊNCIA BTG 20 - D=20MM, EM AÇO CA-25 LISO, COMPRIMENTO DE 50CM, DISPOSTAS A CADA 30CM, COM FORNECIMENTO DE MATERIAL, ADENSAMENTO, SARRAFEAMENTO, POLIMENTO COM MÁQUINA POLITRIZ INDUSTRIAL, COM CONFECÇÃO DE JUNTAS DE DILATAÇÃO EM PANOS DE NO MÁXIMO 5,00X5,00M, EXECUTADAS CORTE COM MÁQUINA DE CORTE DE PISO INDUSTRIAL COM DISCO DIAMANTADO, PROFUNDIDADE MÍNIMA DE 5CM, INCLUSIVE PREPARO MANUAL DO TERRENO, APILOAMENTO DE BASE, FORNECIMENTO DE LONA PRETA E ADITIVOS PARA O CONCRETO\n(SAÍDA ESTACIONAMENTO ALUNOS, VAGAS ESPECIAIS ESTACIONAMENTO FUNCIONARIOS E, ENTRADA ESTACIONAMENTO ALUNOS E LOMBADAS)","M2",1209.05,174.7,{"$f":"ROUND(D272*E272,2)","v":211221.04}]
["1.17.3","EXECUÇÃO DE  PISO DE CONCRETO COM CONCRETO MOLDADO IN LOCO, USINADO, ACABAMENTO CONVENCIONAL, ESPESSURA 6 CM, ARMADO. (REBAIXOS DE MEIO-FIO PARA PCD E PISO EM TORNO DA QUADRA POLIESPORTIVA)","M2",535.71,79.31,42487.16]
["1.17.4","EXECUÇÃO DE PÁTIO/ESTACIONAMENTO EM PISO INTERTRAVADO DORMIDO, COM BLOCO RETANGULAR COR NATURAL DE 20 X 10 CM, ESPESSURA 8 CM. (CALÇADAS INTERNAS E EXTERNAS)","M2",1241.1899999999998,73.36,91053.7]
["1.17.5","ASSENTAMENTO DE GUIA (MEIO-FIO) EM TRECHO RETO, CONFECCIONADA EM CONCRETO PRÉ-FABRICADO, DIMENSÕES 100X15X13X30 CM (COMPRIMENTO X BASE INFERIOR X BASE SUPERIOR X ALTURA), PARA VIAS URBANAS (USO VIÁRIO). ","M",1108.6600000000001,49.56,54945.19]
["1.17.6","ASSENTAMENTO DE GUIA (MEIO-FIO) EM TRECHO CURVO, CONFECCIONADA EM CONCRETO PRÉ-FABRICADO, DIMENSÕES 100X15X13X30 CM (COMPRIMENTO X BASE INFERIOR X BASE SUPERIOR X ALTURA), PARA VIAS URBANAS (USO VIÁRIO).","M",429.63000000000005,53.45,22963.72]
["1.18","SERVIÇOS COMPLEMENTARES",null,null,null,{"$f":"SUBTOTAL(9,F278:F280)","v":57610.420000000006}]
["1.18.1","PLANTIO DE GRAMA EM PLACAS. AF_05/2018","M2",2543.6400000000003,10.93,{"$f":"ROUND(D278*E278,2)","v":27801.99}]
["1.18.2","DELIMITADOR DE VEÍCULO EM CONCRETO, NA COR AMARELO, FIXADO NO CHÃO COM BARRAS DE FERRO ","M2",435,36.61,{"$f":"ROUND(D279*E279,2)","v":15925.35}]
["1.18.3","FORNECIMENTO E INSTALAÇÃO GUARDA CORPO E CORRIMÃO EM TUBO FERRO GALVANIZADO, ALT=1,10M, COM BARRAS VERTICAIS A CADA 11CM (3/4\") E BARRAS HORIZONTAIS (SUPERIOR, INTERMEDIÁRIAS (DUAS) E INFERIOR) DE 1.1/2\", INCLUSIVE CURVA DE AÇO. (CONFORME DETALHE PSCIP- RAMPA DE ACESSO DE PEDESTRE A SER CONSTRUIDA)","M",37.25,372.7,{"$f":"ROUND(D280*E280,2)","v":13883.08}]
["1.19","INSTALAÇÕES SPDA (CAIXA DÁGUA)",null,null,null,{"$f":"SUBTOTAL(9,F282:F293)","v":3605.66}]
["1.19.1","BASE METÁLICA PARA MASTRO 1 ½  PARA SPDA - FORNECIMENTO E INSTALAÇÃO. AF_12/2017","UN",1,131.56,{"$f":"ROUND(D282*E282,2)","v":131.56}]
["1.19.2","CAPTOR TIPO FRANKLIN PARA SPDA - FORNECIMENTO E INSTALAÇÃO. AF_12/2017","UN",1,127.06,{"$f":"ROUND(D283*E283,2)","v":127.06}]
["1.19.3","HASTE DE ATERRAMENTO 5/8  PARA SPDA - FORNECIMENTO E INSTALAÇÃO. AF_12/2017","UN",6,56.5,339]
["1.19.4","CAIXA DE INSPEÇÃO PARA ATERRAMENTO, CIRCULAR, EM POLIETILENO, DIÂMETRO INTERNO = 0,3 M. AF_05/2018","UN",2,25.23,50.46]
["1.19.5","ESCAVAÇÃO MANUAL DE VALA COM PROFUNDIDADE MENOR OU IGUAL A 1,30 M. AF_03/2016","M3",3,76.989999999999995,230.97]
["1.19.6","REATERRO MANUAL DE VALAS COM COMPACTAÇÃO MECANIZADA. AF_04/2016","M3",3,26,78]
["1.19.7","FORNECIMENTO E INSTALAÇÃO DE SOLDA EXOTÉRMICA CABO-HASTE COM CARTUCHO Nº 90 E MOLDE CABO 35mm²- HASTE 5/8\" ","UN",2,19.96,39.92]
["1.19.8","FORNECIMENTO E INSTALAÇÃO DE SOLDA EXOTÉRMICA CABO-HASTE COM CARTUCHO Nº115 E MOLDE CABO 50mm²-  HASTE 5/8\" ","UN",4,25.08,100.32]
["1.19.9","PARA RAIO TIPO FRANKLIN 350MM, LATÃO CROMADO, PARA DESCIDA 1 CABO, C/ SUPORTE E CONECTORES P/ CABO TERRA E BASE","UN",1,583.88,583.88]
["1.19.10","SINALIZADOR NOTURNO C/ 1 LÂMPADA PL 15W, INCLUSIVE LAMPADA E RELÉ FOTOELÉTRICO INDIVIDUAL","UN",1,114.05,114.05]
["1.19.11","CABO DE COBRE NU 35MM2 - FORNECIMENTO E INSTALACAO","M",24,34.61,830.64]
["1.19.12","CABO DE COBRE NU 50MM2 - FORNECIMENTO E INSTALACAO","M",20,48.99,979.8]
["1.20","INSTALAÇÕES DE COMBATE A INCÊNDIO",null,null,null,{"$f":"SUBTOTAL(9,F295:F357)","v":42987.930000000008}]
["1.20.1","REMOÇÃO E RETIRADA ",null,null,null,{"$f":"SUBTOTAL(9,F296:F299)","v":1081.4000000000001}]
["1.20.1.1","ESCAVAÇÃO MANUAL DE VALA COM PROFUNDIDADE MENOR OU IGUAL A 1,30M - Escavação de vala no Ramal Principal da tubulação aço galvanizado, para interrupção de linha de abastecimento - troca de peças (peça TE por peça LUVA ) dimensão 1,0x1,0x1,0m","M3",1,76.989999999999995,{"$f":"ROUND(D296*E296,2)","v":76.989999999999995}]
["1.20.1.2","ESCAVAÇÃO MANUAL DE VALA COM PROFUNDIDADE MENOR OU IGUAL A 1,30M - Escavação de vala no Ramal Principal da tubulação aço galvanizado, para interligação da tubulação existente - lançamento de nova linha de abastecimento ( instalação da peça TE e a LUVA) interligando o ramal existente - Bloco Novo enre sala de apoio, sl 06,07,08,09. dimensão 50,0x0,3x0,60m","M3",9,76.989999999999995,{"$f":"ROUND(D297*E297,2)","v":692.91}]
["1.20.1.3","ESCAVAÇÃO MANUAL DE VALA COM PROFUNDIDADE MENOR OU IGUAL A 1,30M - Escavação de vala no Ramal Secundário da tubulação aço galvanizado, para interrupção de linha de abastecimento - troca de peças (peça TE por peça LUVA ) dimensão 1,0x1,0x1,0m","M3",0.5,76.989999999999995,{"$f":"ROUND(D298*E298,2)","v":38.5}]
["1.20.1.4","REATERRO MANUAL DE VALAS COM COMPACTAÇÃO MECANIZADA. AF_04/2016","M3",10.5,26,{"$f":"ROUND(D299*E299,2)","v":273}]
["1.20.2","PINTURA",null,null,null,{"$f":"SUBTOTAL(9,F301:F302)","v":252.96}]
["1.20.2.1","TEXTURA ACRÍLICA, APLICAÇÃO MANUAL EM PAREDE, UMA DEMÃO  -  MURETA DOS ABRIGOS DOS EXTINTORES","M2",8,14.96,{"$f":"ROUND(D301*E301,2)","v":119.68}]
["1.20.2.2","PINTURA ACRILICA EM PISO CIMENTADO DUAS DEMAOS - CONTRAPISO - DEMARCAÇÃO 1,0x1,0) CONFORME PROJETO PSCIP","M2",8,16.66,{"$f":"ROUND(D302*E302,2)","v":133.28}]
["1.20.3","HIDRANTES",null,null,null,{"$f":"SUBTOTAL(9,F304:F309)","v":7211.0499999999993}]
["1.20.3.1","ABRIGO PARA HIDRANTE, 75X45X17CM, COM REGISTRO GLOBO ANGULAR 45º 2.1/2 \", ADAPTADOR STORZ 2.1/2\",DUAS MANGUEIRAS DE INCÊNDIO 15M, CHAVE DUPLA TIPO STORZ 2.1/2X1.1/2, REDUÇÃO TIPO STORZ 2.1/2X1.1/2\"\" E ESGUICHO EM LATÃO 2.1/2\" - FORNECIMENTO E INSTALAÇÃO","UN ",1,1493.42,{"$f":"ROUND(D304*E304,2)","v":1493.42}]
["1.20.3.2","ABRIGO PARA HIDRANTE, 75X45X17CM, COM REGISTRO GLOBO ANGULAR 45º 2.1/2 \", ADAPTADOR STORZ 2.1/2\",DUAS MANGUEIRAS DE INCÊNDIO 15M, CHAVE DUPLA TIPO STORZ 2.1/2X1.1/2, REDUÇÃO TIPO STORZ 2.1/2X1.1/2\"\" E ESGUICHO EM LATÃO 2.1/2\" - RELOCAÇÃO DO HIDRANTE, REAPROVEITAMENTO DO MATERIAL","UN ",1,193.69,193.69]
["1.20.3.3","TUBO DE AÇO GALVANIZADO COM COSTURA, CLASSE MÉDIA, DN 65 (2 1/2\"), CONEXÃO ROSQUEADA, INSTALADO EM REDE DE ALIMENTAÇÃO PARA HIDRANTE - FORNECIMENTO E INSTALAÇÃO","M",60,87.93,5275.8]
["1.20.3.4","TUBO DE AÇO GALVANIZADO COM COSTURA, CLASSE MÉDIA, DN 65 (2 1/2\"), CONEXÃO ROSQUEADA, INSTALADO EM REDE DE ALIMENTAÇÃO PARA HIDRANTE - RELOCAÇÃO DA TUBULAÇÃO, REAPROVEITAMENTO DO MATERIAL","M",6,10.58,63.48]
["1.20.3.5","LUVA, EM FERRO GALVANIZADO, DN 65 (2 1/2\"), CONEXÃO ROSQUEADA, INSTALADO EM REDE DE ALIMENTAÇÃO PARA HIDRANTE - RECOLAÇÃO DA LUVA, REAPROVEITAMENTO DO MATERIAL","UN ",2,31.77,63.54]
["1.20.3.6","TÊ, EM FERRO GALVANIZADO, CONEXÃO ROSQUEADA, DN 65 (2 1/2\"), INSTALADO EM REDE DE ALIMENTAÇÃO PARA HIDRANTE - RECOLAÇÃO DO TÊ, REAPROVEITAMENTO DO MATERIAL","UN ",2,60.56,121.12]
["1.20.4","EXTINTORES DE INCÊNDIO",null,null,null,{"$f":"SUBTOTAL(9,F311:F314)","v":6782.81}]
["1.20.4.1","FORNECIMENTO E INSTALAÇÃO DE EXTINTOR DE INCENDIO DE PÓ QUÍMICO TIPO - ABC - 6KG","UN ",1,189.51,{"$f":"ROUND(D311*E311,2)","v":189.51}]
["1.20.4.2","FORNECIMENTO E INSTALAÇÃO DE EXTINTOR DE INCENDIO DE PÓ QUÍMICO TIPO - BC - 6KG","UN ",8,198.27,{"$f":"ROUND(D312*E312,2)","v":1586.16}]
["1.20.4.3","FORNECIMENTO E INSTALAÇÃO DE EXTINTOR DE GAS CARBONO SECO - CO2 6KG","UN ",7,567.5,{"$f":"ROUND(D313*E313,2)","v":3972.5}]
["1.20.4.4","APLICAÇÃO DE TINTA A BASE DE EPOXI SOBRE PISO - DIMENSÃO 1,00x1,00 (0,70x0,70 + 0,15x,015) CONFORME DETALHE DO PSCIP","M2",18,57.48,{"$f":"ROUND(D314*E314,2)","v":1034.6400000000001}]
["1.20.5","PLACAS DE SINALIZAÇÃO DE EXTINTORES",null,null,null,{"$f":"SUBTOTAL(9,F316:F319)","v":445.77000000000004}]
["1.20.5.1","FORNECIMENTO E INSTALAÇÃO DE PLACAS DE SINALIZAÇÃO DOS EQUIPAMENTOS CONFORME MENORIAL E DETALHES DE EXTINTOR PÓ-QUÍMICO TIPO ABC","UN ",1,16.510000000000002,{"$f":"ROUND(D316*E316,2)","v":16.510000000000002}]
["1.20.5.2","FORNECIMENTO E INSTALAÇÃO DE PLACAS DE SINALIZAÇÃO DOS EQUIPAMENTOS CONFORME MENORIAL E DETALHES DE EXTINTOR PÓ-QUÍMICO TIPO BC","UN ",8,16.510000000000002,{"$f":"ROUND(D317*E317,2)","v":132.08000000000001}]
["1.20.5.3","FORNECIMENTO E INSTALAÇÃO DE PLACAS DE SINALIZAÇÃO DOS EQUIPAMENTOS CONFORME MENORIAL E DETALHES DE EXTINTOR ÁGUA PRESSURIZADA ","UN ",11,16.510000000000002,{"$f":"ROUND(D318*E318,2)","v":181.61}]
["1.20.5.4","FORNECIMENTO E INSTALAÇÃO DE PLACAS DE SINALIZAÇÃO DOS EQUIPAMENTOS CONFORME MENORIAL E DETALHES DE EXTINTOR GÁS CARBONICO - CO2","UN ",7,16.510000000000002,{"$f":"ROUND(D319*E319,2)","v":115.57}]
["1.20.6","PLACAS DE SINALIZAÇÃO DE HIDRANTES",null,null,null,{"$f":"SUBTOTAL(9,F321:F327)","v":884.19999999999993}]
["1.20.6.1","FORNECIMENTO E INSTALAÇÃO DE PLACAS DE SINALIZAÇÃO E EQUIPAMENTOS CONFORME MEMORIAL DETALHE RESPECTIVO AO HIDRANTE - H","UN ",8,19.940000000000001,{"$f":"ROUND(D321*E321,2)","v":159.52000000000001}]
["1.20.6.2","FORNECIMENTO E INSTALAÇÃO DE PLACAS DE SINALIZAÇÃO E EQUIPAMENTOS CONFORME MEMORIAL DETALHES DE BOTOEIRA LIGA/DESLIGA PARA ACIONAMENTO DA BOMBA DE INCENDIO, COM MARTELO","UN ",8,19.940000000000001,159.52000000000001]
["1.20.6.3","FORNECIMENTO E INSTALAÇÃO DE PLACAS DE SINALIZAÇÃO E EQUIPAMENTOS CONFORME MEMORIAL DETALHER ACIONADOR MANUAL TIPO QUEBRA VIDRO P/ ALARME COM QUEBRA VIDRO","UN ",8,19.940000000000001,159.52000000000001]
["1.20.6.4","FORNECIMENTO E INSTALAÇÃO DE PLACAS DE SINALIZADOR SONORO DO TIPO BITONAL (FÁ-DÓ), POT. 120dB - 24VCC ","UN ",8,18.39,147.12]
["1.20.6.5","FORNECIMENTO E INSTALAÇÃO DE PLACAS DE SINALIZAÇÃO DE ALERTA, CUIDADO RISCO CHOQUE ELÉTRICO (Nº 09 - PSCIP)","UN ",10,21.24,212.4]
["1.20.6.6","FORNECIMENTO E INSTALAÇÃO DE PLACAS DE SINALIZAÇÃO DE ALERTA, PROIBIDO FUMAR Nº01","UN ",2,11.53,23.06]
["1.20.6.7","FORNECIMENTO E INSTALAÇÃO DE PLACAS DE SINALIZAÇÃO DE ALERTA, PROIBIDO FAZER CHAMA Nº02","UN ",2,11.53,23.06]
["1.20.7","PLACAS DE SINALIZAÇÃO DE ALARME SONORO",null,null,null,{"$f":"SUBTOTAL(9,F329:F330)","v":294.24}]
["1.20.7.1","FORNECIMENTO E INSTALAÇÃO DE PLACAS DE SINALIZAÇÃO DE ALERTA, ALARME Nº 21","UN ",8,18.39,{"$f":"ROUND(D329*E329,2)","v":147.12}]
["1.20.7.2","FORNECIMENTO E INSTALAÇÃO DE SINALIZAÇÃO DE ALERTA, ALARME Nº 20","UN ",8,18.39,{"$f":"ROUND(D330*E330,2)","v":147.12}]
["1.20.8","PLACAS DE SINALIZAÇÃO DE SAÍDA DE EMERGÊNCIA ",null,null,null,{"$f":"SUBTOTAL(9,F332:F334)","v":1281.33}]
["1.20.8.1","FORNECIMENTO E INSTALAÇÃO  DE PLACAS DE SINALIZAÇÃO DE EMERGÊNCIA, Nº 11","UN ",2,18.57,{"$f":"ROUND(D332*E332,2)","v":37.14}]
["1.20.8.2","FORNECIMENTO E INSTALAÇÃO  DE PLACAS DE SINALIZAÇÃO DE EMERGÊNCIA, Nº 13","UN ",25,18.57,{"$f":"ROUND(D333*E333,2)","v":464.25}]
["1.20.8.3","FORNECIMENTO E INSTALAÇÃO  DE PLACAS DE SINALIZAÇÃO DE EMERGÊNCIA, Nº 17","UN ",42,18.57,{"$f":"ROUND(D334*E334,2)","v":779.94}]
["1.20.9","INSTALAÇÕES ELÉTRICAS - HIDRANTES",null,null,null,{"$f":"SUBTOTAL(9,F336:F341)","v":1519.3600000000001}]
["1.20.9.1","FORNECIMENTO E INSTALAÇÃO DO ACIONAMENTO MANUAL PARA BOMBA COM BOTOEIRA LIGA / DESLIGA","UN ",2,82.13,{"$f":"ROUND(D336*E336,2)","v":164.26}]
["1.20.9.2","CABO DE COBRE FLEXÍVEL ISOLADO, 2,5 MM², ANTI-CHAMA 0,6/1,0 KV, PARA CIRCUITOS TERMINAIS - FORNECIMENTO E INSTALAÇÃO","M",60,4.5999999999999996,276]
["1.20.9.3","CAIXA RETANGULAR 4\" X 2\" MÉDIA (1,30 M DO PISO), METÁLICA, INSTALADA EM PAREDE - FORNECIMENTO E INSTALAÇÃO","UN ",2,13.48,26.96]
["1.20.9.4","TAMPA CEGA EM PVC PARA CONDULETE 4 X 2\" - FORNECIMENTO E INSTALAÇÃO","UN ",2,4.55,9.1]
["1.20.9.5","CONDULETE DE PVC, TIPO X, PARA ELETRODUTO DE PVC SOLDÁVEL DN 20 MM (1/2''), APARENTE - FORNECIMENTO E INSTALAÇÃO","UN ",6,30.64,183.84]
["1.20.9.6","DUTO ESPIRAL FLEXIVEL SINGELO PEAD D=50MM(2\") REVESTIDO COM PVC COM FIO GUIA DE ACO GALVANIZADO, LANCADO DIRETO NO SOLO, INCL CONEXOES - FORNECIMENTO E INSTALAÇÃO","M",30,28.64,859.2]
["1.20.10","INSTALAÇÕES ELÉTRICAS - ALARME DE INCÊNDIO",null,null,null,{"$f":"SUBTOTAL(9,F343:F348)","v":2330.56}]
["1.20.10.1","FORNECIMENTO E INSTALAÇÃO DE ACIONADOR MANUAL PARA ALARME DE EMERGÊNCIA TIPO \"QUEBRE O VIDRO\"","UN ",2,83.06,{"$f":"ROUND(D343*E343,2)","v":166.12}]
["1.20.10.2","FORNECIMENTO E INSTALAÇÃO AVISADOR SONORO DE ALARME DE INCÊNDIO","UN ",2,68.19,136.38]
["1.20.10.3","CABO DE COBRE FLEXÍVEL ISOLADO, 2,5 MM², ANTI-CHAMA 0,6/1,0 KV, PARA CIRCUITOS TERMINAIS - FORNECIMENTO E INSTALAÇÃO","M",100,4.5999999999999996,460]
["1.20.10.4","CAIXA RETANGULAR 4\" X 2\" MÉDIA (1,30 M DO PISO), METÁLICA, INSTALADA EM PAREDE - FORNECIMENTO E INSTALAÇÃO","UN ",2,13.48,26.96]
["1.20.10.5","TAMPA CEGA EM PVC PARA CONDULETE 4 X 2\" - FORNECIMENTO E INSTALAÇÃO","UN ",2,4.55,9.1]
["1.20.10.6","CONDULETE DE PVC, TIPO X, PARA ELETRODUTO DE PVC SOLDÁVEL DN 20 MM (1/2''), APARENTE - FORNECIMENTO E INSTALAÇÃO","M",50,30.64,1532]
["1.20.11","INSTALAÇÕES ELÉTRICAS -LUMINÁRIA DE EMERGÊNCIA",null,null,null,{"$f":"SUBTOTAL(9,F350:F357)","v":20904.25}]
["1.20.11.1","FORNECIMENTO E INSTALAÇÃO DE LUMINÁRIA DE EMERGENCIA 30 LEDS, POTENCIA 8W, BATERIA DE LITIO, AUTONOMIA DE 6 HORAS","UN ",80,29.55,{"$f":"ROUND(D350*E350,2)","v":2364}]
["1.20.11.2","FORNECIMENTO E INSTALAÇÃO DE ILUMINAÇÃO DE MERGÊNCIA LED 2 FAROIS 1200 LUMENS COM BATERIA INCLUSA","UND",7,206.33,1444.31]
["1.20.11.3","CABO DE COBRE FLEXÍVEL ISOLADO, 2,5 MM², ANTI-CHAMA 450/750 V, PARA CIRCUITOS TERMINAIS - FORNECIMENTO E INSTALAÇÃO","UN ",1260,3.54,4460.3999999999996]
["1.20.11.4","ELETRODUTO RÍGIDO ROSCÁVEL, PVC, DN 20 MM (1/2\"), PARA CIRCUITOS TERMINAIS, INSTALADO EM PAREDE - FORNECIMENTO E INSTALAÇÃO","UN ",420,9.23,3876.6]
["1.20.11.5","TOMADA ALTA DE EMBUTIR (1 MÓDULO), 2P+T 10 A, SEM SUPORTE E SEM PLACA - FORNECIMENTO E INSTALAÇÃO","UN ",87,27.76,2415.12]
["1.20.11.6","ESPELHO / PLACA DE 1 POSTO 4\" X 2\", PARA INSTALACAO DE TOMADAS E INTERRUPTORES - FORNECIMENTO E INSTALAÇÃO","UN ",87,1.68,146.16]
["1.20.11.7","CONDULETE DE PVC, TIPO X, PARA ELETRODUTO DE PVC SOLDÁVEL DN 20 MM (1/2''), APARENTE - FORNECIMENTO E INSTALAÇÃO","UN ",200,30.64,6128]
["1.20.11.8","DISJUNTOR MONOPOLAR TIPO DIN, CORRENTE NOMINAL DE 10A - FORNECIMENTO E INSTALAÇÃO","UN ",6,11.61,69.66]
["1.21","INSTALAÇÕES ELÉTRICAS",null,null,null,{"$f":"SUBTOTAL(9,F359:F418)","v":615858}]
["1.21.1","CABO UNIPOLAR",null,null,null,{"$f":"SUBTOTAL(9,F360:F368)","v":405749.1}]
["1.21.1.1","FORNECIMENTO E INSTALAÇÃO DE CABO DE COBRE PP 2X6MM²","M",2600,10.86,{"$f":"ROUND(D360*E360,2)","v":28236}]
["1.21.1.2","FORNECIMENTO E INSTALAÇÃO DE CABO DE COBRE FLEXÍVEL ISOLADO, 16 MM², ANTI-CHAMA 0,6/1,0 KV, PARA DISTRIBUIÇÃO - AF_12/2015","M",460,14.08,6476.8]
["1.21.1.3","FORNECIMENTO E INSTALAÇÃO DE CABO DE COBRE FLEXÍVEL ISOLADO, 35 MM², ANTI-CHAMA 0,6/1,0 KV, PARA DISTRIBUIÇÃO - AF_12/2015","M",1350,31.25,42187.5]
["1.21.1.4","FORNECIMENTO E INSTALAÇÃO DE CABO DE COBRE FLEXÍVEL ISOLADO, 50 MM², ANTI-CHAMA 0,6/1,0 KV, PARA DISTRIBUIÇÃO - AF_12/2015","M",120,43.79,5254.8]
["1.21.1.5","FORNECIMENTO E INSTALAÇÃO DE CABO DE COBRE FLEXÍVEL ISOLADO, 70 MM², ANTI-CHAMA 0,6/1,0 KV, PARA DISTRIBUIÇÃO - AF_12/2015","M",1060,59.96,63557.599999999999]
["1.21.1.6","FORNECIMENTO E INSTALAÇÃO DE CABO DE COBRE FLEXÍVEL ISOLADO, 95 MM², ANTI-CHAMA 0,6/1,0 KV, PARA DISTRIBUIÇÃO - AF_12/2015","M",580,79.14,45901.2]
["1.21.1.7","FORNECIMENTO E INSTALAÇÃO DE CABO DE COBRE FLEXÍVEL ISOLADO, 120 MM², ANTI-CHAMA 0,6/1,0 KV, PARA DISTRIBUIÇÃO - AF_12/2015","M",100,102.36,10236]
["1.21.1.8","FORNECIMENTO E INSTALAÇÃO DE CABO DE COBRE FLEXÍVEL ISOLADO, 185 MM², ANTI-CHAMA 0,6/1,0 KV, PARA DISTRIBUIÇÃO - AF_12/2015","M",820,154.63999999999999,126804.8]
["1.21.1.9","FORNECIMENTO E INSTALAÇÃO DE CABO DE COBRE FLEXÍVEL ISOLADO, 240 MM², ANTI-CHAMA 0,6/1,0 KV, PARA DISTRIBUIÇÃO - AF_12/2015","M",380,202.88,77094.399999999994]
["1.21.2","CAIXA DE PASSAGEM - CONCRETO",null,null,null,{"$f":"SUBTOTAL(9,F370:F372)","v":22084.83}]
["1.21.2.1","FORNECIMENTO E INSTALAÇÃO DE CAIXA DE PASSAGEM 30X30X40 COM TAMPA E DRENO BRITA","PÇ",42,216.05,{"$f":"ROUND(D370*E370,2)","v":9074.1}]
["1.21.2.2","FORNECIMENTO E INSTALAÇÃO DE CAIXA ENTERRADA ELÉTRICA RETANGULAR, EM ALVENARIA COM TIJOLOS CERÂMICOS MACIÇOS, FUNDO COM BRITA, DIMENSÕES INTERNAS: 0,6X0,6X0,6 M. AF_05/2018","PÇ",9,533.52,4801.68]
["1.21.2.3","FORNECIMENTO E INSTALAÇÃO DE CAIXA ENTERRADA ELÉTRICA RETANGULAR, EM ALVENARIA COM TIJOLOS CERÂMICOS MACIÇOS, FUNDO COM BRITA, DIMENSÕES INTERNAS: 1X1X0,6 M. AF_05/2018","PÇ",15,547.27,8209.0499999999993]
["1.21.3","ILUMINAÇÃO EXTERNA E QUADRA POLIESPORTIVA",null,null,null,{"$f":"SUBTOTAL(9,F374:F383)","v":78616.329999999973}]
["1.21.3.1","POSTE DE AÇO CONICO CONTÍNUO CURVO SIMPLES, ENGASTADO, H=9M, INCLUSIVE LUMINÁRIA, SEM LÂMPADA - FORNECIMENTO E INSTALACAO. AF_11/2019","PÇ",23,1547.52,{"$f":"ROUND(D374*E374,2)","v":35592.959999999999}]
["1.21.3.2","ASSENTAMENTO DE POSTE DE CONCRETO COM COMPRIMENTO NOMINAL DE 10 M, CARGA NOMINAL MENOR OU IGUAL A 1000 DAN, ENGASTAMENTO SIMPLES COM 1,6 M DE SOLO (NÃO INCLUI FORNECIMENTO). AF_11/2019","PÇ",17,395.37,6721.29]
["1.21.3.3","FORNECIMENTO E INSTALAÇÃO DE POSTE DE CONCRETO DUPLO T, TIPO B, 300 KG, H = 10 M (NBR 8451)","PÇ",17,912.14,15506.38]
["1.21.3.4","FORNECIMENTO E INSTALAÇÃO DE LUMINARIA DE LED PARA ILUMINACAO PUBLICA, DE 98 W ATE 137 W, INVOLUCRO EM ALUMINIO OU ACO INOX","PÇ",21,640.89,13458.69]
["1.21.3.5","FORNECIMENTO E INSTALAÇÃO DE BRACO P/ LUMINARIA PUBLICA 1 X 1,50M ROMAGNOLE OU EQUIV","PÇ",21,117.13,2459.73]
["1.21.3.6","RELE FOTOELETRICO P/ COMANDO DE ILUMINACAO EXTERNA 220V/1000W - FORNECIMENTO E INSTALACAO","PÇ",7,25.66,179.62]
["1.21.3.7","FORNECIMENTO E INSTALAÇÃO DE LUMINARIA DE JARDIM DECORATIVA COM LUMINARIA DE 60W - FORNECIMENTO E INSTALACAO","PÇ",27,87.36,2358.7199999999998]
["1.21.3.8","FORNECIMENTO E INSTALAÇÃO DE LUMINÁRIA DE LED PROJETOR, 100W","PÇ",15,151.96,2279.4]
["1.21.3.9","FORNECIMENTO E INSTALAÇÃO DE CAIXA RETANGULAR 4\" X 2\" MÉDIA (1,30 M DO PISO), PVC, INSTALADA EM PAREDE - AF_12/2015","PÇ",1,13.48,13.48]
["1.21.3.10","FORNECIMENTO E INSTALAÇÃO DE INTERRUPTOR SIMPLES (3 MÓDULOS), 10A/250V, INCLUINDO SUPORTE E PLACA - AF_12/2015","PÇ",1,46.06,46.06]
["1.21.4","DISPOSITIVO DE PROTEÇÃO",null,null,null,{"$f":"SUBTOTAL(9,F385:F396)","v":27817.96}]
["1.21.4.1","FORNECIMENTO E INSTALAÇÃO DE DISJUNTOR BIPOLAR TIPO DIN, CORRENTE NOMINAL DE 16A - AF_04/2016","PÇ",9,58.8,{"$f":"ROUND(D385*E385,2)","v":529.20000000000005}]
["1.21.4.2","DISJUNTOR TIPO DIN/IEC, TRIPOLAR 63 A","PÇ",2,107.74,215.48]
["1.21.4.3","DISJUNTOR TIPO DIN/IEC, TRIPOLAR 80 A","PÇ",5,159.43,797.15]
["1.21.4.4","DISJUNTOR TIPO DIN/IEC, TRIPOLAR 90 A","PÇ",1,159.43,159.43]
["1.21.4.5","DISJUNTOR TERMOMAGNETICO TRIPOLAR 125A","PÇ",3,393.59,1180.77]
["1.21.4.6","DISJUNTOR TERMOMAGNETICO TRIPOLAR 150 A / 600 V, TIPO FXD / ICC - 35 KA","PÇ",3,441.13,1323.39]
["1.21.4.7","DISJUNTOR TERMOMAGNETICO TRIPOLAR EM CAIXA MOLDADA 200A 240V,  FORNECIMENTO E INSTALACAO","PÇ",2,580.69000000000005,1161.3800000000001]
["1.21.4.8","DISJUNTOR TERMOMAGNETICO TRIPOLAR EM CAIXA MOLDADA 225A 240V,  FORNECIMENTO E INSTALACAO","PÇ",1,580.69000000000005,580.69000000000005]
["1.21.4.9","DISJUNTOR TERMOMAGNETICO TRIPOLAR EM CAIXA MOLDADA 350A 240V,  FORNECIMENTO E INSTALACAO","PÇ",4,1312.64,5250.56]
["1.21.4.10","DISJUNTOR TERMOMAGNETICO TRIPOLAR EM CAIXA MOLDADA 500 A 600A 600V, FORNECIMENTO E INSTALACAO","UN",2,2150.41,4300.82]
["1.21.4.11","DISJUNTOR TERMOMAGNETICO TRIPOLAR EM CAIXA MOLDADA 1250A 600V  FORNECIMENTO E INSTALACAO","UND",1,10671.09,10671.09]
["1.21.4.12","FORNECIMENTO E INSTALAÇÃO DE DISPOSITIVO DPS CLASSE II, 1 POLO, TENSAO MAXIMA DE 175 V, CORRENTE MAXIMA DE 45 KA (TIPO AC)","PÇ",20,82.4,1648]
["1.21.5","ELETRODUTO PVC FLEXÍVEL",null,null,null,{"$f":"SUBTOTAL(9,F398:F400)","v":28854}]
["1.21.5.1","ELETRODUTO FLEXÍVEL CORRUGADO, PEAD, DN 50 (1.1/2) - FORNECIMENTO E INSTALAÇÃO. AF_04/2016","M",800,7.65,{"$f":"ROUND(D398*E398,2)","v":6120}]
["1.21.5.2","ELETRODUTO FLEXÍVEL CORRUGADO, PEAD, DN 63 (2) - FORNECIMENTO E INSTALAÇÃO. AF_04/2016","M",100,11.7,1170]
["1.21.5.3","ELETRODUTO FLEXÍVEL CORRUGADO, PEAD, DN 100 (4) - FORNECIMENTO E INSTALAÇÃO. AF_04/2016","M",900,23.96,21564]
["1.21.6","QUADRO DISTRIBUIÇÃO - EMBUTIR",null,null,null,{"$f":"SUBTOTAL(9,F402:F405)","v":47691}]
["1.21.6.1","QUADRO DE DISTRIBUICAO DE ENERGIA DE EMBUTIR, EM CHAPA METALICA, PARA 24 DISJUNTORES TERMOMAGNETICOS MONOPOLARES, COM BARRAMENTO TRIFASICO E NEUTRO, FORNECIMENTO E INSTALACAO","PÇ",1,667.42,{"$f":"ROUND(D402*E402,2)","v":667.42}]
["1.21.6.3","FORNECIMENTO E INSTALAÇÃO DE QUADRO MONTADO DE SOBREPOR, EM CHAPA PINTADA COM BARRAMENTO TRIFÁSICO DE 350A, CAPACIDADE PARA 02 DISJUNTORES TRIPOLARES DIN  CAIXA MOLDADA (06 DISJUNTORES RESERVA), CONFORME DIAGRAMA UNIFILAR EM ANEXO (PROJETO ELÉTRICO)","PÇ",2,7029.9,14059.8]
["1.21.6.4","FORNECIMENTO E INSTALAÇÃO DE QUADRO MONTADO DE SOBREPOR, EM CHAPA PINTADA COM BARRAMENTO TRIFÁSICO DE 630A, CAPACIDADE PARA 06 DISJUNTORES TRIPOLARES DIN  CAIXA MOLDADA (06 DISJUNTORES RESERVA), CONFORME DIAGRAMA UNIFILAR EM ANEXO (PROJETO ELÉTRICO)","PÇ",1,7839.53,7839.53]
["1.21.6.5","FORNECIMENTO E INSTALAÇÃO DE QUADRO MONTADO DE SOBREPOR, EM CHAPA PINTADA COM BARRAMENTO TRIFÁSICO DE 800A, CAPACIDADE PARA 06 DISJUNTORES TRIPOLARES DIN  CAIXA MOLDADA, CONFORME DIAGRAMA UNIFILAR EM ANEXO (PROJETO ELÉTRICO)","PÇ",1,25124.25,25124.25]
["1.21.7","TERMINAIS E ACESSÓRIOS",null,null,null,{"$f":"SUBTOTAL(9,F407:F418)","v":5044.78}]
["1.21.7.1","FORNECIMENTO E INSTALAÇÃO DE TERMINAL A COMPRESSAO EM COBRE ESTANHADO PARA CABO 16 MM², 1 FURO E 1 COMPRESSAO, PARA PARAFUSO DE FIXACAO M6","PÇ",22,4.3899999999999997,{"$f":"ROUND(D407*E407,2)","v":96.58}]
["1.21.7.2","FORNECIMENTO E INSTALAÇÃO DE TERMINAL A COMPRESSAO EM COBRE ESTANHADO PARA CABO 35 MM², 1 FURO E 1 COMPRESSAO, PARA PARAFUSO DE FIXACAO M8","PÇ",60,5.3,318]
["1.21.7.3","FORNECIMENTO E INSTALAÇÃO DE TERMINAL A COMPRESSAO EM COBRE ESTANHADO PARA CABO 50 MM², 1 FURO E 1 COMPRESSAO, PARA PARAFUSO DE FIXACAO M8","PÇ",8,7.15,57.2]
["1.21.7.4","FORNECIMENTO E INSTALAÇÃO DE TERMINAL A COMPRESSAO EM COBRE ESTANHADO PARA CABO 70 MM², 1 FURO E 1 COMPRESSAO, PARA PARAFUSO DE FIXACAO M8","PÇ",42,8.2100000000000009,344.82]
["1.21.7.5","FORNECIMENTO E INSTALAÇÃO DE TERMINAL A COMPRESSAO EM COBRE ESTANHADO PARA CABO 95 MM², 1 FURO E 1 COMPRESSAO, PARA PARAFUSO DE FIXACAO M12","PÇ",28,9.4700000000000006,265.16000000000003]
["1.21.7.6","FORNECIMENTO E INSTALAÇÃO DE TERMINAL A COMPRESSAO EM COBRE ESTANHADO PARA CABO 120 MM2, 1 FURO E 1 COMPRESSAO, PARA PARAFUSO DE FIXACAO M12","PÇ",8,18.29,146.32]
["1.21.7.7","FORNECIMENTO E INSTALAÇÃO DE TERMINAL METALICO A PRESSAO PARA 1 CABO DE 185 MM2, COM 1 FURO PARA FIXACAO","PÇ",20,45.37,907.4]
["1.21.7.8","FORNECIMENTO E INSTALAÇÃO DE TERMINAL METALICO A PRESSAO PARA 1 CABO DE 240 MM2, COM 1 FURO PARA FIXACAO","PÇ",14,52.75,738.5]
["1.21.7.9","FORNECIMENTO E INSTALAÇÃO DE ABRACADEIRA DE NYLON PARA AMARRACAO DE CABOS, COMPRIMENTO DE 200 X 4,6 MM","PÇ",200,0.28999999999999998,58]
["1.21.7.10","FORNECIMENTO E INSTALAÇÃO DE ABRACADEIRA DE NYLON PARA AMARRACAO DE CABOS, COMPRIMENTO DE 390 X 4,6 MM","PÇ",500,1.26,630]
["1.21.7.11","FORNECIMENTO E INSTALAÇÃO DE FITA ISOLANTE DE BORRACHA AUTOFUSAO, USO ATE 69 KV (ALTA TENSAO)","M",160,5.53,884.8]
["1.21.7.12","FORNECIMENTO E INSTALAÇÃO DE FITA ISOLANTE ADESIVA ANTICHAMA, USO ATE 750 V, EM ROLO DE 19 MM X 20 M","PÇ",20,29.9,598]
["1.22","INSTALAÇÕES DE LÓGICA E TELEFONICA",null,null,null,{"$f":"SUBTOTAL(9,F420:F490)","v":152384.79}]
["1.22.1","RACKS",null,null,null,{"$f":"SUBTOTAL(9,F421:F435)","v":49682.680000000008}]
["1.22.1.1","FORNECIMENTO E INSTALAÇÃO DE RACK DE PISO FECHADO COM PORTA, PADRÃO 19\" X 44U X 470MM PADRÃO 19\"","UN",2,3213.8,{"$f":"ROUND(D421*E421,2)","v":6427.6}]
["1.22.1.2","FORNECIMENTO E INSTALAÇÃO DE GUIAS DE CABOS VERTICAL","UN",2,312.73,625.46]
["1.22.1.3","FORNECIMENTO E INSTALAÇÃO DE TAMPA INFERIOR BIPARTIDA","UN",2,14.06,28.12]
["1.22.1.4","FORNECIMENTO E INSTALAÇÃO DE KIT RODIZIO C/ 4 RODAS (2 COM TRAVAS)","UNID",2,428.52,857.04]
["1.22.1.5","FORNECIMENTO E INSTALAÇÃO DE PORCA GAIOLA E PARAFUSO - AVULSO)","UN",100,1.69,169]
["1.22.1.6","FORNECIMENTO E INSTALAÇÃO DE KIT DE VENTILAÇÃO COM 2 COOLERS","UN",2,358.49,716.98]
["1.22.1.7","FORNECIMENTO E INSTALAÇÃO DE RÉGUA TOMADAS P/ RACK 19\" - 10 TOMADAS","UNID",2,116.7,233.4]
["1.22.1.8","FORNECIMENTO E INSTALAÇÃO DE TAMPA CEGA 19\" X 1U COM PINTURA EPOXI CONFECCIONADO EM AÇO SAE1020","UN",3,58.87,176.61]
["1.22.1.9","FORNECIMENTO E INSTALAÇÃO DE GUIA DE CABO HORIZONTAL FECHADO 19\" X 1U C/ PINTURA EPOXI CONFECCIONADO EM AÇO SAE1020 ","UN",9,40.93,368.37]
["1.22.1.10","PATCH PANEL 24 PORTAS, CATEGORIA 6 - FORNECIMENTO E INSTALAÇÃO. AF_11/2019","UN",9,636.57000000000005,5729.13]
["1.22.1.11","FORNECIMENTO E INSTALAÇÃO DE SWITCH GERENCIÁVEL 24 PORTAS GIGABIT. REF. HP 1820 24G - J9980A. (EQUIPAMENTO FORNECIDO PELO SESI)","UN",9,2726.04,24534.36]
["1.22.1.12","FORNECIMENTO E INSTALAÇÃO DE GBIC COM CONEXÃO SC/UPC FÊMEA (MULTI-MODO (OM3) - MM - 50/125). REF. GBIC HPE SFP 1 GB","UN",2,1591.8,3183.6]
["1.22.1.13","FORNECIMENTO E INSTALAÇÃO DE DIO - 12 FIBRAS - (USAR 6 DE 12)","UN",1,554.29,554.29]
["1.22.1.14","FORNECIMENTO E INSTALAÇÃO DE CONECTOR MACHO RJ45 (CM8V)  - CAT.6","UN",186,6.59,1225.74]
["1.22.1.15","NOBREAK 2.2KVA. REF. TS-SHARA / 3200VA BIVOLT (4300)","UN",2,2426.4899999999998,4852.9799999999996]
["1.22.2","CABEAMENTO",null,null,null,{"$f":"SUBTOTAL(9,F437:F443)","v":24210.6}]
["1.22.2.1","CABO ELETRÔNICO CATEGORIA 6, INSTALADO EM EDIFICAÇÃO INSTITUCIONAL - FORNECIMENTO E INSTALAÇÃO. AF_11/2019","M",7474,2.21,{"$f":"ROUND(D437*E437,2)","v":16517.54}]
["1.22.2.2","FORNECIMENTO E INSTALAÇÃO DE CONECTOR MACHO RJ45 (CM8V)  - CAT.6","UN",190,6.59,1252.0999999999999]
["1.22.2.3","FORNECIMENTO E INSTALAÇÃO DE PATCH CORD CERTIFICADO CAT.6 - CONEXÃO RJ45 X RJ45 - COMP. 1,5M","UN",193,24.84,4794.12]
["1.22.2.4","FORNECIMENTO E INSTALAÇÃO DE FIBRA ÓPTICA 8FO-MULTI-MODO-ANTI-ROEDOR (OM3) - MM - 50/125","M",60,12.8,768]
["1.22.2.5","FORNECIMENTO E INSTALAÇÃO DE FUSÕES EM FIBRA ÓPTICA COM CERTIFICAÇÃO","UN",6,19.12,114.72]
["1.22.2.6","FORNECIMENTO E INSTALAÇÃO DE PIGTAIL COM CONEXÃO SC/UPC MACHO (MULTI-MODO (OM3) - MM - 50/125)","UN",2,139.66,279.32]
["1.22.2.7","FORNECIMENTO E INSTALAÇÃO DE FITA ROTULADORA 12MM PRETO SOBRE BRANCO","UN",4,121.2,484.8]
["1.22.3","INFRAESTRUTURA",null,null,null,{"$f":"SUBTOTAL(9,F445:F490)","v":78491.50999999998}]
["1.22.3.1","FORNECIMENTO E INSTALAÇÃO DE ELETROCALHA PERFURADA TIPO U 150X50 MM, CHAPA 20, COM TAMPA","M",24,63.74,{"$f":"ROUND(D445*E445,2)","v":1529.76}]
["1.22.3.2","FORNECIMENTO E INSTALAÇÃO DE ELETROCALHA PERFURADA TIPO U 100X50 MM, CHAPA 20, COM TAMPA","M",31,49.72,1541.32]
["1.22.3.3","FORNECIMENTO E INSTALAÇÃO DE ELETROCALHA PERFURADA TIPO U 50X50 MM, CHAPA 20, COM TAMPA","M",287,40.79,11706.73]
["1.22.3.4","FORNECIMENTO E INSTALAÇÃO DE PERFILADO PERFURADO DUPLO 38 X 76 MM, CHAPA 22","M     ",70,24.8,1736]
["1.22.3.5","FORNECIMENTO E INSTALAÇÃO DE VERGALHAO ZINCADO ROSCA TOTAL, 1/4 \" (6,3 MM)","M     ",545,16.41,8943.4500000000007]
["1.22.3.6","FORNECIMENTO E INSTALAÇÃO DE SUPORTE CURTO P/ PERFILADO METÁLICO 38X38MM","UN",682,11.18,7624.76]
["1.22.3.7","FORNECIMENTO E INSTALAÇÃO DE CHUMBADOR, DIAMETRO 1/4\" COM PARAFUSO 1/4\" X 40 MM","UN    ",682,1.24,845.68]
["1.22.3.8","FORNECIMENTO E INSTALAÇÃO DE COTOVELO RETO -150X50MM CHAPA 20 - COM TAMPA","UNID",2,65.69,131.38]
["1.22.3.9","FORNECIMENTO E INSTALAÇÃO DE COTOVELO RETO - 50X50MM CHAPA 20 COM TAMPA","UNID",6,50.07,300.42]
["1.22.3.10","FORNECIMENTO E INSTALAÇÃO DE CURVA HORIZONTAL 45º - 50X50 MM, COM TAMPA","UN",2,38.85,77.7]
["1.22.3.11","FORNECIMENTO E INSTALAÇÃO DE CURVA HORIZONTAL 90º - 150X100MM, COM TAMPA","UN",1,65.91,65.91]
["1.22.3.12","FORNECIMENTO E INSTALAÇÃO DE CURVA HORIZONTAL 90º - 100X50MM, COM TAMPA","UN",1,42.66,42.66]
["1.22.3.13","FORNECIMENTO E INSTALAÇÃO DE CURVA HORIZONTAL 90º - 50X50MM, COM TAMPA","UN",4,35.24,140.96]
["1.22.3.14","FORNECIMENTO E INSTALAÇÃO DE REDUÇÃO CONCÊNTRICA - 150X50 P/ 100X50MM, COM TAMPA","UN",1,56.84,56.84]
["1.22.3.15","FORNECIMENTO E INSTALAÇÃO DE REDUÇÃO CONCÊNTRICA - 100X50 P/ 50X50MM, COM TAMPA","UN",1,38.06,38.06]
["1.22.3.16","FORNECIMENTO E INSTALAÇÃO DE TÊ 90° HORIZONTAL - 50X50MM, COM TAMPA","UN",1,48.44,48.44]
["1.22.3.17","FORNECIMENTO E INSTALAÇÃO DE TERMINAL P/ ELETROCALHA 50X50MM CHAPA 20","UNID",6,10.8,64.8]
["1.22.3.18","FORNECIMENTO E INSTALAÇÃO DE SAÍDA LATERAL ELETROCALHA P/ ELETRODUTO","UN",68,5.38,365.84]
["1.22.3.19","FORNECIMENTO E INSTALAÇÃO DE TALA PLANA PERFURADA - 50MM","UN",270,10.69,2886.3]
["1.22.3.20","CAIXA DE PASSAGEM, EM PVC, DE 4\" X 4\", PARA ELETRODUTO FLEXIVEL CORRUGADO","UN    ",10,15.13,151.30000000000001]
["1.22.3.21","FORNECIMENTO E INSTALAÇÃO DE SUPORTE PARA CAIXA DE PISO 4X4\" - 2 MODULOS RJ45","UN",9,343.12,3088.08]
["1.22.3.22","TOMADA DE REDE RJ45 - FORNECIMENTO E INSTALAÇÃO. AF_11/2019 - BRANCA - 1 MÓDULO","UN",42,35.29,1482.18]
["1.22.3.23","FORNECIMENTO E INSTALAÇÃO DE TOMADA DE REDE RJ45 - BRANCA - 2 MÓDULOS","UNID",65,53.38,3469.7]
["1.22.3.24","ELETRODUTO DE AÇO GALVANIZADO, CLASSE LEVE, DN 20 MM (3/4\u0092\u0092), APARENTE, INSTALADO EM PAREDE - FORNECIMENTO E INSTALAÇÃO. AF_11/2016_P","M",264,25.27,6671.28]
["1.22.3.25","FORNECIMENTO E INSTALAÇÃO DE ABRAÇADEIRA DE AÇO, TIPO D, 3/4\", COM CUNHA","UN",286,6.19,1770.34]
["1.22.3.26","LUVA DE EMENDA PARA ELETRODUTO, AÇO GALVANIZADO, DN 20 MM (3/4''), APARENTE, INSTALADA EM PAREDE - FORNECIMENTO E INSTALAÇÃO. AF_11/2016_P","UN",88,9.93,873.84]
["1.22.3.27","ELETRODUTO DE AÇO GALVANIZADO, CLASSE LEVE, DN 25 MM (1\u0092\u0092), APARENTE, INSTALADO EM PAREDE - FORNECIMENTO E INSTALAÇÃO. AF_11/2016_P","M",47,29.69,1395.43]
["1.22.3.28","FORNECIMENTO E INSTALAÇÃO DE ABRAÇADEIRA DE AÇO, TIPO D, 1\", COM CUNHA","UN",49,6.33,310.17]
["1.22.3.29","LUVA DE EMENDA PARA ELETRODUTO, AÇO GALVANIZADO, DN 25 MM (1''), APARENTE, INSTALADA EM PAREDE - FORNECIMENTO E INSTALAÇÃO. AF_11/2016_P","UN",16,11.16,178.56]
["1.22.3.30","ELETRODUTO RÍGIDO ROSCÁVEL, PVC, DN 25 MM (3/4\"), PARA CIRCUITOS TERMINAIS, INSTALADO EM PAREDE - FORNECIMENTO E INSTALAÇÃO. AF_12/2015","M",44,10.64,468.16]
["1.22.3.31","FORNECIMENTO E INSTALAÇÃO DE ABRAÇADEIRA DE AÇO, TIPO D, 3/4\", COM CUNHA","UN",47,6.19,290.93]
["1.22.3.32","FORNECIMENTO E INSTALAÇÃO DE BUCHA DE NYLON SEM ABA S6, COM PARAFUSO DE 4,20 X 40 MM EM ACO ZINCADO COM ROSCA SOBERBA, CABECA CHATA E FENDA PHILLIPS","UN    ",335,4.75,1591.25]
["1.22.3.33","FORNECIMENTO E INSTALAÇÃO DE ARRUELA LISA GALVANIZADA 1/4\"","UN",1534,0.5,767]
["1.22.3.34","FORNECIMENTO E INSTALAÇÃO DE PARAFUSO EM ACO GALVANIZADO, TIPO MAQUINA, SEXTAVADO, SEM PORCA, DIAMETRO 1/2\", COMPRIMENTO 2\"","UN    ",608,10.66,6481.28]
["1.22.3.35","FORNECIMENTO E INSTALAÇÃO DE PORCA ZINCADA, SEXTAVADA, DIAMETRO 1/4\"","UN    ",926,0.69,638.94000000000005]
["1.22.3.36","CONDULETE DE ALUMÍNIO, TIPO X, PARA ELETRODUTO DE AÇO GALVANIZADO DN 20 MM (3/4''), APARENTE - FORNECIMENTO E INSTALAÇÃO. AF_11/2016_P","UN",56,36.119999999999997,2022.72]
["1.22.3.37","FORNECIMENTO E INSTALAÇÃO DE TAMPÃO PARA CONDULETE - 3/4\"","UNID",168,2.5299999999999998,425.04]
["1.22.3.38","FORNECIMENTO E INSTALAÇÃO DE UNIDUT PARA CONDULETE 3/4","UNID",168,4.1500000000000004,697.2]
["1.22.3.39","ELETRODUTO FLEXÍVEL CORRUGADO, PVC, DN 25 MM (3/4\"), PARA CIRCUITOS TERMINAIS, INSTALADO EM LAJE - FORNECIMENTO E INSTALAÇÃO. AF_12/2015","M",287,5.64,1618.68]
["1.22.3.40","ELETRODUTO FLEXÍVEL CORRUGADO, PVC, DN 32 MM (1\"), PARA CIRCUITOS TERMINAIS, INSTALADO EM LAJE - FORNECIMENTO E INSTALAÇÃO. AF_12/2015","M",13,7.78,101.14]
["1.22.3.41","ELETRODUTO FLEXÍVEL CORRUGADO REFORÇADO, PVC, DN 25 MM (3/4\"), PARA CIRCUITOS TERMINAIS, INSTALADO EM LAJE - FORNECIMENTO E INSTALAÇÃO. AF_12/2015","M",51,6.55,334.05]
["1.22.3.42","ELETRODUTO FLEXÍVEL CORRUGADO REFORÇADO, PVC, DN 32 MM (1\"), PARA CIRCUITOS TERMINAIS, INSTALADO EM LAJE - FORNECIMENTO E INSTALAÇÃO. AF_12/2015","M",3,9.93,29.79]
["1.22.3.43","ELETRODUTO FLEXÍVEL CORRUGADO, PEAD, DN 63 (2\")  - FORNECIMENTO E INSTALAÇÃO. AF_04/2016","M",50,11.7,585]
["1.22.3.44","CAIXA ENTERRADA ELÉTRICA RETANGULAR, EM ALVENARIA COM TIJOLOS CERÂMICOS MACIÇOS, FUNDO COM BRITA, DIMENSÕES INTERNAS: 0,4X0,4X0,4 M. AF_05/2018","UN",12,274.64999999999998,3295.8]
["1.22.3.45","ESCAVAÇÃO MANUAL DE VALA COM PROFUNDIDADE MENOR OU IGUAL A 1,30 M. AF_03/2016","M3",15.6,76.989999999999995,1201.04]
["1.22.3.46","REATERRO MANUAL DE VALAS COM COMPACTAÇÃO MECANIZADA. AF_04/2016","M3",15.6,26,405.6]
["1.23","CLIMATIZAÇÃO",null,null,null,{"$f":"SUBTOTAL(9,F492:F524)","v":249762.82000000007}]
["1.23.1","EQUIPAMENTOS",null,null,null,{"$f":"SUBTOTAL(9,F493:F501)","v":40850.58}]
["1.23.1.1","AR CONDICIONADO SPLIT INVERTER, HI-WALL (PAREDE), 18000 BTU/H, CICLO FRIO, 60HZ, CLASSIFICACAO A (SELO PROCEL), GAS HFC, CONTROLE S/FIO (SOMENTE INSTALAÇÃO)","UN    ",2,265.29000000000002,{"$f":"ROUND(D493*E493,2)","v":530.58000000000004}]
["1.23.1.2","AR CONDICIONADO SPLIT ON/OFF, CASSETE (TETO), FRIO 4 VIAS 36000 BTUS/H, CLASSIFICACAO ENERGETICA C - SELO PROCEL, GAS HFC, CONTROLE S/ FIO (SOMENTE INSTALAÇÃO)","UN    ",35,276.29000000000002,{"$f":"ROUND(D494*E494,2)","v":9670.15}]
["1.23.1.3","AR CONDICIONADO SPLIT ON/OFF, CASSETE (TETO), FRIO 4 VIAS 48000 BTUS/H, CLASSIFICACAO ENERGETICA C - SELO PROCEL, GAS HFC, CONTROLE S/ FIO (SOMENTE INSTALAÇÃO)","UN    ",14,368.41,5157.74]
["1.23.1.4","AR CONDICIONADO SPLIT INVERTER, HI-WALL (PAREDE), 12000 BTU/H, CICLO FRIO, 60HZ, CLASSIFICACAO A (SELO PROCEL), GAS HFC, CONTROLE S/FIO (DESINSTALAÇÃO E INSTALAÇÃO)","UN    ",11,530.6,5836.6]
["1.23.1.5","AR CONDICIONADO SPLIT INVERTER, HI-WALL (PAREDE), 18000 BTU/H, CICLO FRIO, 60HZ, CLASSIFICACAO A (SELO PROCEL), GAS HFC, CONTROLE S/FIO (DESINSTALAÇÃO E INSTALAÇÃO)","UN    ",15,530.6,7959]
["1.23.1.6","AR CONDICIONADO SPLIT INVERTER, HI-WALL (PAREDE), 24000 BTU/H, CICLO FRIO, 60HZ, CLASSIFICACAO A - SELO PROCEL, GAS HFC, CONTROLE S/FIO (DESINSTALAÇÃO E INSTALAÇÃO)","UN    ",6,276.29000000000002,1657.74]
["1.23.1.7","AR CONDICIONADO SPLIT ON/OFF, CASSETE (TETO), FRIO 4 VIAS 24000 BTUS/H, CLASSIFICACAO ENERGETICA C - SELO PROCEL, GAS HFC, CONTROLE S/ FIO  (DESINSTALAÇÃO E INSTALAÇÃO)","UN    ",3,276.29000000000002,828.87]
["1.23.1.8","AR CONDICIONADO SPLIT ON/OFF, CASSETE (TETO), FRIO 4 VIAS 36000 BTUS/H, CLASSIFICACAO ENERGETICA C - SELO PROCEL, GAS HFC, CONTROLE S/ FIO  (DESINSTALAÇÃO E INSTALAÇÃO)","UN    ",20,276.29000000000002,5525.8]
["1.23.1.9","AR CONDICIONADO SPLIT ON/OFF, CASSETE (TETO), FRIO 4 VIAS 60000 BTUS/H, CLASSIFICACAO ENERGETICA C - SELO PROCEL, GAS HFC, CONTROLE S/ FIO  (DESINSTALAÇÃO E INSTALAÇÃO)","UN    ",10,368.41,3684.1]
["1.23.2","INFRAESTRUTURA",null,null,null,{"$f":"SUBTOTAL(9,F503:F524)","v":208912.24000000005}]
["1.23.2.1","FORNECIMENTO E INSTALAÇÃO DE TUBO DE COBRE FLEXIVEL, D = 1/4 \", E = 0,79 MM, PARA AR-CONDICIONADO","M     ",284,23.61,{"$f":"ROUND(D503*E503,2)","v":6705.24}]
["1.23.2.2","FORNECIMENTO E INSTALAÇÃO DE TUBO DE COBRE FLEXIVEL, D = 3/8 \", E = 0,79 MM, PARA AR-CONDICIONADO","M     ",1204,39.42,47461.68]
["1.23.2.3","FORNECIMENTO E INSTALAÇÃO DE TUBO DE COBRE FLEXIVEL, D = 1/2 \", E = 0,79 MM, PARA AR-CONDICIONADO","M     ",284,46.86,13308.24]
["1.23.2.4","FORNECIMENTO E INSTALAÇÃO DE TUBO DE COBRE FLEXIVEL, D = 5/8 \", E = 0,79 MM, PARA AR-CONDICIONADO","M     ",930,53.63,49875.9]
["1.23.2.5","FORNECIMENTO E INSTALAÇÃO DE TUBO DE COBRE FLEXIVEL, D = 3/4 \", E = 0,79 MM, PARA AR-CONDICIONADO","M     ",273,62.58,17084.34]
["1.23.2.6","FORNECIMENTO E INSTALAÇÃO DE CURVA DE COBRE FOSFOROSO, DN 3/4\"","UN",21,17.170000000000002,360.57]
["1.23.2.7","FORNECIMENTO E INSTALAÇÃO DE TUBO DE ESPUMA DE POLIETILENO EXPANDIDO FLEXIVEL PARA ISOLAMENTO TERMICO DE TUBULACAO DE AR CONDICIONADO, AGUA QUENTE,  DN 1/4\", E= 10 MM","M     ",284,13.63,3870.92]
["1.23.2.8","FORNECIMENTO E INSTALAÇÃO DE TUBO DE ESPUMA DE POLIETILENO EXPANDIDO FLEXIVEL PARA ISOLAMENTO TERMICO DE TUBULACAO DE AR CONDICIONADO, AGUA QUENTE,  DN 3/8\", E= 10 MM","M     ",1204,13.86,16687.439999999999]
["1.23.2.9","FORNECIMENTO E INSTALAÇÃO DE TUBO DE ESPUMA DE POLIETILENO EXPANDIDO FLEXIVEL PARA ISOLAMENTO TERMICO DE TUBULACAO DE AR CONDICIONADO, AGUA QUENTE,  DN 1/2\", E= 10 MM","M     ",284,13.9,3947.6]
["1.23.2.10","FORNECIMENTO E INSTALAÇÃO DE TUBO DE ESPUMA DE POLIETILENO EXPANDIDO FLEXIVEL PARA ISOLAMENTO TERMICO DE TUBULACAO DE AR CONDICIONADO, AGUA QUENTE,  DN 5/8\", E= 10 MM","M     ",930,14,13020]
["1.23.2.11","FORNECIMENTO E INSTALAÇÃO DE TUBO DE ESPUMA DE POLIETILENO EXPANDIDO FLEXIVEL PARA ISOLAMENTO TERMICO DE TUBULACAO DE AR CONDICIONADO, AGUA QUENTE,  DN 5/8\", E= 10 MM","M     ",273,14.3,3903.9]
["1.23.2.12","FORNECIMENTO E INSTALAÇÃO DE CABO DE COBRE PP 2X2,5MM²","M     ",45,6.83,307.35000000000002]
["1.23.2.13","FORNECIMENTO E INSTALAÇÃO DE CABO DE COBRE PP 2X4,0MM²","M     ",130,8.6,1118]
["1.23.2.14","FORNECIMENTO E INSTALAÇÃO DE CABO DE COBRE PP 2X6,0MM²","M     ",38,10.24,389.12]
["1.23.2.15","FORNECIMENTO E INSTALAÇÃO DE CABO DE COBRE PP 4X2,5MM²","M     ",1490,7.48,11145.2]
["1.23.2.16","FORNECIMENTO E INSTALAÇÃO DE CABO DE COBRE PP 2X1,5MM²","M     ",1490,5.53,8239.7000000000007]
["1.23.2.17","DISJUNTOR BIPOLAR TIPO DIN, CORRENTE NOMINAL DE 16A - FORNECIMENTO E INSTALAÇÃO. AF_04/2016","UN",28,58.8,1646.4]
["1.23.2.18","DISJUNTOR BIPOLAR TIPO DIN, CORRENTE NOMINAL DE 20A - FORNECIMENTO E INSTALAÇÃO. AF_04/2016","UN",28,61,1708]
["1.23.2.19","DISJUNTOR BIPOLAR TIPO DIN, CORRENTE NOMINAL DE 25A - FORNECIMENTO E INSTALAÇÃO. AF_04/2016","UN",28,61,1708]
["1.23.2.20","DISJUNTOR TRIPOLAR TIPO DIN, CORRENTE NOMINAL DE 25A - FORNECIMENTO E INSTALAÇÃO. AF_04/2016","UN",28,76.97,2155.16]
["1.23.2.21","Fornecimento e Instalação de Mão francesa reforçada, galvanizada a fogo, L= 900mm","UND",79,38.86,3069.94]
["1.23.2.22","SUPORTE MÃO FRANCESA EM ACO, ABAS IGUAIS 40 CM, CAPACIDADE MINIMA 70 KG, BRANCO - FORNECIMENTO E INSTALAÇÃO. AF_01/2020","UN",37,32.42,1199.54]
["1.24","INFRAESTRUTURA PARA INSTALAÇÃO DE ÁUDIO E VÍDEO",null,null,null,0]
["1.25","INSTALAÇÕES HIDROSANITÁRIAS",null,null,null,{"$f":"SUBTOTAL(9,F527:F634)","v":248471.04000000007}]
["1.25.1","INSTALAÇÕES HIDRÁULICAS ",null,null,null,{"$f":"SUBTOTAL(9,F528:F601)","v":169569.23000000007}]
["1.25.1.1","RASGO EM CONTRAPISO PARA RAMAIS/ DISTRIBUIÇÃO COM DIÂMETROS MENORES OU IGUAIS A 40 MM. AF_05/2015","M",447.23,22.93,{"$f":"ROUND(D528*E528,2)","v":10254.98}]
["1.25.1.2","RASGO EM ALVENARIA PARA RAMAIS/ DISTRIBUIÇÃO COM DIÂMETROS MAIORES QUE 40 MM E MENORES OU IGUAIS A 75 MM. AF_05/2015","M",458.47,13.18,{"$f":"ROUND(D529*E529,2)","v":6042.63}]
["1.25.1.3","MASSA ÚNICA, PARA RECEBIMENTO DE PINTURA, EM ARGAMASSA TRAÇO 1:2:8, PREPARO MANUAL, APLICADA MANUALMENTE EM FACES INTERNAS DE PAREDES, ESPESSURA DE 10MM, COM EXECUÇÃO DE TALISCAS. AF_06/2014","M2",113.49350000000001,23.1,2621.7]
["1.25.1.4","RESERVATÓRIO METÁLICO TIPO TAÇA (COLUNA CHEIA), COM CAPACIDADE PARA 30.000 LITROS DE ÁGUA - FORNECIMENTO E INSTALAÇÃO","UN",1,34620.129999999997,34620.129999999997]
["1.25.1.5","RESERVATÓRIO DE POLIETILENO, COM CAPACIDADE PARA 25.000 LITROS DE ÁGUA - FORNECIMENTO E INSTALAÇÃO","UN",1,12043.75,12043.75]
["1.25.1.6","TORNEIRA DE BOIA, ROSCÁVEL, 1 1/2\u0094 , FORNECIDA E INSTALADA EM RESERVAÇÃO DE ÁGUA. AF_06/2016","UN",1,102.59,102.59]
["1.25.1.7","CONJUNTO HIDRÁULICO PARA INSTALAÇÃO DE BOMBA EM AÇO ROSCÁVEL, DN SUCÇÃO 50 (2\u0094) E DN RECALQUE 40 (1 1/2\u0094), PARA EDIFICAÇÃO ENTRE 8 E 12 PAVIMENTOS \u0096 FORNECIMENTO E INSTALAÇÃO. AF_06/2016","UN",2,1486.98,2973.96]
["1.25.1.8","TUBO DE AÇO GALVANIZADO COM COSTURA, CLASSE MÉDIA, CONEXÃO RANHURADA, DN 50 (2\"), INSTALADO EM PRUMADAS - FORNECIMENTO E INSTALAÇÃO. AF_12/2015","M",16,73.78,1180.48]
["1.25.1.9","BOMBA CENTRIFUGA MOTOR ELETRICO TRIFASICO 5HP, DIAMETRO DE SUCCAO X ELEVACAO 2\" X 1 1/2\", DIAMETRO DO ROTOR 155 MM, HM/Q: 40 M / 20,40 M3/H A 46 M / 9,20 M3/H","UN    ",2,3262.07,6524.14]
["1.25.1.10","REGISTRO DE GAVETA BRUTO, LATÃO, ROSCÁVEL, 4\u0094, INSTALADO EM RESERVAÇÃO DE ÁGUA DE EDIFICAÇÃO QUE POSSUA RESERVATÓRIO DE FIBRA/FIBROCIMENTO \u0096 FORNECIMENTO E INSTALAÇÃO. AF_06/2016","UN",2,523.95000000000005,1047.9000000000001]
["1.25.1.11","REGISTRO DE GAVETA BRUTO, LATÃO, ROSCÁVEL, 2 1/2\u0094, INSTALADO EM RESERVAÇÃO DE ÁGUA DE EDIFICAÇÃO QUE POSSUA RESERVATÓRIO DE FIBRA/FIBROCIMENTO \u0096 FORNECIMENTO E INSTALAÇÃO. AF_06/2016","UN",8,228.79,1830.32]
["1.25.1.12","REGISTRO DE GAVETA BRUTO, LATÃO, ROSCÁVEL, 3\u0094, INSTALADO EM RESERVAÇÃO DE ÁGUA DE EDIFICAÇÃO QUE POSSUA RESERVATÓRIO DE FIBRA/FIBROCIMENTO \u0096 FORNECIMENTO E INSTALAÇÃO. AF_06/2016","UN",1,271.02,271.02]
["1.25.1.13","REGISTRO DE GAVETA BRUTO, LATÃO, ROSCÁVEL, 3/4\u0094, INSTALADO EM RESERVAÇÃO DE ÁGUA DE EDIFICAÇÃO QUE POSSUA RESERVATÓRIO DE FIBRA/FIBROCIMENTO \u0096 FORNECIMENTO E INSTALAÇÃO. AF_06/2016","UN",10,58.17,581.70000000000005]
["1.25.1.14","REGISTRO DE GAVETA BRUTO, LATÃO, ROSCÁVEL, 2\u0094, INSTALADO EM RESERVAÇÃO DE ÁGUA DE EDIFICAÇÃO QUE POSSUA RESERVATÓRIO DE FIBRA/FIBROCIMENTO \u0096 FORNECIMENTO E INSTALAÇÃO. AF_06/2016","UN",5,128.97,644.85]
["1.25.1.15","REGISTRO DE GAVETA BRUTO, LATÃO, ROSCÁVEL, 1 1/2\u0094, INSTALADO EM RESERVAÇÃO DE ÁGUA DE EDIFICAÇÃO QUE POSSUA RESERVATÓRIO DE FIBRA/FIBROCIMENTO \u0096 FORNECIMENTO E INSTALAÇÃO. AF_06/2016","UN",4,101.15,404.6]
["1.25.1.16","REGISTRO DE GAVETA BRUTO, LATÃO, ROSCÁVEL, 1 1/2\u0094, COM ACABAMENTO E CANOPLA CROMADOS, INSTALADO EM RESERVAÇÃO DE ÁGUA DE EDIFICAÇÃO QUE POSSUA RESERVATÓRIO DE FIBRA/FIBROCIMENTO \u0096 FORNECIMENTO E INSTALAÇÃO. AF_06/2016","UN",25,141.12,3528]
["1.25.1.17","REGISTRO DE GAVETA BRUTO, LATÃO, ROSCÁVEL, 3/4\", COM ACABAMENTO E CANOPLA CROMADOS. FORNECIDO E INSTALADO EM RAMAL DE ÁGUA. AF_12/2014","UN",15,71.819999999999993,1077.3]
["1.25.1.18","CAP PVC, SOLDAVEL, 25 MM, PARA AGUA FRIA PREDIAL","UN    ",5,1.1499999999999999,5.75]
["1.25.1.19","ENGATE FLEXÍVEL EM PLÁSTICO BRANCO, 1/2\" X 30CM - FORNECIMENTO E INSTALAÇÃO. AF_12/2013","UN",67,9.27,621.09]
["1.25.1.20","LUVA COM BUCHA DE LATÃO, PVC, SOLDÁVEL, DN 25MM X 3/4\u0094, INSTALADO EM RAMAL OU SUB-RAMAL DE ÁGUA - FORNECIMENTO E INSTALAÇÃO. AF_12/2014","UN",9,12.11,108.99]
["1.25.1.21","JOELHO DE REDUCAO, PVC SOLDAVEL, 90 GRAUS,  25 MM X 20 MM, PARA AGUA FRIA PREDIAL","UN    ",2,2.12,4.24]
["1.25.1.22","ADAPTADOR COM FLANGES LIVRES, PVC, SOLDÁVEL, DN 110 MM X 4 , INSTALADO EM RESERVAÇÃO DE ÁGUA DE EDIFICAÇÃO QUE POSSUA RESERVATÓRIO DE FIBRA/FIBROCIMENTO   FORNECIMENTO E INSTALAÇÃO. AF_06/2016","UN",2,344.89,689.78]
["1.25.1.23","ADAPTADOR COM FLANGES LIVRES, PVC, SOLDÁVEL, DN 85 MM X 3 , INSTALADO EM RESERVAÇÃO DE ÁGUA DE EDIFICAÇÃO QUE POSSUA RESERVATÓRIO DE FIBRA/FIBROCIMENTO   FORNECIMENTO E INSTALAÇÃO. AF_06/2016","UN",1,251.38,251.38]
["1.25.1.24","ADAPTADOR CURTO COM BOLSA E ROSCA PARA REGISTRO, PVC, SOLDÁVEL, DN 25MM X 3/4\u0094, INSTALADO EM RAMAL OU SUB-RAMAL DE ÁGUA - FORNECIMENTO E INSTALAÇÃO. AF_12/2014","UN",59,6.64,391.76]
["1.25.1.25","ADAPTADOR CURTO COM BOLSA E ROSCA PARA REGISTRO, PVC, SOLDÁVEL, DN 50MM X 1.1/2\u0094, INSTALADO EM PRUMADA DE ÁGUA - FORNECIMENTO E INSTALAÇÃO. AF_12/2014","UN",101,10.99,1109.99]
["1.25.1.26","ADAPTADOR CURTO COM BOLSA E ROSCA PARA REGISTRO, PVC, SOLDÁVEL, DN 60MM X 2\u0094, INSTALADO EM PRUMADA DE ÁGUA - FORNECIMENTO E INSTALAÇÃO. AF_12/2014","UN",10,19.93,199.3]
["1.25.1.27","ADAPTADOR CURTO COM BOLSA E ROSCA PARA REGISTRO, PVC, SOLDÁVEL, DN 75MM X 2.1/2\u0094, INSTALADO EM PRUMADA DE ÁGUA - FORNECIMENTO E INSTALAÇÃO. AF_12/2014","UN",16,29.39,470.24]
["1.25.1.28","ADAPTADOR CURTO COM BOLSA E ROSCA PARA REGISTRO, PVC, SOLDÁVEL, DN 85MM X 3\u0094, INSTALADO EM PRUMADA DE ÁGUA - FORNECIMENTO E INSTALAÇÃO. AF_12/2014","UN",2,41.81,83.62]
["1.25.1.29","ADAPTADOR CURTO COM BOLSA E ROSCA PARA REGISTRO, PVC, SOLDÁVEL, DN 110 MM X 4 , INSTALADO EM RESERVAÇÃO DE ÁGUA DE EDIFICAÇÃO QUE POSSUA RESERVATÓRIO DE FIBRA/FIBROCIMENTO   FORNECIMENTO E INSTALAÇÃO. AF_06/2016","UN",4,72.42,289.68]
["1.25.1.30","BUCHA DE REDUÇÃO PVC SOLDÁVEL, DN 60MM X 50MM PARA AGUA FRIA PREDIAL - FORNECIMENTO E INSTALAÇÃO","UN",39,24.52,956.28]
["1.25.1.31","BUCHA DE REDUÇÃO PVC SOLDÁVEL, DN 85MM X 75MM PARA AGUA FRIA PREDIAL - FORNECIMENTO E INSTALAÇÃO","UN",17,29.29,497.93]
["1.25.1.32","BUCHA DE REDUÇÃO PVC SOLDÁVEL, DN 50MM X 25MM PARA AGUA FRIA PREDIAL - FORNECIMENTO E INSTALAÇÃO","UN",72,13.94,1003.68]
["1.25.1.33","BUCHA DE REDUÇÃO PVC SOLDÁVEL, DN 75MM X 50MM PARA AGUA FRIA PREDIAL - FORNECIMENTO E INSTALAÇÃO","UN",17,30.02,510.34]
["1.25.1.34","BUCHA DE REDUÇÃO PVC SOLDÁVEL, DN 75MM X 60MM PARA AGUA FRIA PREDIAL - FORNECIMENTO E INSTALAÇÃO","UN",8,29.63,237.04]
["1.25.1.35","BUCHA DE REDUÇÃO PVC SOLDÁVEL, DN 110MM X 85MM PARA AGUA FRIA PREDIAL - FORNECIMENTO E INSTALAÇÃO","UN",6,91.4,548.4]
["1.25.1.36","CURVA 90 GRAUS, PVC, SOLDÁVEL, DN 25MM, INSTALADO EM RAMAL OU SUB-RAMAL DE ÁGUA - FORNECIMENTO E INSTALAÇÃO. AF_12/2014","UN",5,10.84,54.2]
["1.25.1.37","JOELHO 45 GRAUS, PVC, SOLDÁVEL, DN 25MM, INSTALADO EM RAMAL OU SUB-RAMAL DE ÁGUA - FORNECIMENTO E INSTALAÇÃO. AF_12/2014","UN",2,9.3699999999999992,18.739999999999998]
["1.25.1.38","JOELHO 90 GRAUS, PVC, SOLDÁVEL, DN 25MM, INSTALADO EM RAMAL OU SUB-RAMAL DE ÁGUA - FORNECIMENTO E INSTALAÇÃO. AF_12/2014","UN",62,8.66,536.91999999999996]
["1.25.1.39","JOELHO 90 GRAUS, PVC, SOLDÁVEL, DN 50MM, INSTALADO EM PRUMADA DE ÁGUA - FORNECIMENTO E INSTALAÇÃO. AF_12/2014","UN",110,13.65,1501.5]
["1.25.1.40","JOELHO 90 GRAUS, PVC, SOLDÁVEL, DN 60MM, INSTALADO EM PRUMADA DE ÁGUA - FORNECIMENTO E INSTALAÇÃO. AF_12/2014","UN",11,33.299999999999997,366.3]
["1.25.1.41","JOELHO 90 GRAUS, PVC, SOLDÁVEL, DN 75MM, INSTALADO EM PRUMADA DE ÁGUA - FORNECIMENTO E INSTALAÇÃO. AF_12/2014","UN",42,100.67,4228.1400000000003]
["1.25.1.42","JOELHO 90 GRAUS, PVC, SOLDÁVEL, DN 85MM, INSTALADO EM PRUMADA DE ÁGUA - FORNECIMENTO E INSTALAÇÃO. AF_12/2014","UN",12,118.59,1423.08]
["1.25.1.43","JOELHO 90 GRAUS, PVC, SOLDÁVEL, DN 110 MM INSTALADO EM RESERVAÇÃO DE ÁGUA DE EDIFICAÇÃO QUE POSSUA RESERVATÓRIO DE FIBRA/FIBROCIMENTO   FORNECIMENTO E INSTALAÇÃO. AF_06/2016","UN",7,249.84,1748.88]
["1.25.1.44","TUBO, PVC, SOLDÁVEL, DN 25MM, INSTALADO EM RAMAL DE DISTRIBUIÇÃO DE ÁGUA - FORNECIMENTO E INSTALAÇÃO. AF_12/2014","M",338.01,8.61,2910.27]
["1.25.1.45","TUBO, PVC, SOLDÁVEL, DN 50MM, INSTALADO EM PRUMADA DE ÁGUA - FORNECIMENTO E INSTALAÇÃO. AF_12/2014","M",592.13,15.01,8887.8700000000008]
["1.25.1.46","TUBO, PVC, SOLDÁVEL, DN 60MM, INSTALADO EM PRUMADA DE ÁGUA - FORNECIMENTO E INSTALAÇÃO. AF_12/2014","M",56.24,24.69,1388.57]
["1.25.1.47","TUBO, PVC, SOLDÁVEL, DN 75MM, INSTALADO EM PRUMADA DE ÁGUA - FORNECIMENTO E INSTALAÇÃO. AF_12/2014","M",213.21,40.69,8675.51]
["1.25.1.48","TUBO, PVC, SOLDÁVEL, DN 85MM, INSTALADO EM PRUMADA DE ÁGUA - FORNECIMENTO E INSTALAÇÃO. AF_12/2014","M",119.91000000000001,50.63,6071.04]
["1.25.1.49","TUBO, PVC, SOLDÁVEL, DN 110 MM, INSTALADO EM RESERVAÇÃO DE ÁGUA DE EDIFICAÇÃO QUE POSSUA RESERVATÓRIO DE FIBRA/FIBROCIMENTO   FORNECIMENTO E INSTALAÇÃO. AF_06/2016","M",192.11,92.47,17764.41]
["1.25.1.50","TE, PVC, SOLDÁVEL, DN 25MM, INSTALADO EM PRUMADA DE ÁGUA - FORNECIMENTO E INSTALAÇÃO. AF_12/2014","UN",9,6.79,61.11]
["1.25.1.51","TE, PVC, SOLDÁVEL, DN 50MM, INSTALADO EM PRUMADA DE ÁGUA - FORNECIMENTO E INSTALAÇÃO. AF_12/2014","UN",12,21.22,254.64]
["1.25.1.52","TE, PVC, SOLDÁVEL, DN 60MM, INSTALADO EM PRUMADA DE ÁGUA - FORNECIMENTO E INSTALAÇÃO. AF_12/2014","UN",20,42.96,859.2]
["1.25.1.53","TE, PVC, SOLDÁVEL, DN 75MM, INSTALADO EM PRUMADA DE ÁGUA - FORNECIMENTO E INSTALAÇÃO. AF_12/2014","UN",10,78.16,781.6]
["1.25.1.54","TE, PVC, SOLDÁVEL, DN 85MM, INSTALADO EM PRUMADA DE ÁGUA - FORNECIMENTO E INSTALAÇÃO. AF_12/2014","UN",8,117.42,939.36]
["1.25.1.55","TÊ, PVC, SOLDÁVEL, DN 110 MM INSTALADO EM RESERVAÇÃO DE ÁGUA DE EDIFICAÇÃO QUE POSSUA RESERVATÓRIO DE FIBRA/FIBROCIMENTO   FORNECIMENTO E INSTALAÇÃO. AF_06/2016","UN",4,208.15,832.6]
["1.25.1.56","TÊ DE REDUÇÃO, PVC, SOLDÁVEL, DN 50MM X 25MM, INSTALADO EM PRUMADA DE ÁGUA - FORNECIMENTO E INSTALAÇÃO. AF_12/2014","UN",35,20.13,704.55]
["1.25.1.57","TE DE REDUÇÃO, PVC, SOLDÁVEL, DN 75MM X 50MM, INSTALADO EM PRUMADA DE ÁGUA - FORNECIMENTO E INSTALAÇÃO. AF_12/2014","UN",48,68.28,3277.44]
["1.25.1.58","TE DE REDUÇÃO, PVC, SOLDÁVEL, DN 85MM X 60MM, INSTALADO EM PRUMADA DE ÁGUA - FORNECIMENTO E INSTALAÇÃO. AF_12/2014","UN",7,97.21,680.47]
["1.25.1.59","JOELHO 90 GRAUS COM BUCHA DE LATÃO, PVC, SOLDÁVEL, DN 25MM, X 3/4\u0094 INSTALADO EM RAMAL OU SUB-RAMAL DE ÁGUA - FORNECIMENTO E INSTALAÇÃO. AF_12/2014","UN",31,14.73,456.63]
["1.25.1.60","JOELHO 90 GRAUS COM BUCHA DE LATÃO, PVC, SOLDÁVEL, DN 25MM, X 1/2\u0094 INSTALADO EM RAMAL OU SUB-RAMAL DE ÁGUA - FORNECIMENTO E INSTALAÇÃO. AF_12/2014","UN",53,13.68,725.04]
["1.25.1.61","TÊ COM BUCHA DE LATÃO NA BOLSA CENTRAL, PVC, SOLDÁVEL, DN 25MM X 1/2\u0094, INSTALADO EM RAMAL OU SUB-RAMAL DE ÁGUA - FORNECIMENTO E INSTALAÇÃO. AF_12/2014","UN",31,19.149999999999999,593.65]
["1.25.1.62","TÊ COM BUCHA DE LATÃO NA BOLSA CENTRAL, PVC, SOLDÁVEL, DN 25MM X 3/4\u0094, INSTALADO EM RAMAL OU SUB-RAMAL DE ÁGUA - FORNECIMENTO E INSTALAÇÃO. AF_03/2015","UN",2,21.2,42.4]
["1.25.1.63","TUBO PVC, SERIE NORMAL, ESGOTO PREDIAL, DN 100 MM, FORNECIDO E INSTALADO EM RAMAL DE DESCARGA OU RAMAL DE ESGOTO SANITÁRIO. AF_12/2014","M",7.5,54.86,411.45]
["1.25.1.64","LASTRO DE CONCRETO MAGRO, APLICADO EM BLOCOS DE COROAMENTO OU SAPATAS. AF_08/2017","M3",5.5500000000000008E-2,550.88,30.57]
["1.25.1.65","APLICACAO DE TINTA A BASE DE EPOXI SOBRE PISO","M2",2.3250000000000002,57.48,{"$f":"ROUND(D592*E592,2)","v":133.63999999999999}]
["1.25.1.66","REMOÇÃO DE TUBULAÇÕES (TUBOS E CONEXÕES) DE ÁGUA FRIA, DE FORMA MANUAL, SEM REAPROVEITAMENTO. AF_12/2017","M",37,0.44,16.28]
["1.25.1.67","CAIXA ENTERRADA HIDRÁULICA RETANGULAR EM ALVENARIA COM TIJOLOS CERÂMICOS MACIÇOS, DIMENSÕES INTERNAS: 0,3X0,3X0,3 M PARA REDE DE ESGOTO. AF_05/2018","UN",2,188.19,376.38]
["1.25.1.68","PORTA DE FERRO, DE ABRIR, TIPO GRADE COM CHAPA, COM GUARNIÇÕES. AF_12/2019","M2",10,586.48,5864.8]
["1.25.1.69","ALAMBRADO EM MOURÕES DE CONCRETO, COM TELA DE ARAME GALVANIZADO (INCLUSIVE MURETA EM CONCRETO). AF_05/2018","M",16.2,136.15,2205.63]
["1.25.1.70","ESCAVAÇÃO MANUAL DE VALA COM PROFUNDIDADE MENOR OU IGUAL A 1,30 M. AF_03/2016","M3",0.8,76.989999999999995,61.59]
["1.25.1.71","REATERRO MANUAL APILOADO COM SOQUETE. AF_10/2017","M3",0.41599999999999998,46.69,19.420000000000002]
["1.25.1.72","CAIXA ENTERRADA HIDRÁULICA RETANGULAR EM ALVENARIA COM TIJOLOS CERÂMICOS MACIÇOS, DIMENSÕES INTERNAS: 0,8X0,8X0,6 M PARA REDE DE ESGOTO. AF_05/2018","UN",1,816.23,816.23]
["1.25.1.73","LUVA, PVC, SOLDÁVEL, DN 85MM, INSTALADO EM PRUMADA DE ÁGUA - FORNECIMENTO E INSTALAÇÃO. AF_12/2014","UN",2,59.57,119.14]
["1.25.1.74","REMOÇÃO DE TUBULAÇÕES (TUBOS E CONEXÕES) DE ÁGUA FRIA, DE FORMA MANUAL, SEM REAPROVEITAMENTO. AF_12/2017","M",1,0.44,0.44]
["1.25.2","INSTALAÇÕES SANITÁRIAS",null,null,null,{"$f":"SUBTOTAL(9,F603:F634)","v":78901.81}]
["1.25.2.1","ESCAVAÇÃO MANUAL DE VALA COM PROFUNDIDADE MENOR OU IGUAL A 1,30 M. AF_03/2016","M3",33.4,76.989999999999995,{"$f":"ROUND(D603*E603,2)","v":2571.4699999999998}]
["1.25.2.2","REATERRO MANUAL APILOADO COM SOQUETE. AF_10/2017","M3",30,46.69,1400.7]
["1.25.2.3","RASGO EM CONTRAPISO PARA RAMAIS/ DISTRIBUIÇÃO COM DIÂMETROS MAIORES QUE 40 MM E MENORES OU IGUAIS A 75 MM. AF_05/2015","M",61.83,24.48,1513.6]
["1.25.2.4","RASGO EM CONTRAPISO PARA RAMAIS/ DISTRIBUIÇÃO COM DIÂMETROS MAIORES QUE 75 MM. AF_05/2015","M",407.36,26.6,10835.78]
["1.25.2.5","LASTRO DE CONCRETO MAGRO, APLICADO EM PISOS OU RADIERS, ESPESSURA DE 5 CM. AF_07/2016","M2",94.92,26.38,2503.9899999999998]
["1.25.2.6","CAIXA DE GORDURA DUPLA (CAPACIDADE: 126 L), RETANGULAR, EM ALVENARIA COM TIJOLOS CERÂMICOS MACIÇOS, DIMENSÕES INTERNAS = 0,4X0,7 M, ALTURA INTERNA = 0,8 M. AF_05/2018","UN",3,698.46,2095.38]
["1.25.2.7","CAIXA ENTERRADA HIDRÁULICA RETANGULAR EM ALVENARIA COM TIJOLOS CERÂMICOS MACIÇOS, DIMENSÕES INTERNAS: 0,6X0,6X0,6 M PARA REDE DE ESGOTO. AF_05/2018","UN",23,595.21,13689.83]
["1.25.2.8","CURVA CURTA 90 GRAUS, PVC, SERIE NORMAL, ESGOTO PREDIAL, DN 40 MM, JUNTA SOLDÁVEL, FORNECIDO E INSTALADO EM RAMAL DE DESCARGA OU RAMAL DE ESGOTO SANITÁRIO. AF_12/2014","UN",58,10.42,604.36]
["1.25.2.9","JOELHO 45 GRAUS, PVC, SERIE NORMAL, ESGOTO PREDIAL, DN 100 MM, JUNTA ELÁSTICA, FORNECIDO E INSTALADO EM RAMAL DE DESCARGA OU RAMAL DE ESGOTO SANITÁRIO. AF_12/2014","UN",17,24.15,410.55]
["1.25.2.10","JOELHO 45 GRAUS, PVC, SERIE NORMAL, ESGOTO PREDIAL, DN 40 MM, JUNTA SOLDÁVEL, FORNECIDO E INSTALADO EM RAMAL DE DESCARGA OU RAMAL DE ESGOTO SANITÁRIO. AF_12/2014","UN",2,7.57,15.14]
["1.25.2.11","JOELHO 45 GRAUS, PVC, SERIE NORMAL, ESGOTO PREDIAL, DN 50 MM, JUNTA ELÁSTICA, FORNECIDO E INSTALADO EM RAMAL DE DESCARGA OU RAMAL DE ESGOTO SANITÁRIO. AF_12/2014","UN",31,11.59,359.29]
["1.25.2.12","JOELHO 45 GRAUS, PVC, SERIE NORMAL, ESGOTO PREDIAL, DN 75 MM, JUNTA ELÁSTICA, FORNECIDO E INSTALADO EM RAMAL DE DESCARGA OU RAMAL DE ESGOTO SANITÁRIO. AF_12/2014","UN",11,19.34,212.74]
["1.25.2.13","JOELHO 90 GRAUS, PVC, SERIE NORMAL, ESGOTO PREDIAL, DN 100 MM, JUNTA ELÁSTICA, FORNECIDO E INSTALADO EM RAMAL DE DESCARGA OU RAMAL DE ESGOTO SANITÁRIO. AF_12/2014","UN",46,24.2,1113.2]
["1.25.2.14","JOELHO 90 GRAUS, PVC, SERIE NORMAL, ESGOTO PREDIAL, DN 40 MM, JUNTA SOLDÁVEL, FORNECIDO E INSTALADO EM RAMAL DE DESCARGA OU RAMAL DE ESGOTO SANITÁRIO. AF_12/2014","UN",60,9.86,591.6]
["1.25.2.15","JOELHO 90 GRAUS, PVC, SERIE NORMAL, ESGOTO PREDIAL, DN 50 MM, JUNTA ELÁSTICA, FORNECIDO E INSTALADO EM RAMAL DE DESCARGA OU RAMAL DE ESGOTO SANITÁRIO. AF_12/2014","UN",88,11.04,971.52]
["1.25.2.16","JOELHO 90 GRAUS, PVC, SERIE NORMAL, ESGOTO PREDIAL, DN 75 MM, JUNTA ELÁSTICA, FORNECIDO E INSTALADO EM RAMAL DE DESCARGA OU RAMAL DE ESGOTO SANITÁRIO. AF_12/2014","UN",36,18.57,668.52]
["1.25.2.17","REDUCAO EXCENTRICA PVC RÍGIDO SOLDÁVEL P/ ESGOTO PREDIAL DN 100 X 50MM - FORNECIMENTO E INSTALAÇÃO","UN",32,24.24,775.68]
["1.25.2.18","JUNÇÃO SIMPLES, PVC, SERIE R, ÁGUA PLUVIAL, DN 100 X 75 MM, JUNTA ELÁSTICA, FORNECIDO E INSTALADO EM CONDUTORES VERTICAIS DE ÁGUAS PLUVIAIS. AF_12/2014","UN",11,65.53,720.83]
["1.25.2.19","JUNÇÃO SIMPLES, PVC, SERIE NORMAL, ESGOTO PREDIAL, DN 100 X 100 MM, JUNTA ELÁSTICA, FORNECIDO E INSTALADO EM RAMAL DE DESCARGA OU RAMAL DE ESGOTO SANITÁRIO. AF_12/2014","UN",65,45.48,2956.2]
["1.25.2.20","JUNÇÃO SIMPLES, PVC, SERIE NORMAL, ESGOTO PREDIAL, DN 50 X 50 MM, JUNTA ELÁSTICA, FORNECIDO E INSTALADO EM RAMAL DE DESCARGA OU RAMAL DE ESGOTO SANITÁRIO. AF_12/2014","UN",14,21.58,302.12]
["1.25.2.21","REDUÇÃO EXCÊNTRICA, PVC, SERIE R, ÁGUA PLUVIAL, DN 75 X 50 MM, JUNTA ELÁSTICA, FORNECIDO E INSTALADO EM CONDUTORES VERTICAIS DE ÁGUAS PLUVIAIS. AF_12/2014","UN",28,13.5,378]
["1.25.2.22","JUNÇÃO SIMPLES, PVC, SERIE NORMAL, ESGOTO PREDIAL, DN 75 X 75 MM, JUNTA ELÁSTICA, FORNECIDO E INSTALADO EM RAMAL DE DESCARGA OU RAMAL DE ESGOTO SANITÁRIO. AF_12/2014","UN",10,34.61,346.1]
["1.25.2.23","LUVA DE CORRER, PVC, SERIE NORMAL, ESGOTO PREDIAL, DN 100 MM, JUNTA ELÁSTICA, FORNECIDO E INSTALADO EM RAMAL DE DESCARGA OU RAMAL DE ESGOTO SANITÁRIO. AF_12/2014","UN",48,28.29,1357.92]
["1.25.2.24","REDUÇÃO EXCÊNTRICA, PVC, SERIE R, ÁGUA PLUVIAL, DN 100 X 75 MM, JUNTA ELÁSTICA, FORNECIDO E INSTALADO EM RAMAL DE ENCAMINHAMENTO. AF_12/2014","UN",3,26.35,79.05]
["1.25.2.25","TUBO PVC, SERIE NORMAL, ESGOTO PREDIAL, DN 100 MM, FORNECIDO E INSTALADO EM RAMAL DE DESCARGA OU RAMAL DE ESGOTO SANITÁRIO. AF_12/2014","M",381,54.86,20901.66]
["1.25.2.26","TUBO PVC, SERIE NORMAL, ESGOTO PREDIAL, DN 50 MM, FORNECIDO E INSTALADO EM RAMAL DE DESCARGA OU RAMAL DE ESGOTO SANITÁRIO. AF_12/2014","M",193.18,27.49,5310.52]
["1.25.2.27","TUBO PVC, SERIE NORMAL, ESGOTO PREDIAL, DN 75 MM, FORNECIDO E INSTALADO EM RAMAL DE DESCARGA OU RAMAL DE ESGOTO SANITÁRIO. AF_12/2014","M",61.83,42.41,2622.21]
["1.25.2.28","TUBO PVC, SERIE NORMAL, ESGOTO PREDIAL, DN 40 MM, FORNECIDO E INSTALADO EM RAMAL DE DESCARGA OU RAMAL DE ESGOTO SANITÁRIO. AF_12/2014","M",57.199999999999996,18.03,1031.32]
["1.25.2.29","TE, PVC, SERIE NORMAL, ESGOTO PREDIAL, DN 50 X 50 MM, JUNTA ELÁSTICA, FORNECIDO E INSTALADO EM PRUMADA DE ESGOTO SANITÁRIO OU VENTILAÇÃO. AF_12/2014","UN",55,15.29,840.95]
["1.25.2.30","CAIXA SIFONADA, PVC, DN 100 X 100 X 50 MM, JUNTA ELÁSTICA, FORNECIDA E INSTALADA EM RAMAL DE DESCARGA OU EM RAMAL DE ESGOTO SANITÁRIO. AF_12/2014","UN",14,31.82,445.48]
["1.25.2.31","CAIXA SIFONADA PVC, 150 X 150 X 50 MM, COM GRELHA QUADRADA BRANCA (NBR 5688)","UN    ",35,33.020000000000003,1155.7]
["1.25.2.32","TERMINAL DE VENTILACAO, 50 MM, SERIE NORMAL, ESGOTO PREDIAL","UN    ",20,6.02,120.4]
["1.26","DRENAGEM",null,null,null,{"$f":"SUBTOTAL(9,F636:F712)","v":473394.94000000024}]
["1.26.1","DRENAGEM SUPERFICIAL DAS ÁGUAS PLUVIAIS - AÉREO",null,null,null,{"$f":"SUBTOTAL(9,F637:F643)","v":29888.78}]
["1.26.1.1","CURVA CURTA 90 GRAUS, PVC, SERIE NORMAL, ESGOTO PREDIAL, DN 100 MM, JUNTA ELÁSTICA, FORNECIDO E INSTALADO EM SUBCOLETOR AÉREO DE ESGOTO SANITÁRIO. AF_12/2014","UN",58,35.799999999999997,{"$f":"ROUND(D637*E637,2)","v":2076.4}]
["1.26.1.2","JOELHO 90 GRAUS, PVC, SERIE NORMAL, ESGOTO PREDIAL, DN 150 MM, JUNTA ELÁSTICA, FORNECIDO E INSTALADO EM SUBCOLETOR AÉREO DE ESGOTO SANITÁRIO. AF_12/2014","UN",40,77.55,3102]
["1.26.1.3","JOELHO 45 GRAUS, PVC, SERIE NORMAL, ESGOTO PREDIAL, DN 150 MM, JUNTA ELÁSTICA, FORNECIDO E INSTALADO EM SUBCOLETOR AÉREO DE ESGOTO SANITÁRIO. AF_12/2014","UN",12,81.84,982.08]
["1.26.1.4","LUVA SIMPLES, PVC, SERIE NORMAL, ESGOTO PREDIAL, DN 100 MM, JUNTA ELÁSTICA, FORNECIDO E INSTALADO EM SUBCOLETOR AÉREO DE ESGOTO SANITÁRIO. AF_12/2014","UN",58,18.579999999999998,1077.6400000000001]
["1.26.1.5","LUVA SIMPLES, PVC, SÉRIE NORMAL, ESGOTO PREDIAL, DN 150 MM, JUNTA ELÁSTICA, FORNECIDO E INSTALADO EM SUBCOLETOR AÉREO DE ESGOTO SANITÁRIO. AF_12/2014","UN",52,52.44,2726.88]
["1.26.1.6","TUBO PVC, SERIE NORMAL, ESGOTO PREDIAL, DN 100 MM, FORNECIDO E INSTALADO EM SUBCOLETOR AÉREO DE ESGOTO SANITÁRIO. AF_12/2014","M",258,28.69,7402.02]
["1.26.1.7","TUBO PVC, SERIE NORMAL, ESGOTO PREDIAL, DN 150 MM, FORNECIDO E INSTALADO EM SUBCOLETOR AÉREO DE ESGOTO SANITÁRIO. AF_12/2014","M",228,54.92,12521.76]
["1.26.2","DRENAGEM SUPERFICIAL DAS ÁGUAS PLUVIAIS - ENTERRADO",null,null,null,{"$f":"SUBTOTAL(9,F645:F657)","v":51908.25}]
["1.26.2.1","CURVA CURTA 90 GRAUS, PVC, SERIE NORMAL, ESGOTO PREDIAL, DN 100 MM, JUNTA ELÁSTICA, FORNECIDO E INSTALADO EM RAMAL DE DESCARGA OU RAMAL DE ESGOTO SANITÁRIO. AF_12/2014","UN",49,36.229999999999997,{"$f":"ROUND(D645*E645,2)","v":1775.27}]
["1.26.2.2","JOELHO 90 GRAUS, PVC, SERIE NORMAL, ESGOTO PREDIAL, DN 150 MM, JUNTA ELÁSTICA, FORNECIDO E INSTALADO EM SUBCOLETOR DE ESGOTO SANITÁRIO. AF_12/2014","UN",21,77.55,1628.55]
["1.26.2.3","JOELHO 90 GRAUS, PVC, SERIE NORMAL, ESGOTO PREDIAL, DN 200 MM, JUNTA ELÁSTICA, FORNECIDO E INSTALADO EM SUBCOLETOR AÉREO DE ESGOTO SANITÁRIO.","UND",5,228.26,1141.3]
["1.26.2.4","JOELHO 45 GRAUS, PVC, SERIE NORMAL, ESGOTO PREDIAL, DN 100 MM, JUNTA ELÁSTICA, FORNECIDO E INSTALADO EM RAMAL DE DESCARGA OU RAMAL DE ESGOTO SANITÁRIO. AF_12/2014","UN",4,24.15,96.6]
["1.26.2.5","JOELHO 45 GRAUS, PVC, SERIE NORMAL, ESGOTO PREDIAL, DN 150 MM, JUNTA ELÁSTICA, FORNECIDO E INSTALADO EM SUBCOLETOR DE ESGOTO SANITÁRIO. AF_12/2014","UN",1,81.84,81.84]
["1.26.2.6","LUVA SIMPLES, PVC, SERIE NORMAL, ESGOTO PREDIAL, DN 100 MM, JUNTA ELÁSTICA, FORNECIDO E INSTALADO EM RAMAL DE DESCARGA OU RAMAL DE ESGOTO SANITÁRIO. AF_12/2014","UN",53,19.010000000000002,1007.53]
["1.26.2.7","LUVA SIMPLES, PVC, SÉRIE NORMAL, ESGOTO PREDIAL, DN 150 MM, JUNTA ELÁSTICA, FORNECIDO E INSTALADO EM SUBCOLETOR DE ESGOTO SANITÁRIO. AF_12/2014","UN",22,52.44,1153.68]
["1.26.2.8","LUVA DE CORRER PVC, JE, DN 200 MM, PARA REDE COLETORA DE ESGOTO (NBR 10569)","UN    ",5,105.22,526.1]
["1.26.2.9","TUBO PVC, SERIE NORMAL, ESGOTO PREDIAL, DN 100 MM, FORNECIDO E INSTALADO EM RAMAL DE DESCARGA OU RAMAL DE ESGOTO SANITÁRIO. AF_12/2014","M",216,54.86,11849.76]
["1.26.2.10","TUBO PVC, SERIE NORMAL, ESGOTO PREDIAL, DN 150 MM, FORNECIDO E INSTALADO EM SUBCOLETOR DE ESGOTO SANITÁRIO. AF_12/2014","M",174,54.92,9556.08]
["1.26.2.11","TUBO DE PVC PARA REDE COLETORA DE ESGOTO DE PAREDE MACIÇA, DN 200 MM, JUNTA ELÁSTICA, INSTALADO EM LOCAL COM NÍVEL BAIXO DE INTERFERÊNCIAS - FORNECIMENTO E ASSENTAMENTO. AF_06/2015","M",168,77.31,12988.08]
["1.26.2.12","ESCAVAÇÃO MECANIZADA DE VALA COM PROF. ATÉ 1,5 M(MÉDIA ENTRE MONTANTE E JUSANTE/UMA COMPOSIÇÃO POR TRECHO), COM ESCAVADEIRA HIDRÁULICA (0,8 M3), LARG. DE 1,5M A 2,5 M, EM SOLO DE 1A CATEGORIA, LOCAIS COM BAIXO NÍVEL DE INTERFERÊNCIA. AF_01/2015","M3",502.19999999999993,5.35,2686.77]
["1.26.2.13","REATERRO MECANIZADO DE VALA COM ESCAVADEIRA HIDRÁULICA (CAPACIDADE DA CAÇAMBA: 0,8 M³ / POTÊNCIA: 111 HP), LARGURA DE 1,5 A 2,5 M, PROFUNDIDADE ATÉ 1,5 M, COM SOLO DE 1ª CATEGORIA EM LOCAIS COM BAIXO NÍVEL DE INTERFERÊNCIA. AF_04/2016","M3",492.14939999999996,15.07,7416.69]
["1.26.3","REDES EXTERNAS ENTERRADAS COM TUBOS DE CONCRETO ARMADO",null,null,null,{"$f":"SUBTOTAL(9,F659:F662)","v":111682.80000000002}]
["1.26.3.1","TUBO DE CONCRETO PARA REDES COLETORAS DE ÁGUAS PLUVIAIS, DIÂMETRO DE 300MM, JUNTA RÍGIDA, INSTALADO EM LOCAL COM BAIXO NÍVEL DE INTERFERÊNCIAS - FORNECIMENTO E ASSENTAMENTO. AF_12/2015","M",470,108.68,{"$f":"ROUND(D659*E659,2)","v":51079.6}]
["1.26.3.2","TUBO DE CONCRETO PARA REDES COLETORAS DE ÁGUAS PLUVIAIS, DIÂMETRO DE 400 MM, JUNTA RÍGIDA, INSTALADO EM LOCAL COM BAIXO NÍVEL DE INTERFERÊNCIAS - FORNECIMENTO E ASSENTAMENTO. AF_12/2015","M",200,128.19999999999999,{"$f":"ROUND(D660*E660,2)","v":25640}]
["1.26.3.3","TUBO DE CONCRETO PARA REDES COLETORAS DE ÁGUAS PLUVIAIS, DIÂMETRO DE 600 MM, JUNTA RÍGIDA, INSTALADO EM LOCAL COM BAIXO NÍVEL DE INTERFERÊNCIAS - FORNECIMENTO E ASSENTAMENTO. AF_12/2015","M",147,228.04,{"$f":"ROUND(D661*E661,2)","v":33521.879999999997}]
["1.26.3.4","TUBO DE CONCRETO PARA REDES COLETORAS DE ÁGUAS PLUVIAIS, DIÂMETRO DE 800 MM, JUNTA RÍGIDA, INSTALADO EM LOCAL COM BAIXO NÍVEL DE INTERFERÊNCIAS - FORNECIMENTO E ASSENTAMENTO. AF_12/2015","M",4,360.33,{"$f":"ROUND(D662*E662,2)","v":1441.32}]
["1.26.4","CAIXAS, POÇOS DE VISITA, BOCAS DE LOBO, PROTEÇÃO TIPO \"U\" ",null,null,null,{"$f":"SUBTOTAL(9,F664:F680)","v":78858.37}]
["1.26.4.1","CAIXAS DE PASSAGEN(Cx P)  Ø 600mm, C/ PAREDES EM ANÉIS PRÉ-MOLDADOS DE CONCRETO, H=VARIÁVEL,COM TAMPO DE CONCRETO(CONFORME DETALHE), NAS ÁREAS EXTERNAS DAS EDIFICAÇÕES ","UN",6,595.21,{"$f":"ROUND(D664*E664,2)","v":3571.26}]
["1.26.4.2","CAIXAS DE PASSAGEN(Cx P)  Ø 800mm, C/ PAREDES EM ANÉIS PRÉ-MOLDADOS DE CONCRETO, H=VARIÁVEL,COM TAMPO DE CONCRETO(CONFORME DETALHE), NAS ÁREAS EXTERNAS DAS EDIFICAÇÕES ","UN",28,816.23,22854.44]
["1.26.4.3","TAMPA CIRCULAR PARA ESGOTO E DRENAGEM, EM FERRO FUNDIDO, DIÂMETRO INTERNO = 0,6 M. AF_05/2018","UN",5,572.62,2863.1]
["1.26.4.4","POÇO DE VISITA CIRCULAR PARA ESGOTO, EM CONCRETO PRÉ-MOLDADO, DIÂMETRO INTERNO = 1,0 M, PROFUNDIDADE DE 1,50 A 2,00 M, EXCLUINDO TAMPÃO. AF_04/2018","UN",8,1379.12,11032.96]
["1.26.4.5","TAMPA CIRCULAR PARA ESGOTO E DRENAGEM, EM FERRO FUNDIDO, DIÂMETRO INTERNO = 0,6 M. AF_05/2018","UN",8,572.62,4580.96]
["1.26.4.6","CAIXA ENTERRADA HIDRÁULICA RETANGULAR EM ALVENARIA COM TIJOLOS CERÂMICOS MACIÇOS, DIMENSÕES INTERNAS: 0,4X0,4X0,4 M PARA REDE DE DRENAGEM. AF_05/2018","UN",10,293.14,2931.4]
["1.26.4.7","GRELHA EM FERRO FUNDIDO SIMPLES COM REQUADRO, CARGA MÁXIMA 12,5 T,  400 X 400 MM, E = 15 MM, FORNECIDA E ASSENTADA COM ARGAMASSA 1:4 CIMENTO:AREIA.","UND",10,424.25,4242.5]
["1.26.4.8","CAIXA ENTERRADA HIDRÁULICA RETANGULAR, EM ALVENARIA COM BLOCOS DE CONCRETO, DIMENSÕES INTERNAS: 0,4X0,4X0,4 M PARA REDE DE DRENAGEM. AF_05/2018","UN",2,216.85,433.7]
["1.26.4.9","TAMPA DE CONCRETO ARMADO 40X40X5CM PARA CAIXA","UN",2,32.24,64.48]
["1.26.4.10","BOCA DE LOBO EM ALVENARIA TIJOLO MACICO, REVESTIDA C/ ARGAMASSA DE CIMENTO E AREIA 1:3, SOBRE LASTRO DE CONCRETO 10CM E TAMPA DE CONCRETO ARMADO","UN",14,1071.6400000000001,15002.96]
["1.26.4.11","PROTEÇÃO EM FORMATO \"U\"   (200X200x200) X3000  #16","m2",3.6000000000000005,152.44999999999999,548.82000000000005]
["1.26.4.12","PROTEÇÃO EM FORMATO \"U\"   (200X200x200) X2670  #16","m2",6.4080000000000004,152.44999999999999,976.9]
["1.26.4.13","PROTEÇÃO EM FORMATO \"U\"   (200X200x200) X3270  #16","m2",17.658000000000005,152.44999999999999,2691.96]
["1.26.4.14","PROTEÇÃO EM FORMATO \"U\"   (250X210x210) X6250  #16","m2",8.375,152.44999999999999,1276.77]
["1.26.4.15","PROTEÇÃO EM FORMATO \"U\"   (250X210x210) X4000  #16","m2",8.0399999999999991,152.44999999999999,1225.7]
["1.26.4.16","PROTEÇÃO EM FORMATO \"U\"   (250X210x210) X3270  #16","m2",10.954499999999998,152.44999999999999,1670.01]
["1.26.4.17","PROTEÇÃO EM FORMATO \"U\"   (370X210x210) X4000  #16","m2",18.959999999999997,152.44999999999999,2890.45]
["1.26.5","RUFOS E CALHAS ",null,null,null,{"$f":"SUBTOTAL(9,F682:F712)","v":201056.74}]
["1.26.5.1","CALHA EM AÇO GALVANIZADO NUM 24, CORTE 80 CM PARA COBERTURA - CALHA TIPO 1A - BLOCO A","M",13.549999999999999,120.6,{"$f":"ROUND(D682*E682,2)","v":1634.13}]
["1.26.5.2","CALHA EM AÇO GALVANIZADO NUM 24, CORTE 95 CM PARA COBERTURA - CALHA TIPO 2A - BLOCO A","M",10.050000000000001,134.97999999999999,1356.55]
["1.26.5.3","CALHA EM AÇO GALVANIZADO NUM 24, CORTE 91 CM PARA COBERTURA - CALHA TIPO 3A - BLOCO A","M",13.55,131.15,1777.08]
["1.26.5.4","CALHA EM AÇO GALVANIZADO NUM 24, CORTE 89 CM PARA COBERTURA - CALHA TIPO 4A - BLOCO A","M",44.08,129.22999999999999,5696.46]
["1.26.5.5","CALHA EM AÇO GALVANIZADO NUM 24, CORTE 87 CM PARA COBERTURA - CALHA TIPO 5A - BLOCO A","M",2.17,127.31,276.26]
["1.26.5.6","CALHA EM AÇO GALVANIZADO NUM 24, CORTE 90 CM PARA COBERTURA - CALHA TIPO 6A - BLOCO A","M",23.04,130.18,2999.35]
["1.26.5.7","CALHA EM AÇO GALVANIZADO NUM 24, CORTE 82 CM PARA COBERTURA - CALHA TIPO 7A - BLOCO A","M",22.97,122.51,2814.05]
["1.26.5.8","CALHA EM AÇO GALVANIZADO NUM 24, CORTE 84 CM PARA COBERTURA - CALHA TIPO 8A - BLOCO A","M",5.28,124.43,656.99]
["1.26.5.9","CALHA EM AÇO GALVANIZADO NUM 24, CORTE 84 CM PARA COBERTURA - CALHA TIPO 9A - BLOCO A","M",11.15,124.43,1387.39]
["1.26.5.10","CALHA EM AÇO GALVANIZADO NUM 24, CORTE 109 CM PARA COBERTURA - CALHA TIPO 1B - BLOCO B","M",22.88,148.4,3395.39]
["1.26.5.11","CALHA EM AÇO GALVANIZADO NUM 24, CORTE 84 CM PARA COBERTURA - CALHA TIPO 2B - BLOCO B","M",44.32,124.43,5514.74]
["1.26.5.12","CALHA EM AÇO GALVANIZADO NUM 24, CORTE 109 CM PARA COBERTURA - CALHA TIPO 3B - BLOCO B","M",67.199999999999989,148.4,9972.48]
["1.26.5.13","CALHA EM AÇO GALVANIZADO NUM 24, CORTE 109 CM PARA COBERTURA - CALHA TIPO 4B - BLOCO B","M",36.18,148.4,5369.11]
["1.26.5.14","CALHA EM AÇO GALVANIZADO NUM 24, CORTE 109 CM PARA COBERTURA - CALHA TIPO 5B - BLOCO B","M",43.92,148.4,6517.73]
["1.26.5.15","CALHA EM AÇO GALVANIZADO NUM 24, CORTE 101 CM PARA COBERTURA - CALHA TIPO 6B - BLOCO B","M",16.18,140.72999999999999,2277.0100000000002]
["1.26.5.16","CALHA EM AÇO GALVANIZADO NUM 24, CORTE 109 CM PARA COBERTURA - CALHA TIPO 1C - BLOCO C","M",36.900000000000006,148.4,5475.96]
["1.26.5.17","CALHA EM AÇO GALVANIZADO NUM 24, CORTE 106 CM PARA COBERTURA - CALHA TIPO 2C - BLOCO C","M",17.36,145.52000000000001,2526.23]
["1.26.5.18","CALHA EM AÇO GALVANIZADO NUM 24, CORTE 110 CM PARA COBERTURA - CALHA TIPO 3C - BLOCO C","M",44,149.36000000000001,6571.84]
["1.26.5.19","CALHA EM AÇO GALVANIZADO NUM 24, CORTE 109 CM PARA COBERTURA - CALHA TIPO 4C - BLOCO C","M",98.2,139.77000000000001,13725.41]
["1.26.5.20","RUFO C/ PINGADEIRA BLOCO A LADO C/ CALHA - CHAPA EM AÇO GALVANIZADO 0,50MM, CORTE 80 CM PARA FECHAMENTO INTERNO E TOPO DE PLATIBANDA, incluso acessórios para fixação e vedação.","M",67.33,115.87,7801.53]
["1.26.5.21","RUFO C/ PINGADEIRA BLOCO A /LADO OITÃO - CHAPA EM AÇO GALVANIZADO 0,50MM, CORTE 75 CM PARA FECHAMENTO INTERNO E TOPO DE PLATIBANDA, incluso acessórios para fixação e vedação.","M",21.279999999999998,114.12,2428.4699999999998]
["1.26.5.22","RUFO EXTERNO/INTERNO, SIMPLES ENTRE TELHA E ALVENARIAS BLOCO A, EM CHAPA DE AÇO GALVANIZADO NÚMERO 26, CORTE DE 50 CM, INCLUSO IÇAMENTO. AF_07/2019","M",78.529999999999987,65.27,5125.6499999999996]
["1.26.5.23","RUFO C/ PINGADEIRA BLOCO B /LADO C/ CALHA - CHAPA EM AÇO GALVANIZADO 0,50MM, CORTE 190 CM PARA FECHAMENTO INTERNO E TOPO DE PLATIBANDA, incluso acessórios para fixação e vedação.","M",230.55,205.39,47352.66]
["1.26.5.24","RUFO C/ PINGADEIRA BLOCO B /LADO C/ CALHA - CHAPA EM AÇO GALVANIZADO 0,50MM, CORTE 65 CM PARA FECHAMENTO INTERNO E TOPO DE PLATIBANDA, incluso acessórios para fixação e vedação.","M",43.95,103.72,4558.49]
["1.26.5.25","RUFO C/ PINGADEIRA BLOCO B /LADO OITÃO/COBERT. NIVEL 4,32M - CHAPA EM AÇO GALVANIZADO 0,50MM, CORTE 75 CM PARA FECHAMENTO INTERNO E TOPO DE PLATIBANDA, incluso acessórios para fixação e vedação.","M",11.4,112.04,1277.26]
["1.26.5.26","RUFO C/ PINGADEIRA BLOCO B /LADO OITÃO/COBERT. NIVEL 9,52M - CHAPA EM AÇO GALVANIZADO 0,50MM, CORTE 155 CM PARA FECHAMENTO INTERNO E TOPO DE PLATIBANDA, incluso acessórios para fixação e vedação.","M",61.379999999999995,175.98,10801.65]
["1.26.5.27","RUFO C/ PINGADEIRA BLOCO B /LADO OITÃO/COBERT. NIVEL 6,47M - CHAPA EM AÇO GALVANIZADO 0,50MM, CORTE 155 CM PARA FECHAMENTO INTERNO E TOPO DE PLATIBANDA, incluso acessórios para fixação e vedação.","M",27.759999999999998,175.98,4885.2]
["1.26.5.28","RUFO EXTERNO/INTERNO, SIMPLES ENTRE TELHA E ALVENARIAS BLOCO B, EM CHAPA DE AÇO GALVANIZADO NÚMERO 26, CORTE DE 50 CM, INCLUSO IÇAMENTO. AF_07/2019","M",141.39000000000001,65.27,9228.5300000000007]
["1.26.5.29","RUFO C/ PINGADEIRA BLOCO C /LADO C/ CALHA - CHAPA EM AÇO GALVANIZADO 0,50MM, CORTE  85 CM PARA FECHAMENTO INTERNO E TOPO DE PLATIBANDA, incluso acessórios para fixação e vedação.","M",196.60000000000002,117.62,23124.09]
["1.26.5.30","RUFO C/ PINGADEIRA BLOCO C /LADO OITÃO - CHAPA EM AÇO GALVANIZADO 0,50MM, CORTE 75 CM PARA FECHAMENTO INTERNO E TOPO DE PLATIBANDA, incluso acessórios para fixação e vedação.","M",35.340000000000003,114.12,4033]
["1.26.5.31","RUFO EXTERNO/INTERNO, SIMPLES ENTRE TELHA E ALVENARIAS BLOCO C, EM CHAPA DE AÇO GALVANIZADO NÚMERO 26, CORTE DE 50 CM, INCLUSO IÇAMENTO. AF_07/2019","M",7.6,65.27,496.05]
["1.27","GLP (BLOCO  B)",null,null,null,0]
["1.28","LOUÇAS E METAIS",null,null,null,{"$f":"SUBTOTAL(9,F715:F715)","v":2580.75}]
["1.28.1","TORNEIRA CROMADA COM BICO PARA JARDIM/TANQUE 1/2 \" OU 3/4 \" ","UN    ",37,69.75,{"$f":"ROUND(D715*E715,2)","v":2580.75}]
["1.29","ACESSIBILIDADE",null,null,null,{"$f":"SUBTOTAL(9,F717:F772)","v":116259.43}]
["1.29.1","SERVIÇOS PRELIMINARES",null,null,null,{"$f":"SUBTOTAL(9,F718:F720)","v":2417.1899999999996}]
["1.29.1.1","CORTE RASGO EM PISO CONCRETO OU PORCELANATO COM MAQUITA  DE DISCO DIAMANTADO PARA INSTALAÇÃO DE PISO TÁTIL CERÂMICO OU PORCELANATO","M",82.6,23,{"$f":"ROUND(D718*E718,2)","v":1899.8}]
["1.29.1.2","CORTE RASGO EM PISO CONCRETO OU PORCELANATO COM MAQUITA  DE DISCO DIAMANTADO PARA INSTALAÇÃO DE PISO TÁTIL CERÂMICO OU PORCELANATO","M",20.239999999999998,23,{"$f":"ROUND(D719*E719,2)","v":465.52}]
["1.29.1.3","BOTA FORA DE MATERIAL DESCARTADO, D.M.T. = 10 km - (CARGA, TRANSPORTE E DESCARGA MECÂNICA)","M3",2.056,25.23,{"$f":"ROUND(D720*E720,2)","v":51.87}]
["1.29.2","PISOS- ÁREA EXTERNA",null,null,null,{"$f":"SUBTOTAL(9,F722:F723)","v":8578.7000000000007}]
["1.29.2.1","FORNECIMENTO E INSTALAÇÃO DE PISO TÁTIL , MODELO ALERTA 25X25X2CM NA COR VERMELHO, CONFECCIONADO EM CONCRETO, ASSENTANDO COM ARMAGASSA, de acordo com a NBR 9050; 308 UNIDADES","M2",19.25,103.67,{"$f":"ROUND(D722*E722,2)","v":1995.65}]
["1.29.2.2","FORNECIMENTO E INSTALAÇÃO DE PISO TÁTIL , MODELO DIRECIONAL 25X25X2CM NA COR VERMELHO, CONFECCIONADO EM CONCRETO, ASSENTANDO COM ARMAGASSA, de acordo com a NBR 9050 1016 UNIDADES","M2",63.5,103.67,{"$f":"ROUND(D723*E723,2)","v":6583.05}]
["1.29.3","PISOS- ÁREA INTERNA",null,null,null,{"$f":"SUBTOTAL(9,F725:F726)","v":9097.0800000000017}]
["1.29.3.1","FORNECIMENTO E INSTALAÇÃO DE REVESTIMENTO EM PISO TATIL DE DIRECIONAL  - PLACAS NO TAMANHO DE 250 MM X 250 MM, COR: AZUL, ACABAMENTO: SUPERFÍCIE NATURAL, ESPESSURA: 9,3MM, RELEVO: 14,7MM, JUNTA: 2,00MM, TIPO: PORCELANATO,  PEI 5 ,DE ACORDO COM A NBR 9050,INCLUSO  EQUIPAMENTOS. REF. 87263","UN",21,35.26,{"$f":"ROUND(D725*E725,2)","v":740.46}]
["1.29.3.2","FORNECIMENTO E INSTALAÇÃO DE REVESTIMENTO EM PISO TATIL ALERTA  - PLACAS NO TAMANHO DE 250 MM X 250 MM, COR: AZUL, ACABAMENTO: SUPERFÍCIE NATURAL, ESPESSURA: 9,3MM, RELEVO: 14,7MM, JUNTA: 2,00MM, TIPO: PORCELANATO,  PEI 5 ,DE ACORDO COM A NBR 9050,INCLUSO  EQUIPAMENTOS. REF. 87263","UN",237,35.26,{"$f":"ROUND(D726*E726,2)","v":8356.6200000000008}]
["1.29.4","ÁREA DE CIRCULAÇÃO",null,null,null,{"$f":"SUBTOTAL(9,F728:F733)","v":24871.480000000003}]
["1.29.4.1","FORNECIMENTO E INSTALAÇÃO DE MAPA TÁTIL BRAILLE FABRICADA SOB ENCOMENDA, COM PEDESTAL,  CONFECCIONADO EM ACRÍLICO 8MM, COM APLICAÇÃO DE IMPRESSÃO DIGITAL PELO VERSO. SOBREPOSIÇÃO DE TEXTOS EM PVC 1MM E BRAILLE INCRUSTADO. DIMENSÕES DE 1000X600MM. FIXAÇÃO POR 4 PARAFUSOS, ACOMPANHA PEDESTAL., A SER INSTALADO  CONFORME PROJETO DE ACESSBILIDADE","UN",4,1983.2,{"$f":"ROUND(D728*E728,2)","v":7932.8}]
["1.29.4.2","TAPETE EMBORRACHADO PARA SINALIZAÇÃO DA ÁREA RESERVADA AO CADEIRANTE PARA RESGATE COM MEDIDA 1,20X0,80M COM MATERIAL FOTOLUMINESCENTE NA COR AZUL O FUNDO E A DEMARCAÇÃO DA SIMBOLOGIA NA COR BRANCO de acordo com a NBR 9050.","UN",2,264.47000000000003,528.94000000000005]
["1.29.4.3"," PLACA DE VINIL AUTO ADESIVA, TAPETE/ADESIVO PARA SINALIZACAO DE ESPAÇO RESERVADO PARA CADEIRANTE NA COR AZUL COM SIMBOLO S.I.A PARA CADEIRANTE BRANCO NAS DIMENSOES1,20X0,80CM, de acordo com a NBR 9050.","UN",36,264.47000000000003,9520.92]
["1.29.4.4","FORNECIMENTO E INSTALAÇÃO DE PLACA DE IDENTIFICAÇÃO DE SALAS DE AULA E DEMAIS AMBIENTES (20X8CM), EM ALUMINIO ANODIZADO, AUTO ADESIVA,  COM SISTEMA DE LEITURA EM BRAILLE E EM RELEVO","UN",62,83.06,5149.72]
["1.29.4.5","FORNECIMENTO E INSTALAÇÃO DE PLACA DE IDENTIFICAÇÃO DO CORRIMÃO, EM ALUMINIO ANODIZADO, AUTO ADESIVA,  COM SISTEMA DE LEITURA EM BRAILLE E EM RELEVO \"INICIO ou FIM\" .","UN",36,21.45,772.2]
["1.29.4.6","SINALIZADOR VISUAL DE DEGRAUS TOTAL WALK AMARELA 3X20CM - FORNECIMENTO E INSTALAÇÃO NOS PISOS E ESPELHO DAS ESCADAS.","UN",66,14.65,966.9]
["1.29.5","SANITÁRIOS",null,null,null,{"$f":"SUBTOTAL(9,F735:F746)","v":24269.930000000004}]
["1.29.5.1","FORNECIMENTO E INSTALAÇÃO DE PLACA DE IDENTIFICAÇÃO DE SANITÁRIOS MASCULINO / FEMININO (5X15CM), EM ALUMINIO ANODIZADO, AUTO ADESIVA,  COM SISTEMA DE LEITURA EM BRAILLE E EM RELEVO","UN",19,31.62,{"$f":"ROUND(D735*E735,2)","v":600.78}]
["1.29.5.2","FORNECIMENTO E INSTALAÇÃO DE PROTETOR DE IMPACTO PARA PORTA DOS BANHEIROS PNE, CONFECCIONADO EM  INOX POLIDO 304 SHIELD OU SIMILAR, ALTURA DE 40CM COM LARGURA  90CM.  (CONSIDERADO FRENTE E VERSO) ","UN",9,222.35,2001.15]
["1.29.5.3","BARRA DE APOIO INOX RETA 400mm PARA PORTA DOS BANHEIROS PNE E/OU ACESSÓRIO PARA BANHEIRO PNE  (NORMA 9050/2015). - DESCRIÇÃO DO MATERIAL: • AÇO INOX 304 POLIDO., • DIÂMETRO DE 1” ½ , • ESPESSURA DE 1,2 MILÍMETROS, • SUPORTE COM TRÊS PONTOS DE FIXAÇÃO, • CANOPLA DE ACABAMENTO COM Ø DE 85MM, • BUCHA NYLON S10, • PARAFUSO SEXTAVADO S10 - FORNECIMENTO E INSTALAÇÃO","UN",18,253.93,4570.74]
["1.29.5.4","BARRA DE APOIO INOX RETA 400mm ACESSÓRIO VASO SANITÁRIO PCD. - DESCRIÇÃO DO MATERIAL: • AÇO INOX 304 POLIDO., • DIÂMETRO DE 1” ½ , • ESPESSURA DE 1,2 MILÍMETROS, • SUPORTE COM TRÊS PONTOS DE FIXAÇÃO, • CANOPLA DE ACABAMENTO COM Ø DE 85MM, • BUCHA NYLON S10, • PARAFUSO SEXTAVADO S10 - FORNECIMENTO E INSTALAÇÃO","UN",16,253.93,4062.88]
["1.29.5.5","BARRA DE APOIO INOX RETA 700mm, ACESSÓRIO PARA BANHEIRO PNE   (NORMA 9050/2015). - DESCRIÇÃO DO MATERIAL: • AÇO INOX 304 POLIDO., • DIÂMETRO DE 1” ½ , • ESPESSURA DE 1,2 MILÍMETROS, • SUPORTE COM TRÊS PONTOS DE FIXAÇÃO, • CANOPLA DE ACABAMENTO COM Ø DE 85MM, • BUCHA NYLON S10, • PARAFUSO SEXTAVADO S10 - FORNECIMENTO E INSTALAÇÃO","UN",16,281.58,4505.28]
["1.29.5.6","BARRA DE APOIO INOX RETA 800mm, ACESSÓRIO PARA BANHEIRO PNE   (NORMA 9050/2015). - DESCRIÇÃO DO MATERIAL: • AÇO INOX 304 POLIDO., • DIÂMETRO DE 1” ½ , • ESPESSURA DE 1,2 MILÍMETROS, • SUPORTE COM TRÊS PONTOS DE FIXAÇÃO, • CANOPLA DE ACABAMENTO COM Ø DE 85MM, • BUCHA NYLON S10, • PARAFUSO SEXTAVADO S10 - FORNECIMENTO E INSTALAÇÃO","UN",9,299.98,2699.82]
["1.29.5.7","BARRA DE APOIO INOX RETA 900mm, ACESSÓRIO PARA BANHEIRO PNE   (NORMA 9050/2015). - DESCRIÇÃO DO MATERIAL: • AÇO INOX 304 POLIDO., • DIÂMETRO DE 1” ½ , • ESPESSURA DE 1,2 MILÍMETROS, • SUPORTE COM TRÊS PONTOS DE FIXAÇÃO, • CANOPLA DE ACABAMENTO COM Ø DE 85MM, • BUCHA NYLON S10, • PARAFUSO SEXTAVADO S10 - FORNECIMENTO E INSTALAÇÃO","UN",9,314.08,2826.72]
["1.29.5.8","BARRA DE APOIO INOX EM L (90°GRAUS)  700X700mm, ACESSÓRIO PARA BANHEIRO PNE   (NORMA 9050/2015). - DESCRIÇÃO DO MATERIAL: • AÇO INOX 304 POLIDO., • DIÂMETRO DE 1” ½ , • ESPESSURA DE 1,2 MILÍMETROS, • SUPORTE COM TRÊS PONTOS DE FIXAÇÃO, • CANOPLA DE ACABAMENTO COM Ø DE 85MM, • BUCHA NYLON S10, • PARAFUSO SEXTAVADO S10 - FORNECIMENTO E INSTALAÇÃO, de acordo com a norma 9050/2015","UN",1,571.80999999999995,571.80999999999995]
["1.29.5.9","BARRA DE APOIO INOX ARTICULADA DUPLA PARA APOIO LATERAL DO VASO SANITÁRIO E DUCHA 800 mm PARA ÁREA DE BANHO PCR   (NORMA 9050/2015). - DESCRIÇÃO DO MATERIAL: • AÇO INOX 304 POLIDO., • DIÂMETRO DE 1” ½ , • ESPESSURA DE 1,2 MILÍMETROS, • SUPORTE COM TRÊS PONTOS DE FIXAÇÃO, • CANOPLA DE ACABAMENTO COM Ø DE 85MM, • BUCHA NYLON S10, • PARAFUSO SEXTAVADO S10 - FORNECIMENTO E INSTALAÇÃO de acordo com a norma 9050/2015","UN",1,709.09,709.09]
["1.29.5.10","CONJUNTO DE BARRA DE APOIO INOX LATERAL DUPLA PARA LAVATÓRIO  INSTALADO DE CADA LADO DO LAVATÓRIO NORMA 9050/2015). - DESCRIÇÃO DO MATERIAL: • AÇO INOX 304 POLIDO., • DIÂMETRO DE 1” ½ , • ESPESSURA DE 1,2 MILÍMETROS, • SUPORTE COM TRÊS PONTOS DE FIXAÇÃO, • CANOPLA DE ACABAMENTO COM Ø DE 85MM, • BUCHA NYLON S10, • PARAFUSO SEXTAVADO S10 - FORNECIMENTO E INSTALAÇÃO, de acordo com a norma 9050/2015","UN",1,319.74,319.74]
["1.29.5.11","ASSENTO RETRÁTIL/ARTICULADO PARA BANHO (NORMA 9050/2015) EM AÇO INÓX POLIDO COM MEDIDA 700X450MM COM CAPACIDADE MÁXIMA DE CARGA 150KG. FORNECIMENTO E INSTALAÇÃO ACESSÓRIO PARA BANHO PCR, ","UN",1,1286.08,1286.08]
["1.29.5.12","CABIDEIRO EM AÇO INOX POLIDO, TIPO GANCHO, COM SISTEMA DE FIXAÇAO CO FUROS ABLONGOS PARA FACIL AJUSTE TANTO NA VERTICAL COMO NA HORIZONTAL. FORNECIMENTO E INSTALAÇÃO ACESSÓRIO PARA BANHO PCR","UN",2,57.92,115.84]
["1.29.6","ESTACIONAMENTOS, VAGAS ESPECIAIS E VIAS DE TRÁFEGO ",null,null,null,{"$f":"SUBTOTAL(9,F748:F772)","v":47025.05}]
["1.29.6.1","FORNECIMENTO E INSTALAÇÃO DE PLACAS 50(LARGURA)x70CM DE SINALIZAÇÃO EM CHAPA DE AÇO Nº 18, COM TRATAMENTO ANTI FERRUGINOSO, ADESIVADAS COM PELICULA 100% REFLETIVAS, SEREM FIXADO COM TUBO GALVANIZADO DE 2\" COM 3,00M DE ALTURA, INCLUSO CHUMBADOR E TAMPÃO - CONFORME PROJETO (VER PROJETO DE ACESSIBILIDADE- VAGA PCD)","UN",3,516.77,{"$f":"ROUND(D748*E748,2)","v":1550.31}]
["1.29.6.2","FORNECIMENTO E INSTALAÇÃO DE PLACAS 50(LARGURA)x70CM DE SINALIZAÇÃO EM CHAPA DE AÇO Nº 18, COM TRATAMENTO ANTI FERRUGINOSO, ADESIVADAS COM PELICULA 100% REFLETIVAS, SEREM FIXADO COM TUBO GALVANIZADO DE 2\" COM 3,00M DE ALTURA, INCLUSO CHUMBADOR E TAMPÃO - CONFORME PROJETO ((VER PROJETO DE ACESSIBILIDADE-VAGA IDOSO)","UN",7,516.77,3617.39]
["1.29.6.3","FORNECIMENTO E INSTALAÇÃO DE PLACAS 50(LARGURA)x70CM DE SINALIZAÇÃO EM CHAPA DE AÇO Nº 18, COM TRATAMENTO ANTI FERRUGINOSO, ADESIVADAS COM PELICULA 100% REFLETIVAS, SEREM FIXADO COM TUBO GALVANIZADO DE 2\" COM 3,00M DE ALTURA, INCLUSO CHUMBADOR E TAMPÃO - CONFORME PROJETO ((VER PROJETO DE ACESSIBILIDADE-VAGA GESTANTE)","UN",5,516.77,2583.85]
["1.29.6.4","FORNECIMENTO E INSTALAÇÃO DE PLACAS 50(LARGURA)x70CM DE SINALIZAÇÃO EM CHAPA DE AÇO Nº 18, COM TRATAMENTO ANTI FERRUGINOSO, ADESIVADAS COM PELICULA 100% REFLETIVAS, SEREM FIXADO COM TUBO GALVANIZADO DE 2\" COM 3,00M DE ALTURA, INCLUSO CHUMBADOR E TAMPÃO - CONFORME PROJETO VAGA MULHER COM ((VER PROJETO DE ACESSIBILIDADE-CRIANÇA NO COLO)","UN",5,516.77,2583.85]
["1.29.6.5","PINTURA DE PICTOGRAMA PCD PARA DEMARCAÇÃO NO PISO EXTERNO SINALIZANDO ESPAÇO RESERVADO PARA ESTACIONAMENTO COM SIMBOLO PCD MEDINDO 1,20X1,20M, ESPESSURA 1MM, COM TINTA A BASE DE RESINA ACRÍLICA PADRÃO DNIT (VER PROJETO DE ACESSIBILIDADE)","UN",3,200.96,602.88]
["1.29.6.6","PINTURA DE SINZALIZAÇÃO HORIZONTAL DAS FAIXAS ZEBRADAS PARA VAGAS PCD MEDINDO 1,20X5,00M, ESPESSURA 1MM, COM TINTA A BASE DE RESINA ACRÍLICA PADRÃO DNIT (VER PROJETO DE ACESSIBILIDADE)","UN",7.2,40.020000000000003,288.14]
["1.29.6.7","PINTURA DE PICTOGRAMA IDOSO, GESTANTE E CRIANÇA DE COLO PARA DEMARCAÇÃO NO PISO EXTERNO SINALIZANDO ESPAÇO RESERVADO PARA ESTACIONAMENTO COM SIMBOLO PCD MEDINDO 1,20X1,20M, ESPESSURA 1MM, COM TINTA A BASE DE RESINA ACRÍLICA PADRÃO DNIT (VER PROJETO DE ACESSIBILIDADE)","UN",17,157.6,2679.2]
["1.29.6.8","CONFECÇÃO E IMPLANTAÇÃO DE PLACAS DE SINALIZAÇÃO OCTOGONAL 30 CM DE LADO COM TRATAMENTO ANTI-FERRUGEM (AÇO Nº 16), COM PELÍCULA RETROREFLETIVA TIPO I+I INCLUSO SUPORTE METÁLICO GALVANIZADO COM Ø 3” E 3,35MM DE PAREDE, H=3,50M.(VER PROJ. SINALIZAÇÃO VIÁRIA- PARE)","UN",5,674.76,3373.8]
["1.29.6.9","CONFECÇÃO E IMPLANTAÇÃO DE PLACAS DE SINALIZAÇÃO CIRCULAR Ø 60CM ,COM TRATAMENTO ANTI-FERRUGEM (AÇO Nº 16), COM PELÍCULA RETROREFLETIVA TIPO I+I INCLUSO SUPORTE METÁLICO GALVANIZADO COM Ø 3” E 3,35MM DE PAREDE, H=3,50M. (VER PROJ. SINALIZAÇÃO VIÁRIA- SENTIDO PROIBIDO)","UN",2,545.88,1091.76]
["1.29.6.10","CONFECÇÃO E IMPLANTAÇÃO DE PLACAS DE SINALIZAÇÃO CIRCULAR Ø 60CM ,COM TRATAMENTO ANTI-FERRUGEM (AÇO Nº 16), COM PELÍCULA RETROREFLETIVA TIPO I+I INCLUSO SUPORTE METÁLICO GALVANIZADO COM Ø 3” E 3,35MM DE PAREDE, H=3,50M. (VER PROJ. SINALIZAÇÃO VIÁRIA- PROIBIDO ESTACIONAR)","UN",1,545.88,545.88]
["1.29.6.11","CONFECÇÃO E IMPLANTAÇÃO DE PLACAS DE SINALIZAÇÃO CIRCULAR Ø 60CM ,COM TRATAMENTO ANTI-FERRUGEM (AÇO Nº 16), COM PELÍCULA RETROREFLETIVA TIPO I+I INCLUSO SUPORTE METÁLICO GALVANIZADO COM Ø 3” E 3,35MM DE PAREDE, H=3,50M.(VER PROJ. SINALIZAÇÃO VIÁRIA- 10KM)","UN",2,545.88,1091.76]
["1.29.6.12","CONFECÇÃO E IMPLANTAÇÃO DE PLACAS DE SINALIZAÇÃO CIRCULAR Ø 60CM ,COM TRATAMENTO ANTI-FERRUGEM (AÇO Nº 16), COM PELÍCULA RETROREFLETIVA TIPO I+I INCLUSO SUPORTE METÁLICO GALVANIZADO COM Ø 3” E 3,35MM DE PAREDE, H=3,50M.(VER PROJ. SINALIZAÇÃO VIÁRIA- 20KM)","UN",4,545.88,2183.52]
["1.29.6.13","CONFECÇÃO E IMPLANTAÇÃO DE PLACAS DE SINALIZAÇÃO CIRCULAR Ø 60CM ,COM TRATAMENTO ANTI-FERRUGEM (AÇO Nº 16), COM PELÍCULA RETROREFLETIVA TIPO I+I INCLUSO SUPORTE METÁLICO GALVANIZADO COM Ø 3” E 3,35MM DE PAREDE, H=3,50M. (VER PROJ. SINALIZAÇÃO VIÁRIA- SENTIDO OBRIGATÓRIO)","UN",1,545.88,545.88]
["1.29.6.14","CONFECÇÃO E IMPLANTAÇÃO DE PLACAS DE SINALIZAÇÃO RETANGULAR 0,60X0,80M  ,COM TRATAMENTO ANTI-FERRUGEM (AÇO Nº 16), COM PELÍCULA RETROREFLETIVA TIPO I+I INCLUSO SUPORTE METÁLICO GALVANIZADO COM Ø 3” E 3,35MM DE PAREDE, H=3,50M. (VER PROJ. SINALIZAÇÃO VIÁRIA- EMBARQUE E DESEMBARQUE)","UN",1,713.25,713.25]
["1.29.6.15","CONFECÇÃO E IMPLANTAÇÃO DE PLACAS DE SINALIZAÇÃO RETANGULAR 0,60X0,80M  ,COM TRATAMENTO ANTI-FERRUGEM (AÇO Nº 16), COM PELÍCULA RETROREFLETIVA TIPO I+I INCLUSO SUPORTE METÁLICO GALVANIZADO COM Ø 3” E 3,35MM DE PAREDE, H=3,50M. (VER PROJ. SINALIZAÇÃO VIÁRIA- VAN ESCOLAR)","UN",2,713.25,1426.5]
["1.29.6.16","CONFECÇÃO E IMPLANTAÇÃO DE PLACAS DE SINALIZAÇÃO RETANGULAR 0,60X0,80M  ,COM TRATAMENTO ANTI-FERRUGEM (AÇO Nº 16), COM PELÍCULA RETROREFLETIVA TIPO I+I INCLUSO SUPORTE METÁLICO GALVANIZADO COM Ø 3” E 3,35MM DE PAREDE, H=3,50M. (VER PROJ. SINALIZAÇÃO VIÁRIA- MOTOCICLETA 12 VAGAS)","UN",1,713.25,713.25]
["1.29.6.17","CONFECÇÃO E IMPLANTAÇÃO DE PLACAS DE SINALIZAÇÃO RETANGULAR 0,60X0,80M  ,COM TRATAMENTO ANTI-FERRUGEM (AÇO Nº 16), COM PELÍCULA RETROREFLETIVA TIPO I+I INCLUSO SUPORTE METÁLICO GALVANIZADO COM Ø 3” E 3,35MM DE PAREDE, H=3,50M. (VER PROJ. SINALIZAÇÃO VIÁRIA- MOTOCICLETA 18 VAGAS)","UN",1,713.25,713.25]
["1.29.6.18","CONFECÇÃO E IMPLANTAÇÃO DE PLACAS DE SINALIZAÇÃO RETANGULAR 0,60X0,80M  ,COM TRATAMENTO ANTI-FERRUGEM (AÇO Nº 16), COM PELÍCULA RETROREFLETIVA TIPO I+I INCLUSO SUPORTE METÁLICO GALVANIZADO COM Ø 3” E 3,35MM DE PAREDE, H=3,50M. (VER PROJ. SINALIZAÇÃO VIÁRIA- MOTOCICLETA 13 VAGAS)","UN",1,713.25,713.25]
["1.29.6.19","CONFECÇÃO E IMPLANTAÇÃO DE PLACAS DE SINALIZAÇÃO QUADRADA  0,60X0,60M  ,COM TRATAMENTO ANTI-FERRUGEM (AÇO Nº 16), COM PELÍCULA RETROREFLETIVA TIPO I+I INCLUSO SUPORTE METÁLICO GALVANIZADO COM Ø 3” E 3,35MM DE PAREDE, H=3,50M.(VER PROJ. SINALIZAÇÃO VIÁRIA- PEDESTRES)","UN",4,611.51,2446.04]
["1.29.6.20","CONFECÇÃO E IMPLANTAÇÃO DE PLACAS DE SINALIZAÇÃO QUADRADA  0,60X0,60M  ,COM TRATAMENTO ANTI-FERRUGEM (AÇO Nº 16), COM PELÍCULA RETROREFLETIVA TIPO I+I INCLUSO SUPORTE METÁLICO GALVANIZADO COM Ø 3” E 3,35MM DE PAREDE, H=3,50M.(VER PROJ. SINALIZAÇÃO VIÁRIA- LOMBADA)","UN",4,611.51,2446.04]
["1.29.6.21","CONFECÇÃO E IMPLANTAÇÃO DE PLACAS DE SINALIZAÇÃO RETANGULR  0,60X1,00M  ,COM TRATAMENTO ANTI-FERRUGEM (AÇO Nº 16), COM PELÍCULA RETROREFLETIVA TIPO I+I INCLUSO SUPORTE METÁLICO GALVANIZADO COM Ø 3” E 3,35MM DE PAREDE, H=3,50M. (VER PROJ. SINALIZAÇÃO VIÁRIA- PEDESTRES)","UN",4,815,3260]
["1.29.6.22","CONFECÇÃO E IMPLANTAÇÃO DE PLACAS DE SINALIZAÇÃO RETANGULAR 0,60X0,80M  ,COM TRATAMENTO ANTI-FERRUGEM (AÇO Nº 16), COM PELÍCULA RETROREFLETIVA TIPO I+I INCLUSO SUPORTE METÁLICO GALVANIZADO COM Ø 3” E 3,35MM DE PAREDE, H=3,50M. (VER PROJ. SINALIZAÇÃO VIÁRIA- PONTO DE ÔNIBUS)","UN",2,713.25,1426.5]
["1.29.6.23","CONFECÇÃO E IMPLANTAÇÃO DE PLACAS DE SINALIZAÇÃO RETANGULR  1,00X0,50M  ,COM TRATAMENTO ANTI-FERRUGEM (AÇO Nº 16), COM PELÍCULA RETROREFLETIVA TIPO I+I INCLUSO SUPORTE METÁLICO GALVANIZADO COM Ø 3” E 3,35MM DE PAREDE, H=3,50M. (VER PROJ. SINALIZAÇÃO VIÁRIA- SAIDA)","UN",2,731.18,1462.36]
["1.29.6.24","SINALIZACAO HORIZONTAL COM TINTA RETRORREFLETIVA A BASE DE RESINA ACRILICA COM MICROESFERAS DE VIDRO (VIA EXTERNA CONFORME PROJETO DE SINALIZAÇÃO HORIZONTAL)","M2",244.21,14.52,3545.93]
["1.29.6.25","SINALIZACAO HORIZONTAL COM TINTA RETRORREFLETIVA A BASE DE RESINA ACRILICA COM MICROESFERAS DE VIDRO (VIA INTERNA CONFORME PROJETO DE SINALIZAÇÃO HORIZONTAL)","M2",373.31,14.52,5420.46]
["1.30","SEGURANÇA PATRIMONIAL ",null,null,null,{"$f":"SUBTOTAL(9,F774:F825)","v":100611.75}]
["1.30.1","CFTV- EQUIPAMENTOS",null,null,null,{"$f":"SUBTOTAL(9,F775:F777)","v":33942.120000000003}]
["1.30.1.1","FORNECIMENTO E INSTALAÇÃO DE GRAVADOR DIGITAL DE VIDEO (NRV) PARA 16  CANAIS. REF. INTELBRAS (NVD 3116)","UN",1,2347.06,{"$f":"ROUND(D775*E775,2)","v":2347.06}]
["1.30.1.2","FORNECIMENTO E INSTALAÇÃO DE  HD COM CAPACIDADE DE ARMAZENAMENTO DE 6TB - COMPATÍVEL COM O GRAVADOR DE VÍDEO (NVR). REF. WD PURPLE","UN",2,2463.69,4927.38]
["1.30.1.3","FORNECIMENTO E INSTALAÇÃO DE CÂMERA IP TIPO BULLET. REF. INTELBRAS (VIP 1120B)","UN",26,1025.68,26667.68]
["1.30.2","CFTV- CABEAMENTO",null,null,null,{"$f":"SUBTOTAL(9,F779:F784)","v":3949.9999999999995}]
["1.30.2.1","CABO ELETRÔNICO CATEGORIA 6, INSTALADO EM EDIFICAÇÃO INSTITUCIONAL - FORNECIMENTO E INSTALAÇÃO. AF_11/2019","M",1352,2.21,{"$f":"ROUND(D779*E779,2)","v":2987.92}]
["1.30.2.2","FORNECIMENTO E INSTALAÇÃO DE CONECTOR MACHO RJ45 - CAT.6","UN",8,6.59,52.72]
["1.30.2.3","FORNECIMENTO DE CERTIFICAÇÃO DE CABO DE REDE CAT-6","UN",4,21.68,86.72]
["1.30.2.4","FORNECIMENTO E INSTALAÇÃO DE PATCH CORD CERTIFICADO CAT.6 - CONEXÃO RJ45 X RJ45 - COMP. 1,5M","UN",27,24.84,670.68]
["1.30.2.5","FORNECIMENTO E INSTALAÇÃO DE PATCH CORD CERTIFICADO CAT.6 - CONEXÃO RJ45 X RJ45 - COMP. 2,5M","UN",1,30.76,30.76]
["1.30.2.6","FORNECIMENTO E INSTALAÇÃO DE FITA ROTULADORA 12MM PRETO SOBRE BRANCO","UN",1,121.2,121.2]
["1.30.3","CFTV- INFRAESTRUTURA",null,null,null,{"$f":"SUBTOTAL(9,F786:F795)","v":18235.61}]
["1.30.3.1","CAIXA RETANGULAR 4\" X 2\" ALTA (2,00 M DO PISO), METÁLICA, INSTALADA EM PAREDE - FORNECIMENTO E INSTALAÇÃO. AF_12/2015","UN",26,25.17,{"$f":"ROUND(D786*E786,2)","v":654.41999999999996}]
["1.30.3.2","SUPORTE PARAFUSADO COM PLACA DE ENCAIXE 4\" X 2\" ALTO (2,00 M DO PISO) PARA PONTO ELÉTRICO - FORNECIMENTO E INSTALAÇÃO. AF_12/2015","UN",26,7.79,202.54]
["1.30.3.3","ELETRODUTO DE AÇO GALVANIZADO, CLASSE LEVE, DN 20 MM (3/4\u0092\u0092), APARENTE, INSTALADO EM PAREDE - FORNECIMENTO E INSTALAÇÃO. AF_11/2016_P","M",314,25.27,7934.78]
["1.30.3.4","CONDULETE DE ALUMÍNIO, TIPO X, PARA ELETRODUTO DE AÇO GALVANIZADO DN 20 MM (3/4''), APARENTE - FORNECIMENTO E INSTALAÇÃO. AF_11/2016_P","UN",35,36.119999999999997,1264.2]
["1.30.3.5","FORNECIMENTO E INSTALAÇÃO DE BOX RETO P/ ELETRODUTO 3/4\"","UN",82,6.63,543.66]
["1.30.3.6","FORNECIMENTO E INSTALAÇÃO DE TAMPÃO PARA CONDULETE - 3/4\"","UN",128,2.56,327.68]
["1.30.3.7","FORNECIMENTO E INSTALAÇÃO DE ELETRODUTO METÁLICO FLEXIVEL, COM PROTEÇÃO EM PVC PRETO (SEALTUBO) - 3/4\"","M",45,18.77,844.65]
["1.30.3.8","ELETRODUTO FLEXÍVEL CORRUGADO REFORÇADO, PVC, DN 32 MM (1\"), PARA CIRCUITOS TERMINAIS, INSTALADO EM PAREDE - FORNECIMENTO E INSTALAÇÃO. AF_12/2015","M",231,12.05,2783.55]
["1.30.3.9","FORNECIMENTO E INSTALAÇÃO DE CANALETA EM PVC, BRANCA #50X20MM, COM TAMPA. ","M",3,36.56,109.68]
["1.30.3.10","CAIXA ENTERRADA ELÉTRICA RETANGULAR, EM ALVENARIA COM TIJOLOS CERÂMICOS MACIÇOS, FUNDO COM BRITA, DIMENSÕES INTERNAS: 0,4X0,4X0,4 M. AF_05/2018","UN",13,274.64999999999998,3570.45]
["1.30.4","CFTV- RACKS",null,null,null,{"$f":"SUBTOTAL(9,F797:F810)","v":19828.59}]
["1.30.4.1","FORNECIMENTO E INSTALAÇÃO DE MINI RACK DE PAREDE 19\" X 16U X 450MM","UN",3,801,{"$f":"ROUND(D797*E797,2)","v":2403}]
["1.30.4.2","FORNECIMENTO E INSTALAÇÃO DE PORCA GAIOLA E PARAFUSO - AVULSO)","UNID",120,1.69,202.8]
["1.30.4.3","FORNECIMENTO E INSTALAÇÃO DE KIT DE VENTILAÇÃO COM 2 COOLERS","UN",3,358.49,1075.47]
["1.30.4.4","FORNECIMENTO E INSTALAÇÃO DE RÉGUA TOMADAS P/ RACK 19\" - 10 TOMADAS","UNID",3,116.7,350.1]
["1.30.4.5","FORNECIMENTO E INSTALAÇÃO DE TAMPA CEGA 19\" X 1U COM PINTURA EPOXI CONFECCIONADO EM AÇO SAE1020","UNID",3,58.87,176.61]
["1.30.4.6","FORNECIMENTO E INSTALAÇÃO DE GUIA DE CABOS FECHADO HORIZONTAL - 19\" X 1U C/ PINTURA EPOXI CONFECCIONADO EM AÇO SAE1020","UN",9,40.93,368.37]
["1.30.4.7","PATCH PANEL 24 PORTAS, CATEGORIA 6 - FORNECIMENTO E INSTALAÇÃO. AF_11/2019","UN",3,636.57000000000005,1909.71]
["1.30.4.8","FORNECIMENTO E INSTALAÇÃO DE SWITCH GERENCIÁVEL 24 PORTAS GIGABIT. REF. HP 1820 24G - J9980A ","UNID",3,2726.04,8178.12]
["1.30.4.9","FORNECIMENTO E INSTALAÇÃO DE CONECTOR MACHO RJ45 (CM8V)  - CAT.6","UN",26,6.59,171.34]
["1.30.4.10","FORNECIMENTO E INSTALAÇÃO DE NOBREAK 700VA. REF. TS SHARA 700 VA POWER ","UNID",3,578.63,1735.89]
["1.30.4.11","FORNECIMENTO E INSTALAÇÃO DE INJETOR POE PASSIVO","UNID",10,51.11,511.1]
["1.30.4.12","FORNECIMENTO E INSTALAÇÃO DE FONTE CHAVEADA FUNÇÃO NOBREAK, TENSÃO DE ENTRADA 100 - 240VAC, TENSÃO DE SAÍDA 12VDC, CORRENTE DE SAÍDA 10A","UN",3,108.96,326.88]
["1.30.4.13","FORNECIMENTO E INSTALAÇÃO DE BATERIA SELADA, 12V - 7AH","UN",3,254.16,762.48]
["1.30.4.14","FORNECIMENTO E INSTALAÇÃO DE CABO DE COBRE FLEXÍVEL ISOLADO, 2,5 MM², ANTI-CHAMA 450/750 V, PARA CIRCUITOS TERMINAIS - FORNECIMENTO E INSTALAÇÃO. AF_12/2015","M",468,3.54,1656.72]
["1.30.5","ALARME E CERCA ELÉTRICA- EQUIPAMENTOS",null,null,null,{"$f":"SUBTOTAL(9,F812:F816)","v":4812.16}]
["1.30.5.1","FORNECIMENTO E INSTALAÇÃO CENTRAL DE CHOQUE CERCA ELÉTRICA COM CONTROLE REMOTO 433,92MHZ COM RESSONADOR SAW, 04 SAÍDAS, TENSÃO DE CHOQUE ATÉ12.000V, ENERGIA DE 0,7 JOULE NA SAÍDA, COBERTURA DE 3.100M LINEAR, OPÇÃO DE TEPO DE SIRENE DE ATÉ 99S, SAÍDA PARA MONITORAMENTO, INTERLIGÁVEL A CENTRAL DE ALARME, SISTEMA DE APRENDIZAGEM DE PERÍMETRO E DETECÇÃO DE FUGAS, MONITORAMENTO DE ALTA TENSÃO, VIOLAÇÃO DE CERCA E SENSORES. REF. ELC 5112 DA INTEBRAS OU SIMILAR.","UN",1,434.49,{"$f":"ROUND(D812*E812,2)","v":434.49}]
["1.30.5.2","FORNECIMENTO E INSTALAÇÃO CENTRAL DE ALARME MONITORADA, TECLADO LCD, MEMÓRIA PARA NO MÍNIMO 120 DISPOSITIVOS SEM FIO (CONTROLES E SENSORES), ZONAS PERSONALIZÁVEIS NO DISPLAY (MÍNIMO DE 10), IDENTIFICAÇÃO DE USUÁRIO POR CONTROLE REMOTO 433,92MHZ COM RESSONADOR SAW, FONTE CHAVEADA FULL RANGE DE 90-265 VAC (AUTOMÁTICA), SOFTWARE PARA DOWNLOAD E UPLOAD (PLATAFORMA WINDOWS®), COMPATÍVEL COM A MAIORIA DOS MODEMS CONVENCIONAIS. REF. AMT 2018EG INTELBRAS OU SIMILAR.","UN",1,1127.81,1127.81]
["1.30.5.3","FORNECIMENTO E INSTALAÇÃO DE BATERIA SELADA, 12V - 7AH","UN",2,254.16,508.32]
["1.30.5.4","FORNECIMENTO E INSTALAÇÃO SIRENE ELITE ALARME PRETA 12V DE ALTA POTÊNCIA 120DB","UN",4,109.91,439.64]
["1.30.5.5","FORNECIMENTO E INSTALAÇÃO DE SENSOR INFRAVERMELHO PASSIVO COM ARTICULADOR","UN",15,153.46,2301.9]
["1.30.6","ALARME E CERCA ELÉTRICA- INFRAESTRUTURA",null,null,null,{"$f":"SUBTOTAL(9,F818:F825)","v":19843.27}]
["1.30.6.1","FORNECIMENTO E INSTALAÇÃO BIG HASTE PARA CERCA ELÉTRICA COM 6 FIOS - H=1M, ESPESSURA: 25X25  ISOLADORES: 6","UN",97,49.04,{"$f":"ROUND(D818*E818,2)","v":4756.88}]
["1.30.6.2","FORNECIMENTO E INSTALAÇÃO BIG HASTE QUADRADA 25X25MM LISA  COM 6 FIOS - H=1M, ESPESSURA: 25X25 COM BATOQUE, GANCHOS E 12 ISOLADORES MODELO \"CASTANHA\"","UN",15,70.83,1062.45]
["1.30.6.3","FORNECIMENTO E INSTALAÇÃO DE FIO DE AÇO INOX 0,70 MM","m",1900.8000000000002,2.02,3839.62]
["1.30.6.4","FORNECIMENTO E INSTALAÇÃO DE CABO DE ALTA ISOLAÇÃO 7MM","m",20,3.46,69.2]
["1.30.6.5","FORNECIMENTO E INSTALAÇÃO DE MOLAS DE REPUXO AUTOMÁTICO","UN",24,3.03,72.72]
["1.30.6.6","FORNECIMENTO E INSTALAÇÃO DE CONTATO DESLIZANTE PARA CERCA ELÉTRICA","UN",10,84.2,842]
["1.30.6.7","FORNECIMENTO E INSTALAÇÃO DE PLACA DE ALERTA - CUIDADO CERCA ELÉTRICA - 12X17CM","UN",24,7.35,176.4]
["1.30.6.8","FORNECIMENTO E INSTALAÇÃO DE CABO MULTICORES ALARME 4 VIAS","m",1200,7.52,9024]
["1.31","LIMPEZA CONTÍNUA DA OBRA ",null,null,null,{"$f":"SUBTOTAL(9,F827:F827)","v":68088.240000000005}]
["1.31.1","2 SERVENTES PARA LIMPEZA MENSAL DE OBRA COM RETIRADA DE ENTULHO","MÊS",12,5674.02,68088.240000000005]
["1.32","LIMPEZA FINAL DA OBRA",null,null,null,{"$f":"SUBTOTAL(9,F829:F829)","v":21705.18}]
["1.32.1","LIMPEZA FINAL DE OBRA PARA ENTREGA DEFINITIVA. ","M2",6719.87,3.23,{"$f":"ROUND(D829*E829,2)","v":21705.18}]
["VALOR TOTAL",null,null,null,null,{"$f":"SUBTOTAL(9,F15:F829)","v":4760891.1099999975}]

{"sheet":"BLOCO A","index":2,"n_rows":283,"n_cols":6,"rows_kept":283,"cut":false,"hidden":false,"merged":[[13,0,13,5],[10,0,10,5],[0,0,3,2],[0,3,1,5],[2,3,3,3],[2,4,3,4],[2,5,3,5],[4,0,4,5],[5,0,5,5],[6,0,6,5],[7,0,7,5],[8,0,8,5],[9,0,9,5]]}
["                                 PLANILHA ORÇAMENTARIA   ",null,null,"SPN-FF-003"]
[]
[null,null,null,"Folha:              1 de 1","Revisão:      02","Data: \n07/10/19"]
[]
[{"$f":"RESUMO!A5","v":"SESI - SERVIÇO SOCIAL DA INDUSTRIA - DR/MT"}]
[{"$f":"RESUMO!A6","v":"OBRA: CONTRATAÇÃO DE EMPRESA ESPECIALIZADA EM ENGENHARIA PARA OBRA DE REFORMA E AMPLIAÇÃO DA UNIDADE SESI ESCOLA CUIABÁ"}]
[{"$f":"RESUMO!A7","v":"UNIDADE OPERACIONAL: SESI ESCOLA CUIABA"}]
[{"$f":"RESUMO!A8","v":"ENDEREÇO:  AV. OÁTOMO CANAVARROS, 1079, BAIRRO BELA VISTA CIDADE: CUIABÁ-MT            "}]
["CONSTRUTORA:"]
["RESPONSÁVEL TÉCNICO:"]
[]
["ITEM","DESCRIÇÃO","UNID.","QUANT.","Valor UNIT. (R$)","Valor Total (R$)"]
[]
["BLOCO A"]
["2.1","DEMOLIÇÕES E RETIRADAS ",null,null,null,{"$f":"SUBTOTAL(9,F16:F35)","v":49460.85}]
["2.1.1","DEMOLIÇÃO DE ALVENARIA DE BLOCO FURADO, DE FORMA MANUAL, SEM REAPROVEITAMENTO. AF_12/2017","M3",60.061324999999989,50.69,{"$f":"ROUND(D16*E16,2)","v":3044.51}]
["2.1.2","RETIRADA GRADE METALICA","M2",50.848199999999999,10.91,{"$f":"ROUND(D17*E17,2)","v":554.75}]
["2.1.3","DEMOLIÇÃO DE LAJES, DE FORMA MECANIZADA COM MARTELETE, SEM REAPROVEITAMENTO. AF_12/2017","M3",16.857512,107.62,1814.21]
["2.1.4","DEMOLIÇÃO DE PISO REVESTIDO COM GRANILITE","M2",561.38,24.23,13602.24]
["2.1.5","DEMOLIÇÃO DE REVESTIMENTO CERÂMICO, DE FORMA MECANIZADA COM MARTELETE, SEM REAPROVEITAMENTO. AF_12/2017","M2",235.316,10.56,2484.94]
["2.1.6","RETIRADA DE BANCADA COM REAPROVEITAMENTO ","M2",3.3616000000000006,43.7,146.9]
["2.1.7","REMOÇÃO DE TESOURAS METÁLICAS, COM VÃO MENOR QUE 8M, DE FORMA MANUAL, SEM REAPROVEITAMENTO. (MEMORIAL DE ARQUITETURA- COBERTURA 2 ) ","UN",6,212.34,1274.04]
["2.1.8","REMOÇÃO DE TRAMA DE MADEIRA PARA COBERTURA, DE FORMA MANUAL, SEM REAPROVEITAMENTO. (MEMORIAL DE ARQUITETURA- COBERTURA 2, 3 E 4) ","M2",832.57,6.78,5644.82]
["2.1.9","REMOÇÃO DE TELHAS, DE FIBROCIMENTO, METÁLICA E CERÂMICA, DE FORMA MANUAL, SEM REAPROVEITAMENTO. (MEMORIAL DE ARQUITETURA- COBERTURA 2, 3 E 4) ","M2",832.57,3.14,2614.27]
["2.1.10","REMOÇÃO DE PLATIBANDA EM CHAPA METÁLICA COM REAPROVEITAMENTO.","M2",66.203999999999994,21.62,1431.33]
["2.1.11","REMOÇÃO DE LOUÇAS, DE FORMA MANUAL","UN",22,10.97,241.34]
["2.1.12","REMOÇÃO DE PORTAS, DE FORMA MANUAL, COM REAPROVEITAMENTO. ","M2",36.75,31.59,1160.93]
["2.1.13","REMOÇÃO DE PORTAS , GUICHÊ E BOX DE VIDRO TEMPERADO, DE FORMA MANUAL, COM REAPROVEITAMENTO. ","M2",33.191000000000003,31.59,1048.5]
["2.1.14","REMOÇÃO DE JANELAS, DE FORMA MANUAL, COM REAPROVEITAMENTO.","M2",64.239999999999995,75.290000000000006,4836.63]
["2.1.15","REMOÇÃO DE METAIS SANITÁRIOS, DE FORMA MANUAL, SEM REAPROVEITAMENTO. AF_12/2017","UN",27,7.99,215.73]
["2.1.16","REMOÇÃO DE FORROS DE DRYWALL, PVC E FIBROMINERAL, DE FORMA MANUAL, SEM REAPROVEITAMENTO. AF_12/2017","M2",657.65000000000009,1.42,933.86]
["2.1.17","REMOÇÃO DE TRAMA METÁLICA OU DE MADEIRA PARA FORRO, DE FORMA MANUAL, SEM REAPROVEITAMENTO. AF_12/2017","M2",657.65000000000009,2.54,1670.43]
["2.1.18","DEMOLIÇÃO DE PISO REVESTIDO DE GRANITO","M2",57.09,21.06,1202.32]
["2.1.19","RETIRADA DE GUARDA-CORPO E CORRIMÃO","M2",20.940799999999999,10.91,228.46]
["2.1.20","BOTA FORA DE MATERIAL DESCARTADO, D.M.T. = 10 km - (CARGA, TRANSPORTE E DESCARGA MECÂNICA)","M3",210.48911700000002,25.23,5310.64]
["2.2","CANTEIRO DE OBRAS",null,null,null,0]
["2.3","ADMINISTRAÇÃO",null,null,null,0]
["2.4","TERRAPLENAGEM",null,null,null,0]
["2.5","FUNDAÇÃO",null,null,null,{"$f":"SUBTOTAL(9,F40:F55)","v":157727.85}]
["2.5.1","ESCAVAÇÃO MECANIZADA PARA BLOCO DE COROAMENTO OU SAPATA, COM PREVISÃO DE FÔRMA, COM RETROESCAVADEIRA. AF_06/2017","M³",277.2,33.82,{"$f":"ROUND(D40*E40,2)","v":9374.9}]
["2.5.2","ESCAVAÇÃO MANUAL DE VALA PARA VIGA BALDRAME, COM PREVISÃO DE FÔRMA. AF_06/2017","M³",27.76,115.9,3217.38]
["2.5.3","REATERRO MANUAL DE VALAS COM COMPACTAÇÃO MECANIZADA. AF_04/2016","M³",242.5,26,6305]
["2.5.4","CARGA E DESCARGA MECANIZADAS DE ENTULHO EM CAMINHAO BASCULANTE 6 M3","M³",87.44,6.14,536.88]
["2.5.5","TRANSPORTE COM CAMINHÃO BASCULANTE DE 6 M3, EM VIA URBANA PAVIMENTADA, DMT ATÉ 30 KM (UNIDADE: M3XKM). AF_01/2018","M3XKM",874.4,1.91,1670.1]
["2.5.6","FUNDAÇÃO (SAPATAS  E VIGAS DE EQUILÍBRIO) E ESTRUTURA - CONCRETO 1:4:8, CONCRETO MAGRO, C/ BRITA 1 E 2, C/BETONEIRA (e=5cm)","M³",6.9,195.7,1350.33]
["2.5.7","FUNDAÇÃO (SAPATAS E VIGAS DE EQUILÍBRIO) - FORMA PINHO 3A P/CONCRETO EM FUNDAÇÃO REAPROVEITAMENTO 2X - CORTE/MONTAGEM /ESCORAMENTO/DESFORMA","M²",179.3,87.39,15669.03]
["2.5.8","FUNDAÇÃO (SAPATAS, BLOCOS E VIGAS DE EQUILIBRIO) - ARMAÇÃO DE FUNDAÇÕES E ESTRUTURAS DE CONCRETO ARMADO, UTILIZANDO AÇO DE 6,30 MM- ARMAÇÃO E MONTAGEM","KG",42.1,15.24,{"$f":"ROUND(D47*E47,2)","v":641.6}]
["2.5.9","FUNDAÇÃO (SAPATAS, BLOCOS E VIGAS DE EQUILIBRIO) - ARMAÇÃO DE FUNDAÇÕES E ESTRUTURAS DE CONCRETO ARMADO, UTILIZANDO AÇO DE 8.00 MM- ARMAÇÃO E MONTAGEM","KG",39.200000000000003,13.97,547.62]
["2.5.10","FUNDAÇÃO (SAPATAS, BLOCOS E VIGAS DE EQUILIBRIO) - ARMAÇÃO DE FUNDAÇÕES E ESTRUTURAS DE CONCRETO ARMADO, UTILIZANDO AÇO DE 10.00 MM- ARMAÇÃO E MONTAGEM","KG",818.6,12.33,10093.34]
["2.5.11","FUNDAÇÃO (SAPATAS, BLOCOS E VIGAS DE EQUILIBRIO) - ARMAÇÃO DE FUNDAÇÕES E ESTRUTURAS DE CONCRETO ARMADO, UTILIZANDO AÇO  DE 12.50 MM- ARMAÇÃO E MONTAGEM","KG",1039.5,10.34,10748.43]
["2.5.12","FUNDAÇÃO (SAPATAS, BLOCOS E VIGAS DE EQUILIBRIO) - ARMAÇÃO DE FUNDAÇÕES E ESTRUTURAS DE CONCRETO ARMADO, UTILIZANDO AÇO  DE 16 MM- ARMAÇÃO E MONTAGEM","KG",2996.1,9.68,29002.25]
["2.5.13","FUNDAÇÃO (SAPATAS, BLOCOS E VIGAS DE EQUILIBRIO) - ARMAÇÃO DE FUNDAÇÕES E ESTRUTURAS DE CONCRETO ARMADO, UTILIZANDO AÇO  DE 20 MM- ARMAÇÃO E MONTAGEM","KG",394.1,10.63,4189.28]
["2.5.14","FUNDAÇÃO (SAPATAS, BLOCOS E VIGAS DE EQUILIBRIO) - ARMAÇÃO DE FUNDAÇÕES E ESTRUTURAS DE CONCRETO ARMADO, UTILIZANDO AÇO  DE 25 MM- ARMAÇÃO E MONTAGEM","KG",132.19999999999999,10.3,1361.66]
["2.5.15","FUNDAÇÃO (SAPATAS, BLOCOS E VIGAS DE EQUILIBRIO) - CONCRETO USINADO BOMBEAVEL, CLASSE DE RESISTENCIA C25, COM BRITA 0 E 1, SLUMP = 100 +/- 20 MM, INCLUI SERVICO DE BOMBEAMENTO (NBR 8953)","M³",100.48,594.23,59708.23]
["2.5.16","FUNDAÇÃO (SAPATAS, BLOCOS E VIGAS DE EQUILIBRIO)  - LANÇAMENTO COM USO DE BOMBA, ADENSAMENTO E ACABAMENTO DE CONCRETO EM ESTRUTURAS.","M³",100.48,32.96,3311.82]
["2.6","IMPERMEABILIZAÇÃO",null,null,null,{"$f":"SUBTOTAL(9,F57:F57)","v":5129}]
["2.6.1","IMPERMEABILIZAÇÃO DE SUPERFÍCIE COM EMULSÃO ASFÁLTICA, 2 DEMÃOS AF_06/2018","M²",143.75,35.68,{"$f":"ROUND(D57*E57,2)","v":5129}]
["2.7","ESTRUTURA DE CONCRETO ARMADO ",null,null,null,{"$f":"SUBTOTAL(9,F59:F69)","v":180336.85000000003}]
["2.7.1","ESTRUTURA (PILARES) - FORMA PARA CONCRETO EM PILARES 2XREAPROVEITAMENTO - CORTE/MONTAGEM /ESCORAMENTO/DESFORMA","M2",288.3,130.4,{"$f":"ROUND(D59*E59,2)","v":37594.32}]
["2.7.2","ESTRUTURA (VIGAS) - FORMA PARA CONCRETO EM VIGAS 2X REAPROVEITAMENTO - CORTE/MONTAGEM /ESCORAMENTO/DESFORMA","M2",346,137.24,47485.04]
["2.7.3","ESTRUTURA (VIGAS E PILARES, VIGAS BALDRAMES) - ARMAÇÃO DE FUNDAÇÕES E ESTRUTURAS DE CONCRETO ARMADO, UTILIZANDO AÇO DE 5.00 MM - MONTAGEM","KG",267.39999999999998,16.8,4492.32]
["2.7.4","ESTRUTURA (VIGAS E PILARES, VIGAS BALDRAMES) - ARMAÇÃO DE FUNDAÇÕES E ESTRUTURAS DE CONCRETO ARMADO, UTILIZANDO AÇO DE 6,30 MM - ARMAÇÃO E MONTAGEM","KG",761,15.31,11650.91]
["2.7.5","ESTRUTURA (VIGAS E PILARES, VIGAS BALDRAMES) - ARMAÇÃO DE FUNDAÇÕES E ESTRUTURAS DE CONCRETO ARMADO, UTILIZANDO AÇO DE 8.00 MM- ARMAÇÃO E MONTAGEM","KG",13.5,13.96,188.46]
["2.7.6","ESTRUTURA (VIGAS E PILARES, VIGAS BALDRAMES) - ARMAÇÃO DE FUNDAÇÕES E ESTRUTURAS DE CONCRETO ARMADO, UTILIZANDO AÇO DE 10.00 MM- ARMAÇÃO E MONTAGEM","KG",116.5,12.25,1427.13]
["2.7.7","ESTRUTURA (VIGAS E PILARES, VIGAS BALDRAMES) - ARMAÇÃO DE FUNDAÇÕES E ESTRUTURAS DE CONCRETO ARMADO, UTILIZANDO AÇO  DE 12.50 MM- ARMAÇÃO E MONTAGEM","KG",2599.3000000000002,10.19,26486.87]
["2.7.8","ESTRUTURA (VIGAS E PILARES, VIGAS BALDRAMES) - ARMAÇÃO DE FUNDAÇÕES E ESTRUTURAS DE CONCRETO ARMADO, UTILIZANDO AÇO  DE 16 MM- ARMAÇÃO E MONTAGEM","KG",2242.4,9.4700000000000006,21235.53]
["2.7.9","ESTRUTURA (VIGAS E PILARES, VIGAS BALDRAMES) - ARMAÇÃO DE FUNDAÇÕES E ESTRUTURAS DE CONCRETO ARMADO, UTILIZANDO AÇO  DE 20 MM- ARMAÇÃO E MONTAGEM","KG",156,10.38,1619.28]
["2.7.10","ESTRUTURA (VIGAS E PILARES, VIGAS BALDRAMES) - CONCRETO USINADO BOMBEAVEL, CLASSE DE RESISTENCIA C25, COM BRITA 0 E 1, SLUMP = 100 +/- 20 MM, INCLUI SERVICO DE BOMBEAMENTO (NBR 8953)","M³",48.2,551.21,26568.32]
["2.7.11","ESTRUTURAS (VIGAS E PILARES, VIGAS BALDRAMES) - LANÇAMENTO COM USO DE BOMBA, ADENSAMENTO E ACABAMENTO DE CONCRETO EM ESTRUTURAS.","M³",48.2,32.96,1588.67]
["2.8","ALVENARIA E PAINÉIS",null,null,null,{"$f":"SUBTOTAL(9,F71:F78)","v":69272.010000000009}]
["2.8.1","ALVENARIA DE VEDAÇÃO DE BLOCOS CERÂMICOS FURADOS NA HORIZONTAL DE 9X19X19CM (ESPESSURA 9CM) DE PAREDES COM ÁREA LÍQUIDA MAIOR OU IGUAL A 6M² COM VÃOS E ARGAMASSA DE ASSENTAMENTO COM PREPARO EM BETONEIRA. AF_06/2014","M2",512.83500000000004,83.75,{"$f":"ROUND(D71*E71,2)","v":42949.93}]
["2.8.2","PAREDE COM PLACAS DE GESSO ACARTONADO (DRYWALL), PARA USO INTERNO, COM DUAS FACES SIMPLES E ESTRUTURA METÁLICA COM GUIAS SIMPLES, COM VÃOS AF_06/2017_P","M2",134.30749999999998,104.87,14084.83]
["2.8.3","INSTALAÇÃO DE ISOLAMENTO COM LÃ DE ROCHA EM PAREDES DRYWALL. AF_06/2017","M2",134.30749999999998,27.43,3684.05]
["2.8.4","VERGA PRÉ-MOLDADA PARA JANELAS COM ATÉ 1,5 M DE VÃO. AF_03/2016","M",13.16,32.799999999999997,431.65]
["2.8.5","CONTRAVERGA PRÉ-MOLDADA PARA VÃOS DE ATÉ 1,5 M DE COMPRIMENTO. AF_03/2016","M",13.16,32.26,424.54]
["2.8.6","VERGA PRÉ-MOLDADA PARA JANELAS COM MAIS DE 1,5 M DE VÃO. AF_03/2016","M",94.220000000000013,41.68,3927.09]
["2.8.7","CONTRAVERGA PRÉ-MOLDADA PARA VÃOS DE MAIS DE 1,5 M DE COMPRIMENTO. AF_03/2016","M",81.62,38.39,3133.39]
["2.8.8","VERGA PRÉ-MOLDADA PARA PORTAS COM ATÉ 1,5 M DE VÃO. AF_03/2016","M",25.760000000000005,24.71,636.53]
["2.9","ESTRUTURA METÁLICA",null,null,null,{"$f":"SUBTOTAL(9,F80:F84)","v":520689.75000000006}]
["2.9.1","ESTRUTURA METALICA DA COBERTURA E FACHADA CONFORME PROJETO EM AÇO ESTRUTURAL","KG",24632.01,15.16,{"$f":"ROUND(D80*E80,2)","v":373421.27}]
["2.9.2","RETIRADA DE ESTRUTURA PLATIBANDA, SECCIONAMENTO DE TESOURAS METALICAS EXISTENTES E RECOLOCAÇÃO DAS ESTRUTURA DA PLATIBANDA COM APROVEITAMENTO DO MATERIAL EXISTENTE, ELEVAÇÃO FRONTAL.(MEMORIAL ARQUITETURA- COBERTURA 04)","M2",26.44,27.97,{"$f":"ROUND(D81*E81,2)","v":739.53}]
["2.9.3","SUBSTIUIÇÃO DA TRAMA DE MADEIRAS POR TERÇA METALICA .(MEMORIAL ARQUITETURA- COBERTURA 02)","KG",4118.3999999999996,15.16,{"$f":"ROUND(D82*E82,2)","v":62434.94}]
["2.9.4","PINTURA COM TINTA PROTETORA ACABAMENTO CINZA PLATINA ESMALTE SOBRE SUPERFICIE METALICA, 2 DEMAOS (TODA ESTRUTURA DA COBERTURA ,FACHADA E PLATIBANDA)","M2",1490.5,41.6,{"$f":"ROUND(D83*E83,2)","v":62004.800000000003}]
["2.9.5","FUNDO PREPARADOR PRIMER A BASE DE EPOXI,  UMA DEMAO, ESPESSURA DE 25 MICRA.(TODA ESTRUTURA DA COBERTURA ,FACHADA E PLATIBANDA)","M2",1490.5,14.82,{"$f":"ROUND(D84*E84,2)","v":22089.21}]
["2.10","COBERTURA",null,null,null,{"$f":"SUBTOTAL(9,F86:F89)","v":239649.82}]
["2.10.1","TELHAMENTO COM TELHA METÁLICA TERMOACÚSTICA E = 30 MM, COM ATÉ 2 ÁGUAS , INCLUSO IÇAMENTO. AF_07/2019, conforme projeto e memorial descritivo\nREVESTIMENTO SUPERIOR:\n• AÇO GALVALUME AZM150 PRÉ-PINTADO TRAPEZOIDAL TP30, ESPESSURA TÉCNICA DE 0,43 MM, CROMATIZADA COM PRIMER EPÓXI (4 A 6 MICRONS) E PINTURA DE ACABAMENTO EM POLIÉSTER (18 A 22 MICRONS) COR BRANCO GELO (PADRÃO RAL 9003),  CONJUNTO MONOLÍTICO TELHA/EPS/FILME, PRODUZIDO PELO PROCESSO DE COLAGEM CONTÍNUA, CONFORME FABRICANTE\n NÚCLEO: \n• NÚCLEO ISOLANTE EM E.P.S. (POLIESTIRENO EXPANDIDO), ESPESSURA 30 MM, LIVRE DE CFC REVESTIMENTO INFERIOR:\n• FILME DE ALUMÍNIO ESTUCO FOSCO, ESP. TÉC. MÍNIMA 40 U.M.\nReferência comercial: ISOESTE OU SIMILAR","M2",1007.49,207.03,{"$f":"ROUND(D86*E86,2)","v":208580.65}]
["2.10.2","CUMEEIRA TRAPEZOIDAL TP -30 RAL 9003 PRÉ PINTADA NA COR BRANCA #0,43 DE AÇO GALVANIZADO, ISOESTE OU SIMILAR","M",47,68.680000000000007,{"$f":"ROUND(D87*E87,2)","v":3227.96}]
["2.10.3","PLATIBANDA EM CHAPA DE AÇO COM REAPROVEITANDO DO MATERIAL EXISTENTE","M2",88.415999999999997,264.61,{"$f":"ROUND(D88*E88,2)","v":23395.759999999998}]
["2.10.4","PLATIBANDA EM CHAPA DE AÇO ESPESSURA 2,00mm, H=1600mm, DOBRA CARTOLA: 30X20X970mm, COM METALON DIM. 50X20X0,97mm NA FACE INFERIOR PARA ARREMATE COM O FORRO, FUNDO ANTICORROSIVO EM PRIMER EPÓXI NAS DUAS FACES (MATERIAL NOVO)","M2",16.8,264.61,{"$f":"ROUND(D89*E89,2)","v":4445.45}]
["2.11","ESQUADRIAS",null,null,null,{"$f":"SUBTOTAL(9,F91:F110)","v":255137.08000000002}]
["2.11.1","P1 – PORTA DE ABRIR DUAS FOLHAS, EM PAINEL DE VIDRO LAMINADO NA COR BLUE STAR 8MM (4MM+4MM), DIM. 2,10X2,45M, REQUADRO DE ALUMÍNIO NA COR: NATURAL, INCLUINDO DOBRADIÇAS, FECHADURAS, PUXADORES TUBULAR RETO 40CM ALUMINIO POLIDO, MOLA HIDRÁULICA DE PISO NAS DUAS FOLHAS E TODAS AS FERRAGENS DE INSTALAÇÃO PARA PERFEITO USO E FUNCIONAMENTO. (PELE DE VIDRO DA FACHADA)","CONJ",2,9019.94,{"$f":"ROUND(D91*E91,2)","v":18039.88}]
["1.11.2","P2 - PORTA DE ABRIR EM LAMBRIL COM ALISAR E PORTAL EM ALUMÍNIO, COM PINTURA ELETROSTÁTICA MICROTEXTURADA, DIM. 0,70 X 2,10M, COR AZUL NEON NA FOLHA; PORTAL, ALISAR, DOBRADIÇA NA COR CINZA PLATINA, FECHADURA MODELO STAM 803/10 ESPELHO INOX EXT., INCLUSIVE FERRAGENS DE INSTALAÇÃO PARA PERFEITO USO E FUNCIONAMENTO. (1 UNIDADE: LAVABO GERÊNCIA)","M2",1.47,1280.44,1882.25]
["1.11.3","P3 - PORTA DE VIDRO TEMPERADO DE DUAS FOLHAS DE ABRIR 1,80X2,10 FUMÊ ESP.10MM, COM MOLA HIDRÁULICA DE PISO NAS DUAS FOLHAS,PUXADOR TUBULAR RETO 40CM ALUMINIO POLIDO, FERRAGENS CROMADAS E FIXAÇÕES EM PAREDES, PISOS E FORROS CONFORME NORMAS DO FABRICANTE, SEGUINDO AS INDICAÇÕES DO PROJETO ARQUITETÔNICO, INCLUSIVE FERRAGENS DE INSTALAÇÃO PARA PERFEITO USO E FUNCIONAMENTO. (HALL DE ENTRADA)","CONJ",4,5529.38,22117.52]
["1.11.4","P3 REAPROVEITADA - PORTA DE VIDRO TEMPERADO DE DUAS FOLHAS DE ABRIR 1,80X2,10, COM REAPROVEITAMENTO DO VIDRO, INCLUSO NOVAS MOLAS HIDRÁULICA DE PISO NAS DUAS FOLHAS, NOVOS PUXADORES TUBULAR RETO 40CM ALUMINIO POLIDO, E NOVAS FERRAGENS CROMADAS E FIXAÇÕES EM PAREDES, PISOS E FORROS CONFORME NORMAS DO FABRICANTE, SEGUINDO AS INDICAÇÕES DO PROJETO ARQUITETÔNICO, INCLUSIVE FERRAGENS DE INSTALAÇÃO PARA PERFEITO USO E FUNCIONAMENTO. (CIRCULAÇÃO SECRETARIA, ÁREA TÉCNICA E SALA DE TREINAMENTO)","CONJ",4,5529.38,22117.52]
["1.11.5","P4 - PORTA DE ABRIR EM LAMBRIL  COM ALISAR E PORTAL EM ALUMÍNIO, COM PINTURA ELETROSTÁTICA MICROTEXTURADA, DIM. 0,80 X 2,10M, COR AZUL NEON NA FOLHA; PORTAL, ALISAR, DOBRADIÇA NA COR CINZA PLATINA, FECHADURA MODELO STAM 803/10 ESPELHO INOX EXT., INCLUSIVE FERRAGENS DE INSTALAÇÃO PARA PERFEITO USO E FUNCIONAMENTO. (3 UNIDADES: SANITÁRIOS MASCULINO, FEMININO E DEPOSITO MATERIAIS ESPORTIVOS).","M2",5.0400000000000009,1280.44,6453.42]
["1.11.6","P5 - PORTA DE ABRIR EM LAMBRIL  COM ALISAR E PORTAL EM ALUMÍNIO, COM PINTURA ELETROSTÁTICA MICROTEXTURADA, DIM. 0,90 X 2,10M, COR AZUL NEON NA FOLHA; PORTAL, ALISAR, DOBRADIÇA NA COR CINZA PLATINA, FECHADURA MODELO STAM 803/10 ESPELHO INOX EXT., INCLUSIVE FERRAGENS DE INSTALAÇÃO PARA PERFEITO USO E FUNCIONAMENTO. (23 UNIDADES: SALAS ADMINISTRATIVAS EM GERAL)","M2",43.47,1280.44,55660.73]
["1.11.7","P5 REAPROVEITADA- PORTA DE ABRIR COM ALISAR E PORTAL EM ALUMÍNIO, COM NOVAS MOLDURAS/GUARNIÇÃO DE ACABAMENTO E NOVAS FERRAGENS DE INSTALAÇÃO PARA PERFEITO USO E FUNCIONAMENTO. (4 UNIDADES: DEP. DE MATERIAIS DE MAN. E PAT, DEP. GARR. ÁGUA, DML, DEP. EQUIP. SONORIZAÇÃO) ","M2",7.5600000000000005,126.18,953.92]
["1.11.8","P11 - PORTA DE ABRIR EM VENEZIANA, DIM 0,60X1,90M INSTALADA 0,20M ACIMA DO PISO, ALUMÍNIO FOSCO, FECHADURA, INCLUSIVE FERRAGENS DE INSTALAÇÃO PARA PERFEITO USO E FUNCIONAMENTO. (13 UNIDADES: TODOS OS BOXES DOS SANITÁRIOS.)","M2",14.819999999999999,925.66,13718.28]
["1.11.9","P18 –PORTA DE VIDRO TEMPERADO, UMA FOLHA DE ABRIR 0,90X2,10M FUMÊ ESP.10MM, COM MOLA HIDRÁULICA DE PISO NA FOLHA, PUXADOR TUBULAR RETO 40CM ALUMINIO POLIDO, FERRAGENS CROMADAS E FIXAÇÕES EM PAREDES, PISOS E FORROS CONFORME NORMAS DO FABRICANTE, SEGUINDO AS INDICAÇÕES DO PROJETO ARQUITETÔNICO, INCLUSIVE FERRAGENS DE INSTALAÇÃO PARA PERFEITO USO E FUNCIONAMENTO. (LOCAL: BRINQUEDOTECA)","CONJ",1,2764.68,2764.68]
["1.11.10","P18  REAPROVEITADA- PORTA DE VIDRO TEMPERADO, UMA FOLHA DE ABRIR 0,90X2,10M , COM REAPROVEITAMENTO DO VIDRO, INCLUSO NOVA MOLA HIDRÁULICA DE PISO NA FOLHA,  NOVO PUXADOR TUBULAR RETO 40CM ALUMINIO POLIDO, NOVAS FERRAGENS CROMADAS E FIXAÇÕES EM PAREDES, PISOS E FORROS CONFORME NORMAS DO FABRICANTE, SEGUINDO AS INDICAÇÕES DO PROJETO ARQUITETÔNICO, INCLUSIVE FERRAGENS DE INSTALAÇÃO PARA PERFEITO USO E FUNCIONAMENTO. (BRINQUEDOTECA E ESPERA)","CONJ",1,2764.68,2764.68]
["1.11.11","J1 - JANELA DE VIDRO TEMPERADO, 6MM , INCOLOR, DIM. 0,70X1,45X1,18, ESTRUTURA EM ALUMÍNIO ANODIZADO FOSCO, JANELA CONTENDO UMA SUBDIVISÃO, SENDO A PARTE SUPERIOR MÓVEL TIPO MÁXIMO-AR E A PARTE INFERIOR FIXA, INCLUSIVE FERRAGENS DE INSTALAÇÃO PARA PERFEITO USO E FUNCIONAMENTO; (3 UNIDADES: INSPETORIA, ENFERMAGEM E GERÊNCIA)","M2",3.0449999999999995,648.33000000000004,{"$f":"ROUND(D101*E101,2)","v":1974.16}]
["1.11.12","J3 - JANELA DE VIDRO TEMPERADO, 6MM , INCOLOR, DIM. 2,10X1,45X1,18, ESTRUTURA EM ALUMÍNIO ANODIZADO FOSCO, JANELA DIVIDIDO EM 03 PARTES IGUAIS, E EM CADA UMA DESSAS PARTES DEVERÁ CONTER UMA SUBDIVISÃO, SENDO A PARTE SUPERIOR MÓVEL TIPO MÁXIMO-AR E A PARTE INFERIOR FIXA, INCLUSIVE FERRAGENS DE INSTALAÇÃO PARA PERFEITO USO E FUNCIONAMENTO. (15 UNIDADES- SALAS ADMINISTRATIVAS NO GERAL)","M2",45.674999999999997,648.33000000000004,29612.47]
["1.11.13","J6- JANELA DE VIDRO TEMPERADO, 6MM , INCOLOR, DIM. 0,70X0,60X2,30, ESTRUTURA EM ALUMÍNIO ANODIZADO FOSCO, JANELA MÓVEL TIPO MÁXIMO-AR, INCLUSIVE FERRAGENS DE INSTALAÇÃO PARA PERFEITO USO E FUNCIONAMENTO; (4 UNIDADES: LAVABO GERÊNCIA,  SANITÁRIOS PCD, DEPOSITO GARRAFÕES DE AGUA)","M2",1.68,648.33000000000004,1089.19]
["1.11.14","J8- JANELA DE VIDRO TEMPERADO, 6MM , INCOLOR, DIM. 2,10X0,60X2,30, ESTRUTURA EM ALUMÍNIO ANODIZADO FOSCO, JANELA DIVIDIDO EM 03 PARTES IGUAIS, MÓVEL TIPO MÁXIMO-AR, INCLUSIVE FERRAGENS DE INSTALAÇÃO PARA PERFEITO USO E FUNCIONAMENTO. (8 UNIDADES: (8 UNIDADES: SANITÁRIOS, TI, ARQUIVO ESCOLAR E DEPÓSITO MATERIAL ESPORTIVO)","M2",10.08,648.33000000000004,6535.17]
["1.11.15","V1 - VISOR EM VIDRO TEMPERADO ESPESSURA 6MM, FUMÊ, DIM. 1,50X1,00X1,10, REQUADRO DE ALUMÍNIO NA COR NATURAL, INCLUSIVE FERRAGENS DE INSTALAÇÃO PARA PERFEITO USO E FUNCIONAMENTO. (5 UNIDAES: ÁREA TÉCNICA)","M2",7.5,338.81,2541.08]
["1.11.16","V2 - VISOR EM VIDRO TEMPERADO ESPESSURA 6MM, FUMÊ, DIM. 1,00X1,30X0,80, REQUADRO DE ALUMÍNIO NA COR NATURAL, COM BOQUETA, INCLUSIVE FERRAGENS DE INSTALAÇÃO PARA PERFEITO USO E FUNCIONAMENTO. (2 UNIDADES: TESOURARIA)","M2",2.6,338.81,880.91]
["1.11.17","V3 - VISOR EM VIDRO TEMPERADO ESPESSURA 6MM, FUMÊ, DIM. 2,00X1,00X1,10, REQUADRO DE ALUMÍNIO NA COR NATURAL, INCLUSIVE FERRAGENS DE INSTALAÇÃO PARA PERFEITO USO E FUNCIONAMENTO. (6 UNIDAES: ÁREA TÉCNICA)","M2",12,338.81,4065.72]
["1.11.18","VIDRO TEMPERADO INCOLOR, ESPESSURA 10MM, FORNECIMENTO E INSTALACAO. ( SALAS DOS PAIS E HALL DE ENTRADA)","M2",64.921099999999996,427.01,27721.96]
["1.11.19","ESPELHO  CRISTAL E=4MM,  FORNECIMENTO E INSTALAÇÃO ( SANITÁRIOS)","M2",16.236000000000001,471.22,7650.73]
["1.11.20","FORNECIMENTO E INSTALAÇÃO DE PELE DE VIDRO COR A DEFINIR PELO ARQUITETO FISCAL - 8MM (4MM + 4MM), INCLUSIVE FERRAGENS DE INSTALAÇÃO - PARA PERFEITO USO E FUNCIONAMENTO. NESTE QUANTITATIVO ESTÃO INCLUSOS OS PAINÉIS FIXOS EM ESTRUTURA DE ALUMÍNIO. (FACHADA PRINCIPAL)","M2",19.72,1348.52,26592.81]
["2.12","PISOS",null,null,null,{"$f":"SUBTOTAL(9,F112:F117)","v":208753.6}]
["2.12.1","CONTRAPISO DE CONCRETO 20 MPA PREPARO MECANICO, ESPESSURA 7CM.  ","M2",904.29180000000019,70.069999999999993,{"$f":"ROUND(D112*E112,2)","v":63363.73}]
["2.12.2","REGULARIZAÇÃO EM ARGAMASSA TRAÇO 1:4 (CIMENTO E AREIA), PREPARO MECÂNICOCOM BETONEIRA 400 L, APLICADO EM ÁREAS SECAS SOBRE LAJE, ADERIDO, ESPESSURA 3CM","M2",904.29180000000019,37.79,34173.19]
["2.12.3","PISO PORCELANATO POLIDO ADHARA PO, 80X80CM, ELIANE OU SIMILR TÉCNICO.","M2",884.40330000000017,107.52,95091.04]
["2.12.4","RODAPÉ EM PISO PORCELANATO POLIDO ADHARA PO, 80X80CM, ELIANE OU SIMILR TÉCNICO.","M",533.69439999999997,11.48,6126.81]
["2.12.5","PISO EM GRANITO CINZA ANDORINHA COM FRISO ANTIDERRAPANTE (RAMPAS DE ACESSO) ","M2",19.888500000000001,447.96,8909.25]
["2.12.6","RODAPÉ EM GRANITO, ALTURA 10 CM. ","M",13.440000000000001,81.069999999999993,1089.58]
["2.13","REVESTIMENTO ",null,null,null,{"$f":"SUBTOTAL(9,F119:F126)","v":318561.15000000002}]
["2.13.1","CHAPISCO APLICADO EM ALVENARIAS E ESTRUTURAS DE CONCRETO INTERNAS, COM ROLO PARA TEXTURA ACRÍLICA.  ARGAMASSA TRAÇO 1:4 E EMULSÃO POLIMÉRICA (ADESIVO) COM PREPARO EM BETONEIRA 400L. AF_06/2014","M2",1025.67,5.09,{"$f":"ROUND(D119*E119,2)","v":5220.66}]
["2.13.2","O SERVIÇO DE EMBOÇO/MASSA ÚNICA, APLICADO MANUALMENTE, TRAÇO 1:2:8, EM BETONEIRA DE 400L, PAREDES INTERNAS, COM EXECUÇÃO DE TALISCAS, EDIFICAÇÃO HABITACIONAL UNIFAMILIAR (CASAS) E EDIFICAÇÃO PÚBLICA PADRÃO. AF_12/2014","M2",1025.67,31.51,32318.86]
["2.13.3","REVESTIMENTO CERAMICO PORTOBELLO GLACIE WHITE 30X60CM, INCLUSO E REJUNTE - FORNECIMENTO E INSTALAÇÃO","M2",267.81360000000001,156.44,41896.76]
["2.13.4","REVESTIMENTO CERÂMICO PARA PAREDES EXTERNAS EM PASTILHAS DE PORCELANA 5 X 5 CM (PLACAS DE 30 X 30 CM), ALINHADAS A PRUMO, APLICADO EM PANOS COM VÃOS. AF_06/2014","M2",40.170599999999993,246.69,9909.69]
["2.13.5","REVESTIMENTO CERAMICO PORTOBELLO 7x26, BASALTO OFF WHITE, REFERENCIA  24995E, INCLUSO E REJUNTE - FORNECIMENTO E INSTALAÇÃO","M2",97.410799999999995,182.46,17773.57]
["2.13.6","FORNECIMENTO E INSTALAÇÃO DE TELA EXPANDIDA EM AÇO GALVANIZADO, MALHA 20x50MM, PINTADO NA COR GRAFITE ESCURO. CONFORME INDICAÇÃO EM PROJETO E ESPECIFICAÇÃO DO FABRICANTE.; INCLUSIVE ESTRUTURA DE SUSTENTAÇÃO EM METALON 50X20X1,5 FIXAÇÃO EM CANTONEIRA METÁLICA, INCLUSIVE CHUMBAMENTOS EM ALVENARIAS, E DEMAIS ANCORAGENS DO CONJUNTO, CONFORME NORMAS DO FABRICANTE - FORNECIMENTO E INSTALAÇÃO","M2",102,676.52,69005.039999999994]
["2.13.7","REVESTIMENTO DE ACM, REFERÊNCIA: PRO 107 SILVER WHITE METALLIC, PROJETO ALUMINIO OU SIMILAR- ALUMÍNIO COMPOSTO, TUBOS DE AUMÍNIO, ACESSÓRIOS, FRETES - CHAPAS DE ACM COM PINTURA KAYNNAR (PVDF) COM 4,0 DE ESPESSURA, COM GARANTIA DE PINTURA DE FABRICA DE 10 A 15 ANOS - CONFORME INDICAÇÃO EM PROJETO E ESPECIFICAÇÃO DO FABRICANTE; INCLUSIVE ESTRUTURA DE SUSTENTAÇÃO EM ALUMINIO ANODIZADO RETANGULAR PERFIL 25,50X3,18MM E FIXAÇÃO EM CANTONEIRA DE ALUMINIO 25,4X3,17MM E=1/8\" , INCLUSIVE CHUMBAMENTOS EM ALVENARIAS/CONCRETO, E DEMAIS ANCORAGENS DO CONJUNTO, CONFORME NORMAS DO FABRICANTE.","M2",177.05700000000002,596.77,{"$f":"ROUND(D125*E125,2)","v":105662.31}]
["2.13.8","REVESTIMENTO DE ACM, REFERÊNCIA: PRO 114 JADE SILVER METALLIC, PROJETO ALUMINIO OU SIMILAR  - ALUMÍNIO COMPOSTO, TUBOS DE AUMÍNIO, ACESSÓRIOS, FRETES - CHAPAS DE ACM COM PINTURA KAYNNAR (PVDF) COM 4,0 DE ESPESSURA, COM GARANTIA DE PINTURA DE FABRICA DE 10 A 15 ANOS - CONFORME INDICAÇÃO EM PROJETO E ESPECIFICAÇÃO DO FABRICANTE; INCLUSIVE ESTRUTURA DE SUSTENTAÇÃO EM ALUMINIO ANODIZADO RETANGULAR PERFIL 25,50X3,18MM E FIXAÇÃO EM CANTONEIRA DE ALUMINIO 25,4X3,17MM E=1/8\" , INCLUSIVE CHUMBAMENTOS EM ALVENARIAS/CONCRETO, E DEMAIS ANCORAGENS DO CONJUNTO, CONFORME NORMAS DO FABRICANTE.","M2",41.404999999999994,888.16,{"$f":"ROUND(D126*E126,2)","v":36774.26}]
["2.14","GRANITO",null,null,null,{"$f":"SUBTOTAL(9,F128:F131)","v":65886.899999999994}]
["2.14.1","BANCADA DE GRANITO CINZA ANDORINHA, SOBRE MÃOS-FRANCESAS METÁLICAS, ESP=2cm COM FRONTÃO 20cm, SAIA COM ACAB. DE MEIA ESQUADRIA 30CM E REFORÇO INFERIOR DE BORDA E CORTE PARA INST. DE CUBAS DE LOUÇA OVAL DE EMBUTIR LOCAL \n-BANCADAS DOS SANITÁRIOS E LAVATÓRIOS- FRONTÃO 20CM E SAIA DE 30CM ","M2",14.212999999999999,884.39,{"$f":"ROUND(D128*E128,2)","v":12569.84}]
["2.14.2","DIVISORIA EM GRANITO BRANCO POLIDO, ESP = 3CM, ASSENTADO COM ARGAMASSA TRACO 1:4, ARREMATE EM CIMENTO BRANCO, EXCLUSIVE FERRAGENS","M2",43.905000000000001,903.77,{"$f":"ROUND(D129*E129,2)","v":39680.019999999997}]
["2.14.3","SOLEIRA EM GRANITO, LARGURA 15 CM, ESPESSURA 2,0 CM. AF_06/2018","M",56.319999999999993,114.65,{"$f":"ROUND(D130*E130,2)","v":6457.09}]
["2.14.4","FORNECIMENTO E INSTALAÇÃO DE PEITORIL / PINGADEIRA EM GRANITO ANDORINHA 16,5 CM, ESPESSURA 2,0 CM, ASSENTADO COM ARGAMASSA TRACO 1:3 (CIMENTO E AREIA MEDIA), PREPARO MANUAL DA ARGAMASSA","M2",16.028100000000002,447.96,{"$f":"ROUND(D131*E131,2)","v":7179.95}]
["2.15","FORROS",null,null,null,{"$f":"SUBTOTAL(9,F133:F136)","v":128122.23}]
["2.15.1","FORRO ACÚSTICO EM FIBRA MINERAL: REF: OWA DO BRASIL, MODELO COSMOS TEGULAR, MODULAÇÃO 625X625MM COM ABSORÇÃO ACÚSTICA NRC=0,65 E RESISTÊNCIA A UMIDADE RH 95% (COMPOSIÇÃO: FIBRA MINERAL BIOSOLÚVEL COMPOSTA POR MINERAIS INERTES, ARGILA E AMIDO NATURAL - MAT. INCOMBUSTÍVEL).","M2",793.8561000000002,142.13,{"$f":"ROUND(D133*E133,2)","v":112830.77}]
["2.15.2","FORRO DE PVC: FORRO DE PVC MODULAR BRANCO ESPSESSURA 10MM, MODULAÇÃO 625X625MM, INSTALADOS EM PERFIL \"T\", SUPENSO POR PENDURAIS EM ARRAME GALVANIZADO A CADA 1250X1250MM","M2",110.4357,91.95,{"$f":"ROUND(D134*E134,2)","v":10154.56}]
["2.15.3","REVESTIMENTO DE ACM Tecbond Cinza Metálico Kynar OU SIMILAR  - ALUMÍNIO COMPOSTO, FERRO, TUBOS DE AUMÍNIO, ACESSÓRIOS, ANDAIMES, FRETES - CHAPAS DE ACM COM PINTURA KAYNNAR (PVDF) COM 4,0 DE ESPESSURA, COM GARANTIA DE PINTURA DE FABRICA DE 10 A 15 ANOS - C (EMBAIXO MARQUISE DE ENTRADA) ","M2",25,28.15,{"$f":"ROUND(D135*E135,2)","v":703.75}]
["2.15.4","BEIRAIS-FORRO DE PVC, LISO, REGUA DE 20CM, INCLUSIVE ESTRUTURA DE FIXAÇÃO. AF_05/2017_P","M2",75.099999999999994,59.03,{"$f":"ROUND(D136*E136,2)","v":4433.1499999999996}]
["2.16","PINTURA",null,null,null,{"$f":"SUBTOTAL(9,F138:F144)","v":73659.75}]
["2.16.1","APLICAÇÃO DE FUNDO SELADOR LÁTEX PVA EM PAREDES DE ALVENARIA","M2",2174.4299999999998,2.31,{"$f":"ROUND(D138*E138,2)","v":5022.93}]
["2.16.2","EMASSAMENTO COM MASSA LATEX PVA PARA AMBIENTES INTERNOS","M2",1629.4135000000001,14.74,24017.55]
["2.16.3","PINTURA C/ APLICAÇÃO DE TINTA LATÉX ACRÍLICO, DUAS DEMÃOS- AMBIENTES INTERNOS","M2",1698.3735000000001,14.41,24473.56]
["2.16.4","TEXTURA ACRÍLICA, APLICAÇÃO MANUAL EM PAREDE, UMA DEMÃO.PLATIBANDAS E PAREDES EXTERNAS","M2",664.93250000000012,14.96,9947.39]
["2.16.5","APLICAÇÃO MANUAL DE PINTURA COM TINTA LÁTEX ACRÍLICA EM PAREDES, DUAS DEMÃOS. PLATIBANDAS E PAREDES EXTERNAS","M2",664.93250000000012,14.41,9581.68]
["2.16.6","PINTURA ACRILICA EM PISO CIMENTADO DUAS DEMAOS - CIRCULAÇÃO AO REDOR DO JARDIM","M2",27.827999999999999,16.66,463.61]
["2.16.7","PINTURA COM TINTA ALQUÍDICA DE ACABAMENTO (ESMALTE SINTÉTICO ACETINADO CINZ PLATINA) APLICADA A ROLO OU PINCEL SOBRE PERFIL METÁLICO. (CORRIMÃOS E GUARDA-CORPO)","M2",16.420000000000002,9.32,153.03]
["2.17","CALÇAMENTO, PÁTIO E PASSARELAS ",null,null,null,{"$f":"SUBTOTAL(9,F146:F146)","v":2612.4899999999998}]
["2.17.1","EXECUÇÃO DE PASSEIO (CALÇADA) OU PISO DE CONCRETO COM CONCRETO MOLDADO IN LOCO, USINADO, ACABAMENTO CONVENCIONAL, ESPESSURA 8 CM, ARMADO. (ACESSO AOS DEPÓSITOS)","M2",27.827999999999999,93.88,{"$f":"ROUND(D146*E146,2)","v":2612.4899999999998}]
["2.18","SERVIÇOS COMPLEMENTARES",null,null,null,{"$f":"SUBTOTAL(9,F148:F152)","v":8904.99}]
["2.18.1","PLANTIO DE GRAMA EM PLACAS. (ACESSO AOS DEPÓSITOS)","M2",24.162800000000001,10.93,{"$f":"ROUND(D148*E148,2)","v":264.10000000000002}]
["2.18.2","FORNECIMENTO E INSTALAÇÃO CORRIMÃO , DIÂMETRO EXTERNO = 1 1/2\", EM AÇO GALVANIZADO. (CONFORME DETALHE PSCIP- RAMPA DE ACESSO SALA DOS PAIS, CIRCULAÇÃO SECRETARIA)","M",13.5,131.91,{"$f":"ROUND(D149*E149,2)","v":1780.79}]
["2.18.3","FORNECIMENTO E INSTALAÇÃO GUARDA CORPO E CORRIMÃO EM TUBO FERRO GALVANIZADO, ALT=1,10M, COM BARRAS VERTICAIS A CADA 11CM (3/4\") E BARRAS HORIZONTAIS (SUPERIOR, INTERMEDIÁRIAS (DUAS) E INFERIOR) DE 1.1/2\", INCLUSIVE CURVA DE AÇO (CONFORME DETALHE PSCIP- RAMPA DE ACESSO SALA DOS PAIS)","M",6.85,372.7,{"$f":"ROUND(D150*E150,2)","v":2553}]
["2.18.4","GRADIL DE INOX H=1,10M","M",3.4622000000000002,825.86,{"$f":"ROUND(D151*E151,2)","v":2859.29}]
["2.18.5","PORTINHOLA H=0,90M","UN",1,1447.81,{"$f":"ROUND(D152*E152,2)","v":1447.81}]
["2.19","INSTALAÇÕES SPDA",null,null,null,{"$f":"SUBTOTAL(9,F154:F172)","v":39234.26}]
["2.19.1","HASTE DE ATERRAMENTO 5/8  PARA SPDA - FORNECIMENTO E INSTALAÇÃO. AF_12/2017","UN",47,56.5,{"$f":"ROUND(D154*E154,2)","v":2655.5}]
["2.19.2","CAIXA DE INSPEÇÃO PARA ATERRAMENTO, CIRCULAR, EM POLIETILENO, DIÂMETRO INTERNO = 0,3 M. AF_05/2018","UN",13,25.23,{"$f":"ROUND(D155*E155,2)","v":327.99}]
["2.19.3","ESCAVAÇÃO MANUAL DE VALA COM PROFUNDIDADE MENOR OU IGUAL A 1,30 M. AF_03/2016","M3",23.7,76.989999999999995,1824.66]
["2.19.4","REATERRO MANUAL DE VALAS COM COMPACTAÇÃO MECANIZADA. AF_04/2016","M3",23.7,26,616.20000000000005]
["2.19.5","FORNECIMENTO E INSTALAÇÃO DE CONECTOR DE MEDIÇÃO C/ 2 PARAFUSOS","UN",13,29.36,381.68]
["2.19.6","FORNECIMENTO E INSTALAÇÃO DE SOLDA EXOTÉRMICA CABO-HASTE COM CARTUCHO Nº 90 E MOLDE CABO 35mm²- HASTE 5/8\" ","UN",13,19.96,259.48]
["2.19.7","FORNECIMENTO E INSTALAÇÃO DE SOLDA EXOTÉRMICA CABO-HASTE COM CARTUCHO Nº115 E MOLDE CABO 50mm²-  HASTE 5/8\" ","UN",49,25.08,1228.92]
["2.19.8","FORNECIMENTO E INSTALAÇÃO DE SOLDA EXOTÉRMICA CABO-CABO COM CARTUCHO Nº 32 E MOLDE TIPO \"T\" CABO 35mm²- CABO 35mm²","UN",25,12.71,317.75]
["2.19.9","FORNECIMENTO E INSTALAÇÃO DE BARRA CHATA DE ALUMÍNIO 3/4\" X 1/4\" ","M",88,91.33,8037.04]
["2.19.10","FORNECIMENTO E INSTALAÇÃO DE SOLDA EXOTÉRMICA CABO-CABO, CABO DE 35mm²  TIPO \"X\"(COM MOLDE)","M",3,19.93,59.79]
["2.19.11","FORNECIMENTO E INSTALAÇÃO DE REBITE POP EM ALUMÍNIO 4 X 16MM","UN",364,1.38,502.32]
["2.19.12","FORNECIMENTO E INSTALAÇÃO DE PARAFUSO ZINCADO, SEXTAVADO, COM ROSCA INTEIRA, DIAMETRO 1/4\", COMPRIMENTO 1/2\"","UN",49,7.72,378.28]
["2.19.13","FORNECIMENTO E INSTALAÇÃO DE TERMINAL AEREO EM ACO GALVANIZADO DN 5/16\", COMPRIMENTO DE 350MM, COM BASE DE FIXACAO HORIZONTAL","UN",69,21.69,1496.61]
["2.19.14","FORNECIMENTO E INSTALAÇÃO DE CONECTOR METALICO TIPO PARAFUSO FENDIDO (SPLIT BOLT), PARA CABOS ATE 35 MM2","UN",11,17.57,193.27]
["2.19.15","FORNECIMENTO E INSTALAÇÃO DE PRESILHA DE LATÃO 35MM²","UN",226,4.34,980.84]
["2.19.16","TERMINAL OU CONECTOR DE PRESSAO - PARA CABO 35MM2 - FORNECIMENTO E INSTALACAO","UN",13,19.27,250.51]
["2.19.17","TERMINAL OU CONECTOR DE PRESSAO - PARA CABO 50MM2 - FORNECIMENTO E INSTALACAO","UN",15,25.91,388.65]
["2.19.18","CABO DE COBRE NU 35MM2 - FORNECIMENTO E INSTALACAO","M",335,34.61,11594.35]
["2.19.19","CABO DE COBRE NU 50MM2 - FORNECIMENTO E INSTALACAO","M",158,48.99,7740.42]
["2.20","INSTALAÇÕES DE COMBATE A INCÊNDIO ",null,null,null,0]
["2.21","INSTALAÇÕES ELÉTRICAS",null,null,null,{"$f":"SUBTOTAL(9,F175:F227)","v":138737.34999999998}]
["2.21.1","ACESSÓRIOS PARA ELETRODUTOS  E USO GERAL",null,null,null,{"$f":"SUBTOTAL(9,F176:F178)","v":4437.6799999999994}]
["2.21.1.1","FORNECIMENTO E INSTALAÇÃO DE CAIXA OCTOGONAL 3\" X 3\", PVC, INSTALADA EM TETO - AF_12/2015","PÇ",143,9.9600000000000009,{"$f":"ROUND(D176*E176,2)","v":1424.28}]
["2.21.1.2","FORNECIMENTO E INSTALAÇÃO DE CAIXA RETANGULAR 4\" X 2\" MÉDIA (1,30 M DO PISO), PVC, INSTALADA EM PAREDE - AF_12/2015","PÇ",217,13.48,2925.16]
["2.21.1.3","FORNECIMENTO E INSTALAÇÃO DE ARAME AÇO GALVANIZADO 18 BWG, 1,24MM (0,009 KG/M)","M",34.200000000000003,2.58,88.24]
["2.21.2","CABO UNIPOLAR",null,null,null,{"$f":"SUBTOTAL(9,F180:F182)","v":48800}]
["2.21.2.1","FORNECIMENTO E INSTALAÇÃO DE CABO DE COBRE FLEXÍVEL ISOLADO, 2,5 MM², ANTI-CHAMA 450/750 V, PARA CIRCUITOS TERMINAIS - AF_12/2015","M",8800,3.54,{"$f":"ROUND(D180*E180,2)","v":31152}]
["2.21.2.2","FORNECIMENTO E INSTALAÇÃO DE CABO DE COBRE FLEXÍVEL ISOLADO, 4,0 MM², ANTI-CHAMA 450/750 V, PARA CIRCUITOS TERMINAIS - AF_12/2015","M",2000,5.7,11400]
["2.21.2.3","FORNECIMENTO E INSTALAÇÃO DE CABO DE COBRE FLEXÍVEL ISOLADO, 6,0 MM², ANTI-CHAMA 450/750 V, PARA CIRCUITOS TERMINAIS - AF_12/2015","M",800,7.81,6248]
["2.21.3","DISPOSITIVO ELÉTRICO - EMBUTIDO",null,null,null,{"$f":"SUBTOTAL(9,F184:F191)","v":7220.4400000000005}]
["2.21.3.1","INTERRUPTOR SIMPLES (1 MÓDULO), 10A/250V, INCLUINDO SUPORTE E PLACA - FORNECIMENTO E INSTALAÇÃO. AF_12/2015","PÇ",20,21.35,{"$f":"ROUND(D184*E184,2)","v":427}]
["2.21.3.2","INTERRUPTOR SIMPLES (2 MÓDULOS), 10A/250V, INCLUINDO SUPORTE E PLACA - FORNECIMENTO E INSTALAÇÃO. AF_12/2015","PÇ",10,33.71,337.1]
["2.21.3.3","INTERRUPTOR SIMPLES (3 MÓDULOS), 10A/250V, INCLUINDO SUPORTE E PLACA - FORNECIMENTO E INSTALAÇÃO. AF_12/2015","PÇ",1,46.06,46.06]
["2.21.3.4","INTERRUPTOR SIMPLES (1 MÓDULO) COM 1 TOMADA DE EMBUTIR 2P+T 10 A,  INCLUINDO SUPORTE E PLACA - FORNECIMENTO E INSTALAÇÃO. AF_12/2015","PÇ",6,38.049999999999997,228.3]
["2.21.3.5","INTERRUPTOR SIMPLES (1 MÓDULO) COM 2 TOMADAS DE EMBUTIR 2P+T 10 A, INCLUINDO SUPORTE E PLACA - FORNECIMENTO E INSTALAÇÃO. AF_12/2015","PÇ",2,54.8,109.6]
["2.21.3.6","TOMADA BAIXA DE EMBUTIR (2 MÓDULOS), 2P+T 10 A, INCLUINDO SUPORTE E PLACA - FORNECIMENTO E INSTALAÇÃO. AF_12/2015","PÇ",44,35.950000000000003,1581.8]
["2.21.3.7","TOMADA ALTA DE EMBUTIR (1 MÓDULO), 2P+T 10 A, INCLUINDO SUPORTE E PLACA - FORNECIMENTO E INSTALAÇÃO. AF_12/2015","PÇ",4,34.1,136.4]
["2.21.3.8","TOMADA ALTA DE EMBUTIR (1 MÓDULO), 2P+T 20 A, INCLUINDO SUPORTE E PLACA - FORNECIMENTO E INSTALAÇÃO. AF_12/2015","PÇ",122,35.69,4354.18]
["2.21.4","DISPOSITIVO DE PROTEÇÃO",null,null,null,{"$f":"SUBTOTAL(9,F193:F205)","v":7348.6800000000012}]
["2.21.4.1","DISJUNTOR TRIPOLAR TIPO DIN, CORRENTE NOMINAL DE 25A - FORNECIMENTO E INSTALAÇÃO. AF_04/2016","PÇ",5,76.97,{"$f":"ROUND(D193*E193,2)","v":384.85}]
["2.21.4.2","DISJUNTOR TRIPOLAR TIPO DIN, CORRENTE NOMINAL DE 32A - FORNECIMENTO E INSTALAÇÃO. AF_04/2016","PÇ",6,80.92,485.52]
["2.21.4.3","FORNECIMENTO E INSTALAÇÃO DE DISJUNTOR TIPO DIN/IEC, TRIPOLAR 63 A","UND",1,107.74,107.74]
["2.21.4.4","FORNECIMENTO E INSTALAÇÃO DE DISJUNTOR TIPO DIN/IEC, TRIPOLAR 80 A","UND",1,159.43,159.43]
["2.21.4.5","FORNECIMENTO E INSTALAÇÃO DE DISJUNTOR TIPO DIN/IEC, TRIPOLAR 90 A","UND",1,159.43,159.43]
["2.21.4.6","FORNECIMENTO E INSTALAÇÃO DE DISJUNTOR TERMOMAGNETICO TRIPOLAR 125A","UND",2,393.59,787.18]
["2.21.4.7","FORNECIMENTO E INSTALAÇÃO DE DISJUNTOR TERMOMAGNETICO TRIPOLAR 150 A / 600 V, TIPO FXD / ICC - 35 KA","UND",1,441.13,441.13]
["2.21.4.8","FORNECIMENTO E INSTALAÇÃO DE DISJUNTOR BIPOLAR TIPO DIN, CORRENTE NOMINAL DE 10A - AF_04/2016","PÇ",32,57.69,1846.08]
["2.21.4.9","FORNECIMENTO E INSTALAÇÃO DE DISJUNTOR BIPOLAR TIPO DIN, CORRENTE NOMINAL DE 16A - AF_04/2016","PÇ",5,58.8,294]
["2.21.4.10","FORNECIMENTO E INSTALAÇÃO DE DISJUNTOR BIPOLAR TIPO DIN, CORRENTE NOMINAL DE 25A - AF_04/2016","PÇ",2,61,122]
["2.21.4.11","FORNECIMENTO E INSTALAÇÃO DE DISJUNTOR BIPOLAR TIPO DIN, CORRENTE NOMINAL DE 32A - AF_04/2016","PÇ",4,63.63,254.52]
["2.21.4.12","FORNECIMENTO E INSTALAÇÃO DE DISJUNTOR MONOPOLAR TIPO DIN, CORRENTE NOMINAL DE 16A - AF_04/2016","PÇ",54,12.2,658.8]
["2.21.4.13","FORNECIMENTO E INSTALAÇÃO DE DISPOSITIVO DPS CLASSE II, 1 POLO, TENSAO MAXIMA DE 175 V, CORRENTE MAXIMA DE 20 KA (TIPO AC)","UND",20,82.4,1648]
["2.21.5","ELETROCALHA FURADA TIPO U PRÉ-GALVANIZADA QUENTE",null,null,null,{"$f":"SUBTOTAL(9,F207:F219)","v":15167.19}]
["2.21.5.1","FORNECIMENTO E INSTALAÇÃO DE CURVA HORIZONTAL 90º - 100X100MM, COM TAMPA","UND",1,30.24,{"$f":"ROUND(D207*E207,2)","v":30.24}]
["2.21.5.2","FORNECIMENTO E INSTALAÇÃO DE CURVA DE INVERSÃO - 100X100MM CHAPA 20","UND",4,47.75,191]
["2.21.5.3","FORNECIMENTO E INSTALAÇÃO DE ELETROCALHA PERFURADA TIPO U - 100X100MM, COM TAMPA","M",171,36.39,6222.69]
["2.21.5.4","FORNECIMENTO E INSTALAÇÃO DE FLANGE - 100X100MM CHAPA 20","UND",4,11.16,44.64]
["2.21.5.5","FORNECIMENTO E INSTALAÇÃO DE SUPORTE VERTICAL - 100X100MM","UND",114,13.29,1515.06]
["2.21.5.6","FORNECIMENTO E INSTALAÇÃO DE TÊ HORIZONTAL 90º - 100X100MM CHAPA 20, COM TAMPA","UND",5,48.85,244.25]
["2.21.5.7","FORNECIMENTO E INSTALAÇÃO DE EMENDA PARA ELETROCALHA - 100MM","UND",194,13.02,2525.88]
["2.21.5.8","FORNECIMENTO E INSTALAÇÃO DE CRUZETA - 100X100MM CHAPA 20, COM TAMPA","UND",3,77.84,233.52]
["2.21.5.9","FORNECIMENTO E INSTALAÇÃO DE ARRUELA LISA GALVAN. 1/4\"","UND",1300,0.49,637]
["2.21.5.10","FORNECIMENTO E INSTALAÇÃO DE PARAFUSO GALVAN. CABEÇA LENTILHA 1/4\"X5/8\" MÁQUINA ROSCA TOTAL","UND",1100,0.94,1034]
["2.21.5.11","FORNECIMENTO E INSTALAÇÃO DE PORCA ZINCADA, SEXTAVADA, DIAMETRO 1/4\"","UND",1300,0.44,572]
["2.21.5.12","FORNECIMENTO E INSTALAÇÃO DE CHUMBADOR PARABOLT AÇO 1/4\" X 3\"","UND",114,8.61,981.54]
["2.21.5.13","FORNECIMENTO E INSTALAÇÃO DE VERGALHAO ZINCADO ROSCA TOTAL, 1/4 \" (6,3 MM)","UND",57,16.41,935.37]
["2.21.6","ELETRODUTO PVC FLEXÍVEL",null,null,null,{"$f":"SUBTOTAL(9,F221:F222)","v":10542.75}]
["2.21.6.1","FORNECIMENTO E INSTALAÇÃO DE ELETRODUTO FLEXÍVEL CORRUGADO, PVC, DN 32 MM (1\"), PARA CIRCUITOS TERMINAIS, INSTALADO EM PAREDE - AF_12/2015","M",150,10.06,{"$f":"ROUND(D221*E221,2)","v":1509}]
["2.21.6.2","FORNECIMENTO E INSTALAÇÃO DE ELETRODUTO FLEXÍVEL CORRUGADO, PVC, DN 25 MM (3/4\"), PARA CIRCUITOS TERMINAIS, INSTALADO EM PAREDE - FORNECIMENTO E INSTALAÇÃO. AF_12/2015","M",1125,8.0299999999999994,9033.75]
["2.21.7","LUMINÁRIA E ACESSÓRIOS",null,null,null,{"$f":"SUBTOTAL(9,F224:F225)","v":37996.090000000004}]
["2.21.7.1","FORNECIMENTO E INSTALAÇÃO DE LUMINARIA DE EMBUTIR DE ALUMÍNIO E POLICARBONATO 62,5x62,5 CM, BIVOLT, TEMPERATURA DE COR DE 6000K, FLUXO LUMINOSO DE 4500LM, POTENCIA 50W","UND",88,381.33,{"$f":"ROUND(D224*E224,2)","v":33557.040000000001}]
["2.21.7.2","FORNECIMENTO E INSTALAÇÃO DE LUMINARIA DE EMBUTIR DE ALUMÍNIO E POLICARBONATO 22,5x22,5 CM, BIVOLT, TEMPERATURA DE COR DE 6500K, FLUXO LUMINOSO DE 850LM, POTENCIA 18W","UND",55,80.709999999999994,4439.05]
["2.21.8","QUADRO DISTRIBUIÇÃO - EMBUTIR",null,null,null,{"$f":"SUBTOTAL(9,F227)","v":7224.52}]
["2.21.8.1","FORNECIMENTO E INSTALAÇÃO DE QUADRO DE DISTRIBUIÇÃO DE EMBUTIR, EM CHAPA PINTADA, COM CAPACIDADE PARA 70 DISJUNTORES UNIPOLARES TIPO DIN, COMPLETO, INCLUSIVE BARRAMENTO TRIFÁSICO 225A","UND",4,1806.13,{"$f":"ROUND(D227*E227,2)","v":7224.52}]
["2.22","INSTALAÇÕES DE LÓGICA E TELEFONICA",null,null,null,0]
["2.23","CLIMATIZAÇÃO ",null,null,null,0]
["2.24","INFRAESTRUTURA PARA INSTALAÇÃO DE ÁUDIO E VÍDEO",null,null,null,{"$f":"SUBTOTAL(9,F231:F253)","v":16689.120000000003}]
["1.24.1","TOMADA ALTA DE EMBUTIR (1 MÓDULO), 2P+T 10 A, INCLUINDO SUPORTE E PLACA - FORNECIMENTO E INSTALAÇÃO. AF_12/2015","UN",3,34.1,{"$f":"ROUND(D231*E231,2)","v":102.3}]
["1.24.2","DISJUNTOR MONOPOLAR TIPO DIN, CORRENTE NOMINAL DE 20A - FORNECIMENTO E INSTALAÇÃO. AF_04/2016","UN",2,13.25,26.5]
["1.24.3","CABO DE COBRE FLEXÍVEL ISOLADO, 2,5 MM², ANTI-CHAMA 450/750 V, PARA CIRCUITOS TERMINAIS - FORNECIMENTO E INSTALAÇÃO. AF_12/2015","M",46,3.54,162.84]
["1.24.4","ELETRODUTO FLEXÍVEL CORRUGADO, PVC, DN 32 MM (1\"), PARA CIRCUITOS TERMINAIS, INSTALADO EM FORRO - FORNECIMENTO E INSTALAÇÃO. AF_12/2015","M",12,9.92,119.04]
["1.24.5","CAIXA RETANGULAR 4\" X 2\" ALTA (2,00 M DO PISO), PVC, INSTALADA EM PAREDE - FORNECIMENTO E INSTALAÇÃO. AF_12/2015","UN",2,25.58,51.16]
["1.24.6","CAIXA RETANGULAR 4\" X 2\" MÉDIA (1,30 M DO PISO), PVC, INSTALADA EM PAREDE - FORNECIMENTO E INSTALAÇÃO. AF_12/2015","UN",3,13.48,40.44]
["1.24.7","CAIXA RETANGULAR 4\" X 2\" BAIXA (0,30 M DO PISO), PVC, INSTALADA EM PAREDE - FORNECIMENTO E INSTALAÇÃO. AF_12/2015","UN",3,8.94,26.82]
["1.24.8","ELETRODUTO DE AÇO GALVANIZADO, CLASSE LEVE, DN 25 MM (1\u0092\u0092), APARENTE, INSTALADO EM TETO - FORNECIMENTO E INSTALAÇÃO. AF_11/2016_P","M",29,23.71,687.59]
["1.24.9","LUVA DE EMENDA PARA ELETRODUTO, AÇO GALVANIZADO, DN 25 MM (1''), APARENTE, INSTALADA EM TETO - FORNECIMENTO E INSTALAÇÃO. AF_11/2016_P","UN",2,8.1199999999999992,16.239999999999998]
["1.24.10","CONDULETE DE ALUMÍNIO, TIPO X, PARA ELETRODUTO DE AÇO GALVANIZADO DN 25 MM (1''), APARENTE - FORNECIMENTO E INSTALAÇÃO. AF_11/2016_P","UN",3,40.25,120.75]
["1.24.11","CONDULETE DE ALUMÍNIO, TIPO C, PARA ELETRODUTO DE AÇO GALVANIZADO DN 25 MM (1''), APARENTE - FORNECIMENTO E INSTALAÇÃO. AF_11/2016_P","UN",2,29.65,59.3]
["1.24.12","CONDULETE DE ALUMÍNIO, TIPO LR, PARA ELETRODUTO DE AÇO GALVANIZADO DN 20 MM (3/4''), APARENTE - FORNECIMENTO E INSTALAÇÃO. AF_11/2016_P","UN",2,26.15,52.3]
["1.24.13","CONDULETE DE ALUMÍNIO, TIPO E, ELETRODUTO DE AÇO GALVANIZADO DN 25 MM (1''), APARENTE - FORNECIMENTO E INSTALAÇÃO. AF_11/2016_P","UN",6,30.82,184.92]
["1.24.14","CONDULETE DE ALUMÍNIO, TIPO T, PARA ELETRODUTO DE AÇO GALVANIZADO DN 25 MM (1''), APARENTE - FORNECIMENTO E INSTALAÇÃO. AF_11/2016_P","UN",1,37.83,37.83]
["1.24.15","FORNECIMENTO E INSTALAÇÃO DE ABRACADEIRA EM ACO PARA AMARRACAO DE ELETRODUTOS, TIPO D, COM 1\" E PARAFUSO DE FIXACAO","UND",20,7.77,155.4]
["1.24.16","FORNECIMENTO E INSTALAÇÃO DE Cabo HDMI 20 Metros 2.0 4k Ultra HD Filtro Pino Dourado MXT","UN",3,293.26,879.78]
["1.24.17","FORNECIMENTO E INSTALAÇÃO DE Projetor BenQ MS531 3300 Lumens - 800x600 USB HDMI, COM SUPORTE PARA TETO 4 EM 1 PRETO (EQUIPAMENTO FORNECIDO PELO SESI)","UN",3,2634.8,7904.4]
["1.24.18","FORNECIMENTO E INSTALAÇÃO DE CURVA 90 GRAUS, PARA ELETRODUTO, EM ACO GALVANIZADO ELETROLITICO, DIAMETRO DE 25 MM (1\")","UN",3,12.81,38.43]
["1.24.19","FORNECIMENTO E INSTALAÇÃO DE SONOFLETOR CIRCULAR 6\" DE EMBUTIR EM FORRO, COM TELA, COR BRANCA, SENSIBILIDADE MÍNIMA DE 89DB, POTÊNCIA DE 30W OU SPERIOR - INCLUINDO TRANSFORMADOR CASADOR DE IMPEDÂNCIA (SE NECESSÁRIO) E ACESSÓRIOS","UN",10,288.06,2880.6]
["1.24.20","FORNECIMENTO E INSTALAÇÃO DE SUPORTE UNIVERSAL PARA PROJETOR - PROLONGADOR (EQUIPAMENTO FORNECIDO PELO SESI)","UN",3,350.57,1051.71]
["1.24.21","FORNECIMENTO E INSTALAÇÃO DE MODULO AMPLIFICADOR COM POTÊNCIA DE 200 WRMS, COM ENTRADA DE MICROFONE E AUXILIAR COM CONTROLES DE VOLUMES INDEPENDENTES, CONTROLE DE GRAVE E AGUDO (REF.: SLIM 3000 OU SIMILAR)","UN",1,1447.79,1447.79]
["1.24.22","FORNECIMENTO E INSTALAÇÃO DE CABO POLARIZADO PARA SONORIZAÇÃO 2X2,5MM² - BICOLOR, MARCA IMFAP, OU SIMILAR","M",29,10.9,316.10000000000002]
["1.24.23","FORNECIMENTO E INSTALAÇÃO DE MINI RACK METÁLICO 3U, COM TAMPA E CHAVE","UN",1,326.88,326.88]
["2.25","INSTALAÇÕES HIDROSANITÁRIAS",null,null,null,0]
["2.26","DRENAGEM",null,null,null,0]
["2.27","GLP (BLOCOB)",null,null,null,0]
["2.28","LOUÇAS E METAIS",null,null,null,{"$f":"SUBTOTAL(9,F258:F278)","v":42150.530000000006}]
["2.28.1","CABIDEIRO 20160 EVIDENCE CROMADO (MARCA DECA, DOCOL OU SIMILAR)- FORNECIMENTO E INSTALAÇÃO","UN",19,28.15,{"$f":"ROUND(D258*E258,2)","v":534.85}]
["2.28.2","TORNEIRA DE MESA PRESMATIC ECO CROMADA COD 1173 CONFORTO (COM ALAVANCA PARA PCD), MARCA DECA, DOCOL OU SIMILAR, FORNECIMENTO E INSTALAÇÃO.","UN",4,729.7,{"$f":"ROUND(D259*E259,2)","v":2918.8}]
["2.28.3","TORNEIRA DE MESA PRESMATIC ECO CROMADA COD 1173, MARCA DECA, DOCOL OU SIMILAR, FORNECIMENTO E INSTALAÇÃO.","UN",17,199.09,{"$f":"ROUND(D260*E260,2)","v":3384.53}]
["2.28.4","TORNEIRA CROMADA 1/2\u0094 OU 3/4\u0094 PARA TANQUE, PADRÃO MÉDIO - FORNECIMENTO E INSTALAÇÃO. AF_01/2020","UN",4,47.63,190.52]
["2.28.5","CUBA DE LOUÇA OVAL DE EMBUTIR - CÓD. L.37 - BRANCO GELO – DECA, DOCOL OU SIMILAR, INCLUSO VÁLVULA DECA LAVATÓRIO/ CUBA/ BIDÊ, 1602.C CROMADA (DECA, DOCOL OU SIMILAR) E SIFÃO TIPO GARRAFA EM METAL CROMADO - FORNECIMENTO E INSTALAÇÃO. ","UN",17,358.02,6086.34]
["2.28.6","LAVATÓRIO MASTER DE CANTO COR BRANCO GELO, COD 76, (MARCA DECA OU SIMILAR), INCLUSO SIFÃO TIPO COPO, PARA LAVATÓRIO 1680, CROMADO, 1\" - 1.1/2\", VALVULA DE METAL CROMADO 1\", PARA LAVATÓRIO, SEM LADRÃO. - FORNECIMENTO E INSTALAÇÃO","UN",4,1420.73,5682.92]
["2.28.7","VASO SANITÁRIO INFANTIL LOUÇA BRANCA - FORNECIMENTO E INSTALACAO. AF_01/2020","UN",2,369.51,739.02]
["2.28.8","ASSENTO SANITÁRIO INFANTIL - FORNECIMENTO E INSTALACAO. AF_01/2020","UN",2,76.62,153.24]
["2.28.9","DUCHA HIGIÊNICA CROMADO REF:  LINK DECA 1984.C.ACT.LNK.CRL, MARCA DECA, DOCOL OU SIMILAR, FORNECIMENTO E INSTALAÇÃO.","UN",8,331.57,2652.56]
["2.28.10","BACIA SANITARIA BRANCA MOD. RAVENA P917 MARCA DECA, DOCOL OU SIMILAR, TUBO DE LIGAÇÃO CROMADO P/ BACIA 1968 , CONJUNTO PARA FIXAÇAO PARA VASO SANITÁRIO COM PARAFUSO, ARRUELA E BUCHA - FORNECIMENTO E INSTALACAO","UN",10,209.07,2090.6999999999998]
["2.28.11","ASSENTO UNIVERSAL PP AP0117, BACIA SANITARIA MOD. RAVENA, MARCA DECA, DOCOL OU SIMILAR","UN",10,38.479999999999997,384.8]
["2.28.12","BACIA SANITÁRIA PARA PORTADORES DE DEFICIÊNCIA, SEM ABERTURA FRONTAL, REFERÊNCIA LINHA\nCONFORTO DA DECA, CÓD. P.510.17, COR BRANCO GELO OU SIMILAR\n","UN",4,764.98,3059.92]
["2.28.13","ASSENTO PLÁSTICO EM POLIPROPILENO P/ BACIA SANITÁRIA PARA PORTADORES DE NECESSIDADES ESPECIAIS, REF. LINHA CONFORTO DA DECA OU SIMILAR .","UN",4,38.479999999999997,153.91999999999999]
["2.28.14","VÁLVULA DE DESCARGA  1.1/2\" E ACABAMENTO 4900.C.MAX HYDRA MAX CROMADO (DECA, DOCOL OU SIMILAR)","UN",12,217.92,2615.04]
["2.28.15","VÁLVULA DE DESCARGA  1.1/2\" COM ACABAMENTO PARA VÁLVULA BENEFIT CROMADO (ALAVANCA PARA PCD)- DOCOL OU SIMILAR","UN",4,865.48,3461.92]
["2.28.16","SECADORA DE MÃO AUTOMÁTICA MODELO ECO 1800 INOX (DAKMARK OU SIMILAR), 220V","UN",4,968.77,3875.08]
["2.28.17","MICTORIO DE LOUCA BRANCA C/ SIFÃO INTEGRADO, CÓD. M. 715 (DECA, DOCOL, OU SIMILAR) , COM VÁLVULA DE MICTÓRIO, PRESMATIC, TIPO ANTI VANDALISMO, (MARCA: DECA, DOCOL OU SIMILAR)  E CONJUNTO PARA FIXACAO  - FORNECIMENTO E INSTALACAO","UN",5,530.05999999999995,2650.3]
["2.28.18","CHUVEIRO ELÉTRICO COMUM CORPO PLÁSTICO, TIPO DUCHA \u0096 FORNECIMENTO E INSTALAÇÃO. AF_01/2020","UN",4,91.69,366.76]
["2.28.19","REGISTRO DE PRESSÃO BRUTO, LATÃO, ROSCÁVEL, 3/4\", COM ACABAMENTO E CANOPLA CROMADOS. FORNECIDO E INSTALADO EM RAMAL DE ÁGUA. AF_12/2014","UN",4,68.41,273.64]
["2.28.20","TORNEIRA CROMADA 1/2\u0094 OU 3/4\u0094 PARA TANQUE, PADRÃO MÉDIO - FORNECIMENTO E INSTALAÇÃO. AF_01/2020","UN",3,47.63,142.88999999999999]
["2.28.21","TANQUE DE LOUÇA BRANCA COM COLUNA, 30L OU EQUIVALENTE - FORNECIMENTO E INSTALAÇÃO. AF_01/2020","UN",1,732.78,732.78]
["2.29","ACESSIBILIDADE",null,null,null,0]
["2.30","SEGURANÇA PATRIMONIAL ",null,null,null,0]
["2.31","LIMPEZA CONTÍNUA DA OBRA ",null,null,null,0]
["2.32","LIMPEZA FINAL DA OBRA",null,null,null,0]
["VALOR TOTAL",null,null,null,null,{"$f":"SUBTOTAL(9,F13:F282)","v":2520715.5799999991}]

{"sheet":"BLOCO B","index":3,"n_rows":315,"n_cols":8,"rows_kept":315,"cut":false,"hidden":false,"merged":[[13,0,13,5],[10,0,10,5],[0,0,3,2],[0,3,1,5],[2,3,3,3],[2,4,3,4],[2,5,3,5],[4,0,4,5],[5,0,5,5],[6,0,6,5],[7,0,7,5],[8,0,8,5],[9,0,9,5]]}
["                                 PLANILHA ORÇAMENTARIA   ",null,null,"SPN-FF-003"]
[]
[null,null,null,"Folha:              1 de 1","Revisão:      02","Data: \n07/10/19"]
[]
[{"$f":"RESUMO!A5","v":"SESI - SERVIÇO SOCIAL DA INDUSTRIA - DR/MT"}]
[{"$f":"RESUMO!A6","v":"OBRA: CONTRATAÇÃO DE EMPRESA ESPECIALIZADA EM ENGENHARIA PARA OBRA DE REFORMA E AMPLIAÇÃO DA UNIDADE SESI ESCOLA CUIABÁ"}]
[{"$f":"RESUMO!A7","v":"UNIDADE OPERACIONAL: SESI ESCOLA CUIABA"}]
[{"$f":"RESUMO!A8","v":"ENDEREÇO:  AV. OÁTOMO CANAVARROS, 1079, BAIRRO BELA VISTA CIDADE: CUIABÁ-MT            "}]
["CONSTRUTORA:"]
["RESPONSÁVEL TÉCNICO:"]
[]
["ITEM","DESCRIÇÃO","UNID.","QUANT.","Valor UNIT. (R$)","Valor Total (R$)"]
[]
["BLOCO B"]
["3.1","DEMOLIÇÕES E RETIRADAS ",null,null,null,{"$f":"SUBTOTAL(9,F16:F34)","v":89219.919999999984}]
["3.1.1","DEMOLIÇÃO DE ALVENARIA DE BLOCO FURADO, DE FORMA MANUAL, SEM REAPROVEITAMENTO. AF_12/2017","M3",29.966550000000002,50.69,{"$f":"ROUND(D16*E16,2)","v":1519}]
["3.1.2","REMOÇÃO DE CHAPAS E PERFIS DE DRYWALL, DE FORMA MANUAL, SEM REAPROVEITAMENTO. AF_12/2017","M2",53.459999999999994,6.58,{"$f":"ROUND(D17*E17,2)","v":351.77}]
["3.1.3","RETIRADA GRADE ,  COM REAPROVEITAMENTO","M2",74.692400000000006,10.91,814.89]
["3.1.4","DEMOLIÇÃO DE LAJES, DE FORMA MECANIZADA COM MARTELETE, SEM REAPROVEITAMENTO. AF_12/2017","M3",25.35,107.62,2728.17]
["3.1.5","DEMOLIÇÃO DE PISO REVESTIDO COM GRANILITE","M2",1173.2995000000001,24.23,28429.05]
["3.1.6","DEMOLIÇÃO DE REVESTIMENTO CERÂMICO, DE FORMA MECANIZADA COM MARTELETE, SEM REAPROVEITAMENTO. AF_12/2017","M2",32.989200000000004,10.56,348.37]
["3.1.7","RETIRADA DE BANCADA COM REAPROVEITAMENTO ","M2",12.8169,43.7,560.1]
["3.1.8","RETIRADA DE ESTRUTURA DE MADEIRA COM TESOURAS, PARA TELHAS ONDULADAS DE FIBROCIMENTO, ALUMINIO OU PLASTICO","M2",1280,22.15,28352]
["3.1.9","REMOÇÃO DE TELHAS, DE FIBROCIMENTO, METÁLICA E CERÂMICA, DE FORMA MANUAL, SEM REAPROVEITAMENTO. AF_12/2017","M2",1280,3.14,4019.2]
["3.1.10","REMOÇÃO DE PLATIBANDA CHAPA METALICA COM REAPROVEITAMENTO . BLOCO A- 6,20M2; BLOCO B- 72,18M2; BLOCO C 76,25M2- TOTAL 154,63M²","M2",170.64,21.62,3689.24]
["3.1.11","REMOÇÃO DE PLATIBANDA CHAPA METALICA SEM REAPROVEITAMENTO BOTA FORA","M2",1.5600000000000023,21.62,33.729999999999997]
["3.1.12","REMOÇÃO DE LOUÇAS, DE FORMA MANUAL, COM REAPROVEITAMENTO.","UN",21,10.97,230.37]
["3.1.13","REMOÇÃO DE PORTAS, DE FORMA MANUAL,  COM REAPROVEITAMENTO.","M2",52.878,31.59,1670.42]
["3.1.14","REMOÇÃO DE JANELAS, DE FORMA MANUAL, COM REAPROVEITAMENTO.","M2",50.159399999999998,75.290000000000006,3776.5]
["3.1.15","REMOÇÃO DE PORTAS, GUICHÊ E BOX DE VIDRO TEMPERADO, DE FORMA MANUAL, COM REAPROVEITAMENTO. ","M2",12.870000000000001,31.59,406.56]
["3.1.16","REMOÇÃO DE METAIS SANITÁRIOS","UN",24,7.99,191.76]
["3.1.17","REMOÇÃO DE TRAMA METÁLICA OU DE MADEIRA PARA FORRO, DE FORMA MANUAL, SEM REAPROVEITAMENTO. AF_12/2017","M2",1145.8820000000001,2.54,2910.54]
["3.1.17","REMOÇÃO DE FORROS DE DRYWALL, PVC E FIBROMINERAL, DE FORMA MANUAL, SEM REAPROVEITAMENTO. AF_12/2017","M2",1145.8820000000001,1.42,1627.15]
["3.1.18","BOTA FORA DE MATERIAL DESCARTADO, D.M.T. = 10 km - (CARGA, TRANSPORTE E DESCARGA MECÂNICA)","M3",299.68705599999998,25.23,7561.1]
["3.2","CANTEIRO DE OBRAS",null,null,null,0]
["3.3","ADMINISTRAÇÃO",null,null,null,0]
["3.4","TERRAPLENAGEM",null,null,null,0]
["3.5","FUNDAÇÃO",null,null,null,{"$f":"SUBTOTAL(9,F39:F57)","v":195519.38999999998}]
["3.5.1","ESCAVAÇÃO MECANIZADA PARA BLOCO DE COROAMENTO OU SAPATA, COM PREVISÃO DE FÔRMA, COM RETROESCAVADEIRA. AF_06/2017","M³",414.83,33.82,{"$f":"ROUND(D39*E39,2)","v":14029.55}]
["3.5.2","ESCAVAÇÃO MANUAL DE VALA PARA VIGA BALDRAME, COM PREVISÃO DE FÔRMA. AF_06/2017","M³",69.099999999999994,115.9,8008.69]
["3.5.3","REATERRO MANUAL DE VALAS COM COMPACTAÇÃO MECANIZADA. AF_04/2016","M³",308.94,26,8032.44]
["3.5.4","CARGA E DESCARGA MECANIZADAS DE ENTULHO EM CAMINHAO BASCULANTE 6 M3","M³",244.9,6.14,1503.69]
["3.5.5","TRANSPORTE COM CAMINHÃO BASCULANTE DE 6 M3, EM VIA URBANA PAVIMENTADA, DMT ATÉ 30 KM (UNIDADE: M3XKM). AF_01/2018","M3XKM",2449,1.91,4677.59]
["3.5.6","FUNDAÇÃO (SAPATAS, BLOCOS E VIGAS DE EQUILÍBRIO) E ESTRUTURA - CONCRETO 1:4:8, CONCRETO MAGRO, C/ BRITA 1 E 2, C/BETONEIRA (e=5cm)","M³",8.6999999999999993,195.7,1702.59]
["3.5.7","FUNDAÇÃO (SAPATAS, BLOCOS E VIGAS DE EQUILÍBRIO) - FORMA PINHO 3A P/CONCRETO EM FUNDAÇÃO REAPROVEITAMENTO 2X- CORTE/MONTAGEM /ESCORAMENTO/DESFORMA","M²",268.7,87.39,23481.69]
["3.5.8","FUNDAÇÃO (SAPATAS, BLOCOS E VIGAS DE EQUILIBRIO) - ARMAÇÃO DE FUNDAÇÕES E ESTRUTURAS DE CONCRETO ARMADO, UTILIZANDO AÇO DE 6,30 MM - MONTAGEM","KG",140.9,15.24,2147.3200000000002]
["3.5.9","FUNDAÇÃO (SAPATAS, BLOCOS E VIGAS DE EQUILIBRIO) - ARMAÇÃO DE FUNDAÇÕES E ESTRUTURAS DE CONCRETO ARMADO, UTILIZANDO AÇO DE 8.00 MM - MONTAGEM","KG",191.6,13.97,2676.65]
["3.5.10","FUNDAÇÃO (SAPATAS, BLOCOS E VIGAS DE EQUILIBRIO, ESTACAS) - ARMAÇÃO DE FUNDAÇÕES E ESTRUTURAS DE CONCRETO ARMADO, UTILIZANDO AÇO DE 10.00 MM - MONTAGEM","KG",292.39999999999998,12.33,3605.29]
["3.5.11","FUNDAÇÃO (SAPATAS, BLOCOS E VIGAS DE EQUILIBRIO) - ARMAÇÃO DE FUNDAÇÕES E ESTRUTURAS DE CONCRETO ARMADO, UTILIZANDO AÇO  DE 12.50 MM - MONTAGEM","KG",4472.8,10.34,46248.75]
["3.5.12","FUNDAÇÃO (SAPATAS, BLOCOS E VIGAS DE EQUILIBRIO) - ARMAÇÃO DE FUNDAÇÕES E ESTRUTURAS DE CONCRETO ARMADO, UTILIZANDO AÇO  DE 16 MM - MONTAGEM","KG",943.3,9.68,9131.14]
["3.5.13","FUNDAÇÃO (SAPATAS, BLOCOS E VIGAS DE EQUILIBRIO) - ARMAÇÃO DE FUNDAÇÕES E ESTRUTURAS DE CONCRETO ARMADO, UTILIZANDO AÇO  DE 20 MM - MONTAGEM","KG",227,10.63,2413.0100000000002]
["3.5.14","FUNDAÇÃO (SAPATAS, BLOCOS E VIGAS DE EQUILIBRIO) - ARMAÇÃO DE FUNDAÇÕES E ESTRUTURAS DE CONCRETO ARMADO, UTILIZANDO AÇO  DE 25 MM - MONTAGEM","KG",151.30000000000001,10.3,1558.39]
["3.5.15","CONCRETAGEM DE SAPATAS, FCK 25 MPA, COM USO DE BOMBA - LANÇAMENTO, ADENSAMENTO E ACABAMENTO","M³",95.3,594.23,56630.12]
["3.5.16","FUNDAÇÃO (SAPATAS, BLOCOS E VIGAS DE EQUILIBRIO) - LANÇAMENTO COM USO DE BOMBA, ADENSAMENTO E ACABAMENTO DE CONCRETO EM ESTRUTURAS.","M³",95.3,32.96,3141.09]
["3.5.17","ESTACAS - CONCRETO AUTOADENSAVEL (CAA) CLASSE DE RESISTENCIA C25, ESPALHAMENTO SF2, INCLUI SERVICO DE BOMBEAMENTO (NBR 15823)","M³",4,681.12,2724.48]
["3.5.18","ESTACA ESCAVADA, TIPO BROCA DE CONCRETO ARMADO, fck=25 MPa, Ø 30 cm","M",56,45.83,2566.48]
["3.5.19","ALVENARIA ESTRUTURAL PARA MURO DE ARRIMO COM BLOCOS DE 5 MPA, 14X19X39","M2",12.29,100.93,1240.43]
["3.6","IMPERMEABILIZAÇÃO",null,null,null,{"$f":"SUBTOTAL(9,F59:F59)","v":16084.54}]
["3.6.1","IMPERMEABILIZAÇÃO DE SUPERFÍCIE COM EMULSÃO ASFÁLTICA, 2 DEMÃOS AF_06/2018","M²",450.8,35.68,{"$f":"ROUND(D59*E59,2)","v":16084.54}]
["3.7","ESTRUTURA DE CONCRETO ARMADO ",null,null,null,{"$f":"SUBTOTAL(9,F61:F71)","v":550010.91}]
["3.7.1","ESTRUTURA (PILARES) - FORMA PARA CONCRETO EM PILARES 2XREAPROVEITAMENTO - CORTE/MONTAGEM /ESCORAMENTO/DESFORMA","M2",787.3,130.4,{"$f":"ROUND(D61*E61,2)","v":102663.92}]
["3.7.2","ESTRUTURA (VIGAS) - FORMA PARA CONCRETO EM VIGAS 2X REAPROVEITAMENTO - CORTE/MONTAGEM /ESCORAMENTO/DESFORMA","M2",1387.4,137.24,190406.78]
["3.7.3","ESTRUTURA (VIGAS E PILARES, VIGAS BALDRAMES) - ARMAÇÃO DE FUNDAÇÕES E ESTRUTURAS DE CONCRETO ARMADO, UTILIZANDO AÇO DE 5.00 MM - MONTAGEM","KG",1310.9,16.8,22023.119999999999]
["3.7.4","ESTRUTURA (VIGAS E PILARES, VIGAS BALDRAMES) - ARMAÇÃO DE FUNDAÇÕES E ESTRUTURAS DE CONCRETO ARMADO, UTILIZANDO AÇO DE 6,30 MM - MONTAGEM","KG",1579.8,15.31,24186.74]
["3.7.5","ESTRUTURA (VIGAS E PILARES, VIGAS BALDRAMES) - ARMAÇÃO DE FUNDAÇÕES E ESTRUTURAS DE CONCRETO ARMADO, UTILIZANDO AÇO DE 8.00 MM - MONTAGEM","KG",245.9,13.96,3432.76]
["3.7.6","ESTRUTURA (VIGAS E PILARES, VIGAS BALDRAMES) - ARMAÇÃO DE FUNDAÇÕES E ESTRUTURAS DE CONCRETO ARMADO, UTILIZANDO AÇO DE 10.00 MM - MONTAGEM","KG",810.1,12.25,9923.73]
["3.7.7","ESTRUTURA (VIGAS E PILARES, VIGAS BALDRAMES) - ARMAÇÃO DE FUNDAÇÕES E ESTRUTURAS DE CONCRETO ARMADO, UTILIZANDO AÇO  DE 12.50 MM - MONTAGEM","KG",7775,10.19,79227.25]
["3.7.8","ESTRUTURA (VIGAS E PILARES, VIGAS BALDRAMES) - ARMAÇÃO DE FUNDAÇÕES E ESTRUTURAS DE CONCRETO ARMADO, UTILIZANDO AÇO  DE 16 MM - MONTAGEM","KG",3076,9.4700000000000006,29129.72]
["3.7.9","ESTRUTURA (VIGAS E PILARES, VIGAS BALDRAMES) - ARMAÇÃO DE FUNDAÇÕES E ESTRUTURAS DE CONCRETO ARMADO, UTILIZANDO AÇO  DE 25 MM - MONTAGEM","KG",139,10.01,1391.39]
["3.7.10","CONCRETAGEM EM ESTRUTURAS FCK 25 MPA, COM USO DE BOMBA - LANÇAMENTO, ADENSAMENTO E ACABAMENTO","M³",150,551.21,82681.5]
["3.7.11","ESTRUTURAS (VIGAS E PILARES, VIGAS BALDRAMES) - LANÇAMENTO COM USO DE BOMBA, ADENSAMENTO E ACABAMENTO DE CONCRETO EM ESTRUTURAS.","M³",150,32.96,4944]
["3.8","ALVENARIA E PAINÉIS",null,null,null,{"$f":"SUBTOTAL(9,F73:F80)","v":196101.99}]
["3.8.1","ALVENARIA DE VEDAÇÃO DE BLOCOS CERÂMICOS FURADOS NA HORIZONTAL DE 9X19X19CM (ESPESSURA 9CM) DE PAREDES COM ÁREA LÍQUIDA MAIOR OU IGUAL A 6M² COM VÃOS E ARGAMASSA DE ASSENTAMENTO COM PREPARO EM BETONEIRA. AF_06/2014","M2",1987.81185,83.75,{"$f":"ROUND(D73*E73,2)","v":166479.24}]
["3.8.2","PAREDE COM PLACAS DE GESSO ACARTONADO (DRYWALL), PARA USO INTERNO, COM DUAS FACES SIMPLES E ESTRUTURA METÁLICA COM GUIAS SIMPLES, COM VÃOS, FORNECIMENTO E INSTALAÇÃO ","M2",64.782499999999999,104.87,6793.74]
["3.8.3","INSTALAÇÃO DE ISOLAMENTO COM LÃ DE ROCHA EM PAREDES DRYWALL. AF_06/2017","M2",64.782499999999999,27.43,1776.98]
["3.8.4","VERGA PRÉ-MOLDADA PARA JANELAS COM ATÉ 1,5 M DE VÃO. AF_03/2016","M",57.666000000000004,32.799999999999997,1891.44]
["3.8.5","CONTRAVERGA PRÉ-MOLDADA PARA VÃOS DE ATÉ 1,5 M DE COMPRIMENTO. AF_03/2016","M",57.666000000000004,32.26,1860.31]
["3.8.6","VERGA PRÉ-MOLDADA PARA JANELAS COM MAIS DE 1,5 M DE VÃO. AF_03/2016","M",203.37799999999999,41.68,8476.7999999999993]
["3.8.7","CONTRAVERGA PRÉ-MOLDADA PARA VÃOS DE MAIS DE 1,5 M DE COMPRIMENTO. AF_03/2016","M",200.858,38.39,7710.94]
["3.8.8","VERGA PRÉ-MOLDADA PARA PORTAS COM ATÉ 1,5 M DE VÃO. AF_03/2016","M",45.024000000000001,24.71,1112.54]
["3.9","ESTRUTURA METÁLICA",null,null,null,{"$f":"SUBTOTAL(9,F82:F84)","v":1215010.75}]
["3.9.1","ESTRUTURA METALICA DA COBERTURA E PLATIBANDA CONFORME PROJETO EM AÇO ESTRUTURAL.  ","KG",74243.13,15.16,{"$f":"ROUND(D82*E82,2)","v":1125525.8500000001}]
["3.9.2","PINTURA COM TINTA ALQUÍDICA DE FUNDO (TIPO ZARCÃO)  (PRIMEIRA DEMÃO). AF_01/2020","M2",4837.0219999999999,9.25,{"$f":"ROUND(D83*E83,2)","v":44742.45}]
["3.9.3","PINTURA COM TINTA ALQUÍDICA DE FUNDO (TIPO ZARCÃO)  (SEGUNDA DEMÃO). AF_01/2021","M2",4837.0219999999999,9.25,{"$f":"ROUND(D84*E84,2)","v":44742.45}]
["3.10","COBERTURA",null,null,null,{"$f":"SUBTOTAL(9,F86:F89)","v":894313.66999999993}]
["3.10.1","TELHAMENTO COM TELHA METÁLICA TERMOACÚSTICA E = 30 MM, COM ATÉ 2 ÁGUAS , INCLUSO IÇAMENTO. AF_07/2019, conforme projeto e memorial descritivo\nREVESTIMENTO SUPERIOR:\n• AÇO GALVALUME AZM150 PRÉ-PINTADO TRAPEZOIDAL TP30, ESPESSURA TÉCNICA DE 0,43 MM, CROMATIZADA COM PRIMER EPÓXI (4 A 6 MICRONS) E PINTURA DE ACABAMENTO EM POLIÉSTER (18 A 22 MICRONS) COR BRANCO GELO (PADRÃO RAL 9003),  CONJUNTO MONOLÍTICO TELHA/EPS/FILME, PRODUZIDO PELO PROCESSO DE COLAGEM CONTÍNUA, CONFORME FABRICANTE\n NÚCLEO: \n• NÚCLEO ISOLANTE EM E.P.S. (POLIESTIRENO EXPANDIDO), ESPESSURA 30 MM, LIVRE DE CFC REVESTIMENTO INFERIOR:\n• FILME DE ALUMÍNIO ESTUCO FOSCO, ESP. TÉC. MÍNIMA 40 U.M.\nReferência comercial: ISOESTE OU SIMILAR","M2",2999.85,207.03,{"$f":"ROUND(D86*E86,2)","v":621058.94999999995}]
["3.10.2","CUMEEIRA TRAPEZOIDAL TP -30 RAL 9003 PRÉ PINTADA NA COR BRANCA #0,43 DE AÇO GALVANIZADO, ISOESTE OU SIMILAR","M",23,68.680000000000007,{"$f":"ROUND(D87*E87,2)","v":1579.64}]
["3.10.3","PLATIBANDA EM CHAPA DE AÇO COM REAPROVEITANDO DO MATERIAL EXISTENTE","M2",60.66,264.61,{"$f":"ROUND(D88*E88,2)","v":16051.24}]
["3.10.4","PLATIBANDA EM CHAPA DE AÇO ESPESSURA 2,00mm, H=1600mm, DOBRA CARTOLA: 30X20X970mm, COM METALON DIM. 50X20X0,97mm NA FACE INFERIOR PARA ARREMATE COM O FORRO, FUNDO ANTICORROSIVO EM PRIMER EPÓXI NAS DUAS FACES (MATERIAL NOVO)","M2",966.04000000000019,264.61,{"$f":"ROUND(D89*E89,2)","v":255623.84}]
["3.11","ESQUADRIAS",null,null,null,{"$f":"SUBTOTAL(9,F91:F115)","v":288815.75}]
["3.11.1","P3 REAPROVEITADA - PORTA DE VIDRO TEMPERADO DE DUAS FOLHAS DE ABRIR 1,80X2,10, COM REAPROVEITAMENTO DO VIDRO, INCLUSO NOVAS MOLAS HIDRÁULICA DE PISO NAS DUAS FOLHAS, NOVOS PUXADORES TUBULAR RETO 40CM ALUMINIO POLIDO, E NOVAS FERRAGENS CROMADAS E FIXAÇÕES EM PAREDES, PISOS E FORROS CONFORME NORMAS DO FABRICANTE, SEGUINDO AS INDICAÇÕES DO PROJETO ARQUITETÔNICO, INCLUSIVE FERRAGENS DE INSTALAÇÃO PARA PERFEITO USO E FUNCIONAMENTO. (BIBLIOTECA)","CONJ",1,5529.38,{"$f":"ROUND(D91*E91,2)","v":5529.38}]
["3.11.3","P5 - PORTA DE ABRIR EM LAMBRIL COM ALISAR E PORTAL EM ALUMÍNIO, COM PINTURA ELETROSTÁTICA MICROTEXTURADA, DIM. 0,90 X 2,10M, COR AZUL NEON NA FOLHA; PORTAL, ALISAR, DOBRADIÇA NA COR CINZA PLATINA, FECHADURA MODELO STAM 803/10 ESPELHO INOX EXT., INCLUSIVE FERRAGENS DE INSTALAÇÃO PARA PERFEITO USO E FUNCIONAMENTO. (10 UNIDADES- SANITÁRIOS, BIBLIOTECA, SALAS DE ESTUDOS.)","M2",18.900000000000002,1280.44,{"$f":"ROUND(D92*E92,2)","v":24200.32}]
["3.11.4","P5 REAPROVEITADA- PORTA DE ABRIR COM ALISAR E PORTAL EM ALUMÍNIO, COM NOVAS MOLDURAS/GUARNIÇÃO DE ACABAMENTO E NOVAS FERRAGENS DE INSTALAÇÃO PARA PERFEITO USO E FUNCIONAMENTO. (2 UNIDADES: DEPÓSITO DA CANTINA E COZINHA FUNCIONÁRIOS)","M2",3.7800000000000002,126.18,476.96]
["3.11.5","P6 - PORTA DE ABRIR EM LAMBRIL  COM ALISAR E PORTAL EM ALUMÍNIO COM VISOR EM VIDRO TEMPERADO 6MM 0,20X1,00M, COM PINTURA ELETROSTÁTICA MICROTEXTURADA, DIM. 0,90 X 2,10M, COR AZUL NEON NA FOLHA; PORTAL, ALISAR, LATINA, FECHADURA MODELO STAM 803/10 ESPELHO INOX EXT., INCLUSIVE FERRAGENS DE INSTALAÇÃO PARA PERFEITO USO E FUNCIONAMENTO.(SALAS DE AULA EM GERAL)","UN",16,2464.34,39429.440000000002]
["3.11.6","P8 - PORTA DE ABRIR 2 FOLHAS-  FOLHA EXTERNA EM LAMBRIL COM ALISAR E PORTAL EM ALUMÍNIO, PINTURA ELETROSTÁTICA MICROTEXTURADA, DIM. 0,90 X 2,10M, COR AZUL NEON NA FOLHA; PORTAL, ALISAR, PLATINA, FECHADURA MODELO STAM 803/10 ESPELHO INOX EXT., INCLUSIVE FERRAGENS DE INSTALAÇÃO PARA PERFEITO USO E FUNCIONAMENTO.FOLHA INTERNA  EM PERFIL DE ALUMINIO COM TELA MILIMETRADA (MOSQUITEIRO) EM AÇO INOX OU ALUMINIO REMOVIÍVEL, INCLUSO  MOLA AEREA.  (2 UNIDADES: PREPARO DA CANTINA E REFEITÓRIO DE FUNCIONÁRIOS)","UN",2,2918.84,5837.68]
["3.11.7","P9 - PORTA TIPO “VAI E VEM”, 02 FOLHAS, EM LAMBRIL COM ALISAR E PORTAL EM ALUMÍNIO, COM PINTURA ELETROSTÁTICA MICROTEXTURADA, DIM. 0,90 X 2,10M, COR AZUL NEON NA FOLHA; PORTAL, ALISAR, DOBRADIÇA NA COR CINZA PLATINA, SEM FECHADURA., INCLUSIVE FERRAGENS DE INSTALAÇÃO PARA PERFEITO USO E FUNCIONAMENTO. (1 UNIDADE: PREPARO DA CANTINA )","M2",1.8900000000000001,1280.44,2420.0300000000002]
["3.11.8","P10 - PORTA DE ENROLAR, DIM 4,46X2,90M (MEDIDA DO VÃO), PINTURA ELETROSTÁTICA CINZA PLATINA, SENDO, TIRAS MEIA CANA NA CHAPA PERFURADA #24,  05 CAIXAS DE MOLA DIÂMETRO DE 20MM, LARGURA DE 50MM, COMPRIMENTO DA MOLA DE 6,00M E FURO CENTRAL DE 1.1/2”, EIXO CENTRAL Ø1.1/2” CH#2,65MM, GUIA LATERAIS EM PERFIL “U” 50X30MM CH#14 (2,00MM), FECHADURA: 02 TRAVAS LATERAIS STAM 1200 OU SIMILAR COM CHAVE TETRA, SOLEIRA EM FORMATO “T” CH#14, VEDAÇÃO INFERIOR EM PERFIL EMBORRACHADO OU DE SILICONE. (1 UNIDADE: CANTINA) ","M2",12.933999999999999,589.79999999999995,7628.47]
["3.11.9","P11 - PORTA DE ABRIR EM VENEZIANA, DIM 0,60X1,90M INSTALADA 0,20M ACIMA DO PISO, ALUMÍNIO FOSCO, FECHADURA, INCLUSIVE FERRAGENS DE INSTALAÇÃO PARA PERFEITO USO E FUNCIONAMENTO. LOCAL DE INSTALAÇÃO: TODOS OS BOXES DOS SANITÁRIOS. (14 UNIDADES= BOX SANITÁRIOS)","M2",15.959999999999999,925.66,14773.53]
["3.11.10","P12- INSTALAÇÃO DE PORTÃO METALICO REAPROVEITADO GRADIL EXISTENTE, CHUMBADO EM BASE DE ALVENARIA OU CONCRETO. (7 UNIDADES: ÁREA DE CONVIVÊNCIA)","M2",30.800000000000004,43.84,1350.27]
["3.11.11","J2 - JANELA DE VIDRO TEMPERADO, 6MM , INCOLOR, DIM. 1,40X1,45X1,18, ESTRUTURA EM ALUMÍNIO ANODIZADO FOSCO, JANELA DIVIDIDO EM 02 PARTES IGUAIS, E EM CADA UMA DESSAS PARTES DEVERÁ CONTER UMA SUBDIVISÃO, SENDO A PARTE SUPERIOR MÓVEL TIPO MÁXIMO-AR E A PARTE INFERIOR FIXA, INCLUSIVE FERRAGENS DE INSTALAÇÃO PARA PERFEITO USO E FUNCIONAMENTO. ( 1 UNIDADE: REFEITÓRIO)","M2",2.0299999999999998,648.33000000000004,1316.11]
["3.11.12","J3 - JANELA DE VIDRO TEMPERADO, 6MM , INCOLOR, DIM. 2,10X1,45X1,18, ESTRUTURA EM ALUMÍNIO ANODIZADO FOSCO, JANELA DIVIDIDO EM 03 PARTES IGUAIS, E EM CADA UMA DESSAS PARTES DEVERÁ CONTER UMA SUBDIVISÃO, SENDO A PARTE SUPERIOR MÓVEL TIPO MÁXIMO-AR E A PARTE INFERIOR FIXA, INCLUSIVE FERRAGENS DE INSTALAÇÃO PARA PERFEITO USO E FUNCIONAMENTO. (32 UNIDADES: SALAS DE AULA EM GERAL)","M2",97.44,648.33000000000004,63173.279999999999]
["3.11.13","J4- JANELA DE VIDRO TEMPERADO, 6MM, INCOLOR, DIM: 2,80X1,45X1,18, ESTRUTURA EM ALUMINIO ANODIZADO FOSCO, JANELA DIVIDIDO EM QUATRO PARTES IGUAIS, E EM CADA UMA DESSAS PARTES DEVERÁ CONTER UMA SUBDIVISÃO, SENDO A PARTE SUPERIOR MÓVEL TIPO MÁXIMO-AR E A PARTE INFERIOR FIXA, INCLUSIVE FERRAGENS DE INSTALAÇÃO PARA PERFEITO USO E FUNCIONAMENTO. FACE INTERNA  EM PERFIL DE ALUMINIO COM TELA MILIMETRADA (MOSQUITEIRO) EM AÇO INOX OU ALUMINIO REMOVIÍVEL. (REFEITÓRIO E COZINHA)","UN",4,3039.37,12157.48]
["3.11.14","J5- JANELA DE VIDRO TEMPERADO, 6MM, INCOLOR, DIM: 3,50X1,45X1,18, ESTRUTURA EM ALUMINIO ANODIZADO FOSCO, JANELA DIVIDIDO EM CINCO PARTES IGUAIS, E EM CADA UMA DESSAS PARTES DEVERÁ CONTER UMA SUBDIVISÃO, SENDO A PARTE SUPERIOR MÓVEL TIPO MÁXIMO-AR E A PARTE INFERIOR FIXA, INCLUSIVE FERRAGENS DE INSTALAÇÃO PARA PERFEITO USO E FUNCIONAMENTO. (4 UNIDADES: BIBLIOTECA)","M2",20.3,648.33000000000004,13161.1]
["3.11.15","J6- JANELA DE VIDRO TEMPERADO, 6MM, INCOLOR, DIM: 0,70X0,60X2,30, ESTRUTURA EM ALUMINIO ANODIZADO FOSCO, JANELA MÓVEL TIPO MÁXIMO-AR, INCLUSIVE FERRAGENS DE INSTALAÇÃO PARA PERFEITO USO E FUNCIONAMENTO. (3 UNIDADES: 2 DML E PREPARO)","M2",1.2599999999999998,648.33000000000004,816.9]
["3.11.16","J7- JANELA DE VIDRO TEMPERADO, 6MM, INCOLOR, DIM:1,40X0,60X2,30, ESTRUTURA EM ALUMINIO ANODIZADO FOSCO, JANELA DIVIDIDA EM DUAS PARTES IGUAIS, MÓVEL TIPO MÁXIMO-AR, INCLUSIVE FERRAGENS DE INSTALAÇÃO PARA PERFEITO USO E FUNCIONAMENTO. (14 UNIDADES: SANITÁRIOS, BIBLIOTECA E ESTUDOS EM GRUPOS) ","M2",11.759999999999998,648.33000000000004,7624.36]
["3.11.17","J9- JANELA DE VIDRO TEMPERADO, 6MM, INCOLOR, DIM: 2,80X0,60X2,30, ESTRUTURA EM ALUMINIO ANODIZADO FOSCO, JANELA DIVIDIDA EM QUATRO PARTES IGUAIS,  MÓVEL TIPO MÁXIMO-AR, INCLUSIVE FERRAGENS DE INSTALAÇÃO PARA PERFEITO USO E FUNCIONAMENTO. (5 UNIDADES: SANITÁRIOS)","M2",8.4,648.33000000000004,5445.97]
["3.11.18","J10-VENEZIANA INDUSTRIAL EM POLICARBONATO ALVEOLAR 4MM COM REQUADRO METÁLICO COM UMA DEMÃO DE FUNDO ANTICORROSIVO EM PRIMER EPÓXI E DUAS DEMÃOS ESMALTE SINTETICO ACETINADO CINZA PLATINA ,  FORNECIMENTO E INSTALAÇÃO.(61,75X0,80M- CIRCULAÇÃO DO BLOCO)","M2",49.400000000000006,261.27999999999997,12907.23]
["3.11.19","J11- PAINEL DE VIDRO TEMPERADO ESPESSURA 10MM, TRANSPARENTE, DIM. 0,70X2,23X0,40, REQUADRO DE ALUMÍNIO NA COR NATURAL, INCLUSIVE FERRAGENS DE INSTALAÇÃO PARA PERFEITO USO E FUNCIONAMENTO. (26 UNIDADES: BIBLIOTECA)","M2",40.585999999999999,427.01,17330.63]
["3.11.20","J12- PAINEL DE VIDRO TEMPERADO ESPESSURA 8MM, TRANSPARENTE, DIM. 0,80X1,45X1,18, REQUADRO DE ALUMÍNIO NA COR NATURAL, INCLUSIVE FERRAGENS DE INSTALAÇÃO PARA PERFEITO USO E FUNCIONAMENTO. (16 UNIDADES: ESPAÇO MAKER)","M2",18.559999999999999,337.37,6261.59]
["3.11.21","V4- VISOR EM VIDRO TEMPERADO ESPESSURA=6MM, FUMÊ, DIM: 2,50X1,00X1,10,  COM REQUADRO DE ALUMÍNIO NA COR NATURAL, INCLUSIVE FERRAGENS DE INSTALAÇÃO PARA PERFEITO USO E FUNCIONAMENTO.(4 UNIDADES: SALAS DIVERSIDADES, TECNOLOGIAS I, II E III)","M2",10,338.81,3388.1]
["3.11.22","V5- VISOR EM VIDRO TEMPERADO ESPESSURA=6MM, FUMÊ, DIM: 1,00X1,00X1,10,  COM REQUADRO DE ALUMÍNIO NA COR NATURAL, INCLUSIVE FERRAGENS DE INSTALAÇÃO PARA PERFEITO USO E FUNCIONAMENTO. (2 UNIDADES: ESTUDOS EM GRUPO)","M2",2,338.81,677.62]
["3.11.23","V6- VISOR EM VIDRO TEMPERADO ESPESSURA=6MM, FUMÊ, DIM: 4,00X0,60X2,30,  COM REQUADRO DE ALUMÍNIO NA COR NATURAL, INCLUSIVE FERRAGENS DE INSTALAÇÃO PARA PERFEITO USO E FUNCIONAMENTO. (1 UNIDADE: PREPARO DA CANTINA)","M2",2.4,338.81,813.14]
["3.11.24","VIDRO FIXO TEMPERADO ESPESSURA 10MM, FORNECIMENTO E INSTALACAO.  (SALAS DE LEITURA )","M2",18.510000000000002,427.01,7903.96]
["3.11.25","ESPELHO  CRISTAL E=4MM, FORNECIMENTO E INSTALAÇÃO (SANITÁRIOS)","M2",17.308000000000003,471.22,8155.88]
["3.11.26","LOUSA DE VIDRO INCOLOR 6MM TEMPERADO COM SEIS FUROS ADESIVADOS CPOM PELICULA BRANCA E PARAFUSADO COM BOTÃO CABEÇA DE LATÃO CROMADO MEDINDO 3,50 X 1,20M, COM PORTA CANETAS E APAGADORES MEDINDO ,30X0,10M COM 02 BICOS TUCANO CADA PORTA APAGADOR. (SALAS DE AULAS EM GERAL)","UN",16,1627.27,26036.32]
["3.12","PISOS",null,null,null,{"$f":"SUBTOTAL(9,F117:F121)","v":554321.48}]
["3.12.1","CONTRAPISO DE CONCRETO 20 MPA PREPARO MECANICO, ESPESSURA 7CM.  ","M2",2568.214093,70.069999999999993,{"$f":"ROUND(D117*E117,2)","v":179954.76}]
["3.12.2","REGULARIZAÇÃO EM ARGAMASSA TRAÇO 1:4 (CIMENTO E AREIA), PREPARO MECÂNICOCOM BETONEIRA 400 L, APLICADO EM ÁREAS SECAS SOBRE LAJE, ADERIDO, ESPESSURA 3CM","M2",2568.214093,37.79,{"$f":"ROUND(D118*E118,2)","v":97052.81}]
["3.12.3","PISO PORCELANATO POLIDO ADHARA PO, 80X80CM, ELIANE OU SIMILR TÉCNICO.","M2",1407.4212930000001,107.52,{"$f":"ROUND(D119*E119,2)","v":151325.94}]
["3.12.4","PISO PORCELANATO ESMALTADO ANTIDERRAPANTE - MARMORE BIANCO NAT RET 60X60CM COR BEGE COD. 23427E PORTOBELLO OU SIMILAR","M2",1160.7927999999999,107.52,{"$f":"ROUND(D120*E120,2)","v":124808.44}]
["3.12.5","RODAPÉ EM PISO PORCELANATO POLIDO ADHARA PO, 80X80CM, ELIANE OU SIMILR TÉCNICO.","M",102.7462,11.48,{"$f":"ROUND(D121*E121,2)","v":1179.53}]
["3.13","REVESTIMENTO ",null,null,null,{"$f":"SUBTOTAL(9,F123:F128)","v":362894.94000000006}]
["3.13.1","CHAPISCO APLICADO EM ALVENARIAS E ESTRUTURAS DE CONCRETO INTERNAS, COM ROLO PARA TEXTURA ACRÍLICA.  ARGAMASSA TRAÇO 1:4 E EMULSÃO POLIMÉRICA (ADESIVO) COM PREPARO EM BETONEIRA 400L. AF_06/2014","M2",3975.6237000000001,5.09,{"$f":"ROUND(D123*E123,2)","v":20235.919999999998}]
["3.13.2"," EMBOÇO/MASSA ÚNICA, APLICADO MANUALMENTE, TRAÇO 1:2:8, EM BETONEIRA DE 400L, PAREDES INTERNAS, COM EXECUÇÃO DE TALISCAS.","M2",3975.6237000000001,31.51,125271.9]
["3.13.3","REVESTIMENTO CERAMICO PORTOBELLO GLACIE WHITE 30X60CM, INCLUSO E REJUNTE - FORNECIMENTO E INSTALAÇÃO","M2",441.08203000000009,156.44,69002.87]
["3.13.4","REVESTIMENTO CERÂMICO PARA PAREDES EXTERNAS EM PASTILHAS JATOBÁ DE PORCELANA 5 X 5 CM (PLACAS DE 30 X 30 CM) OU SIMILAR, INCLUSO REJUNTE E ARGAMASSA INDUSTRIALIZADA.","M2",33.917999999999999,246.69,8367.23]
["3.13.5","REVESTIMENTO CERAMICO PORTOBELLO 7x26, BASALTO OFF WHITE, REFERENCIA  24995E, INCLUSO E REJUNTE - FORNECIMENTO E INSTALAÇÃO. (FACHADAS E CIRCULAÇÕES EXTERNAS)","M2",417.60139999999996,182.46,76195.55]
["3.13.6","BARRADO EM PISO PORCELANATO POLIDO ADHARA PO, 80X80CM, ELIANE OU SIMILR TÉCNICO. (SALAS DE AULA EM GERAL)","M2",593.57770000000005,107.52,63821.47]
["3.14","GRANITO",null,null,null,{"$f":"SUBTOTAL(9,F130:F133)","v":99071.85}]
["3.14.1","BANCADA DE GRANITO CINZA ANDORINHA, SOBRE MÃOS-FRANCESAS METÁLICAS, ESP=2cm COM FRONTÃO 20cm, SAIA COM ACAB. DE MEIA ESQUADRIA 30CM E REFORÇO INFERIOR DE BORDA E CORTE PARA INST. DE CUBAS DE LOUÇA OVAL DE EMBUTIR LOCAL \n-BANCADAS DOS SANITÁRIOS E LAVATÓRIOS- FRONTÃO 20CM E SAIA DE 30CM \n- TROCADOR DO BANHEIRO PCD- FRONTÃO 20CM E SAIA DE 10CM\n- BALCÕES ATENDIMENTO CANTINA- FRONTÃO 20CM E SAIA DE 10CM\n- BANCO PÁTIO DE CONVIVÊNCIA- SAIA DE 5CM","M2",43.905000000000001,884.39,{"$f":"ROUND(D130*E130,2)","v":38829.14}]
["3.14.2","DIVISORIA EM GRANITO BRANCO POLIDO, ESP = 3CM, ASSENTADO COM ARGAMASSA TRACO 1:4, ARREMATE EM CIMENTO BRANCO, EXCLUSIVE FERRAGENS","M2",44.856999999999999,903.77,{"$f":"ROUND(D131*E131,2)","v":40540.410000000003}]
["3.14.3","SOLEIRA EM GRANITO, LARGURA 15 CM, ESPESSURA 2,0 CM. AF_06/2018","M",58.06,114.65,{"$f":"ROUND(D132*E132,2)","v":6656.58}]
["3.14.4","FORNECIMENTO E INSTALAÇÃO DE PEITORIL/PINGADERIA EM GRANITO CINZA ANDORINHA 16,5CM ESPESSURA 2CM, ASSENTADO COM ARGAMASSA TRAÇO 1: 3 (CIMENTO E AREIA MÉDIA), PREPARO MANUAL DA ARGAMASSA","M2",29.122500000000002,447.96,{"$f":"ROUND(D133*E133,2)","v":13045.72}]
["3.15","FORROS",null,null,null,{"$f":"SUBTOTAL(9,F135:F138)","v":292732.09999999998}]
["3.15.1","FORRO ACÚSTICO EM FIBRA MINERAL: REF: OWA DO BRASIL, MODELO COSMOS TEGULAR, MODULAÇÃO 625X625MM COM ABSORÇÃO ACÚSTICA NRC=0,65 E RESISTÊNCIA A UMIDADE RH 95% (COMPOSIÇÃO: FIBRA MINERAL BIOSOLÚVEL COMPOSTA POR MINERAIS INERTES, ARGILA E AMIDO NATURAL - MAT. INCOMBUSTÍVEL).","M2",1299.5789000000002,142.13,{"$f":"ROUND(D135*E135,2)","v":184709.15}]
["3.15.2","FORRO DE PVC: FORRO DE PVC MODULAR BRANCO ESPSESSURA 10MM, MODULAÇÃO 625X625MM, INSTALADOS EM PERFIL \"T\", SUPENSO POR PENDURAIS EM ARRAME GALVANIZADO A CADA 1250X1250MM","M2",107.842393,91.95,{"$f":"ROUND(D136*E136,2)","v":9916.11}]
["3.15.3","FORRO EM DRYWALL, PARA AMBIENTES COMERCIAIS, INCLUSIVE ESTRUTURA DE FIXAÇÃO E JUNTA PERIMÉTRICA. AF_05/2017_P","M2",1160.7927999999999,71.069999999999993,{"$f":"ROUND(D137*E137,2)","v":82497.539999999994}]
["3.15.4","BEIRAIS-FORRO DE PVC, LISO, REGUA DE 20CM, INCLUSIVE ESTRUTURA DE FIXAÇÃO CPNFORME NORMAS DE FABRICANTE. AF_05/2017_P","M2",264.43,59.03,{"$f":"ROUND(D138*E138,2)","v":15609.3}]
["3.16","PINTURA",null,null,null,{"$f":"SUBTOTAL(9,F140:F146)","v":152544.71}]
["3.16.1","APLICAÇÃO DE FUNDO SELADOR LÁTEX PVA EM PAREDES, UMA DEMÃO. AF_06/2014","M2",2855.0391000000004,2.31,{"$f":"ROUND(D140*E140,2)","v":6595.14}]
["3.16.2","EMASSAMENTO COM MASSA LATEX PVA PARA AMBIENTES INTERNOS","M2",1623.7865000000002,14.74,23934.61]
["3.16.3","PINTURA C/ APLICAÇÃO DE TINTA LATÉX ACRÍLICO, PAREDES INTERNAS,  2 DEMÃOS (REF. CORES A SEREM DEFINIDAS PELA FISCALIZAÇÃO SESI).","M2",1623.7865000000002,14.41,23398.76]
["3.16.4","TEXTURA ACRÍLICA, APLICAÇÃO MANUAL EM PAREDE, UMA DEMÃO. (PAREDES E PLATIBANDAS EXTERNAS)","M2",1942.7925999999998,14.96,29064.18]
["3.16.5","APLICAÇÃO MANUAL DE PINTURA COM TINTA LÁTEX ACRÍLICA EM PAREDES, DUAS DEMÃOS. (PAREDES E PLATIBANDAS EXTERNAS)","M2",1942.7925999999998,14.41,27995.64]
["3.16.6","EMASSAMENTO COM MASSA LATEX PVA PARA FORRO DE GESSO","M2",1160.7927999999999,19.54,22681.89]
["3.16.7","PINTURA C/ APLICAÇÃO DE TINTA LATÉX ACRÍLICO PARA FORRO DE GESSO ,  2 DEMÃOS (REF. CORES A SEREM DEFINIDAS PELA FISCALIZAÇÃO SENAI).","M2",1160.7927999999999,16.260000000000002,18874.490000000002]
["3.17","CALÇAMENTO, PÁTIO E PASSARELAS ",null,null,null,0]
["3.18","SERVIÇOS COMPLEMENTARES",null,null,null,{"$f":"SUBTOTAL(9,F149:F149)","v":862.44}]
["3.18.1","INSTALAÇÃO DE GRADIL REAPROVEITADO DO EXISTENTE, CHUMBADO EM BASE DE ALVENARIA OU CONCRETO. ","M2",19.672499999999999,43.84,{"$f":"ROUND(D149*E149,2)","v":862.44}]
["3.19","INSTALAÇÕES SPDA",null,null,null,{"$f":"SUBTOTAL(9,F151:F169)","v":64137.110000000008}]
["3.19.1","HASTE DE ATERRAMENTO 5/8  PARA SPDA - FORNECIMENTO E INSTALAÇÃO. AF_12/2017","UN",66,56.5,{"$f":"ROUND(D151*E151,2)","v":3729}]
["3.19.2","CAIXA DE INSPEÇÃO PARA ATERRAMENTO, CIRCULAR, EM POLIETILENO, DIÂMETRO INTERNO = 0,3 M. AF_05/2018","UN",18,25.23,454.14]
["3.19.3","ESCAVAÇÃO MANUAL DE VALA COM PROFUNDIDADE MENOR OU IGUAL A 1,30 M. AF_03/2016","M3",31.049999999999997,76.989999999999995,2390.54]
["3.19.4","REATERRO MANUAL DE VALAS COM COMPACTAÇÃO MECANIZADA. AF_04/2016","M3",31.049999999999997,26,807.3]
["3.19.5","FORNECIMENTO E INSTALAÇÃO DE CONECTOR DE MEDIÇÃO C/ 2 PARAFUSOS","UN",18,29.36,528.48]
["3.19.6","FORNECIMENTO E INSTALAÇÃO DE SOLDA EXOTÉRMICA CABO-HASTE COM CARTUCHO Nº 90 E MOLDE CABO 35mm²- HASTE 5/8\" ","UN",18,19.96,359.28]
["3.19.7","FORNECIMENTO E INSTALAÇÃO DE SOLDA EXOTÉRMICA CABO-HASTE COM CARTUCHO Nº115 E MOLDE CABO 50mm²-  HASTE 5/8\" ","UN",66,25.08,1655.28]
["3.19.8","FORNECIMENTO E INSTALAÇÃO DE SOLDA EXOTÉRMICA CABO-CABO COM CARTUCHO Nº 32 E MOLDE TIPO \"T\" CABO 35mm²- CABO 35mm²","UN",42,12.71,533.82000000000005]
["3.19.9","FORNECIMENTO E INSTALAÇÃO DE BARRA CHATA DE ALUMÍNIO 3/4\" X 1/4\" ","M",117,91.33,10685.61]
["3.19.10","FORNECIMENTO E INSTALAÇÃO DE SOLDA EXOTÉRMICA CABO-CABO, CABO DE 35mm²  TIPO \"X\"(COM MOLDE)","M",9,19.93,179.37]
["3.19.11","FORNECIMENTO E INSTALAÇÃO DE REBITE POP EM ALUMÍNIO 4 X 16MM","UN",779,1.38,1075.02]
["3.19.12","FORNECIMENTO E INSTALAÇÃO DE PARAFUSO ZINCADO, SEXTAVADO, COM ROSCA INTEIRA, DIAMETRO 1/4\", COMPRIMENTO 1/2\"","UN",78,7.72,602.16]
["3.19.13","FORNECIMENTO E INSTALAÇÃO DE TERMINAL AEREO EM ACO GALVANIZADO DN 5/16\", COMPRIMENTO DE 350MM, COM BASE DE FIXACAO HORIZONTAL","UN",155,21.69,3361.95]
["3.19.14","FORNECIMENTO E INSTALAÇÃO DE CONECTOR METALICO TIPO PARAFUSO FENDIDO (SPLIT BOLT), PARA CABOS ATE 35 MM2","UN",18,17.57,316.26]
["3.19.15","FORNECIMENTO E INSTALAÇÃO DE PRESILHA DE LATÃO 35MM²","UN",469,4.34,2035.46]
["3.19.16","TERMINAL OU CONECTOR DE PRESSAO - PARA CABO 35MM2 - FORNECIMENTO E INSTALACAO","UN",18,19.27,346.86]
["3.19.17","TERMINAL OU CONECTOR DE PRESSAO - PARA CABO 50MM2 - FORNECIMENTO E INSTALACAO","UN",18,25.91,466.38]
["3.19.18","CABO DE COBRE NU 35MM2 - FORNECIMENTO E INSTALACAO","M",707,34.61,24469.27]
["3.19.19","CABO DE COBRE NU 50MM2 - FORNECIMENTO E INSTALACAO","M",207,48.99,10140.93]
["3.20","INSTALAÇÕES DE COMBATE A INCÊNDIO",null,null,null,0]
["3.21","INSTALAÇÕES ELÉTRICAS",null,null,null,{"$f":"SUBTOTAL(9,F172:F226)","v":190942.91}]
["3.21.1","ACESSÓRIOS PARA ELETRODUTOS  E USO GERAL",null,null,null,{"$f":"SUBTOTAL(9,F173:F175)","v":4920}]
["3.21.1.1","FORNECIMENTO E INSTALAÇÃO DE CAIXA OCTOGONAL 3\" X 3\", PVC, INSTALADA EM TETO - AF_12/2015","PÇ",247,9.9600000000000009,{"$f":"ROUND(D173*E173,2)","v":2460.12}]
["3.21.1.2","FORNECIMENTO E INSTALAÇÃO DE CAIXA RETANGULAR 4\" X 2\" MÉDIA (1,30 M DO PISO), PVC, INSTALADA EM PAREDE - AF_12/2015","PÇ",171,13.48,2305.08]
["3.21.1.3","FORNECIMENTO E INSTALAÇÃO DE ARAME AÇO GALVANIZADO 18 BWG, 1,24MM (0,009 KG/M)","M",60,2.58,154.80000000000001]
["3.21.2","CABO UNIPOLAR",null,null,null,{"$f":"SUBTOTAL(9,F177:F179)","v":52954}]
["3.21.2.1","FORNECIMENTO E INSTALAÇÃO DE CABO DE COBRE FLEXÍVEL ISOLADO, 2,5 MM², ANTI-CHAMA 450/750 V, PARA CIRCUITOS TERMINAIS - AF_12/2015","M",7600,3.54,{"$f":"ROUND(D177*E177,2)","v":26904}]
["3.21.2.2","FORNECIMENTO E INSTALAÇÃO DE CABO DE COBRE FLEXÍVEL ISOLADO, 4,0 MM², ANTI-CHAMA 450/750 V, PARA CIRCUITOS TERMINAIS - AF_12/2015","M",3200,5.7,18240]
["3.21.2.3","FORNECIMENTO E INSTALAÇÃO DE CABO DE COBRE FLEXÍVEL ISOLADO, 6,0 MM², ANTI-CHAMA 450/750 V, PARA CIRCUITOS TERMINAIS - AF_12/2015","M",1000,7.81,7810]
["3.21.3","DISPOSITIVO ELÉTRICO - EMBUTIDO",null,null,null,{"$f":"SUBTOTAL(9,F181:F189)","v":10323.760000000002}]
["3.21.3.1","INTERRUPTOR SIMPLES (1 MÓDULO), 10A/250V, INCLUINDO SUPORTE E PLACA - FORNECIMENTO E INSTALAÇÃO. AF_12/2015","PÇ",4,21.35,{"$f":"ROUND(D181*E181,2)","v":85.4}]
["3.21.3.2","INTERRUPTOR SIMPLES (2 MÓDULOS), 10A/250V, INCLUINDO SUPORTE E PLACA - FORNECIMENTO E INSTALAÇÃO. AF_12/2015","PÇ",17,33.71,573.07000000000005]
["3.21.3.3","INTERRUPTOR SIMPLES (3 MÓDULOS), 10A/250V, INCLUINDO SUPORTE E PLACA - FORNECIMENTO E INSTALAÇÃO. AF_12/2015","PÇ",3,46.06,138.18]
["3.21.3.4","INTERRUPTOR SIMPLES (1 MÓDULO) COM 1 TOMADA DE EMBUTIR 2P+T 10 A,  INCLUINDO SUPORTE E PLACA - FORNECIMENTO E INSTALAÇÃO. AF_12/2015","PÇ",6,38.049999999999997,228.3]
["3.21.3.5","INTERRUPTOR SIMPLES (2 MÓDULOS) COM 1 TOMADA DE EMBUTIR 2P+T 10 A,  INCLUINDO SUPORTE E PLACA - FORNECIMENTO E INSTALAÇÃO. AF_12/2015","UN",2,50.42,100.84]
["3.21.3.6","INTERRUPTOR PARALELO (1 MÓDULO), 10A/250V, INCLUINDO SUPORTE E PLACA - FORNECIMENTO E INSTALAÇÃO. AF_12/2015","UN",2,26.56,53.12]
["3.21.3.7","TOMADA BAIXA DE EMBUTIR (2 MÓDULOS), 2P+T 10 A, INCLUINDO SUPORTE E PLACA - FORNECIMENTO E INSTALAÇÃO. AF_12/2015","PÇ",128,35.950000000000003,4601.6000000000004]
["3.21.3.8","TOMADA ALTA DE EMBUTIR (1 MÓDULO), 2P+T 10 A, INCLUINDO SUPORTE E PLACA - FORNECIMENTO E INSTALAÇÃO. AF_12/2015","PÇ",128,34.1,4364.8]
["3.21.3.9","TOMADA ALTA DE EMBUTIR (1 MÓDULO), 2P+T 20 A, INCLUINDO SUPORTE E PLACA - FORNECIMENTO E INSTALAÇÃO. AF_12/2015","PÇ",5,35.69,178.45]
["3.21.4","DISPOSITIVO DE PROTEÇÃO",null,null,null,{"$f":"SUBTOTAL(9,F191:F203)","v":8836.2000000000007}]
["3.21.4.1","DISJUNTOR TRIPOLAR TIPO DIN, CORRENTE NOMINAL DE 25A - FORNECIMENTO E INSTALAÇÃO. AF_04/2016","PÇ",14,76.97,{"$f":"ROUND(D191*E191,2)","v":1077.58}]
["3.21.4.2","DISJUNTOR TRIPOLAR TIPO DIN, CORRENTE NOMINAL DE 32A - FORNECIMENTO E INSTALAÇÃO. AF_04/2016","PÇ",6,80.92,485.52]
["3.21.4.3","FORNECIMENTO E INSTALAÇÃO DE DISJUNTOR TIPO DIN/IEC, TRIPOLAR 80 A","UND",2,159.43,318.86]
["3.21.4.4","FORNECIMENTO E INSTALAÇÃO DE DISJUNTOR TIPO DIN/IEC, TRIPOLAR 90 A","UND",1,159.43,159.43]
["3.21.4.5","FORNECIMENTO E INSTALAÇÃO DE DISJUNTOR TERMOMAGNETICO TRIPOLAR 125A","UND",1,393.59,393.59]
["3.21.4.6","FORNECIMENTO E INSTALAÇÃO DE DISJUNTOR TERMOMAGNETICO TRIPOLAR 150 A / 600 V, TIPO FXD / ICC - 35 KA","UND",2,441.13,882.26]
["3.21.4.7","DISJUNTOR TERMOMAGNETICO TRIPOLAR EM CAIXA MOLDADA 175 A 225A 240V, FORNECIMENTO E INSTALACAO","UN",1,580.69000000000005,580.69000000000005]
["3.21.4.8","FORNECIMENTO E INSTALAÇÃO DE DISJUNTOR BIPOLAR TIPO DIN, CORRENTE NOMINAL DE 10A - AF_04/2016","PÇ",22,57.69,1269.18]
["3.21.4.9","DISJUNTOR BIPOLAR TIPO DIN, CORRENTE NOMINAL DE 20A - FORNECIMENTO E INSTALAÇÃO. AF_04/2016","UN",6,61,366]
["3.21.4.10","FORNECIMENTO E INSTALAÇÃO DE DISJUNTOR BIPOLAR TIPO DIN, CORRENTE NOMINAL DE 25A - AF_04/2016","PÇ",8,61,488]
["3.21.4.11","FORNECIMENTO E INSTALAÇÃO DE DISJUNTOR BIPOLAR TIPO DIN, CORRENTE NOMINAL DE 32A - AF_04/2016","PÇ",3,63.63,190.89]
["3.21.4.12","FORNECIMENTO E INSTALAÇÃO DE DISJUNTOR MONOPOLAR TIPO DIN, CORRENTE NOMINAL DE 16A - AF_04/2016","PÇ",53,12.2,646.6]
["3.21.4.13","FORNECIMENTO E INSTALAÇÃO DE DISPOSITIVO DPS CLASSE II, 1 POLO, TENSAO MAXIMA DE 175 V, CORRENTE MAXIMA DE 20 KA (TIPO AC)","UND",24,82.4,1977.6]
["3.21.5","ELETROCALHA FURADA TIPO U PRÉ-GALVANIZADA QUENTE",null,null,null,{"$f":"SUBTOTAL(9,F205:F216)","v":13281.77}]
["3.21.5.1","FORNECIMENTO E INSTALAÇÃO DE CURVA HORIZONTAL 90º - 100X100MM, COM TAMPA","UND",1,30.24,{"$f":"ROUND(D205*E205,2)","v":30.24}]
["3.21.5.2","FORNECIMENTO E INSTALAÇÃO DE CURVA DE INVERSÃO - 100X100MM CHAPA 20","UND",6,47.75,286.5]
["3.21.5.3","FORNECIMENTO E INSTALAÇÃO DE ELETROCALHA PERFURADA TIPO U - 100X100MM, COM TAMPA","M",150,36.39,5458.5]
["3.21.5.4","FORNECIMENTO E INSTALAÇÃO DE FLANGE - 100X100MM CHAPA 20","UND",6,11.16,66.959999999999994]
["3.21.5.5","FORNECIMENTO E INSTALAÇÃO DE SUPORTE VERTICAL - 100X100MM","UND",100,13.29,1329]
["3.21.5.6","FORNECIMENTO E INSTALAÇÃO DE TÊ HORIZONTAL 90º - 100X100MM CHAPA 20, COM TAMPA","UND",7,48.85,341.95]
["3.21.5.7","FORNECIMENTO E INSTALAÇÃO DE EMENDA PARA ELETROCALHA - 100MM","UND",156,13.02,2031.12]
["3.21.5.8","FORNECIMENTO E INSTALAÇÃO DE ARRUELA LISA GALVAN. 1/4\"","UND",1200,0.49,588]
["3.21.5.9","FORNECIMENTO E INSTALAÇÃO DE PARAFUSO GALVAN. CABEÇA LENTILHA 1/4\"X5/8\" MÁQUINA ROSCA TOTAL","UND",1000,0.94,940]
["3.21.5.10","FORNECIMENTO E INSTALAÇÃO DE PORCA ZINCADA, SEXTAVADA, DIAMETRO 1/4\"","UND",1200,0.44,528]
["3.21.5.11","FORNECIMENTO E INSTALAÇÃO DE CHUMBADOR PARABOLT AÇO 1/4\" X 3\"","UND",100,8.61,861]
["3.21.5.12","FORNECIMENTO E INSTALAÇÃO DE VERGALHAO ZINCADO ROSCA TOTAL, 1/4 \" (6,3 MM)","UND",50,16.41,820.5]
["3.21.6","ELETRODUTO PVC FLEXÍVEL",null,null,null,{"$f":"SUBTOTAL(9,F218:F219)","v":17375}]
["3.21.6.1","FORNECIMENTO E INSTALAÇÃO DE ELETRODUTO FLEXÍVEL CORRUGADO, PVC, DN 32 MM (1\"), PARA CIRCUITOS TERMINAIS, INSTALADO EM PAREDE - AF_12/2015","M",450,10.06,{"$f":"ROUND(D218*E218,2)","v":4527}]
["3.21.6.2","FORNECIMENTO E INSTALAÇÃO DE ELETRODUTO FLEXÍVEL CORRUGADO, PVC, DN 25 MM (3/4\"), PARA CIRCUITOS TERMINAIS, INSTALADO EM PAREDE - FORNECIMENTO E INSTALAÇÃO. AF_12/2015","M",1600,8.0299999999999994,12848]
["3.21.7","LUMINÁRIA E ACESSÓRIOS",null,null,null,{"$f":"SUBTOTAL(9,F221:F222)","v":72822.27}]
["3.21.7.1","FORNECIMENTO E INSTALAÇÃO DE LUMINARIA DE EMBUTIR DE ALUMÍNIO E POLICARBONATO 62,5x62,5 CM, BIVOLT, TEMPERATURA DE COR DE 6000K, FLUXO LUMINOSO DE 4500LM, POTENCIA 50W","UND",177,381.33,{"$f":"ROUND(D221*E221,2)","v":67495.41}]
["3.21.7.2","FORNECIMENTO E INSTALAÇÃO DE LUMINARIA DE EMBUTIR DE ALUMÍNIO E POLICARBONATO 22,5x22,5 CM, BIVOLT, TEMPERATURA DE COR DE 6500K, FLUXO LUMINOSO DE 850LM, POTENCIA 18W","UND",66,80.709999999999994,5326.86]
["3.21.8","QUADRO DISTRIBUIÇÃO - EMBUTIR",null,null,null,{"$f":"SUBTOTAL(9,F224:F226)","v":10429.91}]
["3.21.8.1","QUADRO DE DISTRIBUICAO DE ENERGIA DE EMBUTIR, EM CHAPA METALICA, PARA 40 DISJUNTORES TERMOMAGNETICOS MONOPOLARES, COM BARRAMENTO TRIFASICO E NEUTRO, FORNECIMENTO E INSTALACAO","UN",1,1076.47,{"$f":"ROUND(D224*E224,2)","v":1076.47}]
["3.21.8.2","FORNECIMENTO E INSTALAÇÃO DE QUADRO DE DISTRIBUIÇÃO DE EMBUTIR, EM CHAPA PINTADA, COM CAPACIDADE PARA 56 DISJUNTORES UNIPOLARES TIPO DIN, COMPLETO, INCLUSIVE BARRAMENTO TRIFÁSICO 150A","UND",2,1064.46,2128.92]
["3.21.8.3","FORNECIMENTO E INSTALAÇÃO DE QUADRO DE DISTRIBUIÇÃO DE EMBUTIR, EM CHAPA PINTADA, COM CAPACIDADE PARA 70 DISJUNTORES UNIPOLARES TIPO DIN, COMPLETO, INCLUSIVE BARRAMENTO TRIFÁSICO 225A","UND",4,1806.13,{"$f":"ROUND(D226*E226,2)","v":7224.52}]
["3.22","INSTALAÇÕES DE LÓGICA E TELEFONICA",null,null,null,0]
["3.23","CLIMATIZAÇÃO ",null,null,null,0]
["3.24","INFRAESTRUTURA PARA INSTALAÇÃO DE ÁUDIO E VÍDEO",null,null,null,{"$f":"SUBTOTAL(9,F230:F263)","v":130425.36999999997}]
["3.24.1","TOMADA ALTA DE EMBUTIR (1 MÓDULO), 2P+T 10 A, INCLUINDO SUPORTE E PLACA - FORNECIMENTO E INSTALAÇÃO. AF_12/2015","UN",16,34.1,{"$f":"ROUND(D230*E230,2)","v":545.6}]
["3.24.2","DISJUNTOR MONOPOLAR TIPO DIN, CORRENTE NOMINAL DE 20A - FORNECIMENTO E INSTALAÇÃO. AF_04/2016","UN",10,13.25,132.5]
["3.24.3","CABO DE COBRE FLEXÍVEL ISOLADO, 2,5 MM², ANTI-CHAMA 450/750 V, PARA CIRCUITOS TERMINAIS - FORNECIMENTO E INSTALAÇÃO. AF_12/2015","M",285,3.54,1008.9]
["3.24.4","ELETRODUTO FLEXÍVEL CORRUGADO, PVC, DN 32 MM (1\"), PARA CIRCUITOS TERMINAIS, INSTALADO EM FORRO - FORNECIMENTO E INSTALAÇÃO. AF_12/2015","M",128,9.92,1269.76]
["3.24.5","CAIXA RETANGULAR 4\" X 2\" ALTA (2,00 M DO PISO), PVC, INSTALADA EM PAREDE - FORNECIMENTO E INSTALAÇÃO. AF_12/2015","UN",16,25.58,409.28]
["3.24.6","CAIXA RETANGULAR 4\" X 2\" MÉDIA (1,30 M DO PISO), PVC, INSTALADA EM PAREDE - FORNECIMENTO E INSTALAÇÃO. AF_12/2015","UN",11,13.48,148.28]
["3.24.7","CAIXA RETANGULAR 4\" X 2\" BAIXA (0,30 M DO PISO), PVC, INSTALADA EM PAREDE - FORNECIMENTO E INSTALAÇÃO. AF_12/2015","UN",11,8.94,98.34]
["3.24.8","ELETRODUTO DE AÇO GALVANIZADO, CLASSE LEVE, DN 25 MM (1\u0092\u0092), APARENTE, INSTALADO EM TETO - FORNECIMENTO E INSTALAÇÃO. AF_11/2016_P","M",260,23.71,6164.6]
["3.24.9","LUVA DE EMENDA PARA ELETRODUTO, AÇO GALVANIZADO, DN 25 MM (1''), APARENTE, INSTALADA EM TETO - FORNECIMENTO E INSTALAÇÃO. AF_11/2016_P","UN",6,8.1199999999999992,48.72]
["3.24.10","CONDULETE DE ALUMÍNIO, TIPO X, PARA ELETRODUTO DE AÇO GALVANIZADO DN 25 MM (1''), APARENTE - FORNECIMENTO E INSTALAÇÃO. AF_11/2016_P","UN",16,40.25,644]
["3.24.11","CONDULETE DE ALUMÍNIO, TIPO C, PARA ELETRODUTO DE AÇO GALVANIZADO DN 25 MM (1''), APARENTE - FORNECIMENTO E INSTALAÇÃO. AF_11/2016_P","UN",22,29.65,652.29999999999995]
["3.24.12","CONDULETE DE ALUMÍNIO, TIPO LR, PARA ELETRODUTO DE AÇO GALVANIZADO DN 20 MM (3/4''), APARENTE - FORNECIMENTO E INSTALAÇÃO. AF_11/2016_P","UN",22,26.15,575.29999999999995]
["3.24.13","CONDULETE DE ALUMÍNIO, TIPO E, ELETRODUTO DE AÇO GALVANIZADO DN 25 MM (1''), APARENTE - FORNECIMENTO E INSTALAÇÃO. AF_11/2016_P","UN",46,30.82,1417.72]
["3.24.14","CONDULETE DE ALUMÍNIO, TIPO T, PARA ELETRODUTO DE AÇO GALVANIZADO DN 25 MM (1''), APARENTE - FORNECIMENTO E INSTALAÇÃO. AF_11/2016_P","UN",11,37.83,416.13]
["3.24.15","FORNECIMENTO E INSTALAÇÃO DE ABRACADEIRA EM ACO PARA AMARRACAO DE ELETRODUTOS, TIPO D, COM 1\" E PARAFUSO DE FIXACAO","UND",174,7.77,1351.98]
["3.24.16","FORNECIMENTO E INSTALAÇÃO DE Cabo HDMI 20 Metros 2.0 4k Ultra HD Filtro Pino Dourado MXT","UN",16,293.26,4692.16]
["3.24.17","FORNECIMENTO E INSTALAÇÃO DE Projetor BenQ MS531 3300 Lumens - 800x600 USB HDMI, COM SUPORTE PARA TETO 4 EM 1 PRETO (EQUIPAMENTO FORNECIDO PELO SESI)","UN",16,2634.8,42156.800000000003]
["3.24.18","FORNECIMENTO E INSTALAÇÃO DE CURVA 90 GRAUS, PARA ELETRODUTO, EM ACO GALVANIZADO ELETROLITICO, DIAMETRO DE 25 MM (1\")","UN",11,12.81,140.91]
["3.24.19","FORNECIMENTO E INSTALAÇÃO DE SONOFLETOR CIRCULAR 6\" DE EMBUTIR EM FORRO, COM TELA, COR BRANCA, SENSIBILIDADE MÍNIMA DE 89DB, POTÊNCIA DE 30W OU SPERIOR - INCLUINDO TRANSFORMADOR CASADOR DE IMPEDÂNCIA (SE NECESSÁRIO) E ACESSÓRIOS","UN",90,288.06,25925.4]
["3.24.20","FORNECIMENTO E INSTALAÇÃO DE SUPORTE UNIVERSAL PARA PROJETOR - PROLONGADOR (EQUIPAMENTO FORNECIDO PELO SESI)","UN",16,350.57,5609.12]
["3.24.21","FORNECIMENTO E INSTALAÇÃO DE TRANSFORMADOR DE LINHA 70 V / 10 W","UN",24,100.6,2414.4]
["3.24.22","FORNECIMENTO E INSTALAÇÃO DE MODULO AMPLIFICADOR COM POTÊNCIA DE 480 WRMS, COM ENTRADA DE MICROFONE E AUXILIAR COM CONTROLES DE VOLUMES INDEPENDENTES, CONTROLE DE GRAVE E AGUDO (REF.: SLIM 4500 OU SIMILAR)","UN",1,2948.44,2948.44]
["3.24.23","FORNECIMENTO E INSTALAÇÃO DE MODULO AMPLIFICADOR COM POTÊNCIA DE 200 WRMS, COM ENTRADA DE MICROFONE E AUXILIAR COM CONTROLES DE VOLUMES INDEPENDENTES, CONTROLE DE GRAVE E AGUDO (REF.: SLIM 3000 OU SIMILAR)","UN",11,1447.79,15925.69]
["3.24.24","FORNECIMENTO E INSTALAÇÃO DE CABO POLARIZADO PARA SONORIZAÇÃO 2X2,5MM² - BICOLOR, MARCA IMFAP, OU SIMILAR","M",11,10.9,119.9]
["3.24.25","FORNECIMENTO E INSTALAÇÃO DE MINI RACK METÁLICO 3U, COM TAMPA E CHAVE","UN",11,326.88,3595.68]
["3.24.26","FORNECIMENTO E INSTALAÇÃO DE SAÍDA LATERAL DE ELETROCALHA PERFURADA GALVANIZADA PARA ELETRODUTO DE 1\"","UN",26,11.34,294.83999999999997]
["3.24.27","FORNECIMENTO E INSTALAÇÃO DE MÃO FRANCESA PARA ELETROCALHA PERFURADA GALVANIZADA DE 100 X 50 X 3000mm","UN",75,18.670000000000002,1400.25]
["3.24.28","FORNECIMENTO E INSTALAÇÃO DE ELETROCALHA PERFURADA GALVANIZADA DE 100 X 50 X 3000mm","UN",53,120.92,6408.76]
["3.24.29","FORNECIMENTO E INSTALAÇÃO DE T HORIZONTAL PARA ELETROCALHA PERFURADA GALVANIZADA DE 100 X 50 X 3000mm","UN",3,73.180000000000007,219.54]
["3.24.30","FORNECIMENTO E INSTALAÇÃO DE EMENDA INTERNA PARA ELETROCLHA PERFURADA GALVANIZADA DE 100 X 50 X 3000mm","UN",52,26.35,1370.2]
["3.24.31","FORNECIMENTO E INSTALAÇÃO DE TERMINAL DE FECHAMENTO PARA ELETROCALHA PERFURADA GALVANIZADA DE 100 X 50 3000mm","UN",5,27.06,135.30000000000001]
["3.24.32","FORNECIMENTO E INSTALAÇÃO DE SUSPENSÃO VERTICAL PARA ELETROCALHA PERFURADA 100 X 50 mm","UN",31,20.87,646.97]
["3.24.33","FORNECIMENTO E INSTALAÇÃO DE VERGALHÃO ROSCA TOTAL 5/16'' (TIRANTE)","UN",31,37.380000000000003,1158.78]
["3.24.34","FORNECIMENTO E INSTALAÇÃO DE CANTONEIRA ZZ","UN",31,12.22,378.82]
["3.25","INSTALAÇÕES HIDROSANITÁRIAS",null,null,null,0]
["3.26","DRENAGEM",null,null,null,0]
["3.27","GLP (BLOCOB)",null,null,null,{"$f":"SUBTOTAL(9,F267:F282)","v":4663.21}]
["3.27.1","FORNECIMENTO E INSTALAÇÃO DE TUBO DE 1/2\" AÇO GALVANIZADO","M",48,23.19,{"$f":"ROUND(D267*E267,2)","v":1113.1199999999999}]
["3.27.2","FORNECIMENTO E INSTALAÇÃO DE JOELHO DE 1/2\" AÇO GALVANIZADO","PÇ",15,16.11,241.65]
["3.27.3","FORNECIMENTO E INSTALAÇÃO NIPLE DUPLO 1/2\" AÇO GALVANIZADO","PÇ",8,11.53,92.24]
["3.27.4","FORNECIMENTO E INSTALAÇÃO TÊ  DE 1/2\" AÇO GALVANIZADO","PÇ",4,21.7,86.8]
["3.27.5","FORNECIMENTO E INSTALAÇÃO VALVULA DE ESFERA 1/2\" LATAO","PÇ",4,68.52,274.08]
["3.27.6","FORNECIMENTO E INSTALAÇÃO BUJÃO 1/2\" GALVANIZADO","PÇ",1,8.2200000000000006,8.2200000000000006]
["3.27.7","FORNECIMENTO E INSTALAÇÃO DE ESPIGÃO DE 1/2\" PARA 3/8\"","PÇ",2,14.49,28.98]
["3.27.8","FORNECIMENTO DE SUPORTE E ABRAÇADEIRA METALICA PARA TUBO 1/2\"","PÇ",24,11.34,272.16000000000003]
["3.27.9","FORNECIMENTO E INSTALAÇÃO PARAFUSO / BUCHA  M8","PÇ",100,4.2699999999999996,427]
["3.27.10","FORNECIMENTO E INSTALAÇÃO MANGUEIRA FLEXIVEL NBR 13419 2m","PÇ",2,34.450000000000003,68.900000000000006]
["3.27.11","MANOMETRO","PÇ",1,122.24,122.24]
["3.27.12","FORNECIMENTO E INSTALAÇÃO REGULADOR DE SEGUNDO ESTAGIO OU ESTAGIO ÚNICO","PÇ",1,61.79,61.79]
["3.27.13","FORNECIMENTO E PINTURA COM TINTAS ","M²",21.055584,20.84,438.8]
["3.27.14","TESTES DE ESTANQUEIDADE","CJ",1,215.83,215.83]
["3.27.15","COMISSIONAMENTO E REGULAGEM","CJ",1,345.32,345.32]
["3.27.16","ADMINISTRAÇÃO - ENGENHEIRO MECÂNICO COM ENCARGOS COMPLEMENTARES (2 H/DIA - POR 4 DIAS) E EMISSÃO DE ART DE EXECUÇÃO","H",8,108.26,866.08]
["3.28","LOUÇAS E METAIS",null,null,null,{"$f":"SUBTOTAL(9,F284:F310)","v":65568.98}]
["3.28.1","CABIDEIRO 20160 EVIDENCE CROMADO (MARCA DECA, DOCOL OU SIMILAR)- FORNECIMENTO E INSTALAÇÃO","UN",9,28.15,{"$f":"ROUND(D284*E284,2)","v":253.35}]
["3.28.2","TORNEIRA DE MESA PRESMATIC ECO CROMADA COD 1173 CONFORTO (COM ALAVANCA PARA PCD), MARCA DECA, DOCOL OU SIMILAR, FORNECIMENTO E INSTALAÇÃO.","UN",3,729.7,2189.1]
["3.28.3","TORNEIRA DE MESA PRESMATIC ECO CROMADA COD 1173, MARCA DECA, DOCOL OU SIMILAR, FORNECIMENTO E INSTALAÇÃO.","UN",23,199.09,4579.07]
["3.28.4","TORNEIRA CROMADA 1/2\u0094 OU 3/4\u0094 PARA TANQUE, PADRÃO MÉDIO - FORNECIMENTO E INSTALAÇÃO. AF_01/2020 (EMBAIXO DAS PIAS DOS BANHEIROS)","UN",4,47.63,190.52]
["3.28.5","CUBA DE LOUÇA OVAL DE EMBUTIR - CÓD. L.37 - BRANCO GELO – DECA, DOCOL OU SIMILAR, INCLUSO VÁLVULA DECA LAVATÓRIO/ CUBA/ BIDÊ, 1602.C CROMADA (DECA, DOCOL OU SIMILAR) E SIFÃO TIPO GARRAFA EM METAL CROMADO - FORNECIMENTO E INSTALAÇÃO. ","UN",23,358.02,8234.4599999999991]
["3.28.6","LAVATÓRIO MASTER DE CANTO COR BRANCO GELO, COD 76, (MARCA DECA OU SIMILAR), INCLUSO SIFÃO TIPO COPO, PARA LAVATÓRIO 1680, CROMADO, 1\" - 1.1/2\", VALVULA DE METAL CROMADO 1\", PARA LAVATÓRIO, SEM LADRÃO. - FORNECIMENTO E INSTALAÇÃO","UN",2,1420.73,2841.46]
["3.28.7","LAVATÓRIO SUSPENSO DECA OU SIMILAR, INCLUSO SIFÃO TIPO COPO, PARA LAVATÓRIO 1680, CROMADO, 1\" - 1.1/2\", VALVULA DE METAL CROMADO 1\", PARA LAVATÓRIO, SEM LADRÃO. - FORNECIMENTO E INSTALAÇÃO","UN",1,360.2,360.2]
["3.28.8","VASO SANITÁRIO INFANTIL LOUÇA BRANCA - FORNECIMENTO E INSTALACAO. AF_01/2020","UN",7,369.51,2586.5700000000002]
["3.28.9","ASSENTO SANITÁRIO INFANTIL - FORNECIMENTO E INSTALACAO. AF_01/2020","UN",7,76.62,536.34]
["3.28.10","DUCHA HIGIÊNICA CROMADO REF:  LINK DECA 1984.C.ACT.LNK.CRL, MARCA DECA, DOCOL OU SIMILAR, FORNECIMENTO E INSTALAÇÃO.","UN",5,331.57,1657.85]
["3.28.11","BACIA SANITARIA BRANCA MOD. RAVENA P917 MARCA DECA, DOCOL OU SIMILAR, TUBO DE LIGAÇÃO CROMADO P/ BACIA 1968 , CONJUNTO PARA FIXAÇAO PARA VASO SANITÁRIO COM PARAFUSO, ARRUELA E BUCHA - FORNECIMENTO E INSTALACAO","UN",10,209.07,2090.6999999999998]
["3.28.12","ASSENTO UNIVERSAL PP AP0117, BACIA SANITARIA MOD. RAVENA, MARCA DECA, DOCOL OU SIMILAR","UN",10,38.479999999999997,384.8]
["3.28.13","BACIA SANITÁRIA PARA PORTADORES DE DEFICIÊNCIA, SEM ABERTURA FRONTAL, REFERÊNCIA LINHA\nCONFORTO DA DECA, CÓD. P.510.17, COR BRANCO GELO OU SIMILAR\n","UN",3,764.98,2294.94]
["3.28.14","ASSENTO PLÁSTICO EM POLIPROPILENO P/ BACIA SANITÁRIA PARA PORTADORES DE NECESSIDADES ESPECIAIS, REF. LINHA CONFORTO DA DECA OU SIMILAR .","UN",3,38.479999999999997,115.44]
["3.28.15","VÁLVULA DE DESCARGA  1.1/2\" E ACABAMENTO 4900.C.MAX HYDRA MAX CROMADO (DECA, DOCOL OU SIMILAR)","UN",17,217.92,3704.64]
["3.28.16","VÁLVULA DE DESCARGA  1.1/2\" COM ACABAMENTO PARA VÁLVULA BENEFIT CROMADO (ALAVANCA PARA PCD)- DOCOL OU SIMILAR","UN",3,865.48,2596.44]
["3.28.17","SECADORA DE MÃO AUTOMÁTICA MODELO ECO 1800 INOX (DAKMARK OU SIMILAR), 220V",null,4,968.77,3875.08,null,"\""]
["3.28.18","MICTORIO DE LOUCA BRANCA C/ SIFÃO INTEGRADO, CÓD. M. 715 (DECA, DOCOL, OU SIMILAR) , COM VÁLVULA DE MICTÓRIO, PRESMATIC, TIPO ANTI VANDALISMO, (MARCA: DECA, DOCOL OU SIMILAR)  E CONJUNTO PARA FIXACAO  - FORNECIMENTO E INSTALACAO","UN",7,530.05999999999995,3710.42]
["3.28.19","CHUVEIRO ELÉTRICO COMUM CORPO PLÁSTICO, TIPO DUCHA \u0096 FORNECIMENTO E INSTALAÇÃO. AF_01/2020","UN",3,91.69,275.07]
["3.28.20","REGISTRO DE PRESSÃO BRUTO, LATÃO, ROSCÁVEL, 3/4\", COM ACABAMENTO E CANOPLA CROMADOS. FORNECIDO E INSTALADO EM RAMAL DE ÁGUA. AF_12/2014","UN",3,68.41,205.23]
["3.28.21","TORNEIRA CROMADA 1/2\u0094 OU 3/4\u0094 PARA TANQUE, PADRÃO MÉDIO - FORNECIMENTO E INSTALAÇÃO. AF_01/2020","UN",2,47.63,95.26]
["3.28.22","TANQUE DE LOUÇA BRANCA COM COLUNA, 30L OU EQUIVALENTE - FORNECIMENTO E INSTALAÇÃO. AF_01/2020","UN",2,732.78,1465.56]
["3.28.23","ESTANTE EM AÇO INOXIDÁVEL AISI 304 COM 5 PRATELEIRAS LISAS - 1,0M (100X50X200CM)","UN",2,2357.1799999999998,4714.3599999999997]
["3.28.24","MESA PIA AÇO INOX INDUSTRIAL AISI 304 COM PANELEIRO E UMA CUBA 50X40X25CM - 200X70X90CM","UN",3,3682.01,11046.03]
["3.28.25","MESA AÇO INOX INDUSTRIAL AISI 304 / BANCADA DE APOIO COM ESPELHO  E PANELEIRO INFERIOR- 2M (200X70X90CM)","UN",1,2838.26,2838.26]
["3.28.26","MESA AÇO INOX INDUSTRIAL AISI 304 / BANCADA DE APOIO COM ESPELHO  E PANELEIRO INFERIOR- 1,5M (150X70X90CM)","UN",1,2357.1799999999998,2357.1799999999998]
["3.28.27","TORNEIRA DE COZINHA DE PAREDE LINK 1168 (DECA, DOCOL OU SIMILAR)","UN",3,123.55,370.65]
["3.29","ACESSIBILIDADE",null,null,null,0]
["3.30","SEGURANÇA PATRIMONIAL ",null,null,null,0]
["3.31","LIMPEZA CONTÍNUA DA OBRA ",null,null,null,0]
["3.32","LIMPEZA FINAL DA OBRA",null,null,null,0]
["VALOR TOTAL",null,null,null,null,{"$f":"SUBTOTAL(9,F15:F314)","v":5363242.0200000005}]

{"sheet":"BLOCO C","index":4,"n_rows":268,"n_cols":6,"rows_kept":268,"cut":false,"hidden":false,"merged":[[13,0,13,5],[10,0,10,5],[0,0,3,2],[0,3,1,5],[2,3,3,3],[2,4,3,4],[2,5,3,5],[4,0,4,5],[5,0,5,5],[6,0,6,5],[7,0,7,5],[8,0,8,5],[9,0,9,5]]}
["                                 PLANILHA ORÇAMENTARIA   ",null,null,"SPN-FF-003"]
[]
[null,null,null,"Folha:              1 de 1","Revisão:      02","Data: \n07/10/19"]
[]
[{"$f":"RESUMO!A5","v":"SESI - SERVIÇO SOCIAL DA INDUSTRIA - DR/MT"}]
[{"$f":"RESUMO!A6","v":"OBRA: CONTRATAÇÃO DE EMPRESA ESPECIALIZADA EM ENGENHARIA PARA OBRA DE REFORMA E AMPLIAÇÃO DA UNIDADE SESI ESCOLA CUIABÁ"}]
[{"$f":"RESUMO!A7","v":"UNIDADE OPERACIONAL: SESI ESCOLA CUIABA"}]
[{"$f":"RESUMO!A8","v":"ENDEREÇO:  AV. OÁTOMO CANAVARROS, 1079, BAIRRO BELA VISTA CIDADE: CUIABÁ-MT            "}]
["CONSTRUTORA:"]
["RESPONSÁVEL TÉCNICO:"]
[]
["ITEM","DESCRIÇÃO","UNID.","QUANT.","Valor UNIT. (R$)","Valor Total (R$)"]
[]
["BLOCO C"]
["4.1","DEMOLIÇÕES E RETIRADAS ",null,null,null,{"$f":"SUBTOTAL(9,F16:F36)","v":91414.739999999991}]
["4.1.1","DEMOLIÇÃO DE ALVENARIA DE BLOCO FURADO, DE FORMA MANUAL, SEM REAPROVEITAMENTO. AF_12/2017","M3",159.21575000000001,50.69,{"$f":"ROUND(D16*E16,2)","v":8070.65}]
["4.1.2","REMOÇÃO DE CHAPAS E PERFIS DE DRYWALL, DE FORMA MANUAL, SEM REAPROVEITAMENTO. AF_12/2017","M2",5.4600000000000009,6.58,{"$f":"ROUND(D17*E17,2)","v":35.93}]
["4.1.3","RETIRADA DE GRADE METÁLICA","M2",6,10.91,65.459999999999994]
["4.1.4","DEMOLIÇÃO DE PISO REVESTIDO COM GRANILITE","M2",866.64469999999983,24.23,20998.799999999999]
["4.1.5","DEMOLIÇÃO DE PISO VINÍLICO","M2",492.93049999999999,2.95,{"$f":"ROUND(D20*E20,2)","v":1454.14}]
["4.1.6","RETIRADA DE BANCADA COM REAPROVEITAMENTO ","M2",8.3000000000000007,43.7,362.71]
["4.1.7","REMOÇÃO DE TESOURAS METÁLICAS, DE FORMA MANUAL, SEM REAPROVEITAMENTO, VÃO MAIOR QUE 8M. (MEMORIAL ARQUITETURA- COBERTURA 01, 03 E 05.)","UN",18,420.88,7575.84]
["4.1.8","REMOÇÃO DE PASSARELA METÁLICA DE INTERLIGAÇÃO BLOCO B E C . ","M2",37.72,21.62,815.51]
["4.1.9","REMOÇÃO DE TRAMA DE MADEIRA PARA COBERTURA, DE FORMA MANUAL, SEM REAPROVEITAMENTO. (TODO TELHADO)","M2",1877,6.78,12726.06]
["4.1.10","REMOÇÃO DE TELHAS, DE FIBROCIMENTO, METÁLICA E CERÂMICA, DE FORMA MANUAL, SEM REAPROVEITAMENTO. (TODO TELHADO)","M2",1877,3.14,5893.78]
["4.1.11","REMOÇÃO DE PLATIBANDA EM CHAPA METÁLICA COM REAPROVEITAMENTO.","M2",190.43999999999997,21.62,4117.3100000000004]
["4.1.12","DESMONTAGEM E RETIRADA DE EXAUSTOR EÓLICO DE FORMA MANUAL ,  INCLUSO TRANSPORTE E DEPOSITO EM LOCAL A SER INDICADO PELA FISCALIZAÇÃO","CJ",6,177.95,1067.7]
["4.1.13","REMOÇÃO DE PORTAS, DE FORMA MANUAL, COM REAPROVEITAMENTO. ","M2",27.3,31.59,862.41]
["4.1.14","REMOÇÃO DE PORTAS , GUICHÊ E BOX DE VIDRO TEMPERADO, DE FORMA MANUAL, COM REAPROVEITAMENTO. ","M2",34.36,31.59,1085.43]
["4.1.15","REMOÇÃO DE JANELAS, DE FORMA MANUAL, COM REAPROVEITAMENTO.","M2",117.35999999999999,75.290000000000006,8836.0300000000007]
["4.1.16","REMOÇÃO DE METAIS SANITÁRIOS, DE FORMA MANUAL, SEM REAPROVEITAMENTO. AF_12/2017","UN",2,7.99,15.98]
["4.1.17","REMOÇÃO DE FORROS DE DRYWALL, PVC E FIBROMINERAL, DE FORMA MANUAL, SEM REAPROVEITAMENTO. AF_12/2017","M2",866.64469999999983,1.42,1230.6400000000001]
["4.1.18","REMOÇÃO DE FORROS DE MADEIRA, DE FORMA MANUAL, SEM REAPROVEITAMENTO.","M2",492.93049999999999,2.54,1252.04]
["4.1.19","REMOÇÃO DE TRAMA METÁLICA OU DE MADEIRA PARA FORRO, DE FORMA MANUAL, SEM REAPROVEITAMENTO. AF_12/2017","M2",1359.5751999999998,2.54,3453.32]
["4.1.20","RETIRADA GRADE OU GUARDA-CORPO METALICO,  COM REAPROVEITAMENTO","M2",15.840000000000002,10.91,172.81]
["4.1.21","BOTA FORA DE MATERIAL DESCARTADO, D.M.T. = 10 km - (CARGA, TRANSPORTE E DESCARGA MECÂNICA)","M3",448.75914800000004,25.23,11322.19]
["4.2","CANTEIRO DE OBRAS",null,null,null,0]
["4.3","ADMINISTRAÇÃO",null,null,null,0]
["4.4","TERRAPLENAGEM",null,null,null,{"$f":"SUBTOTAL(9,F40)","v":1842.6}]
["4.4.1","ATERRO COMPACTADO MECANICAMENTE AO NIVEL DO BALDRAME - C/ AQUISIÇÃO DE MATERIAL + 25% DE EMPOLAMENTO, EM CAMADAS DE 20cm - AQUI INCLUSO CARGA, DESCARGA, TRANSPORTE DMT ATÉ 10KM, ESPALHAMENTO COM PATROL, NIVELAMENTO E COMPACTAÇÃO MECÂNICA (95%) CONTROLADO LABORATORIALMENTE.","M3",29.704999999999998,62.03,{"$f":"ROUND(D40*E40,2)","v":1842.6}]
["4.5","FUNDAÇÃO",null,null,null,{"$f":"SUBTOTAL(9,F42:F47)","v":13600.04}]
["4.5.1","CONCRETAGEM DE PILARES, FCK = 25 MPA,  COM USO DE BALDES EM EDIFICAÇÃO COM SEÇÃO MÉDIA DE PILARES MENOR OU IGUAL A 0,25 M² - LANÇAMENTO, ADENSAMENTO E ACABAMENTO. AF_12/2015","M3",5.9976000000000003,701.15,{"$f":"ROUND(D42*E42,2)","v":4205.22}]
["4.5.2","CONCRETAGEM DE BLOCOS DE COROAMENTO E VIGAS BALDRAME, FCK 25 MPA, COM USO DE BOMBA \u0096 LANÇAMENTO, ADENSAMENTO E ACABAMENTO","M3",5.9976000000000003,587.19000000000005,3521.73]
["4.5.3","ARMAÇÃO DE CINTA DE ALVENARIA ESTRUTURAL; DIÂMETRO DE 8,0 MM","KG",45.543500000000009,10.33,470.46]
["4.5.4","ARMAÇÃO VERTICAL DE ALVENARIA ESTRUTURAL; DIÂMETRO DE 10,0 MM. AF_01/2015","KG",142.28020000000001,10.35,1472.6]
["4.5.5","(RAMPA E ESCADA) ALVENARIA DE BLOCOS DE CONCRETO ESTRUTURAL 14X19X39 CM, (ESPESSURA 14 CM), FBK = 4,5 MPA, UTILIZANDO PALHETA, PARA EDIFICAÇÃO HABITACIONAL. AF_10/2015","M2",31.11,73.39,2283.16]
["4.5.6","(DEGRAUS DA ESCADA)  ALVENARIA DE BLOCOS DE CONCRETO ESTRUTURAL 14X19X39 CM, (ESPESSURA 14 CM), FBK = 4,5 MPA, UTILIZANDO PALHETA, PARA EDIFICAÇÃO HABITACIONAL. AF_10/2015","M2",22.44,73.39,1646.87]
["4.6","IMPERMEABILIZAÇÃO",null,null,null,0]
["4.7","ESTRUTURA DE CONCRETO ARMADO ",null,null,null,0]
["4.8","ALVENARIA E PAINÉIS",null,null,null,{"$f":"SUBTOTAL(9,F51:F58)","v":121965.22000000002}]
["4.8.1","ALVENARIA DE VEDAÇÃO DE BLOCOS CERÂMICOS FURADOS NA HORIZONTAL DE 9X19X19CM (ESPESSURA 9CM) DE PAREDES COM ÁREA LÍQUIDA MAIOR OU IGUAL A 6M² COM VÃOS E ARGAMASSA DE ASSENTAMENTO COM PREPARO EM BETONEIRA. AF_06/2014","M2",846.55599999999993,83.75,{"$f":"ROUND(D51*E51,2)","v":70899.070000000007}]
["4.8.3","PAREDE COM PLACAS DE GESSO ACARTONADO (DRYWALL), PARA USO INTERNO, COM UMA FACE SIMPLES E ESTRUTURA METÁLICA COM GUIAS SIMPLES, SEM VÃOS. AF_06/2017_P","M2",463.73,61.31,{"$f":"ROUND(D52*E52,2)","v":28431.29}]
["4.8.4","INSTALAÇÃO DE ISOLAMENTO COM LÃ DE ROCHA EM PAREDES DRYWALL. AF_06/2017","M2",463.73,27.43,12720.11]
["4.8.5","VERGA PRÉ-MOLDADA PARA JANELAS COM ATÉ 1,5 M DE VÃO. AF_03/2016","M",6.86,32.799999999999997,225.01]
["4.8.6","CONTRAVERGA PRÉ-MOLDADA PARA VÃOS DE ATÉ 1,5 M DE COMPRIMENTO. AF_03/2016","M",6.86,32.26,221.3]
["4.8.7","VERGA PRÉ-MOLDADA PARA JANELAS COM MAIS DE 1,5 M DE VÃO. AF_03/2016","M",109.48,41.68,4563.13]
["4.8.8","CONTRAVERGA PRÉ-MOLDADA PARA VÃOS DE MAIS DE 1,5 M DE COMPRIMENTO. AF_03/2016","M",106.96000000000001,38.39,4106.1899999999996]
["4.8.9","VERGA PRÉ-MOLDADA PARA PORTAS COM ATÉ 1,5 M DE VÃO. AF_03/2016","M",32.340000000000003,24.71,799.12]
["4.9","ESTRUTURA METÁLICA",null,null,null,{"$f":"SUBTOTAL(9,F60:F65)","v":332997.21000000002}]
["4.9.1","ESTRUTURA METALICA DA COBERTURA CONFORME PROJETO EM AÇO ESTRUTURAL. (MEMORIAL ARQUITETURA- COBERTURA 01, 03 E 05.)","KG",10809.76,15.16,{"$f":"ROUND(D60*E60,2)","v":163875.96}]
["4.9.2","RETIRADA DE ESTRUTURA PLATIBANDA, SECCIONAMENTO DE TESOURAS METALICAS EXISTENTES E RECOLOCAÇÃO DAS ESTRUTURA DA PLATIBANDA COM APROVEITAMENTO DO MATERIAL EXISTENTE, ELEVAÇÃO FRONTAL.(MEMORIAL ARQUITETURA- COBERTURA 06)","M2",108,27.97,3020.76]
["4.9.3","ESTRUTURA METALICA DE COMPLEMENTO DA PLATIBANDA. FACHADA POSTERIOR. ","KG",1031.6199999999999,15.16,15639.36]
["4.9.4","SUBSTIUIÇÃO DA TRAMA DE MADEIRAS POR TERÇA METALICA  .(MEMORIAL ARQUITETURA- COBERTURA 02 E 04.)","KG",7603.2,15.16,115264.51]
["4.9.5","PINTURA COM TINTA ALQUÍDICA DE FUNDO (TIPO ZARCÃO)  (PRIMEIRA DEMÃO). AF_01/2020","M2",1902.52,9.25,17598.310000000001]
["4.9.6","PINTURA COM TINTA ALQUÍDICA DE FUNDO (TIPO ZARCÃO)  (SEGUNDA DEMÃO). AF_01/2021","M2",1902.52,9.25,17598.310000000001]
["4.10","COBERTURA",null,null,null,{"$f":"SUBTOTAL(9,F67:F70)","v":486888.88}]
["4.10.1","TELHAMENTO COM TELHA METÁLICA TERMOACÚSTICA E = 30 MM, COM ATÉ 2 ÁGUAS , INCLUSO IÇAMENTO. AF_07/2019, conforme projeto e memorial descritivo\nREVESTIMENTO SUPERIOR:\n• AÇO GALVALUME AZM150 PRÉ-PINTADO TRAPEZOIDAL TP30, ESPESSURA TÉCNICA DE 0,43 MM, CROMATIZADA COM PRIMER EPÓXI (4 A 6 MICRONS) E PINTURA DE ACABAMENTO EM POLIÉSTER (18 A 22 MICRONS) COR BRANCO GELO (PADRÃO RAL 9003),  CONJUNTO MONOLÍTICO TELHA/EPS/FILME, PRODUZIDO PELO PROCESSO DE COLAGEM CONTÍNUA, CONFORME FABRICANTE\n NÚCLEO: \n• NÚCLEO ISOLANTE EM E.P.S. (POLIESTIRENO EXPANDIDO), ESPESSURA 30 MM, LIVRE DE CFC REVESTIMENTO INFERIOR:\n• FILME DE ALUMÍNIO ESTUCO FOSCO, ESP. TÉC. MÍNIMA 40 U.M.\nReferência comercial: ISOESTE OU SIMILAR","M2",1896.2769000000001,207.03,{"$f":"ROUND(D67*E67,2)","v":392586.21}]
["4.10.2","CUMEEIRA TRAPEZOIDAL TP -30 RAL 9003 PRÉ PINTADA NA COR BRANCA #0,43 DE AÇO GALVANIZADO, ISOESTE OU SIMILAR","M",99,68.680000000000007,{"$f":"ROUND(D68*E68,2)","v":6799.32}]
["4.10.3","PLATIBANDA EM CHAPA DE AÇO COM REAPROVEITANDO DO MATERIAL EXISTENTE","M2",266.68799999999999,264.61,{"$f":"ROUND(D69*E69,2)","v":70568.31}]
["4.10.4","PLATIBANDA EM CHAPA DE AÇO ESPESSURA 2,00mm, H=1600mm, DOBRA CARTOLA: 30X20X970mm, COM METALON DIM. 50X20X0,97mm NA FACE INFERIOR PARA ARREMATE COM O FORRO, FUNDO ANTICORROSIVO EM PRIMER EPÓXI NAS DUAS FACES (MATERIAL NOVO)","M2",64,264.61,{"$f":"ROUND(D70*E70,2)","v":16935.04}]
["4.11","ESQUADRIAS",null,null,null,{"$f":"SUBTOTAL(9,F72:F85)","v":186933.48999999996}]
["4.11.1"," PORTÃO REAPROVEITADO DO EXISTENTE, CHUMBADO EM BASE DE ALVENARIA OU CONCRETO. (FIM DA CIRCULAÇÃO ACESSO RESTRITO)","M2",4.2,43.84,{"$f":"ROUND(D72*E72,2)","v":184.13}]
["4.11.2","P3 REAPROVEITADA - PORTA DE VIDRO TEMPERADO DE DUAS FOLHAS DE ABRIR 1,80X2,10, COM REAPROVEITAMENTO DO VIDRO, INCLUSO NOVAS MOLAS HIDRÁULICA DE PISO NAS DUAS FOLHAS, NOVOS PUXADORES TUBULAR RETO 40CM ALUMINIO POLIDO, E NOVAS FERRAGENS CROMADAS E FIXAÇÕES EM PAREDES, PISOS E FORROS CONFORME NORMAS DO FABRICANTE, SEGUINDO AS INDICAÇÕES DO PROJETO ARQUITETÔNICO, INCLUSIVE FERRAGENS DE INSTALAÇÃO PARA PERFEITO USO E FUNCIONAMENTO.(INÍCIO DA CIRCULAÇÃO ACESSO RESTRITO)","CONJ",1,5529.38,5529.38]
["4.11.3","P2 - PORTA DE ABRIR EM LAMBRIL COM ALISAR E PORTAL EM ALUMÍNIO, COM PINTURA ELETROSTÁTICA MICROTEXTURADA, DIM. 0,70 X 2,10M, COR AZUL NEON NA FOLHA; PORTAL, ALISAR, DOBRADIÇA NA COR CINZA PLATINA, FECHADURA MODELO STAM 803/10 ESPELHO INOX EXT., INCLUSIVE FERRAGENS DE INSTALAÇÃO PARA PERFEITO USO E FUNCIONAMENTO. (3 UNIDADES: DML E VESTIÁRIOS)","M2",4.4099999999999993,1280.44,5646.74]
["4.11.4","P5 - PORTA DE ABRIR EM LAMBRIL  COM ALISAR E PORTAL EM ALUMÍNIO, COM PINTURA ELETROSTÁTICA MICROTEXTURADA, DIM. 0,90 X 2,10M, COR AZUL NEON NA FOLHA; PORTAL, ALISAR, DOBRADIÇA NA COR CINZA PLATINA, FECHADURA MODELO STAM 803/10 ESPELHO INOX EXT., INCLUSIVE FERRAGENS DE INSTALAÇÃO PARA PERFEITO USO E FUNCIONAMENTO. (4 UNIDADES: SANITÁRIOS)","M2",7.5600000000000005,1280.44,9680.1299999999992]
["4.11.5","P6 - PORTA DE ABRIR EM LAMBRIL  COM ALISAR E PORTAL EM ALUMÍNIO COM VISOR EM VIDRO TEMPERADO 6MM 0,20X1,00M, COM PINTURA ELETROSTÁTICA MICROTEXTURADA, DIM. 0,90 X 2,10M, COR AZUL NEON NA FOLHA; PORTAL, ALISAR, LATINA, FECHADURA MODELO STAM 803/10 ESPELHO INOX EXT., INCLUSIVE FERRAGENS DE INSTALAÇÃO PARA PERFEITO USO E FUNCIONAMENTO. (11 UNIDADES: SALAS EM GERAL)","UN",20.790000000000003,2464.34,51233.63]
["4.11.6","PORTA ACUSTICA 0,90X2,10 METÁLICA, COM VISOR,  40DB (SALA DE MÚSICA E BALLET)","UN",2,7836.77,15673.54]
["4.11.6","P11 - PORTA DE ABRIR EM VENEZIANA, DIM 0,60X1,90M INSTALADA 0,20M ACIMA DO PISO, ALUMÍNIO FOSCO, FECHADURA, INCLUSIVE FERRAGENS DE INSTALAÇÃO PARA PERFEITO USO E FUNCIONAMENTO. LOCAL DE INSTALAÇÃO: TODOS OS BOXES DOS SANITÁRIOS.","M2",9.1199999999999992,925.66,8442.02]
["4.11.7","J3 - JANELA DE VIDRO TEMPERADO, 6MM , INCOLOR, DIM. 2,10X1,45X1,18, ESTRUTURA EM ALUMÍNIO ANODIZADO FOSCO, JANELA DIVIDIDO EM 03 PARTES IGUAIS, E EM CADA UMA DESSAS PARTES DEVERÁ CONTER UMA SUBDIVISÃO, SENDO A PARTE SUPERIOR MÓVEL TIPO MÁXIMO-AR E A PARTE INFERIOR FIXA, INCLUSIVE FERRAGENS DE INSTALAÇÃO PARA PERFEITO USO E FUNCIONAMENTO. (22 UNIDADES: SALAS DE AULA EM GERAL)","M2",66.990000000000009,648.33000000000004,43431.63]
["4.11.8","J6- JANELA DE VIDRO TEMPERADO, 6MM , INCOLOR, DIM. 0,70X0,60X2,30, ESTRUTURA EM ALUMÍNIO ANODIZADO FOSCO, JANELA MÓVEL TIPO MÁXIMO-AR, INCLUSIVE FERRAGENS DE INSTALAÇÃO PARA PERFEITO USO E FUNCIONAMENTO; (5 UNIDADES: SANITARIOS, VESTIARIOS E DML.)","M2",2.1,648.33000000000004,1361.49]
["4.11.9","J7- JANELA DE VIDRO TEMPERADO, 6MM, INCOLOR, DIM:1,40X0,60X2,30, ESTRUTURA EM ALUMINIO ANODIZADO FOSCO, JANELA DIVIDIDA EM DUAS PARTES IGUAIS, MÓVEL TIPO MÁXIMO-AR, INCLUSIVE FERRAGENS DE INSTALAÇÃO PARA PERFEITO USO E FUNCIONAMENTO. (1 UNIDADE: COPA)","M2",0.84,648.33000000000004,544.6]
["4.11.10","J8- JANELA DE VIDRO TEMPERADO, 6MM , INCOLOR, DIM. 2,10X0,60X2,30, ESTRUTURA EM ALUMÍNIO ANODIZADO FOSCO, JANELA DIVIDIDO EM 03 PARTES IGUAIS, MÓVEL TIPO MÁXIMO-AR, INCLUSIVE FERRAGENS DE INSTALAÇÃO PARA PERFEITO USO E FUNCIONAMENTO.(12 UNIDADES: SALA DE ARTES, SANITARIOS, MÚSICA E BALLET)","M2",15.120000000000001,648.33000000000004,9802.75]
["4.11.11","V4 - VISOR EM VIDRO TEMPERADO ESPESSURA 6MM, FUMÊ, DIM. 2,50X1,00X1,10, REQUADRO DE ALUMÍNIO NA COR NATURAL, INCLUSIVE FERRAGENS DE INSTALAÇÃO PARA PERFEITO USO E FUNCIONAMENTO. (2 UNIDADES: ROBÓTICA)","M2",5,338.81,1694.05]
["4.11.12","ESPELHO  CRISTAL E=4MM, FORNECIMENTO E INSTALAÇÃO (SANITÁRIOS E SALA DE BALLET)","M2",33.549999999999997,471.22,15809.43]
["4.11.13","LOUSA DE VIDRO INCOLOR 6MM TEMPERADO COM SEIS FUROS ADESIVADOS CPOM PELICULA BRANCA E PARAFUSADO COM BOTÃO CABEÇA DE LATÃO CROMADO MEDINDO 3,50 X 1,20M, COM PORTA CANETAS E APAGADORES MEDINDO ,30X0,10M COM 02 BICOS TUCANO CADA PORTA APAGADOR. (SALAS DE AULAS EM GERAL)","UN",11,1627.27,17899.97]
["4.12","PISOS",null,null,null,{"$f":"SUBTOTAL(9,F87:F93)","v":325370.06}]
["4.12.1","CONTRAPISO DE CONCRETO 20 MPA PREPARO MECANICO, ESPESSURA 7CM.  ","M2",1382.58448565,70.069999999999993,{"$f":"ROUND(D87*E87,2)","v":96877.69}]
["4.12.2","REGULARIZAÇÃO EM ARGAMASSA TRAÇO 1:4 (CIMENTO E AREIA), PREPARO MECÂNICOCOM BETONEIRA 400 L, APLICADO EM ÁREAS SECAS SOBRE LAJE, ADERIDO, ESPESSURA 3CM","M2",1382.58448565,37.79,{"$f":"ROUND(D88*E88,2)","v":52247.87}]
["4.12.3","PISO PORCELANATO POLIDO ADHARA PO, 80X80CM, ELIANE OU SIMILR TÉCNICO.","M2",758.75792500000011,107.52,{"$f":"ROUND(D89*E89,2)","v":81581.649999999994}]
["4.12.4","PISO PORCELLANATO ESMALTADO ANTIDERRAPANTE - MARMORE BIANCO NAT RET 60X60CM COR BEGE COD. 23427E PORTOBELLO OU SIMILAR","M2",298.03653564999991,75.8,{"$f":"ROUND(D90*E90,2)","v":22591.17}]
["4.12.5","PISO EM GRANITO CINZA ANDORINHA COM FRISO ANTIDERRAPANTE (RAMPAS, PISOS E ESPELHOS  DA ESCADA) ","M2",54.59,447.96,{"$f":"ROUND(D91*E91,2)","v":24454.14}]
["4.12.6","PISO FLUTUANTE PARA AULAS DE DENÇA EM COMPENSADO NAVAL 18MM REVESTIDO DE LINÓLEO PARA DANÇA (SALA DE DANÇA)","M²",132.7645,166.75,{"$f":"ROUND(D92*E92,2)","v":22138.48}]
["4.12.7","CARPETE DE NYLON EM MANTA PARA TRAFEGO COMERCIAL PESADO, E = 9 A 10 MM (SALA DE MÚSICA)","M²",138.43552499999998,184.05,25479.06]
["4.13","REVESTIMENTO ",null,null,null,{"$f":"SUBTOTAL(9,F95:F100)","v":179274.18}]
["4.13.1","CHAPISCO APLICADO EM ALVENARIAS E ESTRUTURAS DE CONCRETO INTERNAS, COM ROLO PARA TEXTURA ACRÍLICA.  ARGAMASSA TRAÇO 1:4 E EMULSÃO POLIMÉRICA (ADESIVO) COM PREPARO EM BETONEIRA 400L.","M2",1693.1119999999999,5.09,{"$f":"ROUND(D95*E95,2)","v":8617.94}]
["4.13.2","EMBOÇO/MASSA ÚNICA, APLICADO MANUALMENTE, TRAÇO 1:2:8, EM BETONEIRA DE 400L, PAREDES INTERNAS, COM EXECUÇÃO DE TALISCAS, EDIFICAÇÃO HABITACIONAL UNIFAMILIAR (CASAS) E EDIFICAÇÃO PÚBLICA PADRÃO. ","M2",1693.1119999999999,31.51,53349.96]
["4.13.3","FORNECIMENTO E INSTALAÇÃO DE REVESTIMENTO CERAMICO PORTOBELLO GLACIE WHITE 30X60CM OU SIMILAR, INCLUSO REJUNTE E ARGAMASSA INDUSTRIALIZADA","M2",215.40360000000001,156.44,33697.74]
["4.13.4","FORNECIMENTO E INSTALAÇÃO DE REVESTIMENTO CERÂMICO PARA PAREDES EM PASTILHAS JATOBÁ DE PORCELANA 5 X 5 CM, INCLUSO REJUNTE E ARGAMASSA INDUSTRIALIZADA","M2",17.730599999999999,246.69,4373.96]
["4.13.5","REVESTIMENTO CERÂMICO PORTOBELLO 7X26CM, BASALTO OF WHITE, REFERNÊNCIA 24995E, INCLUSO REJUNTE - FORNECIMENTO E INSTALAÇÃO. (CIRCULAÇÃO EXTERNA INCLUINDO PILARES)","M2",135.1454,182.46,24658.63]
["4.13.6","BARRADO EM PISO PORCELANATO POLIDO ADHARA PO, 80X80CM, ELIANE OU SIMILR TÉCNICO. (SALAS  EM GERAL)","M2",507.58879999999999,107.52,54575.95]
["4.14","GRANITO",null,null,null,{"$f":"SUBTOTAL(9,F102:F105)","v":42819.179999999993}]
["4.14.1","BANCADA DE GRANITO CINZA ANDORINHA, SOBRE MÃOS-FRANCESAS METÁLICAS, ESP=2cm COM FRONTÃO 20cm, SAIA COM ACAB. DE MEIA ESQUADRIA 30CM E REFORÇO INFERIOR DE BORDA E CORTE PARA INST. DE CUBAS DE LOUÇA OVAL DE EMBUTIR LOCAL \n-BANCADAS DOS SANITÁRIOS E LAVATÓRIOS- FRONTÃO 20CM E SAIA DE 30CM \n- COPA- FRONTÃO 20CM E SAIA DE 10CM\n- SALA DE ARTES FRONTÃO 20CM E SAIA DE 10CM","M2",10.239999999999998,884.39,{"$f":"ROUND(D102*E102,2)","v":9056.15}]
["4.14.2","DIVISORIAS SANITARIAS DE BOXES E MICTÓRIOS DE GRANITO CINZA ANDORINHA E=3,00 CM ASSENTADA C/ ARGAMASSA, NO TRACO 1:3, INCLUSIVE MASSA PLÁSTICA E FERRAGENS. Ver detalhe em projeto.","M2",28.155999999999999,903.77,{"$f":"ROUND(D103*E103,2)","v":25446.55}]
["4.14.3","SOLEIRA EM GRANITO, LARGURA 15 CM, ESPESSURA 2,0 CM - FORNECIMENTO E INSTALAÇÃO","M",18.900000000000002,114.65,{"$f":"ROUND(D104*E104,2)","v":2166.89}]
["4.14.4","FORNECIMENTO E INSTALAÇÃO DE PEITORIL / PINGADEIRA EM GRANITO ANDORINHA 16,5 CM, ESPESSURA 2,0 CM, ASSENTADO COM ARGAMASSA TRACO 1:3 (CIMENTO E AREIA MEDIA), PREPARO MANUAL DA ARGAMASSA","M2",13.728000000000002,447.96,{"$f":"ROUND(D105*E105,2)","v":6149.59}]
["4.15","FORROS",null,null,null,{"$f":"SUBTOTAL(9,F107:F111)","v":190854.94000000003}]
["4.15.1","FORRO ACÚSTICO EM FIBRA MINERAL: REF: OWA DO BRASIL, MODELO COSMOS TEGULAR, MODULAÇÃO 625X625MM COM ABSORÇÃO ACÚSTICA NRC=0,65 E RESISTÊNCIA A UMIDADE RH 95% (COMPOSIÇÃO: FIBRA MINERAL BIOSOLÚVEL COMPOSTA POR MINERAIS INERTES, ARGILA E AMIDO NATURAL - MAT. INCOMBUSTÍVEL).","M2",923.40167500000018,142.13,{"$f":"ROUND(D107*E107,2)","v":131243.07999999999}]
["4.15.2","FORRO DE PVC: FORRO DE PVC MODULAR BRANCO ESPSESSURA 10MM, MODULAÇÃO 625X625MM, INSTALADOS EM PERFIL \"T\", SUPENSO POR PENDURAIS EM ARRAME GALVANIZADO A CADA 1250X1250MM","M2",24.901250000000005,91.95,{"$f":"ROUND(D108*E108,2)","v":2289.67}]
["4.15.3","FORRO EM DRYWALL, PARA AMBIENTES COMERCIAIS, INCLUSIVE ESTRUTURA DE FIXAÇÃO. AF_05/2017_P","M2",451.67853564999996,71.069999999999993,{"$f":"ROUND(D109*E109,2)","v":32100.79}]
["4.15.4","SANCA DE GESSO DRYWALL DECORATIVA  PARA ILUMINAÇÃO (SALA DE MÚSICA, BALLET E LIBRAS)","M",160.9,29.19,{"$f":"ROUND(D110*E110,2)","v":4696.67}]
["4.15.5","BEIRAIS-FORRO DE PVC, LISO, REGUA DE 20CM, INCLUSIVE ESTRUTURA DE FIXAÇÃO. AF_05/2017_P","M2",347.7,59.03,{"$f":"ROUND(D111*E111,2)","v":20524.73}]
["4.16","PINTURA",null,null,null,{"$f":"SUBTOTAL(9,F113:F120)","v":76689.829999999987}]
["4.16.1","APLICAÇÃO DE FUNDO SELADOR LÁTEX PVA EM PAREDES DE ALVENARIA","M2",1613.4068,2.31,{"$f":"ROUND(D113*E113,2)","v":3726.97}]
["4.16.2","EMASSAMENTO COM MASSA LATEX PVA PARA AMBIENTES INTERNOS","M2",914.08179999999982,14.74,{"$f":"ROUND(D114*E114,2)","v":13473.57}]
["4.16.3","PINTURA C/ APLICAÇÃO DE TINTA LATÉX ACRÍLICO, PAREDES INTERNAS,  2 DEMÃOS (REF. CORES A SEREM DEFINIDAS PELA FISCALIZAÇÃO SESI).","M2",914.08179999999982,14.41,{"$f":"ROUND(D115*E115,2)","v":13171.92}]
["4.16.4","TEXTURA ACRÍLICA, APLICAÇÃO MANUAL EM PAREDE, UMA DEMÃO. (PAREDES E PLATIBANDAS EXTERNAS)","M2",987.1350000000001,14.96,{"$f":"ROUND(D116*E116,2)","v":14767.54}]
["4.16.5","APLICAÇÃO MANUAL DE PINTURA COM TINTA LÁTEX ACRÍLICA EM PAREDES, DUAS DEMÃOS. (PAREDES E PLATIBANDAS EXTERNAS)","M2",987.1350000000001,14.41,{"$f":"ROUND(D117*E117,2)","v":14224.62}]
["4.16.6","EMASSAMENTO COM MASSA LATEX PVA PARA FORRO DE GESSO","M2",451.67853564999996,19.54,{"$f":"ROUND(D118*E118,2)","v":8825.7999999999993}]
["4.16.7","PINTURA C/ APLICAÇÃO DE TINTA LATÉX ACRÍLICO PARA FORRO DE GESSO ,  2 DEMÃOS (REF. CORES A SEREM DEFINIDAS PELA FISCALIZAÇÃO SENAI).","M2",451.67853564999996,16.260000000000002,7344.29]
["4.16.8","PINTURA COM TINTA ALQUÍDICA DE ACABAMENTO (ESMALTE SINTÉTICO ACETINADO CINZ PLATINA) APLICADA A ROLO OU PINCEL SOBRE PERFIL METÁLICO. (CORRIMÃOS E GUARDA-CORPO)","M2",123.94,9.32,1155.1199999999999]
["4.17","CALÇAMENTO, PÁTIO E PASSARELAS ",null,null,null,0]
["4.18","SERVIÇOS COMPLEMENTARES",null,null,null,{"$f":"SUBTOTAL(9,F123:F125)","v":24220.93}]
["4.18.1","FORNECIMENTO E INSTALAÇÃO GUARDA CORPO E CORRIMÃO EM TUBO FERRO GALVANIZADO, ALT=1,10M, COM BARRAS VERTICAIS A CADA 11CM (3/4\") E BARRAS HORIZONTAIS (SUPERIOR, INTERMEDIÁRIAS (DUAS) E INFERIOR) DE 1.1/2\", INCLUSIVE CURVA DE AÇO","M",55.059999999999995,372.7,{"$f":"ROUND(D123*E123,2)","v":20520.86}]
["4.18.2","FORNECIMENTO E INSTALAÇÃO CORRIMÃO DUPLO, DIÂMETRO EXTERNO = 1 1/2\", EM AÇO GALVANIZADO.","M",7.2,131.91,{"$f":"ROUND(D124*E124,2)","v":949.75}]
["4.18.3","FORNECIMENTO E INSTALAÇÃO CORRIMÃO DUPLO, H=0,80 E H=0,60 DIÂMETRO EXTERNO = 1 1/2\", EM AÇO GALVANIZADO.","M",20.85,131.91,{"$f":"ROUND(D125*E125,2)","v":2750.32}]
["4.19","INSTALAÇÕES SPDA",null,null,null,{"$f":"SUBTOTAL(9,F127:F145)","v":52223.100000000006}]
["4.19.1","HASTE DE ATERRAMENTO 5/8  PARA SPDA - FORNECIMENTO E INSTALAÇÃO. AF_12/2017","UN",73,56.5,{"$f":"ROUND(D127*E127,2)","v":4124.5}]
["4.19.2","CAIXA DE INSPEÇÃO PARA ATERRAMENTO, CIRCULAR, EM POLIETILENO, DIÂMETRO INTERNO = 0,3 M. AF_05/2018","UN",19,25.23,479.37]
["4.19.3","ESCAVAÇÃO MANUAL DE VALA COM PROFUNDIDADE MENOR OU IGUAL A 1,30 M. AF_03/2016","M3",35.4,76.989999999999995,2725.45]
["4.19.4","REATERRO MANUAL DE VALAS COM COMPACTAÇÃO MECANIZADA. AF_04/2016","M3",35.4,26,920.4]
["4.19.5","FORNECIMENTO E INSTALAÇÃO DE CONECTOR DE MEDIÇÃO C/ 2 PARAFUSOS","UN",19,29.36,557.84]
["4.19.6","FORNECIMENTO E INSTALAÇÃO DE SOLDA EXOTÉRMICA CABO-HASTE COM CARTUCHO Nº 90 E MOLDE CABO 35mm²- HASTE 5/8\" ","UN",19,19.96,379.24]
["4.19.7","FORNECIMENTO E INSTALAÇÃO DE SOLDA EXOTÉRMICA CABO-HASTE COM CARTUCHO Nº115 E MOLDE CABO 50mm²-  HASTE 5/8\" ","UN",73,25.08,1830.84]
["4.19.8","FORNECIMENTO E INSTALAÇÃO DE SOLDA EXOTÉRMICA CABO-CABO COM CARTUCHO Nº 32 E MOLDE TIPO \"T\" CABO 35mm²- CABO 35mm²","UN",8,12.71,101.68]
["4.19.9","FORNECIMENTO E INSTALAÇÃO DE BARRA CHATA DE ALUMÍNIO 3/4\" X 1/4\" ","M",122,91.33,11142.26]
["4.19.10","FORNECIMENTO E INSTALAÇÃO DE SOLDA EXOTÉRMICA CABO-CABO, CABO DE 35mm²  TIPO \"X\"(COM MOLDE)","M",13,19.93,259.08999999999997]
["4.19.11","FORNECIMENTO E INSTALAÇÃO DE REBITE POP EM ALUMÍNIO 4 X 16MM","UN",428,1.38,590.64]
["4.19.12","FORNECIMENTO E INSTALAÇÃO DE PARAFUSO ZINCADO, SEXTAVADO, COM ROSCA INTEIRA, DIAMETRO 1/4\", COMPRIMENTO 1/2\"","UN",73,7.72,563.55999999999995]
["4.19.13","FORNECIMENTO E INSTALAÇÃO DE TERMINAL AEREO EM ACO GALVANIZADO DN 5/16\", COMPRIMENTO DE 350MM, COM BASE DE FIXACAO HORIZONTAL","UN",83,21.69,1800.27]
["4.19.14","FORNECIMENTO E INSTALAÇÃO DE CONECTOR METALICO TIPO PARAFUSO FENDIDO (SPLIT BOLT), PARA CABOS ATE 35 MM2","UN",17,17.57,298.69]
["4.19.15","FORNECIMENTO E INSTALAÇÃO DE PRESILHA DE LATÃO 35MM²","UN",262,4.34,1137.08]
["4.19.16","TERMINAL OU CONECTOR DE PRESSAO - PARA CABO 35MM2 - FORNECIMENTO E INSTALACAO","UN",19,19.27,366.13]
["4.19.17","TERMINAL OU CONECTOR DE PRESSAO - PARA CABO 50MM2 - FORNECIMENTO E INSTALACAO","UN",21,25.91,544.11]
["4.19.18","CABO DE COBRE NU 35MM2 - FORNECIMENTO E INSTALACAO","M",371,34.61,12840.31]
["4.19.19","CABO DE COBRE NU 50MM2 - FORNECIMENTO E INSTALACAO","M",236,48.99,11561.64]
["4.20","INSTALAÇÕES DE COMBATE A INCÊNDIO",null,null,null,0]
["4.21","INSTALAÇÕES ELÉTRICAS",null,null,null,{"$f":"SUBTOTAL(9,F148:F197)","v":144500.67000000001}]
["4.21.1","ACESSÓRIOS PARA ELETRODUTOS  E USO GERAL",null,null,null,{"$f":"SUBTOTAL(9,F149:F151)","v":3297.1000000000004}]
["4.21.1.1","FORNECIMENTO E INSTALAÇÃO DE CAIXA OCTOGONAL 3\" X 3\", PVC, INSTALADA EM TETO - AF_12/2015","PÇ",195,9.9600000000000009,{"$f":"ROUND(D149*E149,2)","v":1942.2}]
["4.21.1.2","FORNECIMENTO E INSTALAÇÃO DE CAIXA RETANGULAR 4\" X 2\" MÉDIA (1,30 M DO PISO), PVC, INSTALADA EM PAREDE - AF_12/2015","PÇ",95,13.48,1280.5999999999999]
["4.21.1.3","FORNECIMENTO E INSTALAÇÃO DE ARAME AÇO GALVANIZADO 18 BWG, 1,24MM (0,009 KG/M)","M",28.799999999999997,2.58,74.3]
["4.21.2","CABO UNIPOLAR",null,null,null,{"$f":"SUBTOTAL(9,F153:F155)","v":43468}]
["4.21.2.1","FORNECIMENTO E INSTALAÇÃO DE CABO DE COBRE FLEXÍVEL ISOLADO, 2,5 MM², ANTI-CHAMA 450/750 V, PARA CIRCUITOS TERMINAIS - AF_12/2015","M",5600,3.54,{"$f":"ROUND(D153*E153,2)","v":19824}]
["4.21.2.2","FORNECIMENTO E INSTALAÇÃO DE CABO DE COBRE FLEXÍVEL ISOLADO, 4,0 MM², ANTI-CHAMA 450/750 V, PARA CIRCUITOS TERMINAIS - AF_12/2015","M",3600,5.7,20520]
["4.21.2.3","FORNECIMENTO E INSTALAÇÃO DE CABO DE COBRE FLEXÍVEL ISOLADO, 6,0 MM², ANTI-CHAMA 450/750 V, PARA CIRCUITOS TERMINAIS - AF_12/2015","M",400,7.81,3124]
["4.21.3","DISPOSITIVO ELÉTRICO - EMBUTIDO",null,null,null,{"$f":"SUBTOTAL(9,F157:F164)","v":3707.33}]
["4.21.3.1","INTERRUPTOR SIMPLES (1 MÓDULO), 10A/250V, INCLUINDO SUPORTE E PLACA - FORNECIMENTO E INSTALAÇÃO. AF_12/2015","PÇ",2,21.35,{"$f":"ROUND(D157*E157,2)","v":42.7}]
["4.21.3.2","INTERRUPTOR SIMPLES (2 MÓDULOS), 10A/250V, INCLUINDO SUPORTE E PLACA - FORNECIMENTO E INSTALAÇÃO. AF_12/2015","PÇ",13,33.71,438.23]
["4.21.3.3","INTERRUPTOR SIMPLES (3 MÓDULOS), 10A/250V, INCLUINDO SUPORTE E PLACA - FORNECIMENTO E INSTALAÇÃO. AF_12/2015","PÇ",2,46.06,92.12]
["4.21.3.4","INTERRUPTOR SIMPLES (1 MÓDULO) COM 1 TOMADA DE EMBUTIR 2P+T 10 A,  INCLUINDO SUPORTE E PLACA - FORNECIMENTO E INSTALAÇÃO. AF_12/2015","PÇ",5,38.049999999999997,190.25]
["4.21.3.5","INTERRUPTOR SIMPLES (1 MÓDULO) COM 2 TOMADAS DE EMBUTIR 2P+T 10 A, INCLUINDO SUPORTE E PLACA - FORNECIMENTO E INSTALAÇÃO. AF_12/2015","PÇ",1,54.8,54.8]
["4.21.3.6","TOMADA BAIXA DE EMBUTIR (2 MÓDULOS), 2P+T 10 A, INCLUINDO SUPORTE E PLACA - FORNECIMENTO E INSTALAÇÃO. AF_12/2015","PÇ",67,35.950000000000003,2408.65]
["4.21.3.7","TOMADA ALTA DE EMBUTIR (1 MÓDULO), 2P+T 10 A, INCLUINDO SUPORTE E PLACA - FORNECIMENTO E INSTALAÇÃO. AF_12/2015","PÇ",12,34.1,409.2]
["4.21.3.8","TOMADA ALTA DE EMBUTIR (1 MÓDULO), 2P+T 20 A, INCLUINDO SUPORTE E PLACA - FORNECIMENTO E INSTALAÇÃO. AF_12/2015","PÇ",2,35.69,71.38]
["4.21.4","DISPOSITIVO DE PROTEÇÃO",null,null,null,{"$f":"SUBTOTAL(9,F166:F175)","v":6242.2900000000009}]
["4.21.4.1","FORNECIMENTO E INSTALAÇÃO DE DISJUNTOR TIPO DIN/IEC, TRIPOLAR 80 A","UND",2,159.43,{"$f":"ROUND(D166*E166,2)","v":318.86}]
["4.21.4.2","DISJUNTOR TERMOMAGNETICO TRIPOLAR EM CAIXA MOLDADA 175 A 225A 240V, FORNECIMENTO E INSTALACAO","UN",1,580.69000000000005,580.69000000000005]
["4.21.4.3","DISJUNTOR TERMOMAGNETICO TRIPOLAR EM CAIXA MOLDADA 175 A 225A 240V, FORNECIMENTO E INSTALACAO","UN",1,580.69000000000005,580.69000000000005]
["4.21.4.4","FORNECIMENTO E INSTALAÇÃO DE DISJUNTOR BIPOLAR TIPO DIN, CORRENTE NOMINAL DE 10A - AF_04/2016","PÇ",11,57.69,634.59]
["4.21.4.5","FORNECIMENTO E INSTALAÇÃO DE DISJUNTOR BIPOLAR TIPO DIN, CORRENTE NOMINAL DE 16A - AF_04/2016","PÇ",1,58.8,58.8]
["4.21.4.6","DISJUNTOR BIPOLAR TIPO DIN, CORRENTE NOMINAL DE 20A - FORNECIMENTO E INSTALAÇÃO. AF_04/2016","UN",4,61,244]
["4.21.4.7","FORNECIMENTO E INSTALAÇÃO DE DISJUNTOR BIPOLAR TIPO DIN, CORRENTE NOMINAL DE 25A - AF_04/2016","PÇ",34,61,2074]
["4.21.4.8","FORNECIMENTO E INSTALAÇÃO DE DISJUNTOR BIPOLAR TIPO DIN, CORRENTE NOMINAL DE 32A - AF_04/2016","PÇ",2,63.63,127.26]
["4.21.4.9","FORNECIMENTO E INSTALAÇÃO DE DISJUNTOR MONOPOLAR TIPO DIN, CORRENTE NOMINAL DE 16A - AF_04/2016","PÇ",25,12.2,305]
["4.21.4.10","FORNECIMENTO E INSTALAÇÃO DE DISPOSITIVO DPS CLASSE II, 1 POLO, TENSAO MAXIMA DE 175 V, CORRENTE MAXIMA DE 20 KA (TIPO AC)","UND",16,82.4,1318.4]
["4.21.5","ELETROCALHA FURADA TIPO U PRÉ-GALVANIZADA QUENTE",null,null,null,{"$f":"SUBTOTAL(9,F177:F188)","v":11574.84}]
["4.21.5.1","FORNECIMENTO E INSTALAÇÃO DE CURVA HORIZONTAL 90º - 100X100MM, COM TAMPA","UND",1,30.24,{"$f":"ROUND(D177*E177,2)","v":30.24}]
["4.21.5.2","FORNECIMENTO E INSTALAÇÃO DE CURVA DE INVERSÃO - 100X100MM CHAPA 20","UND",6,47.75,286.5]
["4.21.5.3","FORNECIMENTO E INSTALAÇÃO DE ELETROCALHA PERFURADA TIPO U - 100X100MM, COM TAMPA","M",126,36.39,4585.1400000000003]
["4.21.5.4","FORNECIMENTO E INSTALAÇÃO DE FLANGE - 100X100MM CHAPA 20","UND",6,11.16,66.959999999999994]
["4.21.5.5","FORNECIMENTO E INSTALAÇÃO DE SUPORTE VERTICAL - 100X100MM","UND",84,13.29,1116.3599999999999]
["4.21.5.6","FORNECIMENTO E INSTALAÇÃO DE TÊ HORIZONTAL 90º - 100X100MM CHAPA 20, COM TAMPA","UND",6,48.85,293.10000000000002]
["4.21.5.7","FORNECIMENTO E INSTALAÇÃO DE EMENDA PARA ELETROCALHA - 100MM","UND",104,13.02,1354.08]
["4.21.5.8","FORNECIMENTO E INSTALAÇÃO DE ARRUELA LISA GALVAN. 1/4\"","UND",1400,0.49,686]
["4.21.5.9","FORNECIMENTO E INSTALAÇÃO DE PARAFUSO GALVAN. CABEÇA LENTILHA 1/4\"X5/8\" MÁQUINA ROSCA TOTAL","UND",1200,0.94,1128]
["4.21.5.10","FORNECIMENTO E INSTALAÇÃO DE PORCA ZINCADA, SEXTAVADA, DIAMETRO 1/4\"","UND",1400,0.44,616]
["4.21.5.11","FORNECIMENTO E INSTALAÇÃO DE CHUMBADOR PARABOLT AÇO 1/4\" X 3\"","UND",84,8.61,723.24]
["4.21.5.12","FORNECIMENTO E INSTALAÇÃO DE VERGALHAO ZINCADO ROSCA TOTAL, 1/4 \" (6,3 MM)","UND",42,16.41,689.22]
["4.21.6","ELETRODUTO PVC FLEXÍVEL",null,null,null,{"$f":"SUBTOTAL(9,F190:F191)","v":8436}]
["4.21.6.1","FORNECIMENTO E INSTALAÇÃO DE ELETRODUTO FLEXÍVEL CORRUGADO, PVC, DN 32 MM (1\"), PARA CIRCUITOS TERMINAIS, INSTALADO EM PAREDE - AF_12/2015","M",200,10.06,{"$f":"ROUND(D190*E190,2)","v":2012}]
["4.21.6.2","FORNECIMENTO E INSTALAÇÃO DE ELETRODUTO FLEXÍVEL CORRUGADO, PVC, DN 25 MM (3/4\"), PARA CIRCUITOS TERMINAIS, INSTALADO EM PAREDE - FORNECIMENTO E INSTALAÇÃO. AF_12/2015","M",800,8.0299999999999994,6424]
["4.21.7","LUMINÁRIA E ACESSÓRIOS",null,null,null,{"$f":"SUBTOTAL(9,F193:F194)","v":62033.93}]
["4.21.7.1","FORNECIMENTO E INSTALAÇÃO DE LUMINARIA DE EMBUTIR DE ALUMÍNIO E POLICARBONATO 62,5x62,5 CM, BIVOLT, TEMPERATURA DE COR DE 6000K, FLUXO LUMINOSO DE 4500LM, POTENCIA 50W","UND",154,381.33,{"$f":"ROUND(D193*E193,2)","v":58724.82}]
["4.21.7.2","FORNECIMENTO E INSTALAÇÃO DE LUMINARIA DE EMBUTIR DE ALUMÍNIO E POLICARBONATO 22,5x22,5 CM, BIVOLT, TEMPERATURA DE COR DE 6500K, FLUXO LUMINOSO DE 850LM, POTENCIA 18W","UND",41,80.709999999999994,3309.11]
["4.21.8","QUADRO DISTRIBUIÇÃO - EMBUTIR",null,null,null,{"$f":"SUBTOTAL(9,F196:F197)","v":5741.18}]
["4.21.8.1","FORNECIMENTO E INSTALAÇÃO DE QUADRO DE DISTRIBUIÇÃO DE EMBUTIR, EM CHAPA PINTADA, COM CAPACIDADE PARA 56 DISJUNTORES UNIPOLARES TIPO DIN, COMPLETO, INCLUSIVE BARRAMENTO TRIFÁSICO 150A","UND",2,1064.46,{"$f":"ROUND(D196*E196,2)","v":2128.92}]
["4.21.8.2","FORNECIMENTO E INSTALAÇÃO DE QUADRO DE DISTRIBUIÇÃO DE EMBUTIR, EM CHAPA PINTADA, COM CAPACIDADE PARA 70 DISJUNTORES UNIPOLARES TIPO DIN, COMPLETO, INCLUSIVE BARRAMENTO TRIFÁSICO 225A","UND",2,1806.13,{"$f":"ROUND(D197*E197,2)","v":3612.26}]
["4.22","INSTALAÇÕES DE LÓGICA E TELEFONICA",null,null,null,0]
["4.23","CLIMATIZAÇÃO ",null,null,null,0]
["4.24","INFRAESTRUTURA PARA INSTALAÇÃO DE ÁUDIO E VÍDEO",null,null,null,{"$f":"SUBTOTAL(9,F201:F234)","v":120357.52999999998}]
["4.24.1","TOMADA ALTA DE EMBUTIR (1 MÓDULO), 2P+T 10 A, INCLUINDO SUPORTE E PLACA - FORNECIMENTO E INSTALAÇÃO. AF_12/2015","UN",13,34.1,{"$f":"ROUND(D201*E201,2)","v":443.3}]
["4.24.2","DISJUNTOR MONOPOLAR TIPO DIN, CORRENTE NOMINAL DE 20A - FORNECIMENTO E INSTALAÇÃO. AF_04/2016","UN",7,13.25,92.75]
["4.24.3","CABO DE COBRE FLEXÍVEL ISOLADO, 2,5 MM², ANTI-CHAMA 450/750 V, PARA CIRCUITOS TERMINAIS - FORNECIMENTO E INSTALAÇÃO. AF_12/2015","M",300,3.54,1062]
["4.24.4","ELETRODUTO FLEXÍVEL CORRUGADO, PVC, DN 32 MM (1\"), PARA CIRCUITOS TERMINAIS, INSTALADO EM FORRO - FORNECIMENTO E INSTALAÇÃO. AF_12/2015","M",100,9.92,992]
["4.24.5","CAIXA RETANGULAR 4\" X 2\" ALTA (2,00 M DO PISO), PVC, INSTALADA EM PAREDE - FORNECIMENTO E INSTALAÇÃO. AF_12/2015","UN",13,25.58,332.54]
["4.24.6","CAIXA RETANGULAR 4\" X 2\" MÉDIA (1,30 M DO PISO), PVC, INSTALADA EM PAREDE - FORNECIMENTO E INSTALAÇÃO. AF_12/2015","UN",12,13.48,161.76]
["4.24.7","CAIXA RETANGULAR 4\" X 2\" BAIXA (0,30 M DO PISO), PVC, INSTALADA EM PAREDE - FORNECIMENTO E INSTALAÇÃO. AF_12/2015","UN",13,8.94,116.22]
["4.24.8","ELETRODUTO DE AÇO GALVANIZADO, CLASSE LEVE, DN 25 MM (1\u0092\u0092), APARENTE, INSTALADO EM TETO - FORNECIMENTO E INSTALAÇÃO. AF_11/2016_P","M",370,23.71,8772.7000000000007]
["4.24.9","LUVA DE EMENDA PARA ELETRODUTO, AÇO GALVANIZADO, DN 25 MM (1''), APARENTE, INSTALADA EM TETO - FORNECIMENTO E INSTALAÇÃO. AF_11/2016_P","UN",48,8.1199999999999992,389.76]
["4.24.10","CONDULETE DE ALUMÍNIO, TIPO X, PARA ELETRODUTO DE AÇO GALVANIZADO DN 25 MM (1''), APARENTE - FORNECIMENTO E INSTALAÇÃO. AF_11/2016_P","UN",13,40.25,523.25]
["4.24.11","CONDULETE DE ALUMÍNIO, TIPO C, PARA ELETRODUTO DE AÇO GALVANIZADO DN 25 MM (1''), APARENTE - FORNECIMENTO E INSTALAÇÃO. AF_11/2016_P","UN",26,29.65,770.9]
["4.24.12","CONDULETE DE ALUMÍNIO, TIPO LR, PARA ELETRODUTO DE AÇO GALVANIZADO DN 20 MM (3/4''), APARENTE - FORNECIMENTO E INSTALAÇÃO. AF_11/2016_P","UN",29,26.15,758.35]
["4.24.13","CONDULETE DE ALUMÍNIO, TIPO E, ELETRODUTO DE AÇO GALVANIZADO DN 25 MM (1''), APARENTE - FORNECIMENTO E INSTALAÇÃO. AF_11/2016_P","UN",44,30.82,1356.08]
["4.24.14","CONDULETE DE ALUMÍNIO, TIPO T, PARA ELETRODUTO DE AÇO GALVANIZADO DN 25 MM (1''), APARENTE - FORNECIMENTO E INSTALAÇÃO. AF_11/2016_P","UN",15,37.83,567.45000000000005]
["4.24.15","FORNECIMENTO E INSTALAÇÃO DE ABRACADEIRA EM ACO PARA AMARRACAO DE ELETRODUTOS, TIPO D, COM 1\" E PARAFUSO DE FIXACAO","UND",245,7.77,1903.65]
["4.24.16","FORNECIMENTO E INSTALAÇÃO DE Cabo HDMI 20 Metros 2.0 4k Ultra HD Filtro Pino Dourado MXT","UN",12,293.26,3519.12]
["4.24.17","FORNECIMENTO E INSTALAÇÃO DE Projetor BenQ MS531 3300 Lumens - 800x600 USB HDMI, COM SUPORTE PARA TETO 4 EM 1 PRETO (EQUIPAMENTO FORNECIDO PELO SESI)","UN",12,2634.8,31617.599999999999]
["4.24.18","FORNECIMENTO E INSTALAÇÃO DE CURVA 90 GRAUS, PARA ELETRODUTO, EM ACO GALVANIZADO ELETROLITICO, DIAMETRO DE 25 MM (1\")","UN",13,12.81,166.53]
["4.24.19","FORNECIMENTO E INSTALAÇÃO DE SONOFLETOR CIRCULAR 6\" DE EMBUTIR EM FORRO, COM TELA, COR BRANCA, SENSIBILIDADE MÍNIMA DE 89DB, POTÊNCIA DE 30W OU SPERIOR - INCLUINDO TRANSFORMADOR CASADOR DE IMPEDÂNCIA (SE NECESSÁRIO) E ACESSÓRIOS","UN",98,288.06,28229.88]
["4.24.20","FORNECIMENTO E INSTALAÇÃO DE SUPORTE UNIVERSAL PARA PROJETOR - PROLONGADOR (EQUIPAMENTO FORNECIDO PELO SESI)","UN",12,350.57,4206.84]
["4.24.21","FORNECIMENTO E INSTALAÇÃO DE TRANSFORMADOR DE LINHA 70 V / 10 W","UN",16,100.6,1609.6]
["4.24.22","FORNECIMENTO E INSTALAÇÃO DE MODULO AMPLIFICADOR COM POTÊNCIA DE 480 WRMS, COM ENTRADA DE MICROFONE E AUXILIAR COM CONTROLES DE VOLUMES INDEPENDENTES, CONTROLE DE GRAVE E AGUDO (REF.: SLIM 4500 OU SIMILAR)","UN",1,2948.44,2948.44]
["4.24.23","FORNECIMENTO E INSTALAÇÃO DE MODULO AMPLIFICADOR COM POTÊNCIA DE 200 WRMS, COM ENTRADA DE MICROFONE E AUXILIAR COM CONTROLES DE VOLUMES INDEPENDENTES, CONTROLE DE GRAVE E AGUDO (REF.: SLIM 3000 OU SIMILAR)","UN",13,1447.79,18821.27]
["4.24.24","FORNECIMENTO E INSTALAÇÃO DE CABO POLARIZADO PARA SONORIZAÇÃO 2X2,5MM² - BICOLOR, MARCA IMFAP, OU SIMILAR","M",13,10.9,141.69999999999999]
["4.24.25","FORNECIMENTO E INSTALAÇÃO DE MINI RACK METÁLICO 3U, COM TAMPA E CHAVE","UN",13,326.88,4249.4399999999996]
["4.24.26","FORNECIMENTO E INSTALAÇÃO DE SAÍDA LATERAL DE ELETROCALHA PERFURADA GALVANIZADA PARA ELETRODUTO DE 1\"","UN",18,11.34,204.12]
["4.24.27","FORNECIMENTO E INSTALAÇÃO DE MÃO FRANCESA PARA ELETROCALHA PERFURADA GALVANIZADA DE 100 X 50 X 3000mm","UN",62,18.670000000000002,1157.54]
["4.24.28","FORNECIMENTO E INSTALAÇÃO DE ELETROCALHA PERFURADA GALVANIZADA DE 100 X 50 X 3000mm","UN",33,120.92,3990.36]
["4.24.29","FORNECIMENTO E INSTALAÇÃO DE T HORIZONTAL PARA ELETROCALHA PERFURADA GALVANIZADA DE 100 X 50 X 3000mm","UN",1,73.180000000000007,73.180000000000007]
["4.24.30","FORNECIMENTO E INSTALAÇÃO DE EMENDA INTERNA PARA ELETROCLHA PERFURADA GALVANIZADA DE 100 X 50 X 3000mm","UN",32,26.35,843.2]
["4.24.31","FORNECIMENTO E INSTALAÇÃO DE TERMINAL DE FECHAMENTO PARA ELETROCALHA PERFURADA GALVANIZADA DE 100 X 50 3000mm","UN",2,27.06,54.12]
["4.24.32","FORNECIMENTO E INSTALAÇÃO DE SUSPENSÃO VERTICAL PARA ELETROCALHA PERFURADA 100 X 50 mm","UN",4,20.87,83.48]
["4.24.33","FORNECIMENTO E INSTALAÇÃO DE VERGALHÃO ROSCA TOTAL 5/16'' (TIRANTE)","UN",4,37.380000000000003,149.52000000000001]
["4.24.34","FORNECIMENTO E INSTALAÇÃO DE CANTONEIRA ZZ","UN",4,12.22,48.88]
["4.25","INSTALAÇÕES HIDROSANITÁRIAS",null,null,null,0]
["4.26","DRENAGEM",null,null,null,0]
["4.27","GLP (BLOCOB)",null,null,null,0]
["4.28","LOUÇAS E METAIS",null,null,null,{"$f":"SUBTOTAL(9,F239:F263)","v":25741.280000000002}]
["4.28.1","CABIDEIRO 20160 EVIDENCE CROMADO (MARCA DECA, DOCOL OU SIMILAR)- FORNECIMENTO E INSTALAÇÃO","UN",4,28.15,{"$f":"ROUND(D239*E239,2)","v":112.6}]
["4.28.2","TORNEIRA DE MESA PRESMATIC ECO CROMADA COD 1173 CONFORTO (COM ALAVANCA PARA PCD), MARCA DECA, DOCOL OU SIMILAR, FORNECIMENTO E INSTALAÇÃO.","UN",2,729.7,1459.4]
["4.28.3","TORNEIRA DE MESA PRESMATIC ECO CROMADA COD 1173, MARCA DECA, DOCOL OU SIMILAR, FORNECIMENTO E INSTALAÇÃO.","UN",10,199.09,1990.9]
["4.28.4","TORNEIRA CROMADA 1/2\u0094 OU 3/4\u0094 PARA TANQUE, PADRÃO MÉDIO - FORNECIMENTO E INSTALAÇÃO. AF_01/2020","UN    ",3,47.63,142.88999999999999]
["4.28.5","CUBA DE LOUÇA OVAL DE EMBUTIR - CÓD. L.37 - BRANCO GELO – DECA, DOCOL OU SIMILAR, INCLUSO VÁLVULA DECA LAVATÓRIO/ CUBA/ BIDÊ, 1602.C CROMADA (DECA, DOCOL OU SIMILAR) E SIFÃO TIPO GARRAFA EM METAL CROMADO - FORNECIMENTO E INSTALAÇÃO. ","UN",8,358.02,2864.16]
["4.28.6","LAVATÓRIO MASTER DE CANTO COR BRANCO GELO, COD 76, (MARCA DECA OU SIMILAR), INCLUSO SIFÃO TIPO COPO, PARA LAVATÓRIO 1680, CROMADO, 1\" - 1.1/2\", VALVULA DE METAL CROMADO 1\", PARA LAVATÓRIO, SEM LADRÃO. - FORNECIMENTO E INSTALAÇÃO","UN",2,1420.73,2841.46]
["4.28.7","VASO SANITÁRIO INFANTIL LOUÇA BRANCA - FORNECIMENTO E INSTALACAO. AF_01/2020","UN    ",2,369.51,739.02]
["4.28.8","ASSENTO SANITÁRIO INFANTIL - FORNECIMENTO E INSTALACAO. AF_01/2020","UN    ",2,76.62,153.24]
["4.28.9","DUCHA HIGIÊNICA CROMADO REF:  LINK DECA 1984.C.ACT.LNK.CRL, MARCA DECA, DOCOL OU SIMILAR, FORNECIMENTO E INSTALAÇÃO.","UN",4,331.57,1326.28]
["4.28.10","BACIA SANITARIA BRANCA MOD. RAVENA P917 MARCA DECA, DOCOL OU SIMILAR, TUBO DE LIGAÇÃO CROMADO P/ BACIA 1968 , CONJUNTO PARA FIXAÇAO PARA VASO SANITÁRIO COM PARAFUSO, ARRUELA E BUCHA - FORNECIMENTO E INSTALACAO","UN    ",6,209.07,1254.42]
["4.28.11","ASSENTO UNIVERSAL PP AP0117, BACIA SANITARIA MOD. RAVENA, MARCA DECA, DOCOL OU SIMILAR","UN    ",6,38.479999999999997,230.88]
["4.28.12","BACIA SANITÁRIA PARA PORTADORES DE DEFICIÊNCIA, SEM ABERTURA FRONTAL, REFERÊNCIA LINHA\nCONFORTO DA DECA, CÓD. P.510.17, COR BRANCO GELO OU SIMILAR\n","UN    ",2,764.98,1529.96]
["4.28.13","ASSENTO PLÁSTICO EM POLIPROPILENO P/ BACIA SANITÁRIA PARA PORTADORES DE NECESSIDADES ESPECIAIS, REF. LINHA CONFORTO DA DECA OU SIMILAR .","UN",2,38.479999999999997,76.959999999999994]
["4.28.14","INSTALAÇÃO DE BACIA SANITARIA INCLUSO CONJUNTO PARA FIXAÇAO PARA VASO SANITÁRIO COM PARAFUSO, ARRUELA E BUCHA .( VESTIÁRIO MASCULINO E FEMININO.)","UN",2,80.849999999999994,161.69999999999999]
["4.28.15","INSTALAÇÃO DE LAVATÓRIO DE COLUNA INCLUSO CONJUNTO PARA FIXAÇAO COM PARAFUSO, ARRUELA E BUCHA. ( VESTIÁRIO MASCULINO E FEMININO.)","UN",2,118.99,237.98]
["4.28.16","VÁLVULA DE DESCARGA  1.1/2\" E ACABAMENTO 4900.C.MAX HYDRA MAX CROMADO (DECA, DOCOL OU SIMILAR)","UN    ",8,217.92,1743.36]
["4.28.17","VÁLVULA DE DESCARGA  1.1/2\" COM ACABAMENTO PARA VÁLVULA BENEFIT CROMADO (ALAVANCA PARA PCD)- DOCOL OU SIMILAR","UN",2,865.48,1730.96]
["4.28.18","SECADORA DE MÃO AUTOMÁTICA MODELO ECO 1800 INOX (DAKMARK OU SIMILAR), 220V","UN    ",2,968.77,1937.54]
["4.28.19","MICTORIO DE LOUCA BRANCA C/ SIFÃO INTEGRADO, CÓD. M. 715 (DECA, DOCOL, OU SIMILAR) , COM VÁLVULA DE MICTÓRIO, PRESMATIC, TIPO ANTI VANDALISMO, (MARCA: DECA, DOCOL OU SIMILAR)  E CONJUNTO PARA FIXACAO  - FORNECIMENTO E INSTALACAO","UN    ",3,530.05999999999995,1590.18]
["4.28.20","CHUVEIRO ELÉTRICO COMUM CORPO PLÁSTICO, TIPO DUCHA \u0096 FORNECIMENTO E INSTALAÇÃO. AF_01/2020","UN    ",2,91.69,183.38]
["4.28.21","REGISTRO DE PRESSÃO BRUTO, LATÃO, ROSCÁVEL, 3/4\", COM ACABAMENTO E CANOPLA CROMADOS. FORNECIDO E INSTALADO EM RAMAL DE ÁGUA. AF_12/2014","UN",2,68.41,136.82]
["4.28.22","TORNEIRA CROMADA 1/2\u0094 OU 3/4\u0094 PARA TANQUE, PADRÃO MÉDIO - FORNECIMENTO E INSTALAÇÃO. AF_01/2020","UN    ",2,47.63,95.26]
["4.28.23","TANQUE DE LOUÇA BRANCA COM COLUNA, 30L OU EQUIVALENTE - FORNECIMENTO E INSTALAÇÃO. AF_01/2020","UN    ",2,732.78,1465.56]
["4.28.24","TORNEIRA DE COZINHA DE PAREDE LINK 1168 (DECA, DOCOL OU SIMILAR)","UN",3,123.55,370.65]
["4.28.25","CUBA DE EMBUTIR DE AÇO INOXIDÁVEL MÉDIA(46X30X12CM) , INCLUSO VÁLVULA TIPO AMERICANA E SIFÃO TIPO GARRAFA EM METAL CROMADO - FORNECIMENTO E INSTALAÇÃO. AF_01/2020","UN",3,455.24,1365.72]
["4.29","ACESSIBILIDADE",null,null,null,{"$f":"SUBTOTAL(9,F268:F274)","v":0}]
["4.30","SEGURANÇA PATRIMONIAL ",null,null,null,0]
["4.31","LIMPEZA CONTÍNUA DA OBRA ",null,null,null,{"$f":"SUBTOTAL(9,F269:F275)","v":0}]
["4.32","LIMPEZA FINAL DA OBRA",null,null,null,{"$f":"SUBTOTAL(9,F270:F276)","v":0}]
["VALOR TOTAL",null,null,null,null,{"$f":"SUBTOTAL(9,F15:F263)","v":2417693.8799999994}]

{"sheet":"QUADRA","index":5,"n_rows":61,"n_cols":6,"rows_kept":61,"cut":false,"hidden":false,"merged":[[13,0,13,5],[10,0,10,5],[0,0,3,2],[0,3,1,5],[2,3,3,3],[2,4,3,4],[2,5,3,5],[4,0,4,5],[5,0,5,5],[6,0,6,5],[7,0,7,5],[8,0,8,5],[9,0,9,5]]}
[null,null,null,"SPN-FF-003"]
[]
[null,null,null,"Folha:              1 de 1","Revisão:      02","Data: \n07/10/19"]
[]
[{"$f":"RESUMO!A5","v":"SESI - SERVIÇO SOCIAL DA INDUSTRIA - DR/MT"}]
[{"$f":"RESUMO!A6","v":"OBRA: CONTRATAÇÃO DE EMPRESA ESPECIALIZADA EM ENGENHARIA PARA OBRA DE REFORMA E AMPLIAÇÃO DA UNIDADE SESI ESCOLA CUIABÁ"}]
[{"$f":"RESUMO!A7","v":"UNIDADE OPERACIONAL: SESI ESCOLA CUIABA"}]
[{"$f":"RESUMO!A8","v":"ENDEREÇO:  AV. OÁTOMO CANAVARROS, 1079, BAIRRO BELA VISTA CIDADE: CUIABÁ-MT            "}]
["CONSTRUTORA:"]
["RESPONSÁVEL TÉCNICO:"]
[]
["ITEM","DESCRIÇÃO","UNID.","QUANT.","Valor UNIT. (R$)","Valor Total (R$)"]
[]
["QUADRA POLIESPORTIVA"]
["5.1","DEMOLIÇÕES E RETIRADAS ",null,null,null,0]
["5.2","CANTEIRO DE OBRAS",null,null,null,0]
["5.3","ADMINISTRAÇÃO",null,null,null,0]
["5.4","TERRAPLENAGEM",null,null,null,0]
["5.5","FUNDAÇÃO",null,null,null,0]
["5.6","IMPERMEABILIZAÇÃO",null,null,null,0]
["5.7","ESTRUTURA DE CONCRETO ARMADO ",null,null,null,0]
["5.8","ALVENARIA E PAINÉIS",null,null,null,0]
["5.9","ESTRUTURA METÁLICA",null,null,null,{"$f":"SUBTOTAL(9,F24:F26)","v":120244.44}]
["5.9.1","ESTRUTURA TRELIÇADA DE COBERTURA, TIPO ARCO, COM LIGAÇÕES SOLDADAS, INCLUSOS PERFIS METÁLICOS, CHAPAS METÁLICAS, MÃO DE OBRA E TRANSPORTE COM GUINDASTE - FORNECIMENTO E INSTALAÇÃO. AF_01/2020_P","KG",6188.09,15.92,{"$f":"ROUND(D24*E24,2)","v":98514.39}]
["5.9.2","FUNDO PREPARADOR PRIMER A BASE DE EPOXI,  UMA DEMAO, ESPESSURA DE 25 MICRA.","M2",385.14800000000002,14.82,{"$f":"ROUND(D25*E25,2)","v":5707.89}]
["5.9.3","PINTURA COM TINTA ALQUÍDICA DE ACABAMENTO (ESMALTE SINTÉTICO ACETINADO-CINZA PLATINA) PULVERIZADA SOBRE SUPERFÍCIES METÁLICAS , EXECUTADO EM OBRA (02 DEMÃOS). AF_01/2020","M2",385.14800000000002,41.6,{"$f":"ROUND(D26*E26,2)","v":16022.16}]
["5.10","COBERTURA",null,null,null,0]
["5.11","ESQUADRIAS",null,null,null,{"$f":"SUBTOTAL(9,F29:F30)","v":56002.32}]
["5.11.1","FECHAMENTO EM POLICARBONATO ALVEOLAR 10MM, INCLUSIVE ACESSÓRIOS DE  FIXAÇÃO EM ALUMÍNIO NATURAL.","M2",189.64,254.94,{"$f":"ROUND(D29*E29,2)","v":48346.82}]
["5.11.2","VENEZIANA INDUSTRIAL EM POLICARBONATO ALVEOLAR 4MM COM REQUADRO METÁLICO COM UMA DEMÃO DE FUNDO ANTICORROSIVO EM PRIMER EPÓXI E DUAS DEMÃOS ESMALTE SINTETICO ACETINADO CINZA PLATINA ,  FORNECIMENTO E INSTALAÇÃO.","M2",29.3,261.27999999999997,{"$f":"ROUND(D30*E30,2)","v":7655.5}]
["5.12","PISOS",null,null,null,0]
["5.13","REVESTIMENTO ",null,null,null,0]
["5.14","GRANITO",null,null,null,0]
["5.15","FORROS",null,null,null,0]
["5.16","PINTURA",null,null,null,0]
["5.17","CALÇAMENTO, PÁTIO E PASSARELAS ",null,null,null,0]
["5.18","SERVIÇOS COMPLEMENTARES",null,null,null,{"$f":"SUBTOTAL(9,F38)","v":1435.03}]
["5.18.1","PAR DE TABELAS DE BASQUETE EM COMPENSADO NAVAL DE *1,80 X 1,20* M, COM ARO DE  METAL E REDE - FORNECIMENTO E INSTALAÇÃO","UN",1,1435.03,{"$f":"ROUND(D38*E38,2)","v":1435.03}]
["5.19","INSTALAÇÕES SPDA",null,null,null,{"$f":"SUBTOTAL(9,F40:F47)","v":2569.4499999999998}]
["5.19.1","CAIXA DE INSPEÇÃO PARA ATERRAMENTO, CIRCULAR, EM POLIETILENO, DIÂMETRO INTERNO = 0,3 M. AF_05/2018","UN",8,25.23,{"$f":"ROUND(D40*E40,2)","v":201.84}]
["5.19.2","HASTE DE ATERRAMENTO 5/8  PARA SPDA - FORNECIMENTO E INSTALAÇÃO. AF_12/2017","UN",8,56.5,{"$f":"ROUND(D41*E41,2)","v":452}]
["5.19.3","FORNECIMENTO E INSTALAÇÃO DE TERMINAL AEREO EM ACO GALVANIZADO DN 5/16\", COMPRIMENTO DE 350MM, COM BASE DE FIXACAO HORIZONTAL","UN",29,21.69,629.01]
["5.19.4","FORNECIMENTO E INSTALAÇÃO DE PRESILHA DE LATÃO 35MM²","UN",58,4.34,251.72]
["5.19.5","FORNECIMENTO E INSTALAÇÃO DE REBITE POP EM ALUMÍNIO 4 X 16MM","UN",58,1.38,80.040000000000006]
["5.19.6","FORNECIMENTO E INSTALAÇÃO DE SOLDA EXOTÉRMICA CABO-HASTE COM CARTUCHO Nº 90 E MOLDE CABO 35mm²- HASTE 5/8\" ","UN",8,19.96,159.68]
["5.19.7","TERMINAL OU CONECTOR DE PRESSAO - PARA CABO 50MM2 - FORNECIMENTO E INSTALACAO","UN",8,25.91,207.28]
["5.19.8","CABO DE COBRE NU 50MM2 - FORNECIMENTO E INSTALACAO","M",12,48.99,587.88]
["5.20","INSTALAÇÕES DE COMBATE A INCÊNDIO",null,null,null,0]
["5.21","INSTALAÇÕES ELÉTRICAS",null,null,null,0]
["5.22","INSTALAÇÕES DE LÓGICA E TELEFONICA",null,null,null,0]
["5.23","CLIMATIZAÇÃO ",null,null,null,0]
["5.24","INFRAESTRUTURA PARA INSTALAÇÃO DE ÁUDIO E VÍDEO",null,null,null,0]
["5.25","INSTALAÇÕES HIDROSANITÁRIAS",null,null,null,0]
["5.26","DRENAGEM",null,null,null,0]
["5.27","GLP (BLOCOB)",null,null,null,0]
["5.28","LOUÇAS E METAIS",null,null,null,0]
["5.29","ACESSIBILIDADE",null,null,null,0]
["5.30","SEGURANÇA PATRIMONIAL ",null,null,null,0]
["5.31","LIMPEZA CONTÍNUA DA OBRA ",null,null,null,0]
["5.32","LIMPEZA FINAL DA OBRA",null,null,null,0]
["VALOR TOTAL",null,null,null,null,{"$f":"SUBTOTAL(9,F15:F60)","v":180251.24000000002}]

{"sheet":"ANEXOS","index":6,"n_rows":213,"n_cols":6,"rows_kept":213,"cut":false,"hidden":false,"merged":[[4,0,4,5],[0,0,3,2],[0,3,1,5],[2,3,3,3],[2,4,3,4],[2,5,3,5],[13,0,13,5],[5,0,5,5],[6,0,6,5],[7,0,7,5],[8,0,8,5],[9,0,9,5],[10,0,10,5]]}
[null,null,null,"SPN-FF-003"]
[]
[null,null,null,"Folha:              1 de 1","Revisão:      02","Data: \n07/10/19"]
[]
[{"$f":"RESUMO!A5","v":"SESI - SERVIÇO SOCIAL DA INDUSTRIA - DR/MT"}]
[{"$f":"RESUMO!A6","v":"OBRA: CONTRATAÇÃO DE EMPRESA ESPECIALIZADA EM ENGENHARIA PARA OBRA DE REFORMA E AMPLIAÇÃO DA UNIDADE SESI ESCOLA CUIABÁ"}]
[{"$f":"RESUMO!A7","v":"UNIDADE OPERACIONAL: SESI ESCOLA CUIABA"}]
[{"$f":"RESUMO!A8","v":"ENDEREÇO:  AV. OÁTOMO CANAVARROS, 1079, BAIRRO BELA VISTA CIDADE: CUIABÁ-MT            "}]
["CONSTRUTORA:"]
["RESPONSÁVEL TÉCNICO:"]
[]
["ITEM","DESCRIÇÃO","UNID.","QUANT.","Valor UNIT. (R$)","Valor Total (R$)"]
[]
["ANEXOS (SUBESTAÇÃO, CASA DE BOMBA, BASE CX DAGUA)"]
["6.1","DEMOLIÇÕES E RETIRADAS ",null,null,null,0]
["6.2","CANTEIRO DE OBRAS",null,null,null,0]
["6.3","ADMINISTRAÇÃO",null,null,null,0]
["6.4","TERRAPLENAGEM",null,null,null,0]
["6.5","FUNDAÇÃO",null,null,null,{"$f":"SUBTOTAL(9,F20:F68)","v":149581.38}]
["6.5.1","SUBESTAÇÃO",null,null,null,{"$f":"SUBTOTAL(9,F21:F38)","v":51386.15}]
["6.5.1.1","ESCAVAÇÃO MECANIZADA PARA BLOCO DE COROAMENTO OU SAPATA, COM PREVISÃO DE FÔRMA, COM RETROESCAVADEIRA. AF_06/2017","M3",175.95,33.82,{"$f":"ROUND(D21*E21,2)","v":5950.63}]
["6.5.1.2","BOTA FORA DE MATERIAL DESCARTADO, D.M.T. = 10 km - (CARGA, TRANSPORTE E DESCARGA MECÂNICA)","M3",228.73,25.23,{"$f":"ROUND(D22*E22,2)","v":5770.86}]
["6.5.1.3","REATERRO MECANIZADO DE VALA COM ESCAVADEIRA HIDRÁULICA (CAPACIDADE DA CAÇAMBA: 0,8 M³ / POTÊNCIA: 111 HP), LARGURA DE 1,5 A 2,5 M, PROFUNDIDADE ATÉ 1,5 M, COM SOLO DE 1ª CATEGORIA EM LOCAIS COM ALTO NÍVEL DE INTERFERÊNCIA. AF_04/2016","M3",221.36,16.13,3570.54]
["6.5.1.4","LASTRO DE CONCRETO MAGRO, APLICADO EM BLOCOS DE COROAMENTO OU SAPATAS. AF_08/2017","M3",1.1000000000000001,550.88,605.97]
["6.5.1.5","FABRICAÇÃO, MONTAGEM E DESMONTAGEM DE FÔRMA PARA SAPATA, EM MADEIRA SERRADA, E=25 MM, 1 UTILIZAÇÃO. AF_06/2017","M2",35.880000000000003,240.28,8621.25]
["6.5.1.6","ARMAÇÃO DE ESTRUTURAS DE CONCRETO ARMADO, EXCETO VIGAS, PILARES, LAJES E FUNDAÇÕES, UTILIZANDO AÇO CA-60 DE 5,0 MM - MONTAGEM. AF_12/2015","KG",27.4,15.44,423.06]
["6.5.1.7","ARMAÇÃO DE ESTRUTURAS DE CONCRETO ARMADO, EXCETO VIGAS, PILARES, LAJES E FUNDAÇÕES, UTILIZANDO AÇO CA-50 DE 8,0 MM - MONTAGEM. AF_12/2015","KG",22.9,13.19,302.05]
["6.5.1.8","ARMAÇÃO DE ESTRUTURAS DE CONCRETO ARMADO, EXCETO VIGAS, PILARES, LAJES E FUNDAÇÕES, UTILIZANDO AÇO CA-50 DE 10,0 MM - MONTAGEM. AF_12/2015","KG",296.39999999999998,11.67,3458.99]
["6.5.1.9","ARMAÇÃO DE ESTRUTURAS DE CONCRETO ARMADO, EXCETO VIGAS, PILARES, LAJES E FUNDAÇÕES, UTILIZANDO AÇO CA-50 DE 12,5 MM - MONTAGEM. AF_12/2015","KG",66.400000000000006,9.76,648.05999999999995]
["6.5.1.10","ARMAÇÃO DE ESTRUTURAS DE CONCRETO ARMADO, EXCETO VIGAS, PILARES, LAJES E FUNDAÇÕES, UTILIZANDO AÇO CA-50 DE 16,0 MM - MONTAGEM. AF_12/2015","KG",37.9,9.19,348.3]
["6.5.1.11","CONCRETAGEM DE PILARES, FCK = 25 MPA, COM USO DE BOMBA EM EDIFICAÇÃO COM SEÇÃO MÉDIA DE PILARES MENOR OU IGUAL A 0,25 M² - LANÇAMENTO, ADENSAMENTO E ACABAMENTO. AF_12/2015","M3",7.37,577.37,4255.22]
["6.5.1.12","VIGAS BALDRAMES - EXECUÇÃO DE LASTRO EM CONCRETO (1:2,5:6), PREPARO MANUAL","M³",8.8800000000000008,550.88,4891.8100000000004]
["6.5.1.13","VIGAS BALDRAMES - FORMA TABUA PARA CONCRETO EM FUNDACAO, C/ REAPROVEITAMENTO 2X.","M²",37.39,240.28,8984.07]
["6.5.1.14","ARMAÇÃO DE ESTRUTURAS DE CONCRETO ARMADO, EXCETO VIGAS, PILARES, LAJES E FUNDAÇÕES, UTILIZANDO AÇO CA-60 DE 5,0 MM - MONTAGEM. AF_12/2015","KG",28.88,15.44,445.91]
["6.5.1.15","ARMAÇÃO DE PILAR OU VIGA DE UMA ESTRUTURA CONVENCIONAL DE CONCRETO ARMADO EM UM EDIFÍCIO DE MÚLTIPLOS PAVIMENTOS UTILIZANDO AÇO CA-50 DE 6,3 MM - MONTAGEM. AF_12/2015","KG",33.46,13.23,442.68]
["6.5.1.16","ARMAÇÃO DE LAJE DE UMA ESTRUTURA CONVENCIONAL DE CONCRETO ARMADO EM UM EDIFÍCIO DE MÚLTIPLOS PAVIMENTOS UTILIZANDO AÇO CA-50 DE 8,0 MM - MONTAGEM. AF_12/2015","KG",34.369999999999997,11.61,399.04]
["6.5.1.17","ARMAÇÃO DE ESTRUTURAS DE CONCRETO ARMADO, EXCETO VIGAS, PILARES, LAJES E FUNDAÇÕES, UTILIZANDO AÇO CA-50 DE 10,0 MM - MONTAGEM. AF_12/2015","KG",7.8,11.67,91.03]
["6.5.1.18","CONCRETAGEM DE PILARES, FCK = 25 MPA, COM USO DE BOMBA EM EDIFICAÇÃO COM SEÇÃO MÉDIA DE PILARES MENOR OU IGUAL A 0,25 M² - LANÇAMENTO, ADENSAMENTO E ACABAMENTO. AF_12/2015","M3",3.77,577.37,2176.6799999999998]
["6.5.2","CASA DE BOMBAS",null,null,null,{"$f":"SUBTOTAL(9,F40:F55)","v":12267.73}]
["6.5.2.1","ESCAVACAO MANUAL DE VALA EM MATERIAL DE 1A CATEGORIA ATE 1,5M EXCLUINDO ESGOTAMENTO / ESCORAMENTO (BLOCOS E VIGAS BALDRAME)","M3",8.86,115.9,{"$f":"ROUND(D40*E40,2)","v":1026.8699999999999}]
["6.5.2.2","BOTA FORA DE MATERIAL DESCARTADO, D.M.T. = 10 km - ,(CARGA, TRANSPORTE E DESCARGA MECÂNICA) (BLOCOS, VIGAS E ESTACAS + 30% DE EMPOLAMENTO)","M3",9.0500000000000007,25.23,228.33]
["6.5.2.3","REATERRO MANUAL DE VALAS COM COMPACTAÇÃO MECANIZADA. AF_04/2016","M3",6.41,26,166.66]
["6.5.2.4","ESTACA ESCAVADA, TIPO BROCA DE CONCRETO ARMADO, fck=25 MPa, Ø 30 cm","M",36,45.83,1649.88]
["6.5.2.5","ESTACAS - CONCRETO AUTOADENSAVEL (CAA) CLASSE DE RESISTENCIA C25, ESPALHAMENTO SF2, INCLUI SERVICO DE BOMBEAMENTO (NBR 15823)","M3    ",2.5499999999999998,681.12,1736.86]
["6.5.2.6","ESTACAS - ESTRIBOS ESPIRAL SOLDADOS EM ARMACAO ACO CA-50 DIAM. 6,3 (1/4) - FORNECIMENTO/ CORTE(PERDA DE 10%) / DOBRA / COLOCAÇÃO)","KG",80.489999999999995,14.28,1149.4000000000001]
["6.5.2.7","ESTACAS - ARMACAO ACO CA-50 DIAM.16,0 (5/8) - FORNECIMENTO/ CORTE(PERDA DE 10%) / DOBRA / COLOCAÇÃO)","KG",201.7,9.19,1853.62]
["6.5.2.8","BLOCO DE COROAMENTO - EXECUÇÃO DE LASTRO EM CONCRETO (1:2,5:6), PREPARO MANUAL","M3",7.0000000000000007E-2,195.7,13.7]
["6.5.2.9","BLOCO DE COROAMENTO - FORMA TABUA P/CONCRETO EM FUNDACAO S/REAPROVEITAMENTO","M2",10.56,87.39,922.84]
["6.5.2.10","BLOCO DE COROAMENTO - ARMAÇÃO DE FUNDAÇÕES E ESTRUTURAS DE CONCRETO ARMADO, EXCETO VIGAS, PILARES E LAJES (DE EDIFÍCIOS DE MÚLTIPLOS PAVIMENTOS, EDIFICAÇÃO TÉRREAOU SOBRADO), UTILIZANDO AÇO CA-50 DE 6.3 MM - MONTAGEM. ","KG",29.81,14.28,425.69]
["6.5.2.11","BLOCO DE COROAMENTO - CONCRETO USINADO BOMBEADO Fck=25MPA, INCLUSIVE COLOCAÇÃO, ESPALHAMENTO E ADENSAMENTO MECÂNICO","M3",1.58,577.37,912.24]
["6.5.2.12","VIGAS BALDRAMES - EXECUÇÃO DE LASTRO EM CONCRETO (1:2,5:6), PREPARO MANUAL","M3",0.2,195.7,39.14]
["6.5.2.13","VIGAS BALDRAMES - FORMA TABUA PARA CONCRETO EM FUNDACAO, C/ REAPROVEITAMENTO 2X.","M2",12.43,87.39,1086.26]
["6.5.2.14","VIGAS BALDRAMES - ARMAÇÃO DE FUNDAÇÕES E ESTRUTURAS DE CONCRETO ARMADO, EXCETO VIGAS, PILARES E LAJES (DE EDIFÍCIOS DE MÚLTIPLOS PAVIMENTOS, EDIFICAÇÃO TÉRREA OU SOBRADO), UTILIZANDO AÇO CA-60 DE 5.0 MM - MONTAGEM. ","KG",11.07,12.68,140.37]
["6.5.2.15","VIGAS BALDRAMES - ARMAÇÃO DE FUNDAÇÕES E ESTRUTURAS DE CONCRETO ARMADO, EXCETO VIGAS, PILARES E LAJES (DE EDIFÍCIOS DE MÚLTIPLOS PAVIMENTOS, EDIFICAÇÃO TÉRREA OU SOBRADO), UTILIZANDO AÇO CA-50 DE 10.0 MM - MONTAGEM. ","KG",40.880000000000003,11.67,477.07]
["6.5.2.16","VIGAS BALDRAMES - CONCRETO USINADO BOMBEADO FCK=25MPA, INCLUSIVE COLOCACAO, ESPALHAMENTO E ADENSAMENTO MECANICO","M3",0.76,577.37,438.8]
["6.5.3","BASE DA CAIXA DÁGUA",null,null,null,{"$f":"SUBTOTAL(9,F57:F68)","v":85927.5}]
["6.5.3.1","ESCAVACAO MANUAL DE VALA EM MATERIAL DE 1A CATEGORIA ATE 1,5M EXCLUINDO ESGOTAMENTO / ESCORAMENTO (BLOCOS E VIGAS BALDRAME)","M3",55.13,115.9,{"$f":"ROUND(D57*E57,2)","v":6389.57}]
["6.5.3.2","BOTA FORA DE MATERIAL DESCARTADO, D.M.T. = 10 km - ,(CARGA, TRANSPORTE E DESCARGA MECÂNICA) (BLOCOS, VIGAS E ESTACAS + 30% DE EMPOLAMENTO)","M3",98.51,25.23,2485.41]
["6.5.3.3","REATERRO MANUAL DE VALAS COM COMPACTAÇÃO MECANIZADA. AF_04/2016","M3",13.28,26,345.28]
["6.5.3.4","ESTACA ESCAVADA, TIPO BROCA DE CONCRETO ARMADO, fck=25 MPa, Ø 30 cm","M",270,45.83,12374.1]
["6.5.3.5","ESTACAS - CONCRETO AUTOADENSAVEL (CAA) CLASSE DE RESISTENCIA C25, ESPALHAMENTO SF2, INCLUI SERVICO DE BOMBEAMENTO (NBR 15823)","M3    ",19.100000000000001,681.12,13009.39]
["6.5.3.6","ESTACAS - ESTRIBOS ESPIRAL SOLDADOS EM ARMACAO ACO CA-50 DIAM. 6,3 (1/4) - FORNECIMENTO/ CORTE(PERDA DE 10%) / DOBRA / COLOCAÇÃO)","KG",543.33000000000004,14.28,7758.75]
["6.5.3.7","ESTACAS - ARMACAO ACO CA-50 DIAM.16,0 (5/8) - FORNECIMENTO/ CORTE(PERDA DE 10%) / DOBRA / COLOCAÇÃO)","KG",1361.76,9.19,12514.57]
["6.5.3.8","BLOCO DE COROAMENTO - EXECUÇÃO DE LASTRO EM CONCRETO (1:2,5:6), PREPARO MANUAL","M3",1.35,195.7,264.2]
["6.5.3.9","BLOCO DE COROAMENTO - FORMA TABUA P/CONCRETO EM FUNDACAO S/REAPROVEITAMENTO","M2",54,87.39,4719.0600000000004]
["6.5.3.10","BLOCO DE COROAMENTO - ARMAÇÃO DE FUNDAÇÕES E ESTRUTURAS DE CONCRETO ARMADO, EXCETO VIGAS, PILARES E LAJES (DE EDIFÍCIOS DE MÚLTIPLOS PAVIMENTOS, EDIFICAÇÃO TÉRREAOU SOBRADO), UTILIZANDO AÇO CA-50 DE 6.3 MM - MONTAGEM. ","KG",93.34,14.28,1332.9]
["6.5.3.11","ARMAÇÃO DE ESTRUTURAS DE CONCRETO ARMADO, EXCETO VIGAS, PILARES, LAJES E FUNDAÇÕES, UTILIZANDO AÇO CA-50 DE 12,5 MM - MONTAGEM. AF_12/2015","KG",138.4,9.76,1350.78]
["6.5.3.12","BLOCO DE COROAMENTO - CONCRETO USINADO BOMBEADO Fck=25MPA, INCLUSIVE COLOCAÇÃO, ESPALHAMENTO E ADENSAMENTO MECÂNICO","M3",40.5,577.37,23383.49]
["6.6","IMPERMEABILIZAÇÃO",null,null,null,{"$f":"SUBTOTAL(9,F70:F72)","v":6651.46}]
["6.6.1","SUBESTAÇÃO-IMPERMEABILIZAÇÃO DE SUPERFÍCIE COM EMULSÃO ASFÁLTICA, 2 DEMÃOS AF_06/2018","M2",95.31,35.68,{"$f":"ROUND(D70*E70,2)","v":3400.66}]
["6.6.2","CASA DE BOMBAS- IMPERMEABILIZAÇÃO DE SUPERFÍCIE COM EMULSÃO ASFÁLTICA, 2 DEMÃOS AF_06/2018","M2",37.11,35.68,{"$f":"ROUND(D71*E71,2)","v":1324.08}]
["6.6.3","BASE DA CAIXA DÁGUA- IMPERMEABILIZAÇÃO DE SUPERFÍCIE COM EMULSÃO ASFÁLTICA, 2 DEMÃOS AF_06/2018","M2",54,35.68,1926.72]
["6.7","ESTRUTURA DE CONCRETO ARMADO ",null,null,null,{"$f":"SUBTOTAL(9,F74:F104)","v":36588.029999999992}]
["6.7.1","SUBESTAÇÃO",null,null,null,{"$f":"SUBTOTAL(9,F75:F91)","v":28029.62}]
["6.7.1","FABRICAÇÃO DE FÔRMA PARA VIGAS, COM MADEIRA SERRADA, E = 25 MM. AF_12/2015","M2",39.64,88.68,{"$f":"ROUND(D75*E75,2)","v":3515.28}]
["6.7.2","ARMAÇÃO DE PILAR OU VIGA DE UMA ESTRUTURA CONVENCIONAL DE CONCRETO ARMADO EM UM EDIFÍCIO DE MÚLTIPLOS PAVIMENTOS UTILIZANDO AÇO CA-60 DE 5,0 MM - MONTAGEM. AF_12/2015","KG",48.01,14.07,{"$f":"ROUND(D76*E76,2)","v":675.5}]
["6.7.3","ARMAÇÃO DE PILAR OU VIGA DE UMA ESTRUTURA CONVENCIONAL DE CONCRETO ARMADO EM UM EDIFÍCIO DE MÚLTIPLOS PAVIMENTOS UTILIZANDO AÇO CA-50 DE 6,3 MM - MONTAGEM. AF_12/2015","KG",105.62,13.23,1397.35]
["6.7.4","ARMAÇÃO DE LAJE DE UMA ESTRUTURA CONVENCIONAL DE CONCRETO ARMADO EM UM EDIFÍCIO DE MÚLTIPLOS PAVIMENTOS UTILIZANDO AÇO CA-50 DE 8,0 MM - MONTAGEM. AF_12/2015","KG",13.38,11.61,155.34]
["6.7.5","ARMAÇÃO DE PILAR OU VIGA DE UMA ESTRUTURA CONVENCIONAL DE CONCRETO ARMADO EM UM EDIFÍCIO DE MÚLTIPLOS PAVIMENTOS UTILIZANDO AÇO CA-50 DE 10,0 MM - MONTAGEM. AF_12/2015","KG",7.59,11.1,84.25]
["6.7.6","CONCRETAGEM DE PILARES, FCK = 25 MPA, COM USO DE BOMBA EM EDIFICAÇÃO COM SEÇÃO MÉDIA DE PILARES MENOR OU IGUAL A 0,25 M² - LANÇAMENTO, ADENSAMENTO E ACABAMENTO. AF_12/2015","M3",3.04,577.37,1755.2]
["6.7.7","FABRICAÇÃO DE FÔRMA PARA VIGAS, COM MADEIRA SERRADA, E = 25 MM. AF_12/2015","M2",17.89,88.68,1586.49]
["6.7.8","ARMAÇÃO DE PILAR OU VIGA DE UMA ESTRUTURA CONVENCIONAL DE CONCRETO ARMADO EM UM EDIFÍCIO DE MÚLTIPLOS PAVIMENTOS UTILIZANDO AÇO CA-60 DE 5,0 MM - MONTAGEM. AF_12/2015","KG",45.85,14.07,645.11]
["6.7.9","ARMAÇÃO DE PILAR OU VIGA DE UMA ESTRUTURA CONVENCIONAL DE CONCRETO ARMADO EM UM EDIFÍCIO DE MÚLTIPLOS PAVIMENTOS UTILIZANDO AÇO CA-50 DE 10,0 MM - MONTAGEM. AF_12/2015","KG",76.84,11.1,852.92]
["6.7.10","ARMAÇÃO DE PILAR OU VIGA DE UMA ESTRUTURA CONVENCIONAL DE CONCRETO ARMADO EM UM EDIFÍCIO DE MÚLTIPLOS PAVIMENTOS UTILIZANDO AÇO CA-50 DE 12,5 MM - MONTAGEM. AF_12/2015","KG",74.88,9.35,700.13]
["6.7.11","CONCRETAGEM DE PILARES, FCK = 25 MPA, COM USO DE BOMBA EM EDIFICAÇÃO COM SEÇÃO MÉDIA DE PILARES MENOR OU IGUAL A 0,25 M² - LANÇAMENTO, ADENSAMENTO E ACABAMENTO. AF_12/2015","M3",1.55,577.37,894.92]
["6.7.12","FABRICAÇÃO DE FÔRMA PARA VIGAS, COM MADEIRA SERRADA, E = 25 MM. AF_12/2015","M2",63.42,88.68,5624.09]
["6.7.13","ARMAÇÃO DE PILAR OU VIGA DE UMA ESTRUTURA CONVENCIONAL DE CONCRETO ARMADO EM UM EDIFÍCIO DE MÚLTIPLOS PAVIMENTOS UTILIZANDO AÇO CA-50 DE 6,3 MM - MONTAGEM. AF_12/2015","KG",100.19,13.23,1325.51]
["6.7.14","ARMAÇÃO DE LAJE DE UMA ESTRUTURA CONVENCIONAL DE CONCRETO ARMADO EM UM EDIFÍCIO DE MÚLTIPLOS PAVIMENTOS UTILIZANDO AÇO CA-50 DE 8,0 MM - MONTAGEM. AF_12/2015","KG",18.34,11.61,212.93]
["6.7.15","ARMAÇÃO DE PILAR OU VIGA DE UMA ESTRUTURA CONVENCIONAL DE CONCRETO ARMADO EM UM EDIFÍCIO DE MÚLTIPLOS PAVIMENTOS UTILIZANDO AÇO CA-50 DE 12,5 MM - MONTAGEM. AF_12/2015","KG",2.31,9.35,21.6]
["6.7.16","CONCRETAGEM DE PILARES, FCK = 25 MPA, COM USO DE BOMBA EM EDIFICAÇÃO COM SEÇÃO MÉDIA DE PILARES MENOR OU IGUAL A 0,25 M² - LANÇAMENTO, ADENSAMENTO E ACABAMENTO. AF_12/2015","M3",4.4000000000000004,577.37,2540.4299999999998]
["6.7.17","LAJE PRE-MOLD BETA 11 P/1KN/M2 VAOS 4,40M/INCL VIGOTAS TIJOLOS ARMADURA NEGATIVA CAPEAMENTO 3CM CONCRETO 20MPA ESCORAMENTO MATERIAL E MAO  DE OBRA.","M2",58.66,103.01,6042.57]
["6.7.2","CASA DE BOMBAS",null,null,null,{"$f":"SUBTOTAL(9,F93:F104)","v":8558.409999999998}]
["6.7.2.1","VIGAS RESPALDO - FORMA TABUA PARA CONCRETO EM FUNDACAO, C/ REAPROVEITAMENTO 2X.","M2",15.553999999999998,88.68,{"$f":"ROUND(D93*E93,2)","v":1379.33}]
["6.7.2.2","VIGAS RESPALDO - ARMAÇÃO DE PILAR OU VIGA DE UMA ESTRUTURA CONVENCIONAL DE CONCRETO ARMADO EM UM EDIFÍCIO DE MÚLTIPLOS PAVIMENTOS UTILIZANDO AÇO CA-60 DE 5.0MM - MONTAGEM.","KG",12.53,14.07,176.3]
["6.7.2.3","VIGAS RESPALDO - ARMAÇÃO DE PILAR OU VIGA DE UMA ESTRUTURA CONVENCIONAL DE CONCRETO ARMADO EM UM EDIFÍCIO DE MÚLTIPLOS PAVIMENTOS UTILIZANDO AÇO CA-50 DE 10.0MM - MONTAGEM.","KG",46.42,11.1,515.26]
["6.7.2.4","VIGAS RESPALDO - CONCRETO USINADO BOMBEADO FCK=25MPA, INCLUSIVE COLOCACAO, ESPALHAMENTO E ADENSAMENTO MECANICO","M3",1.0058999999999998,577.37,580.78]
["6.7.2.5","PILARES - FORMA TABUA PARA CONCRETO EM FUNDACAO, C/ REAPROVEITAMENTO 2X.","M2",9.4499999999999993,88.68,838.03]
["6.7.2.6","PILARES - ARMAÇÃO DE PILAR OU VIGA DE UMA ESTRUTURA CONVENCIONAL DE CONCRETO ARMADO EM UM EDIFÍCIO DE MÚLTIPLOS PAVIMENTOS UTILIZANDO AÇO CA-60 DE 5.0MM - MONTAGEM.","KG",23.4,14.07,329.24]
["6.7.2.7","PILARES - ARMAÇÃO DE PILAR OU VIGA DE UMA ESTRUTURA CONVENCIONAL DE CONCRETO ARMADO EM UM EDIFÍCIO DE MÚLTIPLOS PAVIMENTOS UTILIZANDO AÇO CA-50 DE 10.0MM - MONTAGEM.","KG",49.9,11.1,553.89]
["6.7.2.8","PILARES - CONCRETO USINADO BOMBEADO FCK=25MPA, INCLUSIVE COLOCACAO, ESPALHAMENTO E ADENSAMENTO MECANICO","M3",0.56699999999999995,577.37,327.37]
["6.7.2.9","LAJE - FORMA TABUA PARA CONCRETO EM FUNDACAO, C/ REAPROVEITAMENTO 2X.","M2",14.126900000000001,88.68,1252.77]
["6.7.2.10","LAJE - ARMAÇÃO DE LAJE DE UMA ESTRUTURA CONVENCIONAL DE CONCRETO ARMADO EM UM EDIFÍCIO DE MÚLTIPLOS PAVIMENTOS UTILIZANDO AÇO CA-50 DE 6.3 MM - MONTAGEM.","KG",50.7,12.19,618.03]
["6.7.2.11","LAJE - ARMAÇÃO DE LAJE DE UMA ESTRUTURA CONVENCIONAL DE CONCRETO ARMADO EM UM EDIFÍCIO DE MÚLTIPLOS PAVIMENTOS UTILIZANDO AÇO CA-50 DE 8.0 MM - MONTAGEM.","KG",65.8,11.61,763.94]
["6.7.2.12","LAJE - CONCRETO USINADO BOMBEADO FCK=25MPA, INCLUSIVE COLOCACAO, ESPALHAMENTO E ADENSAMENTO MECANICO","M3",2.1190349999999993,577.37,1223.47]
["6.8","ALVENARIA E PAINÉIS",null,null,null,{"$f":"SUBTOTAL(9,F106:F109)","v":29091.780000000002}]
["6.8.1","SUBESTAÇÃO- ALVENARIA DUPLA DE VEDAÇÃO DE BLOCOS CERÂMICOS FURADOS NA HORIZONTAL DE 9X19X19CM (ESPESSURA 19CM) DE PAREDES COM ÁREA LÍQUIDA MAIOR OU IGUAL A 6M² COM VÃOS E ARGAMASSA DE ASSENTAMENTO COM PREPARO EM BETONEIRA. AF_06/2014","M2",148.83000000000001,156.97999999999999,{"$f":"ROUND(D106*E106,2)","v":23363.33}]
["6.8.2","SUBESTAÇÃO- ALVENARIA DE VEDAÇÃO DE BLOCOS CERÂMICOS FURADOS NA HORIZONTAL DE 9X19X19CM (ESPESSURA 9CM) DE PAREDES COM ÁREA LÍQUIDA MAIOR OU IGUAL A 6M² COM VÃOS E ARGAMASSA DE ASSENTAMENTO COM PREPARO EM BETONEIRA. AF_06/2014","M2",29.82,83.75,2497.4299999999998]
["6.8.3","SUBESTAÇÃO- IMPERMEABILIZAÇÃO DE PAREDES COM ARGAMASSA DE CIMENTO E AREIA, COM ADITIVO IMPERMEABILIZANTE, E = 2CM. AF_06/2018","M2",17.25,38.06,656.54]
["6.8.4","CASA DE BOMBAS- ALVENARIA DE VEDAÇÃO DE BLOCOS CERÂMICOS FURADOS NA HORIZONTAL DE 9X19X19CM (ESPESSURA 9CM) DE PAREDES COM ÁREA LÍQUIDA MAIOR OU IGUAL A 6M² COM VÃOS E ARGAMASSA DE ASSENTAMENTO COM PREPARO EM BETONEIRA. AF_06/2014","M2",30.74,83.75,2574.48]
["6.9","ESTRUTURA METÁLICA",null,null,null,0]
["6.10","COBERTURA",null,null,null,{"$f":"SUBTOTAL(9,F112)","v":3568.36}]
["6.10.1","IMPERMEABILIZAÇÃO COM ARGAMASSA DE CIMENTO E AREIA, COM ADITIVO IMPERMEABILIZANTE, E = 2CM. AF_06/2018","M2",83.49,42.74,{"$f":"ROUND(D112*E112,2)","v":3568.36}]
["6.11","ESQUADRIAS",null,null,null,{"$f":"SUBTOTAL(9,F114:F117)","v":16141.6}]
["6.11.1","PORTA DE ABRIR EM VENEZIANA, 02 FOLHAS DIM (1,60x2,10)M, ALUMÍNIO FOSCO, COM TELA DE PROTEÇÃO METÁLICA FECHADURA, INCLUSIVE FERRAGENS DE INSTALAÇÃO PARA PERFEITO USO E FUNCIONAMENTO (2 UNID. SUBESTAÇÃO E 01 UNID. CASA DE BOMBA) ","CONJ.",3,3035.19,{"$f":"ROUND(D114*E114,2)","v":9105.57}]
["6.11.2","JANELA EM ALUMÍNIO ANODIZADO VENEZIANA, DIM (1,60X0,50/ 0,50/3,60)M COM TELA DE PROTEÇÃO EM MALHA ARAMADA DE FERRO 13MM EM PERFIL DE FERRO. (4 UNID. SUBESTAÇÃO E 02 UNID. CASA DE BOMBA) ","CONJ.",6,706.18,{"$f":"ROUND(D115*E115,2)","v":4237.08}]
["6.11.3"," JANELA EM VIDRO ARAMADO TEMPERADO FIXO ESPESSURA=8MM COM REQUADRO DE ALUMINIO NA COR NATURAL C/ TELA DE PROTEÇÃO METÁLICA DIMENSÃO: (1,00X0,50/0,50/3,60)M (SUBESTAÇÃO)","CONJ.",6,254.45,1526.7]
["6.11.5"," VISOR EM VIDRO ARAMADO TEMPERADO FIXO ESPESSURA=8MM COM REQUADRO DE ALUMINIO NA COR NATURAL C/ TELA DE PROTEÇÃO METÁLICA DIMENSÃO: (0,50X1,00/2,00)M.(SUBESTAÇÃO)","CONJ.",5,254.45,1272.25]
["6.12","PISOS",null,null,null,{"$f":"SUBTOTAL(9,F119:F124)","v":15948.579999999998}]
["6.12.1","SUBESTAÇÃO- CONTRAPISO DE CONCRETO 20 MPA PREPARO MECANICO, ESPESSURA 7CM.  ","M2",57.46,70.069999999999993,{"$f":"ROUND(D119*E119,2)","v":4026.22}]
["6.12.2","SUBESTAÇÃO- REGULARIZAÇÃO EM ARGAMASSA TRAÇO 1:4 (CIMENTO E AREIA), PREPARO MECÂNICOCOM BETONEIRA 400 L, APLICADO EM ÁREAS SECAS SOBRE LAJE, ADERIDO, ESPESSURA 3CM","M2",57.46,37.79,2171.41]
["6.12.3","SUBESTAÇÃO- PISO CIMENTADO TRAÇO 1:3 (CIMENTO E AREIA) ACABAMENTO LISO PIGMENTADO  ESPESSURA 1,5CM COM JUNTAS PLASTICAS DE DILATACAO E ARGAMASSA EM PREPARO MANUAL ","M2",57.46,30.92,1776.66]
["6.12.1","CASA DE BOMBAS- CONTRAPISO DE CONCRETO 20 MPA PREPARO MECANICO, ESPESSURA 7CM.  ","M2",57.46,70.069999999999993,{"$f":"ROUND(D122*E122,2)","v":4026.22}]
["6.12.2","CASA DE BOMBAS -REGULARIZAÇÃO EM ARGAMASSA TRAÇO 1:4 (CIMENTO E AREIA), PREPARO MECÂNICOCOM BETONEIRA 400 L, APLICADO EM ÁREAS SECAS SOBRE LAJE, ADERIDO, ESPESSURA 3CM","M2",57.46,37.79,2171.41]
["6.12.3","CASA DE BOMBAS- PISO CIMENTADO TRAÇO 1:3 (CIMENTO E AREIA) ACABAMENTO LISO PIGMENTADO  ESPESSURA 1,5CM COM JUNTAS PLASTICAS DE DILATACAO E ARGAMASSA EM PREPARO MANUAL ","M2",57.46,30.92,1776.66]
["6.13","REVESTIMENTO ",null,null,null,{"$f":"SUBTOTAL(9,F126:F129)","v":21105.559999999998}]
["6.13.1","SUBESTAÇÃO- CHAPISCO APLICADO EM ALVENARIAS E ESTRUTURAS DE CONCRETO INTERNAS, COM ROLO PARA TEXTURA ACRÍLICA.  ARGAMASSA TRAÇO 1:4 E EMULSÃO POLIMÉRICA (ADESIVO) COM PREPARO EM BETONEIRA 400L. AF_06/2014","M2",524.28,5.09,{"$f":"ROUND(D126*E126,2)","v":2668.59}]
["6.13.2","SUBESTAÇÃO- EMBOÇO, PARA RECEBIMENTO DE CERÂMICA, EM ARGAMASSA TRAÇO 1:2:8, PREPARO MECÂNICO COM BETONEIRA 400L, APLICADO MANUALMENTE EM FACES INTERNAS DE PAREDES, PARA AMBIENTE COM ÁREA ENTRE 5M2 E 10M2, ESPESSURA DE 20MM, COM EXECUÇÃO DE TALISCAS. AF_06/2014","M2",524.28,30.1,{"$f":"ROUND(D127*E127,2)","v":15780.83}]
["6.13.1","CASA DE BOMBAS- CHAPISCO APLICADO EM ALVENARIAS E ESTRUTURAS DE CONCRETO INTERNAS, COM ROLO PARA TEXTURA ACRÍLICA.  ARGAMASSA TRAÇO 1:4 E EMULSÃO POLIMÉRICA (ADESIVO) COM PREPARO EM BETONEIRA 400L. AF_06/2014","M2",75.48,5.09,384.19]
["6.13.2","CASA DE BOMBAS- EMBOÇO, PARA RECEBIMENTO DE CERÂMICA, EM ARGAMASSA TRAÇO 1:2:8, PREPARO MECÂNICO COM BETONEIRA 400L, APLICADO MANUALMENTE EM FACES INTERNAS DE PAREDES, PARA AMBIENTE COM ÁREA ENTRE 5M2 E 10M2, ESPESSURA DE 20MM, COM EXECUÇÃO DE TALISCAS. AF_06/2014","M2",75.48,30.1,{"$f":"ROUND(D129*E129,2)","v":2271.9499999999998}]
["6.14","GRANITO",null,null,null,0]
["6.15","FORROS",null,null,null,0]
["6.16","PINTURA",null,null,null,{"$f":"SUBTOTAL(9,F133:F140)","v":15126.779999999999}]
["6.16.1","SUBESTAÇÃO- APLICAÇÃO DE FUNDO SELADOR LÁTEX PVA EM PAREDES, UMA DEMÃO. AF_06/2014","M2",378.9,2.31,{"$f":"ROUND(D133*E133,2)","v":875.26}]
["6.16.2","SUBESTAÇÃO- APLICAÇÃO E LIXAMENTO DE MASSA LÁTEX EM PAREDES, DUAS DEMÃOS. AF_06/2014","M2",239.07,14.74,{"$f":"ROUND(D134*E134,2)","v":3523.89}]
["6.16.3","SUBESTAÇÃO-APLICAÇÃO MANUAL DE PINTURA COM TINTA LÁTEX ACRÍLICA EM PAREDES, DUAS DEMÃOS. AF_06/2014","M2",345.2,14.41,{"$f":"ROUND(D135*E135,2)","v":4974.33}]
["6.16.4","SUBESTAÇÃO- APLICAÇÃO MANUAL DE PINTURA COM TINTA TEXTURIZADA ACRÍLICA EM PAREDES EXTERNAS DE CASAS, DUAS CORES. AF_06/2014","M2",106.13,24.21,{"$f":"ROUND(D136*E136,2)","v":2569.41}]
["6.16.5","CASA DE BOMBAS- APLICAÇÃO DE FUNDO SELADOR LÁTEX PVA EM PAREDES, UMA DEMÃO. AF_06/2014","M2",61.33,2.31,{"$f":"ROUND(D137*E137,2)","v":141.66999999999999}]
["6.16.6","CASA DE BOMBAS- APLICAÇÃO MANUAL DE PINTURA COM TINTA LÁTEX ACRÍLICA EM PAREDES, DUAS DEMÃOS. AF_06/2014","M2",75.33,14.41,1085.51]
["6.16.7","CASA DE BOMBAS- APLICAÇÃO MANUAL DE PINTURA COM TINTA TEXTURIZADA ACRÍLICA EM PAREDES EXTERNAS DE CASAS, DUAS CORES. AF_06/2014","M2",24.89,24.21,602.59]
["6.16.8","CAIXA DÁGUA- PINTURA ACRILICA EM PISO CIMENTADO DUAS DEMAOS","M2",81.28,16.66,1354.12]
["6.17","CALÇAMENTO, PÁTIO E PASSARELAS ",null,null,null,{"$f":"SUBTOTAL(9,F142)","v":1343.42}]
["6.17.1","EXECUÇÃO DE PASSEIO (CALÇADA) OU PISO DE CONCRETO COM CONCRETO MOLDADO IN LOCO, USINADO, ACABAMENTO CONVENCIONAL, ESPESSURA 8 CM, ARMADO. AF_07/2016","M2",14.31,93.88,{"$f":"ROUND(D142*E142,2)","v":1343.42}]
["6.18","SERVIÇOS COMPLEMENTARES",null,null,null,0]
["6.19","INSTALAÇÕES SPDA",null,null,null,0]
["6.20","INSTALAÇÕES DE COMBATE A INCÊNDIO",null,null,null,0]
["6.21","INSTALAÇÕES ELÉTRICAS",null,null,null,{"$f":"SUBTOTAL(9,F147:F201)","v":169051.93000000002}]
["6.21.1","POSTE DE CONCRETO CIRCULAR, 600 KG, H = 11 M (NBR 8451)","UN    ",1,1660.26,{"$f":"ROUND(D147*E147,2)","v":1660.26}]
["6.21.2","ASSENTAMENTO DE POSTE DE CONCRETO COM COMPRIMENTO NOMINAL DE 11 M, CARGA NOMINAL MENOR OU IGUAL A 1000 DAN, ENGASTAMENTO SIMPLES COM 1,7 M DE SOLO (NÃO INCLUI FORNECIMENTO). AF_11/2019","UN",1,560.05999999999995,{"$f":"ROUND(D148*E148,2)","v":560.05999999999995}]
["6.21.3","ALCA PRE-FORMADA DISTRIBUIÇÃO EM  ACO RECOBERTO COM ALUMINIO PARA CABO 25MM2, ENCAPADO. FORNECIMENTO E INSTALAÇÃO.","UN",8,17.38,139.04]
["6.21.4","FORNECIMENTO E INSTALAÇÃO DE ISOLADOR DE PORCELANA, TIPO PINO MONOCORPO, PARA TENSAO DE *15* KV","UND",8,43.37,346.96]
["6.21.5","FORNECIMENTO E INSTALAÇÃO DE PINO ROSCA EXTERNA, EM ACO GALVANIZADO, PARA ISOLADOR DE 15KV, DIAMETRO 25 MM, COMPRIMENTO *290* MM","UND",8,30.86,246.88]
["6.21.6","FORNECIMENTO E INSTALAÇÃO DE CRUZETA DE CONCRETO LEVE, COMP. 2000 MM SECAO, 90 X 90 MM","UND",3,157.46,472.38]
["6.21.7","MÃO FRANCESA PLANA DE 619MM - FORNECIMENTO E INSTALAÇÃO","UND",6,56.72,340.32]
["6.21.8","FORNECIMENTO E INSTALAÇÃO DE PARAFUSO M16 EM ACO GALVANIZADO, COMPRIMENTO = 125 MM, DIAMETRO = 16 MM, ROSCA MAQUINA, CABECA QUADRADA","UND",6,6.73,40.380000000000003]
["6.21.9","FORNECIMENTO E INSTALAÇÃO DE PARAFUSO M16 EM ACO GALVANIZADO, COMPRIMENTO = 200 MM, DIAMETRO = 16 MM, ROSCA MAQUINA, CABECA QUADRADA","UND",2,7.36,14.72]
["6.21.10","FORNECIMENTO E INSTALAÇÃO DE PARAFUSO M16 EM ACO GALVANIZADO, COMPRIMENTO = 250 MM, DIAMETRO = 16 MM, ROSCA MAQUINA, CABECA QUADRADA","UND",1,8.81,8.81]
["6.21.11","FORNECIMENTO E INSTALAÇÃO DE PARAFUSO M16 EM ACO GALVANIZADO, COMPRIMENTO = 300 MM, DIAMETRO = 16 MM ROSCA DUPLA","UND",4,12.93,51.72]
["6.21.12","PARAFUSO M16 (ROSCA MÁQUINA D=16MM) X 500MM CABEÇA QUADRADA - ZINCAGEM A FOGO - FORNECIMENTO E INSTALAÇÃO","UND",7,23.93,167.51]
["6.21.13","PARAFUSO FRANCÊS M16 (D=16MM) X 45MM CABEÇA ABAULADA - ZINCAGEM A FOGO - FORNECIMENTO E INSTALAÇÃO","UND",4,4.04,16.16]
["6.21.14","FORNECIMENTO E INSTALAÇÃO DE GRAMPO LINHA VIVA DE LATAO ESTANHADO, DIAMETRO DO CONDUTOR PRINCIPAL DE 10 A 120 MM2, DIAMETRO DA DERIVACAO DE 10 A 70 MM2","UND",3,62.35,187.05]
["6.21.15","CONECTOR DERIVAÇÃO CUNHA TIPO ESTRIBO NORMAL 2/0 - FORNECIMENTO E INSTALAÇÃO","UND",3,27,81]
["6.21.16","CONECTOR DERIVAÇÃO CUNHA TIPO - AMP - TIPO II OU SIMILAR - FORNECIMENTO E INSTALAÇÃO","UND",2,21.69,43.38]
["6.21.17","CARTUCHO PARA CONECTOR CUNHA AZUL - FORNECIMENTO E INSTALAÇÃO","UND",3,5.9,17.7]
["6.21.18","CABO DE COBRE COBERTO COM XLPE - 16MM² - 15KV - FORNECIMENTO E INSTALAÇÃO","M",20,36.28,725.6]
["6.21.19","HASTE DE ATERRAMENTO 5/8  PARA SPDA - FORNECIMENTO E INSTALAÇÃO. AF_12/2017","UN",27,73.45,1983.15]
["6.21.20","CABO DE COBRE NU 25 MM2 MEIO-DURO","M     ",150,23.3,3495]
["6.21.21","FORNECIMENTO E INSTALAÇÃO DE ARAME AÇO GALVANIZADO 12 BWG, 2,60M (48,00G/M)","M",8,3.36,{"$f":"ROUND(D167*E167,2)","v":26.88}]
["6.21.22","CABO DE COBRE FLEXÍVEL ISOLADO, 10 MM², ANTI-CHAMA 450/750 V, PARA CIRCUITOS TERMINAIS - FORNECIMENTO E INSTALAÇÃO. AF_12/2015","M",3,16.62,49.86]
["6.21.23","FORNECIMENTO E INSTALAÇÃO DE ARRUELA QUADRADA EM ACO GALVANIZADO, DIMENSAO = 38 MM, ESPESSURA = 3MM, UN 0,52 DIAMETRO DO FURO= 18 MM","UND",28,0.89,24.92]
["6.21.24","FORNECIMENTO E INSTALAÇÃO DE CHAVE FUSIVEL PARA REDES DE DISTRIBUICAO, TENSAO DE 15,0 KV, CORRENTE NOMINAL","UND",3,582,1746]
["6.21.25","PARA-RAIO TP VÁLVULA 15KV/5KA - FORNECIMENTO E INSTALAÇÃO","UND",6,382,2292]
["6.21.26","PROTETOR DE BUCHA DE AT DE TRANSFORMADOR 15KV - FORNECIMENTO E INSTALAÇÃO","UND",6,37.54,225.24]
["6.21.27","CABO DE COBRE UNIPOLAR 25MM² BLINDADO, ISOLAÇÃO 12/20KV EPR - COBERTURA EM PVC - FORNECIMENTO E INSTALAÇÃO","M",352,34.15,12020.8]
["6.21.28","FORNECIMENTO E INSTALAÇÃO DE ELETRODUTO GALVANIZADO 4''","M",83,169.78,14091.74]
["6.21.29","MUFLA TERMINAL PRIMARIA UNIPOLAR USO EXTERNO PARA CABO 25/70MM2 ISOL, 3,6/6KV EM EPR - BORRACHA DE SILICONE","UN    ",4,311.39999999999998,1245.5999999999999]
["6.21.30","SUPORTE PARA FIXAÇÃO DE MUFLAS TERMINAIS - FORNECIMENTO E INSTALAÇÃO","UND",1,150.15,150.15]
["6.21.31","ELETRODUTO RÍGIDO ROSCÁVEL, PVC, DN 25 MM (3/4\"), PARA CIRCUITOS TERMINAIS, INSTALADO EM PAREDE - FORNECIMENTO E INSTALAÇÃO. AF_12/2015","M",3,13.84,41.52]
["6.21.32","CAIXA DE PASSAGEM 30X30X40 COM TAMPA E DRENO BRITA","UN",7,280.86,1966.02]
["6.21.33","TRANSFORMADOR DISTRIBUICAO  500KVA TRIFASICO 60HZ CLASSE 15KV IMERSO EM ÓLEO MINERAL FORNECIMENTO E INSTALACAO","UN",1,46605.87,46605.87]
["6.21.34","MUFLA TERMINAL PRIMARIA UNIPOLAR USO INTERNO PARA CABO 35/120MM2 ISOLACAO 15/25KV EM EPR - BORRACHA DE SILICONE","UN    ",4,401.82,1607.28]
["6.21.35","ISOLADOR DE PEDESTAL 15KV - FORNECIMENTO E INSTALAÇÃO","UND",18,131.24,2362.3200000000002]
["6.21.36","SECCIONADOR TRIPOLAR 15KV/400A ACIONAMENTO SIMULTÂNEO PUNHO MANOBRA (COMANDO) - FORNECIMENTO E INSTALAÇÃO","UND",2,1879.74,3759.48]
["6.21.37","VERGALHÃO DE COBRE 1/4\" - FORNECIMENTO E INSTALAÇÃO","M",48,30.64,1470.72]
["6.21.38","TRANSFORMADOR DE POTENCIAL PARA PROTEÇÃO CLASSE 15KV - RELAÇÃO 120:1 - FORNECIMENTO E INSTALAÇÃO","UND",1,2089.96,2089.96]
["6.21.39","TRANSFORMADOR DE CORRENTE PARA PROTEÇÃO CLASSE 15KV - RELAÇÃO 20:5 - FORNECIMENTO E INSTALAÇÃO","UND",3,683.18,2049.54]
["6.21.40","SUPORTE METÁLICO PARA FIXAÇÃO DE PARA-RAIOS E MUFLAS INTERNAS - FORNECIMENTO E INSTALAÇÃO","UND",1]
["6.21.41","FORNECIMENTO E INSTALAÇÃO DE PAINEL DE PROTEÇÃO COM CONJUNTO DE COMANDO RELÉ URPE COMPLETO","UND",1,8154.05,{"$f":"ROUND(D187*E187,2)","v":8154.05}]
["6.21.42","DISJUNTOR TRIFÁSICO 630A/15KV A VÁCUO PARA INSTALAÇÃO ABRIGADA, COM RELÉ PRIMÁRIO, POTÊNCIA NOMINAL CURTO CIRCUITO - 350MVA - FORNECIMENTO E INSTALAÇÃO","UND",1,19753.95,19753.95]
["6.21.43","CABO DE COBRE FLEXÍVEL ISOLADO, 240 MM², ANTI-CHAMA 450/750 V, PARA DISTRIBUIÇÃO - FORNECIMENTO E INSTALAÇÃO. AF_12/2015","M",77,262.17,20187.09]
["6.21.44","FORNECIMENTO E INSTALAÇÃO DE TERMINAL DE COMPRESSÃO 240MM²","UND",12,45.6,547.20000000000005]
["6.21.45","TERMINAL A PRESSÃO DE BRONZE P/ CABO A BARRA, CABO  240MM² C/ 1 FURO P/ FIXAÇÃO - FORNECIMENTO E INSTALAÇÃO","UND",36,41.09,1479.24]
["6.21.46","EXTINTOR DE CO2 6KG - FORNECIMENTO E INSTALACAO","UN",1,737.74,737.74]
["6.21.47","PLACA DE ADVERTÊNCIA \"PERIGO DE MORTE ALTA TENSÃO\" - FORNECIMENTO E INSTALAÇÃO","UND",7,34.159999999999997,239.12]
["6.21.48","PLACA DE ADVERTÊNCIA \"ESTA CHAVE NÃO DEVE SER MANOBRADA COM CARGA\" - FORNECIMENTO E INSTALAÇÃO","UND",3,46.4,139.19999999999999]
["6.21.49","LUMINÁRIA ARANDELA TIPO TARTARUGA, COM GRADE, DE SOBREPOR, COM 1 LÂMPADA FLUORESCENTE DE 15 W, SEM REATOR - FORNECIMENTO E INSTALAÇÃO. AF_02/2020","UN",5,110.67,553.35]
["6.21.50","INTERRUPTOR SIMPLES (1 MÓDULO), 10A/250V, INCLUINDO SUPORTE E PLACA - FORNECIMENTO E INSTALAÇÃO. AF_12/2015","UN",2,27.76,55.52]
["6.21.51","ELETRODUTO RÍGIDO ROSCÁVEL, PVC, DN 25 MM (3/4\"), PARA CIRCUITOS TERMINAIS, INSTALADO EM FORRO - FORNECIMENTO E INSTALAÇÃO. AF_12/2015","M",25,12.55,313.75]
["6.21.52","CABO DE COBRE FLEXÍVEL ISOLADO, 2,5 MM², ANTI-CHAMA 0,6/1,0 KV, PARA CIRCUITOS TERMINAIS - FORNECIMENTO E INSTALAÇÃO. AF_12/2015","M",50,5.98,299]
["6.21.53","SUPORTE DE FIXAÇÃO PARA ISOLADOR PEDESTAL - FORNECIMENTO E INSTALAÇÃO","UND",5,2349.12,11745.6]
["6.21.54","SUPORTE DE FIXAÇÃO PARA TRANSFORMADOR DE POTENCIAL - FORNECIMENTO E INSTALAÇÃO","UND",1,211.57,211.57]
["6.21.55","SUPORTE DE FIXAÇÃO PARA TRANSFORMADOR DE CORRENTE - FORNECIMENTO E INSTALAÇÃO","UND",1,211.57,211.57]
["6.22","INSTALAÇÕES DE LÓGICA E TELEFONICA",null,null,null,0]
["6.23","CLIMATIZAÇÃO ",null,null,null,0]
["6.24","INFRAESTRUTURA PARA INSTALAÇÃO DE ÁUDIO E VÍDEO",null,null,null,0]
["6.25","INSTALAÇÕES HIDROSANITÁRIAS",null,null,null,0]
["6.26","DRENAGEM",null,null,null,0]
["6.27","GLP (BLOCOB)",null,null,null,0]
["6.28","LOUÇAS E METAIS",null,null,null,0]
["6.29","ACESSIBILIDADE",null,null,null,0]
["6.30","SEGURANÇA PATRIMONIAL ",null,null,null,0]
["6.31","LIMPEZA CONTÍNUA DA OBRA ",null,null,null,0]
["6.32","LIMPEZA FINAL DA OBRA",null,null,null,0]
["VALOR TOTAL",null,null,null,null,{"$f":"SUBTOTAL(9,F15:F212)","v":464198.88}]

{"sheet":"COMPOSIÇÃO DO BDI","index":7,"n_rows":29,"n_cols":3,"rows_kept":29,"cut":false,"hidden":false,"merged":[[1,0,4,2],[27,0,27,1],[28,0,42,2],[5,0,5,1],[6,0,6,1],[10,0,10,1],[18,0,18,1]]}
[]
["COMPOSIÇÃO DO BDI OBRAS DE ENGENHARIA"]
[]
[]
[]
["DESCRIÇÃO",null,"%"]
["GRUPO A"]
["A1","(AC) ADMINISTRAÇÃO CENTRAL - VARIA CONFORME O PORTE DA NÚMERO DE OBRAS EM ANDAMENTO, VOLUME FINANCEIRO DAS OBRAS A INICIAREM, ETC,  EM CADA   EM CADA EMPRESA - (ACORDAO 2622/2013 - 3,0% A 5,5%)",{"$f":"ROUND(AVERAGE(3%,5.5%),4)","v":4.2500000000000003E-2}]
[null,"TOTAL DO GRUPO A  =",{"$f":"SUM(C8)","v":4.2500000000000003E-2}]
[]
["GRUPO B"]
["B1","(DF) DESPESAS FINANCEIRAS - (ACORDAO 2622/2013 - 0,59% A 1,39%)",{"$f":"ROUND(AVERAGE(0.59%,1.39%),4)","v":9.9000000000000008E-3}]
["B2","(S)   SEGUROS - (ACORDAO 2622/2013 SEGURO + GARANTIA - 0,8% A 1,0%)",{"$f":"ROUND(AVERAGE(0.4%,0.5%),4)","v":4.4999999999999997E-3}]
["B2","(G)   GARANTIAS - (ACORDAO 2622/2013 SEGURO + GARANTIA - 0,8% A 1,0%)",{"$f":"ROUND(AVERAGE(0.4%,0.5%),4)","v":4.4999999999999997E-3}]
["B3","(R)   TAXA DE RISCO E IMPREVISTOS - (ACORDAO 2622/2013 0,97% A 1,27%)",{"$f":"ROUND(AVERAGE(0.97%,1.27%),4)","v":1.12E-2}]
["B4","(L)    LUCRO (ACORDAO 2622/2013 6,16% A 8,96%)",{"$f":"ROUND(AVERAGE(6.16%,8.96%),4)","v":7.5600000000000001E-2}]
[null,"TOTAL DO GRUPO B  =",{"$f":"SUM(C12:C16)","v":0.1057}]
[]
["GRUPO C"]
["C1","ISS - (ISS% SOBRE 40% DE MÃO DE OBRA)"]
["C2","%MÃO DE OBRA",0.4]
["C3","ISS DO MUNICÍPIO",0.05]
["C4","SUBTOTAL ISS (C2 X C3) =",{"$f":"C22*C21","v":2.0000000000000004E-2}]
["C5","PIS",6.4999999999999997E-3]
["C6","COFINS",0.03]
[null,"TOTAL DO GRUPO C  =",{"$f":"SUM(C23:C25)","v":5.6500000000000002E-2}]
[]
["TOTAL BDI (FORMULA ACORDAO 2369/2011)",null,{"$f":"ROUND((1+C8+C13+C15+C14)*(1+C12)*(1+C16)/(1-C26)-1,4)","v":0.2235}]
[" BDI = (1+AC+S+R+G)x(1+DF)X(1+L))  -1\n                                  1-I\nOnde: \nAC = taxa representativa das despesas de rateio da Administração Central;\nS = taxa representativa de Seguros;\nR = taxa representativa de Riscos;\nG = taxa representativa de Garantias;\nDF = taxa representativa das Despesas Financeiras;\nL = taxa representativa do Lucro;\nI = taxa representativa da incidência de Impostos. \n\n  Observação:\n  i)   Composição do BDI, intervalos admissíveis e Fórmula de cálculo nos termos do Acórdão 2622/2013 do TCU."]

{"sheet":"COMPOSIÇÃO DO BDI EQUIPAMENTO","index":8,"n_rows":29,"n_cols":3,"rows_kept":29,"cut":false,"hidden":false,"merged":[[28,0,42,2],[1,0,4,2],[5,0,5,1],[6,0,6,1],[10,0,10,1],[18,0,18,1],[27,0,27,1]]}
[]
["COMPOSIÇÃO DO BDI REDUZIDO"]
[]
[]
[]
["DESCRIÇÃO",null,"%"]
["GRUPO A"]
["A1","(AC) ADMINISTRAÇÃO CENTRAL - VARIA CONFORME O PORTE DA NÚMERO DE OBRAS EM ANDAMENTO, VOLUME FINANCEIRO DAS OBRAS A INICIAREM, ETC,  EM CADA   EM CADA EMPRESA - (ACORDAO 2622/2013 - 1,5% A 4,49%)",{"$f":"ROUND(AVERAGE(1.5%,4.49%),4)","v":0.03}]
[null,"TOTAL DO GRUPO A  =",{"$f":"SUM(C8)","v":0.03}]
[]
["GRUPO B"]
["B1","(DF) DESPESAS FINANCEIRAS - (ACORDAO 2622/2013 - 0,85% A 1,11%)",{"$f":"ROUND(AVERAGE(0.85%,1.11%),4)","v":9.7999999999999997E-3}]
["B2","(S)   SEGUROS - (ACORDAO 2622/2013 SEGURO + GARANTIA - 0,3% A 0,82%)",{"$f":"ROUND(AVERAGE(0.3%/2,0.82%/2),4)","v":2.8E-3}]
["B2","(G)   GARANTIAS - (ACORDAO 2622/2013 SEGURO + GARANTIA - 0,3% A 0,82%)",{"$f":"ROUND(AVERAGE(0.3%/2,0.82%/2),4)","v":2.8E-3}]
["B3","(R)   TAXA DE RISCO E IMPREVISTOS - (ACORDAO 2622/2013 0,56% A 0,89%)",{"$f":"ROUND(AVERAGE(0.56%,0.89%),4)","v":7.3000000000000001E-3}]
["B4","(L)    LUCRO (ACORDAO 2622/2013 3,50% A 6,22%)",{"$f":"ROUND(AVERAGE(3.5%,6.22%),4)","v":4.8599999999999997E-2}]
[null,"TOTAL DO GRUPO B  =",{"$f":"SUM(C12:C16)","v":7.1300000000000002E-2}]
[]
["GRUPO C"]
["C1","ISS - (ISS% SOBRE 40% DE MÃO DE OBRA)"]
["C2","%MÃO DE OBRA",0]
["C3","ISS DO MUNICÍPIO",0.05]
["C4","SUBTOTAL ISS (C2 X C3) =",{"$f":"C22*C21","v":0}]
["C5","PIS",6.4999999999999997E-3]
["C6","COFINS",0.03]
[null,"TOTAL DO GRUPO C  =",{"$f":"SUM(C23:C25)","v":3.6499999999999998E-2}]
[]
["TOTAL BDI (ACORDAO 2369/2011)",null,{"$f":"ROUND((1+C8+C13+C15+C14)*(1+C12)*(1+C16)/(1-C26)-1,4)","v":0.14610000000000001}]
[" BDI = (1+AC+S+R+G)x(1+DF)X(1+L))  -1\n                                  1-I\nOnde: \nAC = taxa representativa das despesas de rateio da Administração Central;\nS = taxa representativa de Seguros;\nR = taxa representativa de Riscos;\nG = taxa representativa de Garantias;\nDF = taxa representativa das Despesas Financeiras;\nL = taxa representativa do Lucro;\nI = taxa representativa da incidência de Impostos. \n\n  Observação:\n  i)   Composição do BDI, intervalos admissíveis e Fórmula de cálculo nos termos do Acórdão 2622/2013 do TCU."]